Workbook

Sheet Summary of Funding (hidden)
A1: Date Issued: 22nd September 2023 | H1: Last Amended: 15th August 2023
A2: COVENTRY CITY COUNCIL
A3: 2023-24 Funding Allocations for Special Schools | P3: 8
A4: Summary of Funding
A6: =VLOOKUP(P3,Data!A4:AD11,2,FALSE)&" Special School" -> Woodfield Special School
A9: =IF(P42=0,"","***ERROR - CALCULATED ADJUSTMENT DOES NOT EQUAL ACTUAL ***") -> 
A10: Coventry Budget Share Elements
A12: Place Led Funding - see 'Place Led Funding' tab | F12: ='Place Led Funding'!M26 -> 1550000 | P12: =_xlfn.XLOOKUP(P3,Data!A71:A78,Data!C71:C78)-F12 -> 0
A14: INDICATIVE Coventry Top-up Funding - see 'Top-up Funding' tabs | F14: ='Summer 2023 Top-up'!K28+'Autumn 2023 Top-up'!K28+'Spring 2024 Top-up'!K28 -> 2651275.396 | P14: =_xlfn.XLOOKUP(P3,Data!A71:A78,Data!D71:D78)-F14 -> 0
A16: Teachers Pay & Pension Grant 2023/24 | F16: =_xlfn.XLOOKUP('Summary of Funding'!$P$3,Data!$A$4:$A$11,Data!AP4:AP11) -> 102300 | P16: =_xlfn.XLOOKUP(P3,Data!A4:A11,Data!AP4:AP11)-'Summary of Funding'!F16 -> 0
A18: Additional Funding | F18: =_xlfn.XLOOKUP('Summary of Funding'!$P$3,Data!$A$4:$A$11,Data!AQ4:AQ11) -> 215525.0263 | P18: =_xlfn.XLOOKUP(P3,Data!A4:A11,Data!AQ4:AQ11)-'Summary of Funding'!F18 -> 0
A20: Split Site Funding | F20: =_xlfn.XLOOKUP('Summary of Funding'!$P$3,Data!$A$4:$A$11,Data!AR4:AR11) -> 90000
A22: RPA Adjustment | F22: =_xlfn.XLOOKUP('Summary of Funding'!$P$3,Data!$A$4:$A$11,Data!AS4:AS11) -> -3565
H25: =F12+F14+F16+F18+F20+F22 -> 4605535.423 | P25: =P14+P12 -> 0
A27: Other LA Budget Share Elements
A29: INDICATIVE Other LA Top-up Funding - see 'Top-up Funding' tabs | F29: ='Summer 2023 Top-up'!K48+'Autumn 2023 Top-up'!K48+'Spring 2024 Top-up'!K48 -> 32525.53846 | P29: =_xlfn.XLOOKUP(P3,Data!A59:A66,Data!AQ59:AQ66)-F29 -> 0
H31: =F29 -> 32525.53846 | P31: =P29 -> 0
A33: INDICATIVE Total Budget Share 2023/24 | H33: =H25+H31 -> 4638060.961 | P33: =P31+P25 -> 0
A35: Other Funding Elements
A37: INDICATIVE Pupil Premium Grant 2023/24 | F37: =_xlfn.XLOOKUP('Summary of Funding'!$P$3,Data!$A$4:$A$11,Data!AO4:AO11) -> 151990 | P37: =_xlfn.XLOOKUP(P3,Data!A4:A11,Data!AO4:AO11)-F37 -> 0
H39: =F37 -> 151990
A41: INDICATIVE Total Revenue Resources | H41: =H33+H39 -> 4790050.961 | P41: =P39+P33 -> 0
A44: Notes
A46: This funding summary is intended to give you an overview of the indicative resources allocated to the school for the 2023/24 financial year.
A47: The actual budget that you will receive is based on the real-time movement of pupils and so will not be finalised until March 2024.
A49: Your summer 2023 top-up has been updated to reflect the actual level of provision during the term - this allocation is now final. The autumn
A50: and spring terms remain indicative. These top-up figures are based on the level of provision your school delivered in the same terms in the
A51: 2022/23 financial year. Where the number of places at your school has changed we have scaled the indicative level of provision up or down
A52: as appropriate to reflect the changing position at the school - but we have not allowed this to increase above your number of comissioned places.
A54: Pupil Premium Funding is based on your 2023/24 financial year rates published by the DfE, this is still subject to change.
A56: Additonal high needs funding is the funding announced as part of the Autumn budget statement to help schools deal with cost of living
A57: pressures.

Sheet Place Led Funding (hidden)
A1: ='Summary of Funding'!A1 -> Date Issued: 22nd September 2023 | M1: ='Summary of Funding'!H1 -> Last Amended: 15th August 2023
A2: ='Summary of Funding'!A2 -> COVENTRY CITY COUNCIL
A3: ='Summary of Funding'!A3 -> 2023-24 Funding Allocations for Special Schools | P3: ='Summary of Funding'!P3 -> 8
A4: Place Led Funding
A6: =VLOOKUP(P3,Data!A4:AD11,2,FALSE)&" Special School" -> Woodfield Special School | P6: Checks
A10: Factors | C10: Factor Measurement | G10: Number of Units | I10: Funding Per Unit | K10: Pro Rata | M10: Funding Allocated
I11: £ | M11: £
A13: Pre-16 Funding | C13: No. Places comissioned (Apr 2023 - Jul 2023) | G13: =VLOOKUP($P$3,Data!$A$4:$AD$11,6,FALSE) -> 155 | I13: 10000 | K13: =4/12 -> 0.3333333333 | M13: =G13*I13*K13 -> 516666.6667
C14: No. Places comissioned (Aug 2023) | G14: =VLOOKUP($P$3,Data!$A$4:$AD$11,7,FALSE) -> 155 | I14: 10000 | K14: 0.08333333333 | M14: =G14*I14*K14 -> 129166.6667
C15: No. Places comissioned (Sep 2023 - Mar 2024) | G15: =VLOOKUP($P$3,Data!$A$4:$AD$11,8,FALSE) -> 155 | I15: 10000 | K15: 0.5833333333 | M15: =G15*I15*K15 -> 904166.6667
M17: =SUM(M13:M15) -> 1550000 | P17: =VLOOKUP($P$3,Data!$A$4:$AD$11,15,FALSE)+VLOOKUP($P$3,Data!$A$4:$AD$11,16,FALSE)+VLOOKUP($P$3,Data!$A$4:$AD$11,17,FALSE)-M17 -> 0
A19: Post-16 Funding | C19: No. Places comissioned (Apr 2023 - Jul 2023) | G19: =VLOOKUP($P$3,Data!$A$4:$AD$11,9,FALSE) -> 0 | I19: 10000 | K19: =4/12 -> 0.3333333333 | M19: =G19*I19*K19 -> 0
C20: No. Places comissioned (Aug 2023) | G20: =VLOOKUP($P$3,Data!$A$4:$AD$11,9,FALSE) -> 0 | I20: 10000 | K20: 0.08333333333 | M20: =G20*I20*K20 -> 0
C21: No. Places comissioned (Sep 2023 - Mar 2024) | G21: =VLOOKUP($P$3,Data!$A$4:$AD$11,10,FALSE) -> 0 | I21: 10000 | K21: 0.5833333333 | M21: =G21*I21*K21 -> 0
M23: =SUM(M19:M21) -> 0 | P23: =VLOOKUP($P$3,Data!$A$4:$AD$11,18,FALSE)+VLOOKUP($P$3,Data!$A$4:$AD$11,19,FALSE)+VLOOKUP($P$3,Data!$A$4:$AD$11,20,FALSE)-M23 -> 0
A26: Total Indicative Place Led Funding | M26: =M17+M23 -> 1550000 | P26: =P23+P17 -> 0

Sheet HN Framework Values (hidden)
A1: ='Summary of Funding'!A1 -> Date Issued: 22nd September 2023 | K1: ='Summary of Funding'!H1 -> Last Amended: 15th August 2023
A2: ='Summary of Funding'!A2 -> COVENTRY CITY COUNCIL
A3: ='Summary of Funding'!A3 -> 2023-24 Funding Allocations for Special Schools | P3: ='Summary of Funding'!P3 -> 8
A4: High Needs Banded Framework Top-up Rates
A6: =VLOOKUP(P3,Data!A4:AB11,2,FALSE)&" Special School" -> Woodfield Special School | P6: Checks
A11: High Needs Banded Framework
A12: Table 1 | D12: Cat 1 | E12: Cat 2 | F12: Cat 3 | G12: Cat 4 | H12: Cat 5 | I12: Cat 6
D13: Communication and Interaction | E13: Cognition and Learning | F13: SEMH | G13: Sensory &/or Physical | H13: Exceptional | I13: Personalised
C14: Level A | D14: Universal | I14: Early Support - only as agreed with Head of SS
C15: Level B | D15: Targeted
C16: Level C | D16: S&L Disorder | E16: Specific LD
C17: Level D | D17: Social Comm - Moderate | E17: MLD | F17: SEMH - Moderate | G17: HI/VI
C18: Level E | D18: Social Comm - High | E18: SLD | F18: SEMH - High | G18: PD - High | H18: OOC - only as agreed with Head of SS | I18: CC - only as agreed with Head of SS
C19: Level F | D19: Social Comm - Severe | E19: PMLD | F19: SEMH - Severe | G19: MSI
A22: HN Framework Top-up Rates
A23: Table 2 | D23: Cat 1 | E23: Cat 2 | F23: Cat 3 | G23: Cat 4 | H23: Cat 5 | I23: Cat 6
D24: Communication and Interaction | E24: Cognition and Learning | F24: SEMH | G24: Sensory &/or Physical | H24: Exceptional | I24: Personalised
C25: Level A | D25: 0 | E25: 0 | F25: 0 | G25: 0 | I25: As agreed with Head of SS
C26: Level B | D26: 0 | E26: 0 | F26: 0 | G26: 0
C27: Level C | D27: =D38 -> 2571.189013 | E27: =E38 -> 3085.431218
C28: Level D | D28: =D39 -> 3085.431218 | E28: 5142.378026 | F28: =F39 -> 7713.578046 | G28: 7713.578046
C29: Level E | D29: 10284.76706 | E29: 9513.414758 | F29: =F40 -> 12855.95607 | G29: 12855.95607 | H29: As agreed with Head of SS | I29: As agreed with Head of SS
C30: Level F | D30: 16712.7506 | E30: 15427.14508 | F30: =F41 -> 15427.14508 | G30: 15427.14508
A33: MFG PROTECTED Top-up Rates
A34: Table 3 | D34: Cat 1 | E34: Cat 2 | F34: Cat 3 | G34: Cat 4 | H34: Cat 5 | I34: Cat 6
A35: Protection | D35: Communication and Interaction | E35: Cognition and Learning | F35: SEMH | G35: Sensory &/or Physical | H35: Exceptional | I35: Personalised
A36: Level: | B36: =((D41/D30)-1) -> 0 | C36: Level A | D36: 0 | E36: 0 | F36: 0 | G36: 0 | H36: 0 | I36: 0
C37: Level B | D37: 0 | E37: 0 | F37: 0 | G37: 0 | H37: 0 | I37: 0
C38: Level C | D38: =INDEX(Data!V$4:V$11,MATCH('HN Framework Values'!$P$3,Data!$A$4:$A$11,0)) -> 2571.189013 | E38: =INDEX(Data!W$4:W$11,MATCH('HN Framework Values'!$P$3,Data!$A$4:$A$11,0)) -> 3085.431218 | F38: 0 | G38: 0 | H38: 0 | I38: 0
C39: Level D | D39: =INDEX(Data!X$4:X$11,MATCH('HN Framework Values'!$P$3,Data!$A$4:$A$11,0)) -> 3085.431218 | E39: =INDEX(Data!Y$4:Y$11,MATCH('HN Framework Values'!$P$3,Data!$A$4:$A$11,0)) -> 5142.378026 | F39: =INDEX(Data!Z$4:Z$11,MATCH('HN Framework Values'!$P$3,Data!$A$4:$A$11,0)) -> 7713.578046 | G39: =INDEX(Data!AA$4:AA$11,MATCH('HN Framework Values'!$P$3,Data!$A$4:$A$11,0)) -> 7713.578046 | H39: 0 | I39: 0
C40: Level E | D40: =INDEX(Data!AB$4:AB$11,MATCH('HN Framework Values'!$P$3,Data!$A$4:$A$11,0)) -> 10284.76706 | E40: =INDEX(Data!AC$4:AC$11,MATCH('HN Framework Values'!$P$3,Data!$A$4:$A$11,0)) -> 9513.414758 | F40: =INDEX(Data!AD$4:AD$11,MATCH('HN Framework Values'!$P$3,Data!$A$4:$A$11,0)) -> 12855.95607 | G40: =INDEX(Data!AE$4:AE$11,MATCH('HN Framework Values'!$P$3,Data!$A$4:$A$11,0)) -> 12855.95607 | H40: =INDEX(Data!AF$4:AF$11,MATCH('HN Framework Values'!$P$3,Data!$A$4:$A$11,0)) -> 23506 | I40: =INDEX(Data!AG$4:AG$11,MATCH('HN Framework Values'!$P$3,Data!$A$4:$A$11,0)) -> 0
C41: Level F | D41: =INDEX(Data!AH$4:AH$11,MATCH('HN Framework Values'!$P$3,Data!$A$4:$A$11,0)) -> 16712.7506 | E41: =INDEX(Data!AI$4:AI$11,MATCH('HN Framework Values'!$P$3,Data!$A$4:$A$11,0)) -> 15427.14508 | F41: =INDEX(Data!AJ$4:AJ$11,MATCH('HN Framework Values'!$P$3,Data!$A$4:$A$11,0)) -> 15427.14508 | G41: =INDEX(Data!AK$4:AK$11,MATCH('HN Framework Values'!$P$3,Data!$A$4:$A$11,0)) -> 15427.14508 | H41: =INDEX(Data!AL$4:AL$11,MATCH('HN Framework Values'!$P$3,Data!$A$4:$A$11,0)) -> 47012 | I41: =INDEX(Data!AM$4:AM$11,MATCH('HN Framework Values'!$P$3,Data!$A$4:$A$11,0)) -> 0
A45: Notes
A47: Table 2 shows the High Needs Top-up Rates that apply to special schools for each element of the High Needs Funding Matrix. The
A48: above published rates have seen a 3.76% inflationary rise from 2022/23 top up rates.
A52: =IF(N4="MFG","standard High Needs Top-up rates. Your protected top-up rates are shown in table 3 and apply to your school for the 2021/22 financial year.","") -> 

Sheet Summer 2023 Top-up (hidden)
A1: ='Summary of Funding'!A1 -> Date Issued: 22nd September 2023 | M1: ='Summary of Funding'!H1 -> Last Amended: 15th August 2023
A2: ='Summary of Funding'!A2 -> COVENTRY CITY COUNCIL
A3: ='Summary of Funding'!A3 -> 2023-24 Funding Allocations for Special Schools | P3: ='Summary of Funding'!P3 -> 8
A4: Summer 2023 Top-up Funding
A6: =VLOOKUP(P3,Data!A4:AB11,2,FALSE)&" Special School" -> Woodfield Special School | P6: Checks
A10: Total days in term: | B10: =Data!A19 -> 66
A11: Summer 2023 Funded days - Coventry
A12: Actual | D12: Cat 1 | E12: Cat 2 | F12: Cat 3 | G12: Cat 4 | H12: Cat 5 | I12: Cat 6
C13: Level A | D13: 0 | E13: 0 | F13: 0 | G13: 0 | H13: 0 | I13: 0
C14: Level B | D14: 0 | E14: 0 | F14: 0 | G14: 0 | H14: 0 | I14: 0
C15: Level C | D15: =_xlfn.XLOOKUP($P$3,Data!$A$20:$A$27,Data!D20:D27) -> 0 | E15: =_xlfn.XLOOKUP($P$3,Data!$A$20:$A$27,Data!E20:E27) -> 0 | F15: 0 | G15: 0 | H15: 0 | I15: 0
C16: Level D | D16: =_xlfn.XLOOKUP($P$3,Data!$A$20:$A$27,Data!F20:F27) -> 0 | E16: =_xlfn.XLOOKUP($P$3,Data!$A$20:$A$27,Data!G20:G27) -> 0 | F16: =_xlfn.XLOOKUP($P$3,Data!$A$20:$A$27,Data!H20:H27) -> 0 | G16: =_xlfn.XLOOKUP($P$3,Data!$A$20:$A$27,Data!I20:I27) -> 0 | H16: 0 | I16: 0
C17: Level E | D17: =_xlfn.XLOOKUP($P$3,Data!$A$20:$A$27,Data!J20:J27) -> 0 | E17: =_xlfn.XLOOKUP($P$3,Data!$A$20:$A$27,Data!K20:K27) -> 0 | F17: =_xlfn.XLOOKUP($P$3,Data!$A$20:$A$27,Data!L20:L27) -> 0 | G17: =_xlfn.XLOOKUP($P$3,Data!$A$20:$A$27,Data!M20:M27) -> 0 | H17: =_xlfn.XLOOKUP($P$3,Data!$A$20:$A$27,Data!N20:N27) -> 954 | I17: =_xlfn.XLOOKUP($P$3,Data!$A$20:$A$27,Data!O20:O27) -> 0 | K17: Total FTE
C18: Level F | D18: =_xlfn.XLOOKUP($P$3,Data!$A$20:$A$27,Data!P20:P27) -> 8087 | E18: =_xlfn.XLOOKUP($P$3,Data!$A$20:$A$27,Data!Q20:Q27) -> 0 | F18: =_xlfn.XLOOKUP($P$3,Data!$A$20:$A$27,Data!R20:R27) -> 0 | G18: =_xlfn.XLOOKUP($P$3,Data!$A$20:$A$27,Data!S20:S27) -> 0 | H18: =_xlfn.XLOOKUP($P$3,Data!$A$20:$A$27,Data!T20:T27) -> 396 | I18: =_xlfn.XLOOKUP($P$3,Data!$A$20:$A$27,Data!U20:U27) -> 0 | K18: =SUM(D13:I18)/B10 -> 142.9848485
A21: Summer 2023 Top-up Funding - Coventry
A22: Actual | D22: Cat 1 | E22: Cat 2 | F22: Cat 3 | G22: Cat 4 | H22: Cat 5 | I22: Cat 6
C23: Level A | D23: =D13*('HN Framework Values'!D36/Data!$A$15) -> 0 | E23: =E13*('HN Framework Values'!E36/Data!$A$15) -> 0 | F23: =F13*('HN Framework Values'!F36/Data!$A$15) -> 0 | G23: =G13*('HN Framework Values'!G36/Data!$A$15) -> 0 | H23: 0 | I23: 0
C24: Level B | D24: =D14*('HN Framework Values'!D37/Data!$A$15) -> 0 | E24: =E14*('HN Framework Values'!E37/Data!$A$15) -> 0 | F24: =F14*('HN Framework Values'!F37/Data!$A$15) -> 0 | G24: =G14*('HN Framework Values'!G37/Data!$A$15) -> 0 | H24: 0 | I24: 0
C25: Level C | D25: =D15*('HN Framework Values'!D38/Data!$A$15) -> 0 | E25: =E15*('HN Framework Values'!E38/Data!$A$15) -> 0 | F25: =F15*('HN Framework Values'!F38/Data!$A$15) -> 0 | G25: =G15*('HN Framework Values'!G38/Data!$A$15) -> 0 | H25: 0 | I25: 0 | K25: Total Coventry Top-up
C26: Level D | D26: =D16*('HN Framework Values'!D39/Data!$A$15) -> 0 | E26: =E16*('HN Framework Values'!E39/Data!$A$15) -> 0 | F26: =F16*('HN Framework Values'!F39/Data!$A$15) -> 0 | G26: =G16*('HN Framework Values'!G39/Data!$A$15) -> 0 | H26: 0 | I26: 0
C27: Level E | D27: =D17*('HN Framework Values'!D40/Data!$A$15) -> 0 | E27: =E17*('HN Framework Values'!E40/Data!$A$15) -> 0 | F27: =F17*('HN Framework Values'!F40/Data!$A$15) -> 0 | G27: =G17*('HN Framework Values'!G40/Data!$A$15) -> 0 | H27: =H17*('HN Framework Values'!H40/Data!$A$15) -> 116795.4375 | I27: =I17*('HN Framework Values'!I40/Data!$A$15) -> 0
C28: Level F | D28: =D18*('HN Framework Values'!D41/Data!$A$15) -> 703937.5734 | E28: =E18*('HN Framework Values'!E41/Data!$A$15) -> 0 | F28: =F18*('HN Framework Values'!F41/Data!$A$15) -> 0 | G28: =G18*('HN Framework Values'!G41/Data!$A$15) -> 0 | H28: =H18*('HN Framework Values'!H41/Data!$A$15) -> 96962.25 | I28: =I18*('HN Framework Values'!I41/Data!$A$15) -> 0 | K28: =SUM(D23:I28) -> 917695.2609
A31: Summer 2023 Funded days - Other LAs
A32: Actual | D32: Cat 1 | E32: Cat 2 | F32: Cat 3 | G32: Cat 4 | H32: Cat 5 | I32: Cat 6
C33: Level A | D33: 0 | E33: 0 | F33: 0 | G33: 0 | H33: 0 | I33: 0
C34: Level B | D34: 0 | E34: 0 | F34: 0 | G34: 0 | H34: 0 | I34: 0
C35: Level C | D35: =_xlfn.XLOOKUP($P$3,Data!$A$20:$A$27,Data!X20:X27) -> 0 | E35: =_xlfn.XLOOKUP($P$3,Data!$A$20:$A$27,Data!Y20:Y27) -> 0 | F35: 0 | G35: 0 | H35: 0 | I35: 0
C36: Level D | D36: =_xlfn.XLOOKUP($P$3,Data!$A$20:$A$27,Data!Z20:Z27) -> 0 | E36: =_xlfn.XLOOKUP($P$3,Data!$A$20:$A$27,Data!AA20:AA27) -> 0 | F36: =_xlfn.XLOOKUP($P$3,Data!$A$20:$A$27,Data!AB20:AB27) -> 0 | G36: =_xlfn.XLOOKUP($P$3,Data!$A$20:$A$27,Data!AC20:AC27) -> 0 | H36: 0 | I36: 0
C37: Level E | D37: =_xlfn.XLOOKUP($P$3,Data!$A$20:$A$27,Data!AD20:AD27) -> 0 | E37: =_xlfn.XLOOKUP($P$3,Data!$A$20:$A$27,Data!AE20:AE27) -> 0 | F37: =_xlfn.XLOOKUP($P$3,Data!$A$20:$A$27,Data!AF20:AF27) -> 0 | G37: =_xlfn.XLOOKUP($P$3,Data!$A$20:$A$27,Data!AG20:AG27) -> 0 | H37: =_xlfn.XLOOKUP($P$3,Data!$A$20:$A$27,Data!AH20:AH27) -> 0 | I37: =_xlfn.XLOOKUP($P$3,Data!$A$20:$A$27,Data!AI20:AI27) -> 0 | K37: Total FTE
C38: Level F | D38: =_xlfn.XLOOKUP($P$3,Data!$A$20:$A$27,Data!AJ20:AJ27) -> 66 | E38: =_xlfn.XLOOKUP($P$3,Data!$A$20:$A$27,Data!AK20:AK27) -> 0 | F38: =_xlfn.XLOOKUP($P$3,Data!$A$20:$A$27,Data!AL20:AL27) -> 0 | G38: =_xlfn.XLOOKUP($P$3,Data!$A$20:$A$27,Data!AM20:AM27) -> 0 | H38: =_xlfn.XLOOKUP($P$3,Data!$A$20:$A$27,Data!AN20:AN27) -> 0 | I38: =_xlfn.XLOOKUP($P$3,Data!$A$20:$A$27,Data!AO20:AO27) -> 0 | K38: =SUM(D33:I38)/B10 -> 1
A41: Summer 2023 Top-up Funding - Other LAs
A42: Actual | D42: Cat 1 | E42: Cat 2 | F42: Cat 3 | G42: Cat 4 | H42: Cat 5 | I42: Cat 6
C43: Level A | D43: =D33*('HN Framework Values'!D36/Data!$A$15) -> 0 | E43: =E33*('HN Framework Values'!E36/Data!$A$15) -> 0 | F43: =F33*('HN Framework Values'!F36/Data!$A$15) -> 0 | G43: =G33*('HN Framework Values'!G36/Data!$A$15) -> 0 | H43: =H33*('HN Framework Values'!H36/Data!$A$15) -> 0 | I43: =I33*('HN Framework Values'!I36/Data!$A$15) -> 0
C44: Level B | D44: =D34*('HN Framework Values'!D37/Data!$A$15) -> 0 | E44: =E34*('HN Framework Values'!E37/Data!$A$15) -> 0 | F44: =F34*('HN Framework Values'!F37/Data!$A$15) -> 0 | G44: =G34*('HN Framework Values'!G37/Data!$A$15) -> 0 | H44: =H34*('HN Framework Values'!H37/Data!$A$15) -> 0 | I44: =I34*('HN Framework Values'!I37/Data!$A$15) -> 0
C45: Level C | D45: =D35*('HN Framework Values'!D38/Data!$A$15) -> 0 | E45: =E35*('HN Framework Values'!E38/Data!$A$15) -> 0 | F45: =F35*('HN Framework Values'!F38/Data!$A$15) -> 0 | G45: =G35*('HN Framework Values'!G38/Data!$A$15) -> 0 | H45: =H35*('HN Framework Values'!H38/Data!$A$15) -> 0 | I45: =I35*('HN Framework Values'!I38/Data!$A$15) -> 0 | K45: Total Other LA Top-up
C46: Level D | D46: =D36*('HN Framework Values'!D39/Data!$A$15) -> 0 | E46: =E36*('HN Framework Values'!E39/Data!$A$15) -> 0 | F46: =F36*('HN Framework Values'!F39/Data!$A$15) -> 0 | G46: =G36*('HN Framework Values'!G39/Data!$A$15) -> 0 | H46: =H36*('HN Framework Values'!H39/Data!$A$15) -> 0 | I46: =I36*('HN Framework Values'!I39/Data!$A$15) -> 0
C47: Level E | D47: =D37*('HN Framework Values'!D40/Data!$A$15) -> 0 | E47: =E37*('HN Framework Values'!E40/Data!$A$15) -> 0 | F47: =F37*('HN Framework Values'!F40/Data!$A$15) -> 0 | G47: =G37*('HN Framework Values'!G40/Data!$A$15) -> 0 | H47: =H37*('HN Framework Values'!H40/Data!$A$15) -> 0 | I47: =I37*('HN Framework Values'!I40/Data!$A$15) -> 0
C48: Level F | D48: =D38*('HN Framework Values'!D41/Data!$A$15) -> 5745.008018 | E48: =E38*('HN Framework Values'!E41/Data!$A$15) -> 0 | F48: =F38*('HN Framework Values'!F41/Data!$A$15) -> 0 | G48: =G38*('HN Framework Values'!G41/Data!$A$15) -> 0 | H48: =H38*('HN Framework Values'!H41/Data!$A$15) -> 0 | I48: =I38*('HN Framework Values'!I41/Data!$A$15) -> 0 | K48: =SUM(D43:G48) -> 5745.008018
A50: Total ACTUAL Summer 2023 Top-up Funding | K50: =K48+K28 -> 923440.2689 | Q50: =_xlfn.XLOOKUP(P3,Data!A20:A27,Data!AR20:AR27)-K50 -> 0
A54: Notes
A56: Top up funding is allocated to pupils based on their High Needs Banding and how many days they are on roll at your school.
A58: This data is based on the level of provision your school delivered in the summer term 2023.
A60: Other LA Top-up funding is not paid to you by Coventry City Council and you will need to invoice the relevant Local Authorities for this
A61: funding. If you need contact information for any other Local Authority please contact SEN Management Services on 024 7683 1614.

Sheet Autumn 2023 Top-up (hidden)
A1: ='Summary of Funding'!A1 -> Date Issued: 22nd September 2023 | M1: ='Summary of Funding'!H1 -> Last Amended: 15th August 2023
A2: ='Summary of Funding'!A2 -> COVENTRY CITY COUNCIL
A3: ='Summary of Funding'!A3 -> 2023-24 Funding Allocations for Special Schools | P3: ='Summary of Funding'!P3 -> 8
A4: Autumn 2023 Top-up Funding
A6: =VLOOKUP(P3,Data!A4:AB11,2,FALSE)&" Special School" -> Woodfield Special School | P6: Checks
A10: Total days in term: | B10: =Data!$A$32 -> 76
A11: Autumn 2023 Funded days - Coventry
A12: Indicative | D12: Cat 1 | E12: Cat 2 | F12: Cat 3 | G12: Cat 4 | H12: Cat 5 | I12: Cat 6
C13: Level A | D13: 0 | E13: 0 | F13: 0 | G13: 0 | H13: 0 | I13: 0
C14: Level B | D14: 0 | E14: 0 | F14: 0 | G14: 0 | H14: 0 | I14: 0
C15: Level C | D15: =_xlfn.XLOOKUP($P$3,Data!$A$33:$A$40,Data!D33:D40) -> 0 | E15: =_xlfn.XLOOKUP($P$3,Data!$A$33:$A$40,Data!E33:E40) -> 0 | F15: 0 | G15: 0 | H15: 0 | I15: 0
C16: Level D | D16: =_xlfn.XLOOKUP($P$3,Data!$A$33:$A$40,Data!F33:F40) -> 0 | E16: =_xlfn.XLOOKUP($P$3,Data!$A$33:$A$40,Data!G33:G40) -> 0 | F16: =_xlfn.XLOOKUP($P$3,Data!$A$33:$A$40,Data!H33:H40) -> 0 | G16: =_xlfn.XLOOKUP($P$3,Data!$A$33:$A$40,Data!I33:I40) -> 0 | H16: 0 | I16: 0
C17: Level E | D17: =_xlfn.XLOOKUP($P$3,Data!$A$33:$A$40,Data!J33:J40) -> 0 | E17: =_xlfn.XLOOKUP($P$3,Data!$A$33:$A$40,Data!K33:K40) -> 0 | F17: =_xlfn.XLOOKUP($P$3,Data!$A$33:$A$40,Data!L33:L40) -> 0 | G17: =_xlfn.XLOOKUP($P$3,Data!$A$33:$A$40,Data!M33:M40) -> 0 | H17: =_xlfn.XLOOKUP($P$3,Data!$A$33:$A$40,Data!N33:N40) -> 967.3714286 | I17: =_xlfn.XLOOKUP($P$3,Data!$A$33:$A$40,Data!O33:O40) -> 0 | K17: Total FTE
C18: Level F | D18: =_xlfn.XLOOKUP($P$3,Data!$A$33:$A$40,Data!P33:P40) -> 10054.8 | E18: =_xlfn.XLOOKUP($P$3,Data!$A$33:$A$40,Data!Q33:Q40) -> 0 | F18: =_xlfn.XLOOKUP($P$3,Data!$A$33:$A$40,Data!R33:R40) -> 0 | G18: =_xlfn.XLOOKUP($P$3,Data!$A$33:$A$40,Data!S33:S40) -> 0 | H18: =_xlfn.XLOOKUP($P$3,Data!$A$33:$A$40,Data!T33:T40) -> 285.5428571 | I18: =_xlfn.XLOOKUP($P$3,Data!$A$33:$A$40,Data!U33:U40) -> 0 | K18: =SUM(D13:I18)/B10 -> 148.7857143
A21: Autumn 2023 Top-up Funding - Coventry
A22: Indicative | D22: Cat 1 | E22: Cat 2 | F22: Cat 3 | G22: Cat 4 | H22: Cat 5 | I22: Cat 6
C23: Level A | D23: =D13*('HN Framework Values'!D36/Data!$A$15) -> 0 | E23: =E13*('HN Framework Values'!E36/Data!$A$15) -> 0 | F23: =F13*('HN Framework Values'!F36/Data!$A$15) -> 0 | G23: =G13*('HN Framework Values'!G36/Data!$A$15) -> 0 | H23: 0 | I23: 0
C24: Level B | D24: =D14*('HN Framework Values'!D37/Data!$A$15) -> 0 | E24: =E14*('HN Framework Values'!E37/Data!$A$15) -> 0 | F24: =F14*('HN Framework Values'!F37/Data!$A$15) -> 0 | G24: =G14*('HN Framework Values'!G37/Data!$A$15) -> 0 | H24: 0 | I24: 0
C25: Level C | D25: =D15*('HN Framework Values'!D38/Data!$A$15) -> 0 | E25: =E15*('HN Framework Values'!E38/Data!$A$15) -> 0 | F25: =F15*('HN Framework Values'!F38/Data!$A$15) -> 0 | G25: =G15*('HN Framework Values'!G38/Data!$A$15) -> 0 | H25: 0 | I25: 0 | K25: Total Coventry Top-up
C26: Level D | D26: =D16*('HN Framework Values'!D39/Data!$A$15) -> 0 | E26: =E16*('HN Framework Values'!E39/Data!$A$15) -> 0 | F26: =F16*('HN Framework Values'!F39/Data!$A$15) -> 0 | G26: =G16*('HN Framework Values'!G39/Data!$A$15) -> 0 | H26: 0 | I26: 0
C27: Level E | D27: =D17*('HN Framework Values'!D40/Data!$A$15) -> 0 | E27: =E17*('HN Framework Values'!E40/Data!$A$15) -> 0 | F27: =F17*('HN Framework Values'!F40/Data!$A$15) -> 0 | G27: =G17*('HN Framework Values'!G40/Data!$A$15) -> 0 | H27: =H17*('HN Framework Values'!H40/Data!$A$15) -> 118432.4625 | I27: =I17*('HN Framework Values'!I40/Data!$A$15) -> 0
C28: Level F | D28: =D18*('HN Framework Values'!D41/Data!$A$15) -> 875225.8579 | E28: =E18*('HN Framework Values'!E41/Data!$A$15) -> 0 | F28: =F18*('HN Framework Values'!F41/Data!$A$15) -> 0 | G28: =G18*('HN Framework Values'!G41/Data!$A$15) -> 0 | H28: =H18*('HN Framework Values'!H41/Data!$A$15) -> 69916.35833 | I28: =I18*('HN Framework Values'!I41/Data!$A$15) -> 0 | K28: =SUM(D23:I28) -> 1063574.679
A31: Autumn 2023 Funded days - Other LAs
A32: Indicative | D32: Cat 1 | E32: Cat 2 | F32: Cat 3 | G32: Cat 4 | H32: Cat 5 | I32: Cat 6
C33: Level A | D33: 0 | E33: 0 | F33: 0 | G33: 0 | H33: 0 | I33: 0
C34: Level B | D34: 0 | E34: 0 | F34: 0 | G34: 0 | H34: 0 | I34: 0
C35: Level C | D35: =_xlfn.XLOOKUP($P$3,Data!$A$33:$A$40,Data!X33:X40) -> 0 | E35: =_xlfn.XLOOKUP($P$3,Data!$A$33:$A$40,Data!Y33:Y40) -> 0 | F35: 0 | G35: 0 | H35: 0 | I35: 0
C36: Level D | D36: =_xlfn.XLOOKUP($P$3,Data!$A$33:$A$40,Data!Z33:Z40) -> 0 | E36: =_xlfn.XLOOKUP($P$3,Data!$A$33:$A$40,Data!AA33:AA40) -> 0 | F36: =_xlfn.XLOOKUP($P$3,Data!$A$33:$A$40,Data!AB33:AB40) -> 0 | G36: =_xlfn.XLOOKUP($P$3,Data!$A$33:$A$40,Data!AC33:AC40) -> 0 | H36: 0 | I36: 0
C37: Level E | D37: =_xlfn.XLOOKUP($P$3,Data!$A$33:$A$40,Data!AD33:AD40) -> 0 | E37: =_xlfn.XLOOKUP($P$3,Data!$A$33:$A$40,Data!AE33:AE40) -> 0 | F37: =_xlfn.XLOOKUP($P$3,Data!$A$33:$A$40,Data!AF33:AF40) -> 0 | G37: =_xlfn.XLOOKUP($P$3,Data!$A$33:$A$40,Data!AG33:AG40) -> 0 | H37: =_xlfn.XLOOKUP($P$3,Data!$A$33:$A$40,Data!AH33:AH40) -> 0 | I37: =_xlfn.XLOOKUP($P$3,Data!$A$33:$A$40,Data!AI33:AI40) -> 0 | K37: Total FTE
C38: Level F | D38: =_xlfn.XLOOKUP($P$3,Data!$A$33:$A$40,Data!AJ33:AJ40) -> 228 | E38: =_xlfn.XLOOKUP($P$3,Data!$A$33:$A$40,Data!AK33:AK40) -> 0 | F38: =_xlfn.XLOOKUP($P$3,Data!$A$33:$A$40,Data!AL33:AL40) -> 0 | G38: =_xlfn.XLOOKUP($P$3,Data!$A$33:$A$40,Data!AM33:AM40) -> 0 | H38: =_xlfn.XLOOKUP($P$3,Data!$A$33:$A$40,Data!AN33:AN40) -> 0 | I38: =_xlfn.XLOOKUP($P$3,Data!$A$33:$A$40,Data!AO33:AO40) -> 0 | K38: =SUM(D33:I38)/B10 -> 3
A41: Autumn 2023 Top-up Funding - Other LAs
A42: Indicative | D42: Cat 1 | E42: Cat 2 | F42: Cat 3 | G42: Cat 4 | H42: Cat 5 | I42: Cat 6
C43: Level A | D43: =D33*('HN Framework Values'!D36/Data!$A$15) -> 0 | E43: =E33*('HN Framework Values'!E36/Data!$A$15) -> 0 | F43: =F33*('HN Framework Values'!F36/Data!$A$15) -> 0 | G43: =G33*('HN Framework Values'!G36/Data!$A$15) -> 0 | H43: =H33*('HN Framework Values'!H36/Data!$A$15) -> 0 | I43: =I33*('HN Framework Values'!I36/Data!$A$15) -> 0
C44: Level B | D44: =D34*('HN Framework Values'!D37/Data!$A$15) -> 0 | E44: =E34*('HN Framework Values'!E37/Data!$A$15) -> 0 | F44: =F34*('HN Framework Values'!F37/Data!$A$15) -> 0 | G44: =G34*('HN Framework Values'!G37/Data!$A$15) -> 0 | H44: =H34*('HN Framework Values'!H37/Data!$A$15) -> 0 | I44: =I34*('HN Framework Values'!I37/Data!$A$15) -> 0
C45: Level C | D45: =D35*('HN Framework Values'!D38/Data!$A$15) -> 0 | E45: =E35*('HN Framework Values'!E38/Data!$A$15) -> 0 | F45: =F35*('HN Framework Values'!F38/Data!$A$15) -> 0 | G45: =G35*('HN Framework Values'!G38/Data!$A$15) -> 0 | H45: =H35*('HN Framework Values'!H38/Data!$A$15) -> 0 | I45: =I35*('HN Framework Values'!I38/Data!$A$15) -> 0 | K45: Total Other LA Top-up
C46: Level D | D46: =D36*('HN Framework Values'!D39/Data!$A$15) -> 0 | E46: =E36*('HN Framework Values'!E39/Data!$A$15) -> 0 | F46: =F36*('HN Framework Values'!F39/Data!$A$15) -> 0 | G46: =G36*('HN Framework Values'!G39/Data!$A$15) -> 0 | H46: =H36*('HN Framework Values'!H39/Data!$A$15) -> 0 | I46: =I36*('HN Framework Values'!I39/Data!$A$15) -> 0
C47: Level E | D47: =D37*('HN Framework Values'!D40/Data!$A$15) -> 0 | E47: =E37*('HN Framework Values'!E40/Data!$A$15) -> 0 | F47: =F37*('HN Framework Values'!F40/Data!$A$15) -> 0 | G47: =G37*('HN Framework Values'!G40/Data!$A$15) -> 0 | H47: =H37*('HN Framework Values'!H40/Data!$A$15) -> 0 | I47: =I37*('HN Framework Values'!I40/Data!$A$15) -> 0
C48: Level F | D48: =D38*('HN Framework Values'!D41/Data!$A$15) -> 19846.39134 | E48: =E38*('HN Framework Values'!E41/Data!$A$15) -> 0 | F48: =F38*('HN Framework Values'!F41/Data!$A$15) -> 0 | G48: =G38*('HN Framework Values'!G41/Data!$A$15) -> 0 | H48: =H38*('HN Framework Values'!H41/Data!$A$15) -> 0 | I48: =I38*('HN Framework Values'!I41/Data!$A$15) -> 0 | K48: =SUM(D43:I48) -> 19846.39134
A50: Total INDICATIVE Autumn 2023 Top-up Funding | K50: =K48+K28 -> 1083421.07 | Q50: =_xlfn.XLOOKUP(P3,Data!A33:A40,Data!AR33:AR40)-K50 -> 0
A54: Notes
A56: Top up funding is allocated to pupils based on their High Needs Banding and how many days they are on roll at your school.
A58: This data is based on the level of provision your school delivered in the 2022 autumn term. Where the number of places at your school
A59: has changed we have scaled the indicative level of provision up or down as appropriate to reflect the changing position at the school -
A60: but we have not allowed this to increase above your number of comissioned places.
A62: This will be updated at the end of each term to reflect the actual number of Full Time Equivilant pupils that have been educated in this
A63: period. Your top-up funding budget will change accordingly.
A65: Other LA Top-up funding is not paid to you by Coventry City Council and you will need to invoice the relevant Local Authorities for this
A66: funding. If you need contact information for any other Local Authority please contact SEN Management Services on 024 7683 1614.

Sheet Spring 2024 Top-up (hidden)
A1: ='Summary of Funding'!A1 -> Date Issued: 22nd September 2023 | M1: ='Summary of Funding'!H1 -> Last Amended: 15th August 2023
A2: ='Summary of Funding'!A2 -> COVENTRY CITY COUNCIL
A3: ='Summary of Funding'!A3 -> 2023-24 Funding Allocations for Special Schools | P3: ='Summary of Funding'!P3 -> 8
A4: Spring 2024 Top-up Funding
A6: =VLOOKUP(P3,Data!A4:AB11,2,FALSE)&" Special School" -> Woodfield Special School | P6: Checks
A10: Total days in term: | B10: =Data!$A$45 -> 50
A11: Spring 2024 Funded days - Coventry
A12: Indicative | D12: Cat 1 | E12: Cat 2 | F12: Cat 3 | G12: Cat 4 | H12: Cat 5 | I12: Cat 6
C13: Level A | D13: 0 | E13: 0 | F13: 0 | G13: 0 | H13: 0 | I13: 0
C14: Level B | D14: 0 | E14: 0 | F14: 0 | G14: 0 | H14: 0 | I14: 0
C15: Level C | D15: =_xlfn.XLOOKUP($P$3,Data!$A$46:$A$53,Data!D46:D53) -> 0 | E15: =_xlfn.XLOOKUP($P$3,Data!$A$46:$A$53,Data!E46:E53) -> 0 | F15: 0 | G15: 0 | H15: 0 | I15: 0
C16: Level D | D16: =_xlfn.XLOOKUP($P$3,Data!$A$46:$A$53,Data!F46:F53) -> 0 | E16: =_xlfn.XLOOKUP($P$3,Data!$A$46:$A$53,Data!G46:G53) -> 0 | F16: =_xlfn.XLOOKUP($P$3,Data!$A$46:$A$53,Data!H46:H53) -> 0 | G16: =_xlfn.XLOOKUP($P$3,Data!$A$46:$A$53,Data!I46:I53) -> 0 | H16: 0 | I16: 0
C17: Level E | D17: =_xlfn.XLOOKUP($P$3,Data!$A$46:$A$53,Data!J46:J53) -> 0 | E17: =_xlfn.XLOOKUP($P$3,Data!$A$46:$A$53,Data!K46:K53) -> 0 | F17: =_xlfn.XLOOKUP($P$3,Data!$A$46:$A$53,Data!L46:L53) -> 0 | G17: =_xlfn.XLOOKUP($P$3,Data!$A$46:$A$53,Data!M46:M53) -> 0 | H17: =_xlfn.XLOOKUP($P$3,Data!$A$46:$A$53,Data!N46:N53) -> 600 | I17: =_xlfn.XLOOKUP($P$3,Data!$A$46:$A$53,Data!O46:O53) -> 0 | K17: Total FTE
C18: Level F | D18: =_xlfn.XLOOKUP($P$3,Data!$A$46:$A$53,Data!P46:P53) -> 6431.355932 | E18: =_xlfn.XLOOKUP($P$3,Data!$A$46:$A$53,Data!Q46:Q53) -> 0 | F18: =_xlfn.XLOOKUP($P$3,Data!$A$46:$A$53,Data!R46:R53) -> 0 | G18: =_xlfn.XLOOKUP($P$3,Data!$A$46:$A$53,Data!S46:S53) -> 0 | H18: =_xlfn.XLOOKUP($P$3,Data!$A$46:$A$53,Data!T46:T53) -> 150 | I18: =_xlfn.XLOOKUP($P$3,Data!$A$46:$A$53,Data!U46:U53) -> 0 | K18: =SUM(D13:I18)/B10 -> 143.6271186
A21: Spring 2024 Top-up Funding - Coventry
A22: Indicative | D22: Cat 1 | E22: Cat 2 | F22: Cat 3 | G22: Cat 4 | H22: Cat 5 | I22: Cat 6
C23: Level A | D23: =D13*('HN Framework Values'!D36/Data!$A$15) -> 0 | E23: =E13*('HN Framework Values'!E36/Data!$A$15) -> 0 | F23: =F13*('HN Framework Values'!F36/Data!$A$15) -> 0 | G23: =G13*('HN Framework Values'!G36/Data!$A$15) -> 0 | H23: 0 | I23: 0
C24: Level B | D24: =D14*('HN Framework Values'!D37/Data!$A$15) -> 0 | E24: =E14*('HN Framework Values'!E37/Data!$A$15) -> 0 | F24: =F14*('HN Framework Values'!F37/Data!$A$15) -> 0 | G24: =G14*('HN Framework Values'!G37/Data!$A$15) -> 0 | H24: 0 | I24: 0
C25: Level C | D25: =D15*('HN Framework Values'!D38/Data!$A$15) -> 0 | E25: =E15*('HN Framework Values'!E38/Data!$A$15) -> 0 | F25: =F15*('HN Framework Values'!F38/Data!$A$15) -> 0 | G25: =G15*('HN Framework Values'!G38/Data!$A$15) -> 0 | H25: 0 | I25: 0 | K25: Total Coventry Top-up
C26: Level D | D26: =D16*('HN Framework Values'!D39/Data!$A$15) -> 0 | E26: =E16*('HN Framework Values'!E39/Data!$A$15) -> 0 | F26: =F16*('HN Framework Values'!F39/Data!$A$15) -> 0 | G26: =G16*('HN Framework Values'!G39/Data!$A$15) -> 0 | H26: 0 | I26: 0
C27: Level E | D27: =D17*('HN Framework Values'!D40/Data!$A$15) -> 0 | E27: =E17*('HN Framework Values'!E40/Data!$A$15) -> 0 | F27: =F17*('HN Framework Values'!F40/Data!$A$15) -> 0 | G27: =G17*('HN Framework Values'!G40/Data!$A$15) -> 0 | H27: =H17*('HN Framework Values'!H40/Data!$A$15) -> 73456.25 | I27: =I17*('HN Framework Values'!I40/Data!$A$15) -> 0
C28: Level F | D28: =D18*('HN Framework Values'!D41/Data!$A$15) -> 559821.0818 | E28: =E18*('HN Framework Values'!E41/Data!$A$15) -> 0 | F28: =F18*('HN Framework Values'!F41/Data!$A$15) -> 0 | G28: =G18*('HN Framework Values'!G41/Data!$A$15) -> 0 | H28: =H18*('HN Framework Values'!H41/Data!$A$15) -> 36728.125 | I28: =I18*('HN Framework Values'!I41/Data!$A$15) -> 0 | K28: =SUM(D23:I28) -> 670005.4568
A31: Spring 2024 Funded days - Other LAs
A32: Indicative | D32: Cat 1 | E32: Cat 2 | F32: Cat 3 | G32: Cat 4 | H32: Cat 5 | I32: Cat 6
C33: Level A | D33: 0 | E33: 0 | F33: 0 | G33: 0 | H33: 0 | I33: 0
C34: Level B | D34: 0 | E34: 0 | F34: 0 | G34: 0 | H34: 0 | I34: 0
C35: Level C | D35: =_xlfn.XLOOKUP($P$3,Data!$A$46:$A$53,Data!X46:X53) -> 0 | E35: =INDEX(Data!Y$46:Y$53,MATCH('Spring 2024 Top-up'!$P$3,Data!$A$46:$A$53,0)) -> 0 | F35: 0 | G35: 0 | H35: 0 | I35: 0
C36: Level D | D36: =_xlfn.XLOOKUP($P$3,Data!$A$46:$A$53,Data!Z46:Z53) -> 0 | E36: =_xlfn.XLOOKUP($P$3,Data!$A$46:$A$53,Data!AA46:AA53) -> 0 | F36: =_xlfn.XLOOKUP($P$3,Data!$A$46:$A$53,Data!AB46:AB53) -> 0 | G36: =_xlfn.XLOOKUP($P$3,Data!$A$46:$A$53,Data!AC46:AC53) -> 0 | H36: 0 | I36: 0
C37: Level E | D37: =_xlfn.XLOOKUP($P$3,Data!$A$46:$A$53,Data!AD46:AD53) -> 0 | E37: =_xlfn.XLOOKUP($P$3,Data!$A$46:$A$53,Data!AE46:AE53) -> 0 | F37: =_xlfn.XLOOKUP($P$3,Data!$A$46:$A$53,Data!AF46:AF53) -> 0 | G37: =_xlfn.XLOOKUP($P$3,Data!$A$46:$A$53,Data!AG46:AG53) -> 0 | H37: =_xlfn.XLOOKUP($P$3,Data!$A$46:$A$53,Data!AH46:AH53) -> 0 | I37: =_xlfn.XLOOKUP($P$3,Data!$A$46:$A$53,Data!AI46:AI53) -> 0 | K37: Total FTE
C38: Level F | D38: =_xlfn.XLOOKUP($P$3,Data!$A$46:$A$53,Data!AJ46:AJ53) -> 79.66101695 | E38: =_xlfn.XLOOKUP($P$3,Data!$A$46:$A$53,Data!AK46:AK53) -> 0 | F38: =_xlfn.XLOOKUP($P$3,Data!$A$46:$A$53,Data!AL46:AL53) -> 0 | G38: =_xlfn.XLOOKUP($P$3,Data!$A$46:$A$53,Data!AM46:AM53) -> 0 | H38: =_xlfn.XLOOKUP($P$3,Data!$A$46:$A$53,Data!AN46:AN53) -> 0 | I38: =_xlfn.XLOOKUP($P$3,Data!$A$46:$A$53,Data!AO46:AO53) -> 0 | K38: =SUM(D33:I38)/B10 -> 1.593220339
A41: Spring 2024 Top-up Funding - Other LAs
A42: Indicative | D42: Cat 1 | E42: Cat 2 | F42: Cat 3 | G42: Cat 4 | H42: Cat 5 | I42: Cat 6
C43: Level A | D43: =D33*('HN Framework Values'!D36/Data!$A$15) -> 0 | E43: =E33*('HN Framework Values'!E36/Data!$A$15) -> 0 | F43: =F33*('HN Framework Values'!F36/Data!$A$15) -> 0 | G43: =G33*('HN Framework Values'!G36/Data!$A$15) -> 0 | H43: =H33*('HN Framework Values'!H36/Data!$A$15) -> 0 | I43: =I33*('HN Framework Values'!I36/Data!$A$15) -> 0
C44: Level B | D44: =D34*('HN Framework Values'!D37/Data!$A$15) -> 0 | E44: =E34*('HN Framework Values'!E37/Data!$A$15) -> 0 | F44: =F34*('HN Framework Values'!F37/Data!$A$15) -> 0 | G44: =G34*('HN Framework Values'!G37/Data!$A$15) -> 0 | H44: =H34*('HN Framework Values'!H37/Data!$A$15) -> 0 | I44: =I34*('HN Framework Values'!I37/Data!$A$15) -> 0
C45: Level C | D45: =D35*('HN Framework Values'!D38/Data!$A$15) -> 0 | E45: =E35*('HN Framework Values'!E38/Data!$A$15) -> 0 | F45: =F35*('HN Framework Values'!F38/Data!$A$15) -> 0 | G45: =G35*('HN Framework Values'!G38/Data!$A$15) -> 0 | H45: =H35*('HN Framework Values'!H38/Data!$A$15) -> 0 | I45: =I35*('HN Framework Values'!I38/Data!$A$15) -> 0 | K45: Total Other LA Top-up
C46: Level D | D46: =D36*('HN Framework Values'!D39/Data!$A$15) -> 0 | E46: =E36*('HN Framework Values'!E39/Data!$A$15) -> 0 | F46: =F36*('HN Framework Values'!F39/Data!$A$15) -> 0 | G46: =G36*('HN Framework Values'!G39/Data!$A$15) -> 0 | H46: =H36*('HN Framework Values'!H39/Data!$A$15) -> 0 | I46: =I36*('HN Framework Values'!I39/Data!$A$15) -> 0
C47: Level E | D47: =D37*('HN Framework Values'!D40/Data!$A$15) -> 0 | E47: =E37*('HN Framework Values'!E40/Data!$A$15) -> 0 | F47: =F37*('HN Framework Values'!F40/Data!$A$15) -> 0 | G47: =G37*('HN Framework Values'!G40/Data!$A$15) -> 0 | H47: =H37*('HN Framework Values'!H40/Data!$A$15) -> 0 | I47: =I37*('HN Framework Values'!I40/Data!$A$15) -> 0
C48: Level F | D48: =D38*('HN Framework Values'!D41/Data!$A$15) -> 6934.139108 | E48: =E38*('HN Framework Values'!E41/Data!$A$15) -> 0 | F48: =F38*('HN Framework Values'!F41/Data!$A$15) -> 0 | G48: =G38*('HN Framework Values'!G41/Data!$A$15) -> 0 | H48: =H38*('HN Framework Values'!H41/Data!$A$15) -> 0 | I48: =I38*('HN Framework Values'!I41/Data!$A$15) -> 0 | K48: =SUM(D43:I48) -> 6934.139108
A50: Total INDICATIVE Spring 2024 Top-up Funding | K50: =K48+K28 -> 676939.5959 | Q50: =_xlfn.XLOOKUP(P3,Data!A46:A53,Data!AR46:AR53)-K50 -> 0
A54: Notes
A56: Top up funding is allocated to pupils based on their High Needs Banding and how many days they are on roll at your school.
A58: This data is based on the level of provision your school delivered in the 2023 spring term. Where the number of places at your school
A59: has changed we have scaled the indicative level of provision up or down as appropriate to reflect the changing position at the school -
A60: but we have not allowed this to increase above your number of comissioned places.
A62: This will be updated at the end of each term to reflect the actual number of Full Time Equivilant pupils that have been educated in this
A63: period. Your top-up funding budget will change accordingly.
A65: Other LA Top-up funding is not paid to you by Coventry City Council and you will need to invoice the relevant Local Authorities for this
A66: funding. If you need contact information for any other Local Authority please contact SEN Management Services on 024 7683 1614.

Sheet Data (hidden)
A1: 1 | B1: 2 | C1: 3 | D1: 4 | E1: 5 | F1: 6 | G1: 7 | H1: 8 | I1: 9 | J1: 10 | K1: 11 | L1: 12 | M1: 13 | N1: 14 | O1: 15 | P1: 16 | Q1: 17 | R1: 18 | S1: 19 | T1: 20 | U1: 21 | V1: 22 | W1: 23 | X1: 24 | Y1: 25 | Z1: 26 | AA1: 27 | AB1: 28 | AC1: 29 | AD1: 30 | AE1: 31 | AF1: 32 | AG1: 33 | AH1: 34 | AI1: 35 | AJ1: 36 | AK1: 37 | AL1: 38 | AM1: 39 | AN1: 40 | AO1: 41 | AP1: 42
C2: 2022-23 places* | F2: 2023-24 Places Information | O2: Place Led Funding | V2: Funding Rate Information | AO2: Other Funding Elements | AS2: Deductions
A3: Ref # | B3: School Name | C3: TOTAL Apr - Jul PLACES | D3: TOTAL Aug PLACES | E3: TOTAL Sep - Mar PLACES | F3: Pre-16 Apr - Jul | G3: Pre-16 Aug | H3: Pre-16 Sept - Mar | I3: Post-16 Apr - Jul | J3: Post-16 Aug - Mar | K3: TOTAL Apr - Jul PLACES | L3: TOTAL Aug PLACES | M3: TOTAL Sep - Mar PLACES | O3: Pre-16 Apr - Jul | P3: Pre-16 Aug | Q3: Pre-16 Sept - Mar | R3: Post-16 Apr - Jul | S3: Post-16 Aug | T3: Post-16 Sept - Mar | V3: Band 1C | W3: Band 2C | X3: Band 1D | Y3: Band 2D | Z3: Band 3D | AA3: Band 4D | AB3: Band 1E | AC3: Band 2E | AD3: Band 3E | AE3: Band 4E | AF3: Band 5E | AG3: Band 6E | AH3: Band 1F | AI3: Band 2F | AJ3: Band 3F | AK3: Band 4F | AL3: Band 5F | AM3: Band 6F | AO3: 2023/24 Pupil Premium | AP3: 2023/24 TPG/TPECG | AQ3: 2023/24 Additional Funding | AR3: Split Site Funding | AS3: RPA
A4: 1 | B4: Castle Wood | C4: =[5]Data!$K4 -> 160 | D4: =[5]Data!$L4 -> 160 | E4: =[5]Data!$M4 -> 160 | F4: 160 | G4: 160 | H4: 160 | I4: 0 | J4: 0 | K4: =F4+I4 -> 160 | L4: =G4+J4 -> 160 | M4: =H4+J4 -> 160 | O4: =F4*10000*4/12 -> 533333.3333 | P4: =G4*10000*1/12 -> 133333.3333 | Q4: =H4*10000*7/12 -> 933333.3333 | R4: =I4*10000*4/12 -> 0 | S4: =I4*10000*1/12 -> 0 | T4: =J4*10000*7/12 -> 0 | V4: =[6]Sheet1!$B$6 -> 2571.189013 | W4: =[6]Sheet1!$C$6 -> 3085.431218 | X4: =[6]Sheet1!$B$7 -> 3085.431218 | Y4: =[6]Sheet1!$C$7 -> 5142.378026 | Z4: =[6]Sheet1!$D$7 -> 7713.578046 | AA4: =[6]Sheet1!$E$7 -> 7713.578046 | AB4: =[6]Sheet1!$B$8 -> 10284.76706 | AC4: =[6]Sheet1!$C$8 -> 9513.414758 | AD4: =[6]Sheet1!$D$8 -> 12855.95607 | AE4: =[6]Sheet1!$E$8 -> 12855.95607 | AF4: =[6]Sheet1!$F$8 -> 23506 | AG4: 0 | AH4: =[6]Sheet1!$B$9 -> 16712.7506 | AI4: =[6]Sheet1!$C$9 -> 15427.14508 | AJ4: =[6]Sheet1!$D$9 -> 15427.14508 | AK4: =[6]Sheet1!$E$9 -> 15427.14508 | AL4: =[6]Sheet1!$F$9 -> 47012 | AM4: 0 | AO4: =[7]Allocations!$V$62 -> 96365 | AP4: =[8]Sheet1!K2 -> 105600 | AQ4: =[9]Sheet1!$I2 -> 119285.3877 | AR4: 0 | AS4: =-IFERROR(_xlfn.XLOOKUP(A4,'[10]LAMS Data'!$AH$2:$AH$38,'[10]LAMS Data'!$AE$2:$AE$38),0) -> -3680
A5: 2 | B5: Kingsbury | C5: =[5]Data!$K5 -> 92 | D5: =[5]Data!$L5 -> 92 | E5: =[5]Data!$M5 -> 100 | F5: 100 | G5: 100 | H5: 100 | I5: 0 | J5: 0 | K5: 100 | L5: 100 | M5: 100 | O5: 333333.3333 | P5: 83333.33333 | Q5: 583333.3333 | R5: 0 | S5: 0 | T5: 0 | V5: =[6]Sheet1!$B$6 -> 2571.189013 | W5: =[6]Sheet1!$C$6 -> 3085.431218 | X5: =[6]Sheet1!$B$7 -> 3085.431218 | Y5: =[6]Sheet1!$C$7 -> 5142.378026 | Z5: =[6]Sheet1!$D$7 -> 7713.578046 | AA5: =[6]Sheet1!$E$7 -> 7713.578046 | AB5: =[6]Sheet1!$B$8 -> 10284.76706 | AC5: =[6]Sheet1!$C$8 -> 9513.414758 | AD5: =[6]Sheet1!$D$8 -> 12855.95607 | AE5: =[6]Sheet1!$E$8 -> 12855.95607 | AF5: =[6]Sheet1!$F$8 -> 23506 | AG5: 0 | AH5: =[6]Sheet1!$B$9 -> 16712.7506 | AI5: =[6]Sheet1!$C$9 -> 15427.14508 | AJ5: =[6]Sheet1!$D$9 -> 15427.14508 | AK5: =[6]Sheet1!$E$9 -> 15427.14508 | AL5: =[6]Sheet1!$F$9 -> 47012 | AM5: 0 | AO5: 0 | AP5: =[8]Sheet1!K3 -> 66000 | AQ5: =[9]Sheet1!$I3 -> 74963.74433 | AR5: 0 | AS5: =-IFERROR(_xlfn.XLOOKUP(A5,'[10]LAMS Data'!$AH$2:$AH$38,'[10]LAMS Data'!$AE$2:$AE$38),0) -> 0
A6: 3 | B6: Riverbank | C6: =[5]Data!$K6 -> 188 | D6: =[5]Data!$L6 -> 188 | E6: =[5]Data!$M6 -> 200 | F6: 180 | G6: 180 | H6: 180 | I6: 20 | J6: 20 | K6: 200 | L6: 200 | M6: 200 | O6: 600000 | P6: 150000 | Q6: 1050000 | R6: 66666.66667 | S6: 16666.66667 | T6: 116666.6667 | V6: =[6]Sheet1!$B$6 -> 2571.189013 | W6: =[6]Sheet1!$C$6 -> 3085.431218 | X6: =[6]Sheet1!$B$7 -> 3085.431218 | Y6: =[6]Sheet1!$C$7 -> 5142.378026 | Z6: =[6]Sheet1!$D$7 -> 7713.578046 | AA6: =[6]Sheet1!$E$7 -> 7713.578046 | AB6: =[6]Sheet1!$B$8 -> 10284.76706 | AC6: =[6]Sheet1!$C$8 -> 9513.414758 | AD6: =[6]Sheet1!$D$8 -> 12855.95607 | AE6: =[6]Sheet1!$E$8 -> 12855.95607 | AF6: =[6]Sheet1!$F$8 -> 23506 | AG6: 33083.19 | AH6: =[6]Sheet1!$B$9 -> 16712.7506 | AI6: =[6]Sheet1!$C$9 -> 15427.14508 | AJ6: =[6]Sheet1!$D$9 -> 15427.14508 | AK6: =[6]Sheet1!$E$9 -> 15427.14508 | AL6: =[6]Sheet1!$F$9 -> 47012 | AM6: 0 | AO6: 0 | AP6: =[8]Sheet1!K4 -> 132000 | AQ6: =[9]Sheet1!$I4 -> 135342.1523 | AR6: 0 | AS6: =-IFERROR(_xlfn.XLOOKUP(A6,'[10]LAMS Data'!$AH$2:$AH$38,'[10]LAMS Data'!$AE$2:$AE$38),0) -> 0
A7: 4 | B7: Corley | C7: =[5]Data!$K7 -> 129 | D7: =[5]Data!$L7 -> 129 | E7: 129 | F7: 119 | G7: 119 | H7: 130 | I7: 10 | J7: 10 | K7: =F7+I7 -> 129 | L7: 129 | M7: =H7+J7 -> 140 | O7: 396666.6667 | P7: 99166.66667 | Q7: 758333.3333 | R7: 33333.33333 | S7: 8333.333333 | T7: 58333.33333 | V7: =[6]Sheet1!$B$6 -> 2571.189013 | W7: =[6]Sheet1!$C$6 -> 3085.431218 | X7: =[6]Sheet1!$B$7 -> 3085.431218 | Y7: =[6]Sheet1!$C$7 -> 5142.378026 | Z7: =[6]Sheet1!$D$7 -> 7713.578046 | AA7: =[6]Sheet1!$E$7 -> 7713.578046 | AB7: =[6]Sheet1!$B$8 -> 10284.76706 | AC7: =[6]Sheet1!$C$8 -> 9513.414758 | AD7: =[6]Sheet1!$D$8 -> 12855.95607 | AE7: =[6]Sheet1!$E$8 -> 12855.95607 | AF7: =[6]Sheet1!$F$8 -> 23506 | AG7: 0 | AH7: =[6]Sheet1!$B$9 -> 16712.7506 | AI7: =[6]Sheet1!$C$9 -> 15427.14508 | AJ7: =[6]Sheet1!$D$9 -> 15427.14508 | AK7: =[6]Sheet1!$E$9 -> 15427.14508 | AL7: =[6]Sheet1!$F$9 -> 47012 | AM7: 0 | AO7: 0 | AP7: =[8]Sheet1!K5 -> 89375 | AQ7: =[9]Sheet1!$I5 -> 97111.33115 | AR7: 0 | AS7: =-IFERROR(_xlfn.XLOOKUP(A7,'[10]LAMS Data'!$AH$2:$AH$38,'[10]LAMS Data'!$AE$2:$AE$38),0) -> 0
A8: 5 | B8: Tiverton | C8: =[5]Data!$K8 -> 112 | D8: =[5]Data!$L8 -> 112 | E8: =[5]Data!$M8 -> 112 | F8: 112 | G8: 112 | H8: 118 | I8: 0 | J8: 0 | K8: 112 | L8: =G8+J8 -> 112 | M8: 118 | O8: 373333.3333 | P8: 93333.33333 | Q8: 688333.3333 | R8: 0 | S8: 0 | T8: 0 | V8: =[6]Sheet1!$B$6 -> 2571.189013 | W8: =[6]Sheet1!$C$6 -> 3085.431218 | X8: =[6]Sheet1!$B$7 -> 3085.431218 | Y8: =[6]Sheet1!$C$7 -> 5142.378026 | Z8: =[6]Sheet1!$D$7 -> 7713.578046 | AA8: =[6]Sheet1!$E$7 -> 7713.578046 | AB8: =[6]Sheet1!$B$8 -> 10284.76706 | AC8: =[6]Sheet1!$C$8 -> 9513.414758 | AD8: =[6]Sheet1!$D$8 -> 12855.95607 | AE8: =[6]Sheet1!$E$8 -> 12855.95607 | AF8: =[6]Sheet1!$F$8 -> 23506 | AG8: 0 | AH8: =[6]Sheet1!$B$9 -> 16712.7506 | AI8: =[6]Sheet1!$C$9 -> 15427.14508 | AJ8: =[6]Sheet1!$D$9 -> 15427.14508 | AK8: =[6]Sheet1!$E$9 -> 15427.14508 | AL8: =[6]Sheet1!$F$9 -> 47012 | AM8: 0 | AO8: =[7]Allocations!$V$63 -> 53455 | AP8: =[8]Sheet1!K6 -> 73920 | AQ8: =[9]Sheet1!$I6 -> 82854.44188 | AR8: 0 | AS8: =-IFERROR(_xlfn.XLOOKUP(A8,'[10]LAMS Data'!$AH$2:$AH$38,'[10]LAMS Data'!$AE$2:$AE$38),0) -> 0
A9: 6 | B9: Baginton Fields | C9: =[5]Data!$K9 -> 116 | D9: =[5]Data!$L9 -> 116 | E9: =[5]Data!$M9 -> 116 | F9: 78 | G9: 78 | H9: 88 | I9: 38 | J9: 38 | K9: 116 | L9: 116 | M9: 126 | O9: 260000 | P9: 65000 | Q9: 513333.3333 | R9: 126666.6667 | S9: 31666.66667 | T9: 221666.6667 | V9: =[6]Sheet1!$B$6 -> 2571.189013 | W9: =[6]Sheet1!$C$6 -> 3085.431218 | X9: =[6]Sheet1!$B$7 -> 3085.431218 | Y9: =[6]Sheet1!$C$7 -> 5142.378026 | Z9: =[6]Sheet1!$D$7 -> 7713.578046 | AA9: =[6]Sheet1!$E$7 -> 7713.578046 | AB9: =[6]Sheet1!$B$8 -> 10284.76706 | AC9: =[6]Sheet1!$C$8 -> 9513.414758 | AD9: =[6]Sheet1!$D$8 -> 12855.95607 | AE9: =[6]Sheet1!$E$8 -> 12855.95607 | AF9: =[6]Sheet1!$F$8 -> 23506 | AG9: 0 | AH9: =[6]Sheet1!$B$9 -> 16712.7506 | AI9: =[6]Sheet1!$C$9 -> 15427.14508 | AJ9: =[6]Sheet1!$D$9 -> 15427.14508 | AK9: =[6]Sheet1!$E$9 -> 15427.14508 | AL9: =[6]Sheet1!$F$9 -> 47012 | AM9: 0 | AO9: =[7]Allocations!$V$69 -> 43470 | AP9: =[8]Sheet1!K7 -> 76560 | AQ9: =[9]Sheet1!$I7 -> 88881.07813 | AR9: 0 | AS9: =-IFERROR(_xlfn.XLOOKUP(A9,'[10]LAMS Data'!$AH$2:$AH$38,'[10]LAMS Data'!$AE$2:$AE$38),0) -> -2714
A10: 7 | B10: Sherbourne Fields | C10: =[5]Data!$K10 -> 220 | D10: =[5]Data!$L10 -> 220 | E10: =[5]Data!$M10 -> 240 | F10: 206 | G10: 206 | H10: 217 | I10: 34 | J10: 34 | K10: 240 | L10: 240 | M10: 251 | O10: 686666.6667 | P10: 171666.6667 | Q10: 1265833.333 | R10: 113333.3333 | S10: 28333.33333 | T10: 198333.3333 | V10: =[6]Sheet1!$B$6 -> 2571.189013 | W10: =[6]Sheet1!$C$6 -> 3085.431218 | X10: =[6]Sheet1!$B$7 -> 3085.431218 | Y10: =[6]Sheet1!$C$7 -> 5142.378026 | Z10: =[6]Sheet1!$D$7 -> 7713.578046 | AA10: =[6]Sheet1!$E$7 -> 7713.578046 | AB10: =[6]Sheet1!$B$8 -> 10284.76706 | AC10: =[6]Sheet1!$C$8 -> 9513.414758 | AD10: =[6]Sheet1!$D$8 -> 12855.95607 | AE10: =[6]Sheet1!$E$8 -> 12855.95607 | AF10: =[6]Sheet1!$F$8 -> 23506 | AG10: 0 | AH10: =[6]Sheet1!$B$9 -> 16712.7506 | AI10: =[6]Sheet1!$C$9 -> 15427.14508 | AJ10: =[6]Sheet1!$D$9 -> 15427.14508 | AK10: =[6]Sheet1!$E$9 -> 15427.14508 | AL10: =[6]Sheet1!$F$9 -> 47012 | AM10: 0 | AO10: =[7]Allocations!$V$64+[7]Allocations!$V$70 -> 88460 | AP10: =[8]Sheet1!K8 -> 160325 | AQ10: =[9]Sheet1!$I8 -> 173412.0309 | AR10: 0 | AS10: =-IFERROR(_xlfn.XLOOKUP(A10,'[10]LAMS Data'!$AH$2:$AH$38,'[10]LAMS Data'!$AE$2:$AE$38),0) -> -5060
A11: 8 | B11: Woodfield | C11: =[5]Data!$K11 -> 155 | D11: =[5]Data!$L11 -> 155 | E11: =[5]Data!$M11 -> 155 | F11: 155 | G11: 155 | H11: 155 | I11: 0 | J11: 0 | K11: =F11+I11 -> 155 | L11: =G11+J11 -> 155 | M11: =H11+J11 -> 155 | O11: 516666.6667 | P11: 129166.6667 | Q11: 904166.6667 | R11: 0 | S11: 0 | T11: 0 | V11: =[6]Sheet1!$B$6 -> 2571.189013 | W11: =[6]Sheet1!$C$6 -> 3085.431218 | X11: =[6]Sheet1!$B$7 -> 3085.431218 | Y11: =[6]Sheet1!$C$7 -> 5142.378026 | Z11: =[6]Sheet1!$D$7 -> 7713.578046 | AA11: =[6]Sheet1!$E$7 -> 7713.578046 | AB11: =[6]Sheet1!$B$8 -> 10284.76706 | AC11: =[6]Sheet1!$C$8 -> 9513.414758 | AD11: =[6]Sheet1!$D$8 -> 12855.95607 | AE11: =[6]Sheet1!$E$8 -> 12855.95607 | AF11: =[6]Sheet1!$F$8 -> 23506 | AG11: 0 | AH11: =[6]Sheet1!$B$9 -> 16712.7506 | AI11: =[6]Sheet1!$C$9 -> 15427.14508 | AJ11: =[6]Sheet1!$D$9 -> 15427.14508 | AK11: =[6]Sheet1!$E$9 -> 15427.14508 | AL11: =[6]Sheet1!$F$9 -> 47012 | AM11: 0 | AO11: =[7]Allocations!$V$65+[7]Allocations!$V$71 -> 151990 | AP11: =[8]Sheet1!K9 -> 102300 | AQ11: =[9]Sheet1!$I9+[9]Sheet1!$J$9+[9]Sheet1!$K$9 -> 215525.0263 | AR11: 90000 | AS11: =-IFERROR(_xlfn.XLOOKUP(A11,'[10]LAMS Data'!$AH$2:$AH$38,'[10]LAMS Data'!$AE$2:$AE$38),0) -> -3565
C12: =SUM(C4:C11) -> 1172 | D12: 1172 | E12: 1212 | F12: 1110 | G12: 1110 | H12: 1148 | I12: 102 | J12: 102 | K12: 1212 | L12: 1212 | M12: 1250 | O12: =SUM(O4:O11) -> 3700000 | P12: 925000 | Q12: 6696666.667 | R12: 340000 | S12: 85000 | T12: 595000 | V12: =SUM(V4:V11) -> 20569.5121 | W12: 24683.44975 | X12: 24683.44975 | Y12: =SUM(Y4:Y11) -> 41139.02421 | Z12: =SUM(Z4:Z11) -> 61708.62437 | AA12: 61708.62437 | AB12: 82278.13647 | AC12: 76107.31806 | AD12: 102847.6486 | AE12: 102847.6486 | AF12: =SUM(AF4:AF11) -> 188048 | AG12: =SUM(AG4:AG11) -> 33083.19 | AH12: =SUM(AH4:AH11) -> 133702.0048 | AI12: 123417.1607 | AJ12: 123417.1607 | AK12: 123417.1607 | AL12: 376096 | AM12: 0 | AO12: =SUM(AO4:AO11) -> 433740 | AP12: =SUM(AP4:AP11) -> 806080 | AQ12: =SUM(AQ4:AQ11) -> 987375.1928 | AR12: 90000 | AS12: -15019
BD13: Formula to use to pro-rata up additional places. Then paste special values to prevent the figures going up when you add in to figures on the actual tables
AM14: =W5*66/197 -> 1033.697769
A15: 192 | D15: Coventry pupils | X15: Other LA Pupils
C16: Place Led | D16: Band 1C | E16: Band 2C | F16: Band 1D | G16: Band 2D | H16: Band 3D | I16: Band 4D | J16: Band 1E | K16: Band 2E | L16: Band 3E | M16: Band 4E | N16: Band 5E | O16: Band 6E | P16: Band 1F | Q16: Band 2F | R16: Band 3F | S16: Band 4F | T16: Band 5F | U16: Band 6F | V16: No. FTEs | W16: Coventry | X16: Band 1C | Y16: Band 2C | Z16: Band 1D | AA16: Band 2D | AB16: Band 3D | AC16: Band 4D | AD16: Band 1E | AE16: Band 2E | AF16: Band 3E | AG16: Band 4E | AH16: Band 5E | AI16: Band 6E | AJ16: Band 1F | AK16: Band 2F | AL16: Band 3F | AM16: Band 4F | AN16: Band 5F | AO16: Band 6F | AP16: No. FTEs | AQ16: Other LA | AR16: Total Top Up | AT16: Manual Check | AU16: Total | AV16: 22/23 | AW16: 22/23 | AX16: Budget Setting | AY16: 22/23 | AZ16: Additional
C17: Day Rate | D17: Day Units | E17: Day Units | F17: Day Units | G17: Day Units | H17: Day Units | I17: Day Units | J17: Day Units | K17: Day Units | L17: Day Units | M17: Day Units | N17: Day Units | O17: Day Units | P17: Day Units | Q17: Day Units | R17: Day Units | S17: Day Units | T17: Day Units | U17: Day Units | V17: Equivalency | W17: Funding £ | X17: Day Units | Y17: Day Units | Z17: Day Units | AA17: Day Units | AB17: Day Units | AC17: Day Units | AD17: Day Units | AE17: Day Units | AF17: Day Units | AG17: Day Units | AH17: Day Units | AI17: Day Units | AJ17: Day Units | AK17: Day Units | AL17: Day Units | AM17: Day Units | AN17: Day Units | AO17: Day Units | AP17: Equivalency | AQ17: Funding £ | AR17: Funding £ | AS17: No. FTE | AU17: Places | AV17: v4 FTE | AW17: Places | AY17: Term Days | AZ17: Place Days | BB17: Band 1C | BC17: Band 2C | BD17: Band 1D | BE17: Band 2D | BF17: Band 3D | BG17: Band 4D | BH17: Band 1E | BI17: Band 2E | BJ17: Band 3E | BK17: Band 4E | BL17: Band 5E | BM17: Band 6E | BN17: Band 1F | BO17: Band 2F | BP17: Band 3F | BQ17: Band 4F | BR17: Band 5F | BS17: Band 6F | BU17: Band 1C | BV17: Band 2C | BW17: Band 1D | BX17: Band 2D | BY17: Band 3D | BZ17: Band 4D | CA17: Band 1E | CB17: Band 2E | CC17: Band 3E | CD17: Band 4E | CE17: Band 5E | CF17: Band 6E | CG17: Band 1F | CH17: Band 2F | CI17: Band 3F | CJ17: Band 4F | CK17: Band 5F | CL17: Band 6F
B18: Summer Term 2023
A19: 66 | B19: School | AY19: 66
A20: 1 | B20: Castle Wood | C20: =10000/$A$15 -> 52.08333333 | D20: =SUMIFS(SummerProvRep!$H:$H,SummerProvRep!$A:$A,Data!$A$20,SummerProvRep!$G:$G,"Coventry",SummerProvRep!$P:$P,Data!D$16) -> 0 | E20: =SUMIFS(SummerProvRep!$H:$H,SummerProvRep!$A:$A,Data!$A$20,SummerProvRep!$G:$G,"Coventry",SummerProvRep!$P:$P,Data!E$16) -> 0 | F20: =SUMIFS(SummerProvRep!$H:$H,SummerProvRep!$A:$A,Data!$A$20,SummerProvRep!$G:$G,"Coventry",SummerProvRep!$P:$P,Data!F$16) -> 0 | G20: =SUMIFS(SummerProvRep!$H:$H,SummerProvRep!$A:$A,Data!$A$20,SummerProvRep!$G:$G,"Coventry",SummerProvRep!$P:$P,Data!G$16) -> 0 | H20: =SUMIFS(SummerProvRep!$H:$H,SummerProvRep!$A:$A,Data!$A$20,SummerProvRep!$G:$G,"Coventry",SummerProvRep!$P:$P,Data!H$16) -> 0 | I20: =SUMIFS(SummerProvRep!$H:$H,SummerProvRep!$A:$A,Data!$A$20,SummerProvRep!$G:$G,"Coventry",SummerProvRep!$P:$P,Data!I$16) -> 66 | J20: =SUMIFS(SummerProvRep!$H:$H,SummerProvRep!$A:$A,Data!$A$20,SummerProvRep!$G:$G,"Coventry",SummerProvRep!$P:$P,Data!J$16) -> 5788 | K20: =SUMIFS(SummerProvRep!$H:$H,SummerProvRep!$A:$A,Data!$A$20,SummerProvRep!$G:$G,"Coventry",SummerProvRep!$P:$P,Data!K$16) -> 1122 | L20: =BJ20+SUMIFS(SummerProvRep!$H:$H,SummerProvRep!$A:$A,Data!$A$20,SummerProvRep!$G:$G,"Coventry",SummerProvRep!$P:$P,Data!L$16)/$AY$19*$A$19 -> 0 | M20: =BK20+SUMIFS(SummerProvRep!$H:$H,SummerProvRep!$A:$A,Data!$A$20,SummerProvRep!$G:$G,"Coventry",SummerProvRep!$P:$P,Data!M$16)/$AY$19*$A$19 -> 330 | N20: =BL20+SUMIFS(SummerProvRep!$H:$H,SummerProvRep!$A:$A,Data!$A$20,SummerProvRep!$G:$G,"Coventry",SummerProvRep!$P:$P,Data!N$16)/$AY$19*$A$19 -> 497 | O20: =BM20+SUMIFS(SummerProvRep!$H:$H,SummerProvRep!$A:$A,Data!$A$20,SummerProvRep!$G:$G,"Coventry",SummerProvRep!$P:$P,Data!O$16)/$AY$19*$A$19 -> 0 | P20: =BN20+SUMIFS(SummerProvRep!$H:$H,SummerProvRep!$A:$A,Data!$A$20,SummerProvRep!$G:$G,"Coventry",SummerProvRep!$P:$P,Data!P$16)/$AY$19*$A$19 -> 1634 | Q20: =BO20+SUMIFS(SummerProvRep!$H:$H,SummerProvRep!$A:$A,Data!$A$20,SummerProvRep!$G:$G,"Coventry",SummerProvRep!$P:$P,Data!Q$16)/$AY$19*$A$19 -> 726 | R20: =BP20+SUMIFS(SummerProvRep!$H:$H,SummerProvRep!$A:$A,Data!$A$20,SummerProvRep!$G:$G,"Coventry",SummerProvRep!$P:$P,Data!R$16)/$AY$19*$A$19 -> 0 | S20: =BQ20+SUMIFS(SummerProvRep!$H:$H,SummerProvRep!$A:$A,Data!$A$20,SummerProvRep!$G:$G,"Coventry",SummerProvRep!$P:$P,Data!S$16)/$AY$19*$A$19 -> 264 | T20: =BR20+SUMIFS(SummerProvRep!$H:$H,SummerProvRep!$A:$A,Data!$A$20,SummerProvRep!$G:$G,"Coventry",SummerProvRep!$P:$P,Data!T$16)/$AY$19*$A$19 -> 66 | U20: =BS20+SUMIFS(SummerProvRep!$H:$H,SummerProvRep!$A:$A,Data!$A$20,SummerProvRep!$G:$G,"Coventry",SummerProvRep!$P:$P,Data!U$16)/$AY$19*$A$19 -> 0 | V20: =SUM(D20:U20)/$A$19 -> 158.9848485 | W20: =SUMPRODUCT(D20:U20,$V$6:$AM$6)/$A$15 -> 689169.9316 | X20: =SUMIFS(SummerProvRep!$H:$H,SummerProvRep!$A:$A,Data!$A$20,SummerProvRep!$G:$G,"<>Coventry",SummerProvRep!$P:$P,Data!X$16) -> 0 | Y20: =SUMIFS(SummerProvRep!$H:$H,SummerProvRep!$A:$A,Data!$A$20,SummerProvRep!$G:$G,"<>Coventry",SummerProvRep!$P:$P,Data!Y$16) -> 0 | Z20: =SUMIFS(SummerProvRep!$H:$H,SummerProvRep!$A:$A,Data!$A$20,SummerProvRep!$G:$G,"<>Coventry",SummerProvRep!$P:$P,Data!Z$16) -> 0 | AA20: =SUMIFS(SummerProvRep!$H:$H,SummerProvRep!$A:$A,Data!$A$20,SummerProvRep!$G:$G,"<>Coventry",SummerProvRep!$P:$P,Data!AA$16) -> 0 | AB20: =SUMIFS(SummerProvRep!$H:$H,SummerProvRep!$A:$A,Data!$A$20,SummerProvRep!$G:$G,"<>Coventry",SummerProvRep!$P:$P,Data!AB$16) -> 0 | AC20: =SUMIFS(SummerProvRep!$H:$H,SummerProvRep!$A:$A,Data!$A$20,SummerProvRep!$G:$G,"<>Coventry",SummerProvRep!$P:$P,Data!AC$16) -> 0 | AD20: =SUMIFS(SummerProvRep!$H:$H,SummerProvRep!$A:$A,Data!$A$20,SummerProvRep!$G:$G,"<>Coventry",SummerProvRep!$P:$P,Data!AD$16) -> 66 | AE20: =SUMIFS(SummerProvRep!$H:$H,SummerProvRep!$A:$A,Data!$A$20,SummerProvRep!$G:$G,"<>Coventry",SummerProvRep!$P:$P,Data!AE$16) -> 0 | AF20: =SUMIFS(SummerProvRep!$H:$H,SummerProvRep!$A:$A,Data!$A$20,SummerProvRep!$G:$G,"<>Coventry",SummerProvRep!$P:$P,Data!AF$16) -> 0 | AG20: =SUMIFS(SummerProvRep!$H:$H,SummerProvRep!$A:$A,Data!$A$20,SummerProvRep!$G:$G,"<>Coventry",SummerProvRep!$P:$P,Data!AG$16) -> 0 | AH20: =SUMIFS(SummerProvRep!$H:$H,SummerProvRep!$A:$A,Data!$A$20,SummerProvRep!$G:$G,"<>Coventry",SummerProvRep!$P:$P,Data!AH$16) -> 0 | AI20: =SUMIFS(SummerProvRep!$H:$H,SummerProvRep!$A:$A,Data!$A$20,SummerProvRep!$G:$G,"<>Coventry",SummerProvRep!$P:$P,Data!AI$16) -> 0 | AJ20: =SUMIFS(SummerProvRep!$H:$H,SummerProvRep!$A:$A,Data!$A$20,SummerProvRep!$G:$G,"<>Coventry",SummerProvRep!$P:$P,Data!AJ$16) -> 0 | AK20: =SUMIFS(SummerProvRep!$H:$H,SummerProvRep!$A:$A,Data!$A$20,SummerProvRep!$G:$G,"<>Coventry",SummerProvRep!$P:$P,Data!AK$16) -> 0 | AL20: =SUMIFS(SummerProvRep!$H:$H,SummerProvRep!$A:$A,Data!$A$20,SummerProvRep!$G:$G,"<>Coventry",SummerProvRep!$P:$P,Data!AL$16) -> 0 | AM20: =SUMIFS(SummerProvRep!$H:$H,SummerProvRep!$A:$A,Data!$A$20,SummerProvRep!$G:$G,"<>Coventry",SummerProvRep!$P:$P,Data!AM$16) -> 0 | AN20: =SUMIFS(SummerProvRep!$H:$H,SummerProvRep!$A:$A,Data!$A$20,SummerProvRep!$G:$G,"<>Coventry",SummerProvRep!$P:$P,Data!AN$16) -> 0 | AO20: =SUMIFS(SummerProvRep!$H:$H,SummerProvRep!$A:$A,Data!$A$20,SummerProvRep!$G:$G,"<>Coventry",SummerProvRep!$P:$P,Data!AO$16) -> 0 | AP20: =SUM(X20:AO20)/$A$19 -> 1 | AQ20: =SUMPRODUCT(X20:AO20,$V$4:$AM$4)/$A$15 -> 3535.388676 | AR20: =W20+AQ20 -> 692705.3202 | AS20: =AP20+V20 -> 159.9848485 | AT20: =AS20-AU20 -> -0.01515151515 | AU20: =K4 -> 160 | AV20: =[11]Data!$AS20 -> 159.9545455 | AW20: =[11]Data!$K4 -> 160
A21: 2 | B21: Kingsbury | C21: =10000/$A$15 -> 52.08333333 | D21: =SUMIFS(SummerProvRep!$H:$H,SummerProvRep!$A:$A,Data!$A$21,SummerProvRep!$G:$G,"Coventry",SummerProvRep!$P:$P,Data!D$16) -> 0 | E21: =SUMIFS(SummerProvRep!$H:$H,SummerProvRep!$A:$A,Data!$A$21,SummerProvRep!$G:$G,"Coventry",SummerProvRep!$P:$P,Data!E$16) -> 0 | F21: =SUMIFS(SummerProvRep!$H:$H,SummerProvRep!$A:$A,Data!$A$21,SummerProvRep!$G:$G,"Coventry",SummerProvRep!$P:$P,Data!F$16) -> 0 | G21: =SUMIFS(SummerProvRep!$H:$H,SummerProvRep!$A:$A,Data!$A$21,SummerProvRep!$G:$G,"Coventry",SummerProvRep!$P:$P,Data!G$16) -> 0 | H21: =SUMIFS(SummerProvRep!$H:$H,SummerProvRep!$A:$A,Data!$A$21,SummerProvRep!$G:$G,"Coventry",SummerProvRep!$P:$P,Data!H$16) -> 0 | I21: =SUMIFS(SummerProvRep!$H:$H,SummerProvRep!$A:$A,Data!$A$21,SummerProvRep!$G:$G,"Coventry",SummerProvRep!$P:$P,Data!I$16) -> 0 | J21: =SUMIFS(SummerProvRep!$H:$H,SummerProvRep!$A:$A,Data!$A$21,SummerProvRep!$G:$G,"Coventry",SummerProvRep!$P:$P,Data!J$16) -> 3570 | K21: =SUMIFS(SummerProvRep!$H:$H,SummerProvRep!$A:$A,Data!$A$21,SummerProvRep!$G:$G,"Coventry",SummerProvRep!$P:$P,Data!K$16) -> 462 | L21: =SUMIFS(SummerProvRep!$H:$H,SummerProvRep!$A:$A,Data!$A$21,SummerProvRep!$G:$G,"Coventry",SummerProvRep!$P:$P,Data!L$16) -> 0 | M21: =SUMIFS(SummerProvRep!$H:$H,SummerProvRep!$A:$A,Data!$A$21,SummerProvRep!$G:$G,"Coventry",SummerProvRep!$P:$P,Data!M$16) -> 0 | N21: =SUMIFS(SummerProvRep!$H:$H,SummerProvRep!$A:$A,Data!$A$21,SummerProvRep!$G:$G,"Coventry",SummerProvRep!$P:$P,Data!N$16) -> 462 | O21: =SUMIFS(SummerProvRep!$H:$H,SummerProvRep!$A:$A,Data!$A$21,SummerProvRep!$G:$G,"Coventry",SummerProvRep!$P:$P,Data!O$16) -> 0 | P21: =SUMIFS(SummerProvRep!$H:$H,SummerProvRep!$A:$A,Data!$A$21,SummerProvRep!$G:$G,"Coventry",SummerProvRep!$P:$P,Data!P$16) -> 1700 | Q21: =SUMIFS(SummerProvRep!$H:$H,SummerProvRep!$A:$A,Data!$A$21,SummerProvRep!$G:$G,"Coventry",SummerProvRep!$P:$P,Data!Q$16) -> 132 | R21: =SUMIFS(SummerProvRep!$H:$H,SummerProvRep!$A:$A,Data!$A$21,SummerProvRep!$G:$G,"Coventry",SummerProvRep!$P:$P,Data!R$16) -> 0 | S21: =SUMIFS(SummerProvRep!$H:$H,SummerProvRep!$A:$A,Data!$A$21,SummerProvRep!$G:$G,"Coventry",SummerProvRep!$P:$P,Data!S$16) -> 0 | T21: =SUMIFS(SummerProvRep!$H:$H,SummerProvRep!$A:$A,Data!$A$21,SummerProvRep!$G:$G,"Coventry",SummerProvRep!$P:$P,Data!T$16) -> 0 | U21: =SUMIFS(SummerProvRep!$H:$H,SummerProvRep!$A:$A,Data!$A$21,SummerProvRep!$G:$G,"Coventry",SummerProvRep!$P:$P,Data!U$16) -> 0 | V21: 95.84848485 | W21: 429268.9958 | X21: =SUMIFS(SummerProvRep!$H:$H,SummerProvRep!$A:$A,Data!$A$21,SummerProvRep!$G:$G,"<>Coventry",SummerProvRep!$P:$P,Data!X$16) -> 0 | Y21: =SUMIFS(SummerProvRep!$H:$H,SummerProvRep!$A:$A,Data!$A$21,SummerProvRep!$G:$G,"<>Coventry",SummerProvRep!$P:$P,Data!Y$16) -> 0 | Z21: =SUMIFS(SummerProvRep!$H:$H,SummerProvRep!$A:$A,Data!$A$21,SummerProvRep!$G:$G,"<>Coventry",SummerProvRep!$P:$P,Data!Z$16) -> 0 | AA21: =SUMIFS(SummerProvRep!$H:$H,SummerProvRep!$A:$A,Data!$A$21,SummerProvRep!$G:$G,"<>Coventry",SummerProvRep!$P:$P,Data!AA$16) -> 0 | AB21: =SUMIFS(SummerProvRep!$H:$H,SummerProvRep!$A:$A,Data!$A$21,SummerProvRep!$G:$G,"<>Coventry",SummerProvRep!$P:$P,Data!AB$16) -> 0 | AC21: =SUMIFS(SummerProvRep!$H:$H,SummerProvRep!$A:$A,Data!$A$21,SummerProvRep!$G:$G,"<>Coventry",SummerProvRep!$P:$P,Data!AC$16) -> 0 | AD21: =SUMIFS(SummerProvRep!$H:$H,SummerProvRep!$A:$A,Data!$A$21,SummerProvRep!$G:$G,"<>Coventry",SummerProvRep!$P:$P,Data!AD$16) -> 66 | AE21: =SUMIFS(SummerProvRep!$H:$H,SummerProvRep!$A:$A,Data!$A$21,SummerProvRep!$G:$G,"<>Coventry",SummerProvRep!$P:$P,Data!AE$16) -> 66 | AF21: =SUMIFS(SummerProvRep!$H:$H,SummerProvRep!$A:$A,Data!$A$21,SummerProvRep!$G:$G,"<>Coventry",SummerProvRep!$P:$P,Data!AF$16) -> 0 | AG21: =SUMIFS(SummerProvRep!$H:$H,SummerProvRep!$A:$A,Data!$A$21,SummerProvRep!$G:$G,"<>Coventry",SummerProvRep!$P:$P,Data!AG$16) -> 0 | AH21: =SUMIFS(SummerProvRep!$H:$H,SummerProvRep!$A:$A,Data!$A$21,SummerProvRep!$G:$G,"<>Coventry",SummerProvRep!$P:$P,Data!AH$16) -> 0 | AI21: =SUMIFS(SummerProvRep!$H:$H,SummerProvRep!$A:$A,Data!$A$21,SummerProvRep!$G:$G,"<>Coventry",SummerProvRep!$P:$P,Data!AI$16) -> 0 | AJ21: =SUMIFS(SummerProvRep!$H:$H,SummerProvRep!$A:$A,Data!$A$21,SummerProvRep!$G:$G,"<>Coventry",SummerProvRep!$P:$P,Data!AJ$16) -> 66 | AK21: =SUMIFS(SummerProvRep!$H:$H,SummerProvRep!$A:$A,Data!$A$21,SummerProvRep!$G:$G,"<>Coventry",SummerProvRep!$P:$P,Data!AK$16) -> 0 | AL21: =SUMIFS(SummerProvRep!$H:$H,SummerProvRep!$A:$A,Data!$A$21,SummerProvRep!$G:$G,"<>Coventry",SummerProvRep!$P:$P,Data!AL$16) -> 0 | AM21: =SUMIFS(SummerProvRep!$H:$H,SummerProvRep!$A:$A,Data!$A$21,SummerProvRep!$G:$G,"<>Coventry",SummerProvRep!$P:$P,Data!AM$16) -> 0 | AN21: =SUMIFS(SummerProvRep!$H:$H,SummerProvRep!$A:$A,Data!$A$21,SummerProvRep!$G:$G,"<>Coventry",SummerProvRep!$P:$P,Data!AN$16) -> 0 | AO21: =SUMIFS(SummerProvRep!$H:$H,SummerProvRep!$A:$A,Data!$A$21,SummerProvRep!$G:$G,"<>Coventry",SummerProvRep!$P:$P,Data!AO$16) -> 0 | AP21: 3 | AQ21: 12550.63302 | AR21: =W21+AQ21 -> 441819.6288 | AS21: =AP21+V21 -> 98.84848485 | AT21: =AS21-AU21 -> -1.151515152 | AU21: 100 | AV21: =[11]Data!$AS21 -> 91.98484848 | AW21: =[11]Data!$K5 -> 92
A22: 3 | B22: Riverbank | C22: 52.08333333 | D22: =SUMIFS(SummerProvRep!$H:$H,SummerProvRep!$A:$A,Data!$A$22,SummerProvRep!$G:$G,"Coventry",SummerProvRep!$P:$P,Data!D$16) -> 0 | E22: =SUMIFS(SummerProvRep!$H:$H,SummerProvRep!$A:$A,Data!$A$22,SummerProvRep!$G:$G,"Coventry",SummerProvRep!$P:$P,Data!E$16) -> 0 | F22: =SUMIFS(SummerProvRep!$H:$H,SummerProvRep!$A:$A,Data!$A$22,SummerProvRep!$G:$G,"Coventry",SummerProvRep!$P:$P,Data!F$16) -> 792 | G22: =SUMIFS(SummerProvRep!$H:$H,SummerProvRep!$A:$A,Data!$A$22,SummerProvRep!$G:$G,"Coventry",SummerProvRep!$P:$P,Data!G$16) -> 1254 | H22: =SUMIFS(SummerProvRep!$H:$H,SummerProvRep!$A:$A,Data!$A$22,SummerProvRep!$G:$G,"Coventry",SummerProvRep!$P:$P,Data!H$16) -> 66 | I22: =SUMIFS(SummerProvRep!$H:$H,SummerProvRep!$A:$A,Data!$A$22,SummerProvRep!$G:$G,"Coventry",SummerProvRep!$P:$P,Data!I$16) -> 66 | J22: =SUMIFS(SummerProvRep!$H:$H,SummerProvRep!$A:$A,Data!$A$22,SummerProvRep!$G:$G,"Coventry",SummerProvRep!$P:$P,Data!J$16) -> 3828 | K22: =SUMIFS(SummerProvRep!$H:$H,SummerProvRep!$A:$A,Data!$A$22,SummerProvRep!$G:$G,"Coventry",SummerProvRep!$P:$P,Data!K$16) -> 3808 | L22: =SUMIFS(SummerProvRep!$H:$H,SummerProvRep!$A:$A,Data!$A$22,SummerProvRep!$G:$G,"Coventry",SummerProvRep!$P:$P,Data!L$16) -> 132 | M22: =SUMIFS(SummerProvRep!$H:$H,SummerProvRep!$A:$A,Data!$A$22,SummerProvRep!$G:$G,"Coventry",SummerProvRep!$P:$P,Data!M$16) -> 528 | N22: =SUMIFS(SummerProvRep!$H:$H,SummerProvRep!$A:$A,Data!$A$22,SummerProvRep!$G:$G,"Coventry",SummerProvRep!$P:$P,Data!N$16) -> 152 | O22: =SUMIFS(SummerProvRep!$H:$H,SummerProvRep!$A:$A,Data!$A$22,SummerProvRep!$G:$G,"Coventry",SummerProvRep!$P:$P,Data!O$16) -> 264 | P22: =SUMIFS(SummerProvRep!$H:$H,SummerProvRep!$A:$A,Data!$A$22,SummerProvRep!$G:$G,"Coventry",SummerProvRep!$P:$P,Data!P$16) -> 1679 | Q22: =SUMIFS(SummerProvRep!$H:$H,SummerProvRep!$A:$A,Data!$A$22,SummerProvRep!$G:$G,"Coventry",SummerProvRep!$P:$P,Data!Q$16) -> 264 | R22: =SUMIFS(SummerProvRep!$H:$H,SummerProvRep!$A:$A,Data!$A$22,SummerProvRep!$G:$G,"Coventry",SummerProvRep!$P:$P,Data!R$16) -> 0 | S22: =SUMIFS(SummerProvRep!$H:$H,SummerProvRep!$A:$A,Data!$A$22,SummerProvRep!$G:$G,"Coventry",SummerProvRep!$P:$P,Data!S$16) -> 66 | T22: =SUMIFS(SummerProvRep!$H:$H,SummerProvRep!$A:$A,Data!$A$22,SummerProvRep!$G:$G,"Coventry",SummerProvRep!$P:$P,Data!T$16) -> 0 | U22: =SUMIFS(SummerProvRep!$H:$H,SummerProvRep!$A:$A,Data!$A$22,SummerProvRep!$G:$G,"Coventry",SummerProvRep!$P:$P,Data!U$16) -> 0 | V22: 195.4393939 | W22: 726307.4941 | X22: =SUMIFS(SummerProvRep!$H:$H,SummerProvRep!$A:$A,Data!$A$22,SummerProvRep!$G:$G,"<>Coventry",SummerProvRep!$P:$P,Data!X$16) -> 0 | Y22: =SUMIFS(SummerProvRep!$H:$H,SummerProvRep!$A:$A,Data!$A$22,SummerProvRep!$G:$G,"<>Coventry",SummerProvRep!$P:$P,Data!Y$16) -> 0 | Z22: =SUMIFS(SummerProvRep!$H:$H,SummerProvRep!$A:$A,Data!$A$22,SummerProvRep!$G:$G,"<>Coventry",SummerProvRep!$P:$P,Data!Z$16) -> 66 | AA22: =SUMIFS(SummerProvRep!$H:$H,SummerProvRep!$A:$A,Data!$A$22,SummerProvRep!$G:$G,"<>Coventry",SummerProvRep!$P:$P,Data!AA$16) -> 0 | AB22: =SUMIFS(SummerProvRep!$H:$H,SummerProvRep!$A:$A,Data!$A$22,SummerProvRep!$G:$G,"<>Coventry",SummerProvRep!$P:$P,Data!AB$16) -> 0 | AC22: =SUMIFS(SummerProvRep!$H:$H,SummerProvRep!$A:$A,Data!$A$22,SummerProvRep!$G:$G,"<>Coventry",SummerProvRep!$P:$P,Data!AC$16) -> 0 | AD22: =SUMIFS(SummerProvRep!$H:$H,SummerProvRep!$A:$A,Data!$A$22,SummerProvRep!$G:$G,"<>Coventry",SummerProvRep!$P:$P,Data!AD$16) -> 66 | AE22: =SUMIFS(SummerProvRep!$H:$H,SummerProvRep!$A:$A,Data!$A$22,SummerProvRep!$G:$G,"<>Coventry",SummerProvRep!$P:$P,Data!AE$16) -> 0 | AF22: =SUMIFS(SummerProvRep!$H:$H,SummerProvRep!$A:$A,Data!$A$22,SummerProvRep!$G:$G,"<>Coventry",SummerProvRep!$P:$P,Data!AF$16) -> 0 | AG22: =SUMIFS(SummerProvRep!$H:$H,SummerProvRep!$A:$A,Data!$A$22,SummerProvRep!$G:$G,"<>Coventry",SummerProvRep!$P:$P,Data!AG$16) -> 0 | AH22: =SUMIFS(SummerProvRep!$H:$H,SummerProvRep!$A:$A,Data!$A$22,SummerProvRep!$G:$G,"<>Coventry",SummerProvRep!$P:$P,Data!AH$16) -> 0 | AI22: =SUMIFS(SummerProvRep!$H:$H,SummerProvRep!$A:$A,Data!$A$22,SummerProvRep!$G:$G,"<>Coventry",SummerProvRep!$P:$P,Data!AI$16) -> 0 | AJ22: =SUMIFS(SummerProvRep!$H:$H,SummerProvRep!$A:$A,Data!$A$22,SummerProvRep!$G:$G,"<>Coventry",SummerProvRep!$P:$P,Data!AJ$16) -> 0 | AK22: =SUMIFS(SummerProvRep!$H:$H,SummerProvRep!$A:$A,Data!$A$22,SummerProvRep!$G:$G,"<>Coventry",SummerProvRep!$P:$P,Data!AK$16) -> 0 | AL22: =SUMIFS(SummerProvRep!$H:$H,SummerProvRep!$A:$A,Data!$A$22,SummerProvRep!$G:$G,"<>Coventry",SummerProvRep!$P:$P,Data!AL$16) -> 0 | AM22: =SUMIFS(SummerProvRep!$H:$H,SummerProvRep!$A:$A,Data!$A$22,SummerProvRep!$G:$G,"<>Coventry",SummerProvRep!$P:$P,Data!AM$16) -> 0 | AN22: =SUMIFS(SummerProvRep!$H:$H,SummerProvRep!$A:$A,Data!$A$22,SummerProvRep!$G:$G,"<>Coventry",SummerProvRep!$P:$P,Data!AN$16) -> 0 | AO22: =SUMIFS(SummerProvRep!$H:$H,SummerProvRep!$A:$A,Data!$A$22,SummerProvRep!$G:$G,"<>Coventry",SummerProvRep!$P:$P,Data!AO$16) -> 0 | AP22: 2 | AQ22: 4596.005658 | AR22: 730903.4998 | AS22: 197.4393939 | AT22: =AS22-AU22 -> -2.560606061 | AU22: 200 | AV22: =[11]Data!$AS22 -> 186.4545455 | AW22: =[11]Data!$K6 -> 188
A23: 4 | B23: Corley | C23: 52.08333333 | D23: =SUMIFS(SummerProvRep!$H:$H,SummerProvRep!$A:$A,Data!$A$23,SummerProvRep!$G:$G,"Coventry",SummerProvRep!$P:$P,Data!D$16) -> 0 | E23: =SUMIFS(SummerProvRep!$H:$H,SummerProvRep!$A:$A,Data!$A$23,SummerProvRep!$G:$G,"Coventry",SummerProvRep!$P:$P,Data!E$16) -> 0 | F23: =SUMIFS(SummerProvRep!$H:$H,SummerProvRep!$A:$A,Data!$A$23,SummerProvRep!$G:$G,"Coventry",SummerProvRep!$P:$P,Data!F$16) -> 0 | G23: =SUMIFS(SummerProvRep!$H:$H,SummerProvRep!$A:$A,Data!$A$23,SummerProvRep!$G:$G,"Coventry",SummerProvRep!$P:$P,Data!G$16) -> 0 | H23: =SUMIFS(SummerProvRep!$H:$H,SummerProvRep!$A:$A,Data!$A$23,SummerProvRep!$G:$G,"Coventry",SummerProvRep!$P:$P,Data!H$16) -> 0 | I23: =SUMIFS(SummerProvRep!$H:$H,SummerProvRep!$A:$A,Data!$A$23,SummerProvRep!$G:$G,"Coventry",SummerProvRep!$P:$P,Data!I$16) -> 0 | J23: =SUMIFS(SummerProvRep!$H:$H,SummerProvRep!$A:$A,Data!$A$23,SummerProvRep!$G:$G,"Coventry",SummerProvRep!$P:$P,Data!J$16) -> 7092 | K23: =SUMIFS(SummerProvRep!$H:$H,SummerProvRep!$A:$A,Data!$A$23,SummerProvRep!$G:$G,"Coventry",SummerProvRep!$P:$P,Data!K$16) -> 0 | L23: =SUMIFS(SummerProvRep!$H:$H,SummerProvRep!$A:$A,Data!$A$23,SummerProvRep!$G:$G,"Coventry",SummerProvRep!$P:$P,Data!L$16) -> 594 | M23: =SUMIFS(SummerProvRep!$H:$H,SummerProvRep!$A:$A,Data!$A$23,SummerProvRep!$G:$G,"Coventry",SummerProvRep!$P:$P,Data!M$16) -> 0 | N23: =SUMIFS(SummerProvRep!$H:$H,SummerProvRep!$A:$A,Data!$A$23,SummerProvRep!$G:$G,"Coventry",SummerProvRep!$P:$P,Data!N$16) -> 300 | O23: =SUMIFS(SummerProvRep!$H:$H,SummerProvRep!$A:$A,Data!$A$23,SummerProvRep!$G:$G,"Coventry",SummerProvRep!$P:$P,Data!O$16) -> 0 | P23: =SUMIFS(SummerProvRep!$H:$H,SummerProvRep!$A:$A,Data!$A$23,SummerProvRep!$G:$G,"Coventry",SummerProvRep!$P:$P,Data!P$16) -> 924 | Q23: =SUMIFS(SummerProvRep!$H:$H,SummerProvRep!$A:$A,Data!$A$23,SummerProvRep!$G:$G,"Coventry",SummerProvRep!$P:$P,Data!Q$16) -> 0 | R23: =SUMIFS(SummerProvRep!$H:$H,SummerProvRep!$A:$A,Data!$A$23,SummerProvRep!$G:$G,"Coventry",SummerProvRep!$P:$P,Data!R$16) -> 0 | S23: =SUMIFS(SummerProvRep!$H:$H,SummerProvRep!$A:$A,Data!$A$23,SummerProvRep!$G:$G,"Coventry",SummerProvRep!$P:$P,Data!S$16) -> 0 | T23: =SUMIFS(SummerProvRep!$H:$H,SummerProvRep!$A:$A,Data!$A$23,SummerProvRep!$G:$G,"Coventry",SummerProvRep!$P:$P,Data!T$16) -> 0 | U23: =SUMIFS(SummerProvRep!$H:$H,SummerProvRep!$A:$A,Data!$A$23,SummerProvRep!$G:$G,"Coventry",SummerProvRep!$P:$P,Data!U$16) -> 0 | V23: 135 | W23: 536824.9346 | X23: =SUMIFS(SummerProvRep!$H:$H,SummerProvRep!$A:$A,Data!$A$23,SummerProvRep!$G:$G,"<>Coventry",SummerProvRep!$P:$P,Data!X$16) -> 0 | Y23: =SUMIFS(SummerProvRep!$H:$H,SummerProvRep!$A:$A,Data!$A$23,SummerProvRep!$G:$G,"<>Coventry",SummerProvRep!$P:$P,Data!Y$16) -> 0 | Z23: =SUMIFS(SummerProvRep!$H:$H,SummerProvRep!$A:$A,Data!$A$23,SummerProvRep!$G:$G,"<>Coventry",SummerProvRep!$P:$P,Data!Z$16) -> 0 | AA23: =SUMIFS(SummerProvRep!$H:$H,SummerProvRep!$A:$A,Data!$A$23,SummerProvRep!$G:$G,"<>Coventry",SummerProvRep!$P:$P,Data!AA$16) -> 0 | AB23: =SUMIFS(SummerProvRep!$H:$H,SummerProvRep!$A:$A,Data!$A$23,SummerProvRep!$G:$G,"<>Coventry",SummerProvRep!$P:$P,Data!AB$16) -> 0 | AC23: =SUMIFS(SummerProvRep!$H:$H,SummerProvRep!$A:$A,Data!$A$23,SummerProvRep!$G:$G,"<>Coventry",SummerProvRep!$P:$P,Data!AC$16) -> 0 | AD23: =SUMIFS(SummerProvRep!$H:$H,SummerProvRep!$A:$A,Data!$A$23,SummerProvRep!$G:$G,"<>Coventry",SummerProvRep!$P:$P,Data!AD$16) -> 66 | AE23: =SUMIFS(SummerProvRep!$H:$H,SummerProvRep!$A:$A,Data!$A$23,SummerProvRep!$G:$G,"<>Coventry",SummerProvRep!$P:$P,Data!AE$16) -> 0 | AF23: =SUMIFS(SummerProvRep!$H:$H,SummerProvRep!$A:$A,Data!$A$23,SummerProvRep!$G:$G,"<>Coventry",SummerProvRep!$P:$P,Data!AF$16) -> 0 | AG23: =SUMIFS(SummerProvRep!$H:$H,SummerProvRep!$A:$A,Data!$A$23,SummerProvRep!$G:$G,"<>Coventry",SummerProvRep!$P:$P,Data!AG$16) -> 0 | AH23: =SUMIFS(SummerProvRep!$H:$H,SummerProvRep!$A:$A,Data!$A$23,SummerProvRep!$G:$G,"<>Coventry",SummerProvRep!$P:$P,Data!AH$16) -> 0 | AI23: =SUMIFS(SummerProvRep!$H:$H,SummerProvRep!$A:$A,Data!$A$23,SummerProvRep!$G:$G,"<>Coventry",SummerProvRep!$P:$P,Data!AI$16) -> 0 | AJ23: =SUMIFS(SummerProvRep!$H:$H,SummerProvRep!$A:$A,Data!$A$23,SummerProvRep!$G:$G,"<>Coventry",SummerProvRep!$P:$P,Data!AJ$16) -> 0 | AK23: =SUMIFS(SummerProvRep!$H:$H,SummerProvRep!$A:$A,Data!$A$23,SummerProvRep!$G:$G,"<>Coventry",SummerProvRep!$P:$P,Data!AK$16) -> 0 | AL23: =SUMIFS(SummerProvRep!$H:$H,SummerProvRep!$A:$A,Data!$A$23,SummerProvRep!$G:$G,"<>Coventry",SummerProvRep!$P:$P,Data!AL$16) -> 0 | AM23: =SUMIFS(SummerProvRep!$H:$H,SummerProvRep!$A:$A,Data!$A$23,SummerProvRep!$G:$G,"<>Coventry",SummerProvRep!$P:$P,Data!AM$16) -> 0 | AN23: =SUMIFS(SummerProvRep!$H:$H,SummerProvRep!$A:$A,Data!$A$23,SummerProvRep!$G:$G,"<>Coventry",SummerProvRep!$P:$P,Data!AN$16) -> 0 | AO23: =SUMIFS(SummerProvRep!$H:$H,SummerProvRep!$A:$A,Data!$A$23,SummerProvRep!$G:$G,"<>Coventry",SummerProvRep!$P:$P,Data!AO$16) -> 0 | AP23: 1 | AQ23: 3535.388676 | AR23: 540360.3233 | AS23: 136 | AT23: 7 | AU23: 129 | AV23: =[11]Data!$AS23 -> 134.6060606 | AW23: =[11]Data!$K7 -> 129
A24: 5 | B24: Tiverton | C24: 52.08333333 | D24: =SUMIFS(SummerProvRep!$H:$H,SummerProvRep!$A:$A,Data!$A$24,SummerProvRep!$G:$G,"Coventry",SummerProvRep!$P:$P,Data!D$16) -> 0 | E24: =SUMIFS(SummerProvRep!$H:$H,SummerProvRep!$A:$A,Data!$A$24,SummerProvRep!$G:$G,"Coventry",SummerProvRep!$P:$P,Data!E$16) -> 0 | F24: =SUMIFS(SummerProvRep!$H:$H,SummerProvRep!$A:$A,Data!$A$24,SummerProvRep!$G:$G,"Coventry",SummerProvRep!$P:$P,Data!F$16) -> 0 | G24: =SUMIFS(SummerProvRep!$H:$H,SummerProvRep!$A:$A,Data!$A$24,SummerProvRep!$G:$G,"Coventry",SummerProvRep!$P:$P,Data!G$16) -> 0 | H24: =SUMIFS(SummerProvRep!$H:$H,SummerProvRep!$A:$A,Data!$A$24,SummerProvRep!$G:$G,"Coventry",SummerProvRep!$P:$P,Data!H$16) -> 0 | I24: =SUMIFS(SummerProvRep!$H:$H,SummerProvRep!$A:$A,Data!$A$24,SummerProvRep!$G:$G,"Coventry",SummerProvRep!$P:$P,Data!I$16) -> 0 | J24: =SUMIFS(SummerProvRep!$H:$H,SummerProvRep!$A:$A,Data!$A$24,SummerProvRep!$G:$G,"Coventry",SummerProvRep!$P:$P,Data!J$16) -> 3710 | K24: =SUMIFS(SummerProvRep!$H:$H,SummerProvRep!$A:$A,Data!$A$24,SummerProvRep!$G:$G,"Coventry",SummerProvRep!$P:$P,Data!K$16) -> 924 | L24: =SUMIFS(SummerProvRep!$H:$H,SummerProvRep!$A:$A,Data!$A$24,SummerProvRep!$G:$G,"Coventry",SummerProvRep!$P:$P,Data!L$16) -> 0 | M24: =SUMIFS(SummerProvRep!$H:$H,SummerProvRep!$A:$A,Data!$A$24,SummerProvRep!$G:$G,"Coventry",SummerProvRep!$P:$P,Data!M$16) -> 462 | N24: =SUMIFS(SummerProvRep!$H:$H,SummerProvRep!$A:$A,Data!$A$24,SummerProvRep!$G:$G,"Coventry",SummerProvRep!$P:$P,Data!N$16) -> 298 | O24: =SUMIFS(SummerProvRep!$H:$H,SummerProvRep!$A:$A,Data!$A$24,SummerProvRep!$G:$G,"Coventry",SummerProvRep!$P:$P,Data!O$16) -> 0 | P24: =SUMIFS(SummerProvRep!$H:$H,SummerProvRep!$A:$A,Data!$A$24,SummerProvRep!$G:$G,"Coventry",SummerProvRep!$P:$P,Data!P$16) -> 1140 | Q24: =SUMIFS(SummerProvRep!$H:$H,SummerProvRep!$A:$A,Data!$A$24,SummerProvRep!$G:$G,"Coventry",SummerProvRep!$P:$P,Data!Q$16) -> 462 | R24: =SUMIFS(SummerProvRep!$H:$H,SummerProvRep!$A:$A,Data!$A$24,SummerProvRep!$G:$G,"Coventry",SummerProvRep!$P:$P,Data!R$16) -> 0 | S24: =SUMIFS(SummerProvRep!$H:$H,SummerProvRep!$A:$A,Data!$A$24,SummerProvRep!$G:$G,"Coventry",SummerProvRep!$P:$P,Data!S$16) -> 330 | T24: =SUMIFS(SummerProvRep!$H:$H,SummerProvRep!$A:$A,Data!$A$24,SummerProvRep!$G:$G,"Coventry",SummerProvRep!$P:$P,Data!T$16) -> 0 | U24: =SUMIFS(SummerProvRep!$H:$H,SummerProvRep!$A:$A,Data!$A$24,SummerProvRep!$G:$G,"Coventry",SummerProvRep!$P:$P,Data!U$16) -> 0 | V24: 111 | W24: 474801.8506 | X24: =SUMIFS(SummerProvRep!$H:$H,SummerProvRep!$A:$A,Data!$A$24,SummerProvRep!$G:$G,"<>Coventry",SummerProvRep!$P:$P,Data!X$16) -> 0 | Y24: =SUMIFS(SummerProvRep!$H:$H,SummerProvRep!$A:$A,Data!$A$24,SummerProvRep!$G:$G,"<>Coventry",SummerProvRep!$P:$P,Data!Y$16) -> 0 | Z24: =SUMIFS(SummerProvRep!$H:$H,SummerProvRep!$A:$A,Data!$A$24,SummerProvRep!$G:$G,"<>Coventry",SummerProvRep!$P:$P,Data!Z$16) -> 0 | AA24: =SUMIFS(SummerProvRep!$H:$H,SummerProvRep!$A:$A,Data!$A$24,SummerProvRep!$G:$G,"<>Coventry",SummerProvRep!$P:$P,Data!AA$16) -> 0 | AB24: =SUMIFS(SummerProvRep!$H:$H,SummerProvRep!$A:$A,Data!$A$24,SummerProvRep!$G:$G,"<>Coventry",SummerProvRep!$P:$P,Data!AB$16) -> 0 | AC24: =SUMIFS(SummerProvRep!$H:$H,SummerProvRep!$A:$A,Data!$A$24,SummerProvRep!$G:$G,"<>Coventry",SummerProvRep!$P:$P,Data!AC$16) -> 0 | AD24: =SUMIFS(SummerProvRep!$H:$H,SummerProvRep!$A:$A,Data!$A$24,SummerProvRep!$G:$G,"<>Coventry",SummerProvRep!$P:$P,Data!AD$16) -> 66 | AE24: =SUMIFS(SummerProvRep!$H:$H,SummerProvRep!$A:$A,Data!$A$24,SummerProvRep!$G:$G,"<>Coventry",SummerProvRep!$P:$P,Data!AE$16) -> 0 | AF24: =SUMIFS(SummerProvRep!$H:$H,SummerProvRep!$A:$A,Data!$A$24,SummerProvRep!$G:$G,"<>Coventry",SummerProvRep!$P:$P,Data!AF$16) -> 0 | AG24: =SUMIFS(SummerProvRep!$H:$H,SummerProvRep!$A:$A,Data!$A$24,SummerProvRep!$G:$G,"<>Coventry",SummerProvRep!$P:$P,Data!AG$16) -> 0 | AH24: =SUMIFS(SummerProvRep!$H:$H,SummerProvRep!$A:$A,Data!$A$24,SummerProvRep!$G:$G,"<>Coventry",SummerProvRep!$P:$P,Data!AH$16) -> 0 | AI24: =SUMIFS(SummerProvRep!$H:$H,SummerProvRep!$A:$A,Data!$A$24,SummerProvRep!$G:$G,"<>Coventry",SummerProvRep!$P:$P,Data!AI$16) -> 0 | AJ24: =SUMIFS(SummerProvRep!$H:$H,SummerProvRep!$A:$A,Data!$A$24,SummerProvRep!$G:$G,"<>Coventry",SummerProvRep!$P:$P,Data!AJ$16) -> 66 | AK24: =SUMIFS(SummerProvRep!$H:$H,SummerProvRep!$A:$A,Data!$A$24,SummerProvRep!$G:$G,"<>Coventry",SummerProvRep!$P:$P,Data!AK$16) -> 0 | AL24: =SUMIFS(SummerProvRep!$H:$H,SummerProvRep!$A:$A,Data!$A$24,SummerProvRep!$G:$G,"<>Coventry",SummerProvRep!$P:$P,Data!AL$16) -> 0 | AM24: =SUMIFS(SummerProvRep!$H:$H,SummerProvRep!$A:$A,Data!$A$24,SummerProvRep!$G:$G,"<>Coventry",SummerProvRep!$P:$P,Data!AM$16) -> 0 | AN24: =SUMIFS(SummerProvRep!$H:$H,SummerProvRep!$A:$A,Data!$A$24,SummerProvRep!$G:$G,"<>Coventry",SummerProvRep!$P:$P,Data!AN$16) -> 0 | AO24: =SUMIFS(SummerProvRep!$H:$H,SummerProvRep!$A:$A,Data!$A$24,SummerProvRep!$G:$G,"<>Coventry",SummerProvRep!$P:$P,Data!AO$16) -> 0 | AP24: 2 | AQ24: 9280.396695 | AR24: 484082.2473 | AS24: 113 | AT24: 1 | AU24: 112 | AV24: =[11]Data!$AS24 -> 110.030303 | AW24: =[11]Data!$K8 -> 112
A25: 6 | B25: Baginton Fields | C25: 52.08333333 | D25: =SUMIFS(SummerProvRep!$H:$H,SummerProvRep!$A:$A,Data!$A$25,SummerProvRep!$G:$G,"Coventry",SummerProvRep!$P:$P,Data!D$16) -> 0 | E25: =SUMIFS(SummerProvRep!$H:$H,SummerProvRep!$A:$A,Data!$A$25,SummerProvRep!$G:$G,"Coventry",SummerProvRep!$P:$P,Data!E$16) -> 0 | F25: =SUMIFS(SummerProvRep!$H:$H,SummerProvRep!$A:$A,Data!$A$25,SummerProvRep!$G:$G,"Coventry",SummerProvRep!$P:$P,Data!F$16) -> 0 | G25: =SUMIFS(SummerProvRep!$H:$H,SummerProvRep!$A:$A,Data!$A$25,SummerProvRep!$G:$G,"Coventry",SummerProvRep!$P:$P,Data!G$16) -> 0 | H25: =SUMIFS(SummerProvRep!$H:$H,SummerProvRep!$A:$A,Data!$A$25,SummerProvRep!$G:$G,"Coventry",SummerProvRep!$P:$P,Data!H$16) -> 0 | I25: =SUMIFS(SummerProvRep!$H:$H,SummerProvRep!$A:$A,Data!$A$25,SummerProvRep!$G:$G,"Coventry",SummerProvRep!$P:$P,Data!I$16) -> 0 | J25: =SUMIFS(SummerProvRep!$H:$H,SummerProvRep!$A:$A,Data!$A$25,SummerProvRep!$G:$G,"Coventry",SummerProvRep!$P:$P,Data!J$16) -> 1518 | K25: =SUMIFS(SummerProvRep!$H:$H,SummerProvRep!$A:$A,Data!$A$25,SummerProvRep!$G:$G,"Coventry",SummerProvRep!$P:$P,Data!K$16) -> 2442 | L25: =SUMIFS(SummerProvRep!$H:$H,SummerProvRep!$A:$A,Data!$A$25,SummerProvRep!$G:$G,"Coventry",SummerProvRep!$P:$P,Data!L$16) -> 66 | M25: =SUMIFS(SummerProvRep!$H:$H,SummerProvRep!$A:$A,Data!$A$25,SummerProvRep!$G:$G,"Coventry",SummerProvRep!$P:$P,Data!M$16) -> 66 | N25: =SUMIFS(SummerProvRep!$H:$H,SummerProvRep!$A:$A,Data!$A$25,SummerProvRep!$G:$G,"Coventry",SummerProvRep!$P:$P,Data!N$16) -> 666 | O25: =SUMIFS(SummerProvRep!$H:$H,SummerProvRep!$A:$A,Data!$A$25,SummerProvRep!$G:$G,"Coventry",SummerProvRep!$P:$P,Data!O$16) -> 0 | P25: =SUMIFS(SummerProvRep!$H:$H,SummerProvRep!$A:$A,Data!$A$25,SummerProvRep!$G:$G,"Coventry",SummerProvRep!$P:$P,Data!P$16) -> 1974 | Q25: =SUMIFS(SummerProvRep!$H:$H,SummerProvRep!$A:$A,Data!$A$25,SummerProvRep!$G:$G,"Coventry",SummerProvRep!$P:$P,Data!Q$16) -> 660 | R25: =SUMIFS(SummerProvRep!$H:$H,SummerProvRep!$A:$A,Data!$A$25,SummerProvRep!$G:$G,"Coventry",SummerProvRep!$P:$P,Data!R$16) -> 0 | S25: =SUMIFS(SummerProvRep!$H:$H,SummerProvRep!$A:$A,Data!$A$25,SummerProvRep!$G:$G,"Coventry",SummerProvRep!$P:$P,Data!S$16) -> 132 | T25: =SUMIFS(SummerProvRep!$H:$H,SummerProvRep!$A:$A,Data!$A$25,SummerProvRep!$G:$G,"Coventry",SummerProvRep!$P:$P,Data!T$16) -> 0 | U25: =SUMIFS(SummerProvRep!$H:$H,SummerProvRep!$A:$A,Data!$A$25,SummerProvRep!$G:$G,"Coventry",SummerProvRep!$P:$P,Data!U$16) -> 0 | V25: 114 | W25: 528152.5314 | X25: =SUMIFS(SummerProvRep!$H:$H,SummerProvRep!$A:$A,Data!$A$25,SummerProvRep!$G:$G,"<>Coventry",SummerProvRep!$P:$P,Data!X$16) -> 0 | Y25: =SUMIFS(SummerProvRep!$H:$H,SummerProvRep!$A:$A,Data!$A$25,SummerProvRep!$G:$G,"<>Coventry",SummerProvRep!$P:$P,Data!Y$16) -> 0 | Z25: =SUMIFS(SummerProvRep!$H:$H,SummerProvRep!$A:$A,Data!$A$25,SummerProvRep!$G:$G,"<>Coventry",SummerProvRep!$P:$P,Data!Z$16) -> 0 | AA25: =SUMIFS(SummerProvRep!$H:$H,SummerProvRep!$A:$A,Data!$A$25,SummerProvRep!$G:$G,"<>Coventry",SummerProvRep!$P:$P,Data!AA$16) -> 0 | AB25: =SUMIFS(SummerProvRep!$H:$H,SummerProvRep!$A:$A,Data!$A$25,SummerProvRep!$G:$G,"<>Coventry",SummerProvRep!$P:$P,Data!AB$16) -> 0 | AC25: =SUMIFS(SummerProvRep!$H:$H,SummerProvRep!$A:$A,Data!$A$25,SummerProvRep!$G:$G,"<>Coventry",SummerProvRep!$P:$P,Data!AC$16) -> 0 | AD25: =SUMIFS(SummerProvRep!$H:$H,SummerProvRep!$A:$A,Data!$A$25,SummerProvRep!$G:$G,"<>Coventry",SummerProvRep!$P:$P,Data!AD$16) -> 0 | AE25: =SUMIFS(SummerProvRep!$H:$H,SummerProvRep!$A:$A,Data!$A$25,SummerProvRep!$G:$G,"<>Coventry",SummerProvRep!$P:$P,Data!AE$16) -> 66 | AF25: =SUMIFS(SummerProvRep!$H:$H,SummerProvRep!$A:$A,Data!$A$25,SummerProvRep!$G:$G,"<>Coventry",SummerProvRep!$P:$P,Data!AF$16) -> 0 | AG25: =SUMIFS(SummerProvRep!$H:$H,SummerProvRep!$A:$A,Data!$A$25,SummerProvRep!$G:$G,"<>Coventry",SummerProvRep!$P:$P,Data!AG$16) -> 0 | AH25: =SUMIFS(SummerProvRep!$H:$H,SummerProvRep!$A:$A,Data!$A$25,SummerProvRep!$G:$G,"<>Coventry",SummerProvRep!$P:$P,Data!AH$16) -> 0 | AI25: =SUMIFS(SummerProvRep!$H:$H,SummerProvRep!$A:$A,Data!$A$25,SummerProvRep!$G:$G,"<>Coventry",SummerProvRep!$P:$P,Data!AI$16) -> 0 | AJ25: =SUMIFS(SummerProvRep!$H:$H,SummerProvRep!$A:$A,Data!$A$25,SummerProvRep!$G:$G,"<>Coventry",SummerProvRep!$P:$P,Data!AJ$16) -> 0 | AK25: =SUMIFS(SummerProvRep!$H:$H,SummerProvRep!$A:$A,Data!$A$25,SummerProvRep!$G:$G,"<>Coventry",SummerProvRep!$P:$P,Data!AK$16) -> 0 | AL25: =SUMIFS(SummerProvRep!$H:$H,SummerProvRep!$A:$A,Data!$A$25,SummerProvRep!$G:$G,"<>Coventry",SummerProvRep!$P:$P,Data!AL$16) -> 0 | AM25: =SUMIFS(SummerProvRep!$H:$H,SummerProvRep!$A:$A,Data!$A$25,SummerProvRep!$G:$G,"<>Coventry",SummerProvRep!$P:$P,Data!AM$16) -> 0 | AN25: =SUMIFS(SummerProvRep!$H:$H,SummerProvRep!$A:$A,Data!$A$25,SummerProvRep!$G:$G,"<>Coventry",SummerProvRep!$P:$P,Data!AN$16) -> 0 | AO25: =SUMIFS(SummerProvRep!$H:$H,SummerProvRep!$A:$A,Data!$A$25,SummerProvRep!$G:$G,"<>Coventry",SummerProvRep!$P:$P,Data!AO$16) -> 0 | AP25: 1 | AQ25: 3270.236323 | AR25: 531422.7677 | AS25: 115 | AT25: -1 | AU25: 116 | AV25: =[11]Data!$AS25 -> 114 | AW25: =[11]Data!$K9 -> 116
A26: 7 | B26: Sherbourne Fields | C26: 52.08333333 | D26: =SUMIFS(SummerProvRep!$H:$H,SummerProvRep!$A:$A,Data!$A$26,SummerProvRep!$G:$G,"Coventry",SummerProvRep!$P:$P,Data!D$16) -> 0 | E26: =SUMIFS(SummerProvRep!$H:$H,SummerProvRep!$A:$A,Data!$A$26,SummerProvRep!$G:$G,"Coventry",SummerProvRep!$P:$P,Data!E$16) -> 0 | F26: =SUMIFS(SummerProvRep!$H:$H,SummerProvRep!$A:$A,Data!$A$26,SummerProvRep!$G:$G,"Coventry",SummerProvRep!$P:$P,Data!F$16) -> 0 | G26: =SUMIFS(SummerProvRep!$H:$H,SummerProvRep!$A:$A,Data!$A$26,SummerProvRep!$G:$G,"Coventry",SummerProvRep!$P:$P,Data!G$16) -> 132 | H26: =SUMIFS(SummerProvRep!$H:$H,SummerProvRep!$A:$A,Data!$A$26,SummerProvRep!$G:$G,"Coventry",SummerProvRep!$P:$P,Data!H$16) -> 0 | I26: =SUMIFS(SummerProvRep!$H:$H,SummerProvRep!$A:$A,Data!$A$26,SummerProvRep!$G:$G,"Coventry",SummerProvRep!$P:$P,Data!I$16) -> 132 | J26: =SUMIFS(SummerProvRep!$H:$H,SummerProvRep!$A:$A,Data!$A$26,SummerProvRep!$G:$G,"Coventry",SummerProvRep!$P:$P,Data!J$16) -> 4620 | K26: =SUMIFS(SummerProvRep!$H:$H,SummerProvRep!$A:$A,Data!$A$26,SummerProvRep!$G:$G,"Coventry",SummerProvRep!$P:$P,Data!K$16) -> 4290 | L26: =SUMIFS(SummerProvRep!$H:$H,SummerProvRep!$A:$A,Data!$A$26,SummerProvRep!$G:$G,"Coventry",SummerProvRep!$P:$P,Data!L$16) -> 0 | M26: =SUMIFS(SummerProvRep!$H:$H,SummerProvRep!$A:$A,Data!$A$26,SummerProvRep!$G:$G,"Coventry",SummerProvRep!$P:$P,Data!M$16) -> 1848 | N26: =SUMIFS(SummerProvRep!$H:$H,SummerProvRep!$A:$A,Data!$A$26,SummerProvRep!$G:$G,"Coventry",SummerProvRep!$P:$P,Data!N$16) -> 198 | O26: =SUMIFS(SummerProvRep!$H:$H,SummerProvRep!$A:$A,Data!$A$26,SummerProvRep!$G:$G,"Coventry",SummerProvRep!$P:$P,Data!O$16) -> 0 | P26: =SUMIFS(SummerProvRep!$H:$H,SummerProvRep!$A:$A,Data!$A$26,SummerProvRep!$G:$G,"Coventry",SummerProvRep!$P:$P,Data!P$16) -> 1716 | Q26: =SUMIFS(SummerProvRep!$H:$H,SummerProvRep!$A:$A,Data!$A$26,SummerProvRep!$G:$G,"Coventry",SummerProvRep!$P:$P,Data!Q$16) -> 1386 | R26: =SUMIFS(SummerProvRep!$H:$H,SummerProvRep!$A:$A,Data!$A$26,SummerProvRep!$G:$G,"Coventry",SummerProvRep!$P:$P,Data!R$16) -> 0 | S26: =SUMIFS(SummerProvRep!$H:$H,SummerProvRep!$A:$A,Data!$A$26,SummerProvRep!$G:$G,"Coventry",SummerProvRep!$P:$P,Data!S$16) -> 1254 | T26: =SUMIFS(SummerProvRep!$H:$H,SummerProvRep!$A:$A,Data!$A$26,SummerProvRep!$G:$G,"Coventry",SummerProvRep!$P:$P,Data!T$16) -> 66 | U26: =SUMIFS(SummerProvRep!$H:$H,SummerProvRep!$A:$A,Data!$A$26,SummerProvRep!$G:$G,"Coventry",SummerProvRep!$P:$P,Data!U$16) -> 0 | V26: 237 | W26: 994514.0062 | X26: =SUMIFS(SummerProvRep!$H:$H,SummerProvRep!$A:$A,Data!$A$26,SummerProvRep!$G:$G,"<>Coventry",SummerProvRep!$P:$P,Data!X$16) -> 0 | Y26: =SUMIFS(SummerProvRep!$H:$H,SummerProvRep!$A:$A,Data!$A$26,SummerProvRep!$G:$G,"<>Coventry",SummerProvRep!$P:$P,Data!Y$16) -> 0 | Z26: =SUMIFS(SummerProvRep!$H:$H,SummerProvRep!$A:$A,Data!$A$26,SummerProvRep!$G:$G,"<>Coventry",SummerProvRep!$P:$P,Data!Z$16) -> 0 | AA26: =SUMIFS(SummerProvRep!$H:$H,SummerProvRep!$A:$A,Data!$A$26,SummerProvRep!$G:$G,"<>Coventry",SummerProvRep!$P:$P,Data!AA$16) -> 0 | AB26: =SUMIFS(SummerProvRep!$H:$H,SummerProvRep!$A:$A,Data!$A$26,SummerProvRep!$G:$G,"<>Coventry",SummerProvRep!$P:$P,Data!AB$16) -> 0 | AC26: =SUMIFS(SummerProvRep!$H:$H,SummerProvRep!$A:$A,Data!$A$26,SummerProvRep!$G:$G,"<>Coventry",SummerProvRep!$P:$P,Data!AC$16) -> 0 | AD26: =SUMIFS(SummerProvRep!$H:$H,SummerProvRep!$A:$A,Data!$A$26,SummerProvRep!$G:$G,"<>Coventry",SummerProvRep!$P:$P,Data!AD$16) -> 66 | AE26: =SUMIFS(SummerProvRep!$H:$H,SummerProvRep!$A:$A,Data!$A$26,SummerProvRep!$G:$G,"<>Coventry",SummerProvRep!$P:$P,Data!AE$16) -> 0 | AF26: =SUMIFS(SummerProvRep!$H:$H,SummerProvRep!$A:$A,Data!$A$26,SummerProvRep!$G:$G,"<>Coventry",SummerProvRep!$P:$P,Data!AF$16) -> 0 | AG26: =SUMIFS(SummerProvRep!$H:$H,SummerProvRep!$A:$A,Data!$A$26,SummerProvRep!$G:$G,"<>Coventry",SummerProvRep!$P:$P,Data!AG$16) -> 66 | AH26: =SUMIFS(SummerProvRep!$H:$H,SummerProvRep!$A:$A,Data!$A$26,SummerProvRep!$G:$G,"<>Coventry",SummerProvRep!$P:$P,Data!AH$16) -> 0 | AI26: =SUMIFS(SummerProvRep!$H:$H,SummerProvRep!$A:$A,Data!$A$26,SummerProvRep!$G:$G,"<>Coventry",SummerProvRep!$P:$P,Data!AI$16) -> 0 | AJ26: =SUMIFS(SummerProvRep!$H:$H,SummerProvRep!$A:$A,Data!$A$26,SummerProvRep!$G:$G,"<>Coventry",SummerProvRep!$P:$P,Data!AJ$16) -> 0 | AK26: =SUMIFS(SummerProvRep!$H:$H,SummerProvRep!$A:$A,Data!$A$26,SummerProvRep!$G:$G,"<>Coventry",SummerProvRep!$P:$P,Data!AK$16) -> 0 | AL26: =SUMIFS(SummerProvRep!$H:$H,SummerProvRep!$A:$A,Data!$A$26,SummerProvRep!$G:$G,"<>Coventry",SummerProvRep!$P:$P,Data!AL$16) -> 0 | AM26: =SUMIFS(SummerProvRep!$H:$H,SummerProvRep!$A:$A,Data!$A$26,SummerProvRep!$G:$G,"<>Coventry",SummerProvRep!$P:$P,Data!AM$16) -> 113 | AN26: =SUMIFS(SummerProvRep!$H:$H,SummerProvRep!$A:$A,Data!$A$26,SummerProvRep!$G:$G,"<>Coventry",SummerProvRep!$P:$P,Data!AN$16) -> 0 | AO26: =SUMIFS(SummerProvRep!$H:$H,SummerProvRep!$A:$A,Data!$A$26,SummerProvRep!$G:$G,"<>Coventry",SummerProvRep!$P:$P,Data!AO$16) -> 0 | AP26: 3.712121212 | AQ26: 17034.14126 | AR26: 1011548.147 | AS26: 240.7121212 | AT26: 0.7121212121 | AU26: 240 | AV26: =[11]Data!$AS26 -> 218.2424242 | AW26: =[11]Data!$K10 -> 220
A27: 8 | B27: Woodfield | C27: =10000/$A$15 -> 52.08333333 | D27: =SUMIFS(SummerProvRep!$H:$H,SummerProvRep!$A:$A,Data!$A$27,SummerProvRep!$G:$G,"Coventry",SummerProvRep!$P:$P,Data!D$16) -> 0 | E27: =SUMIFS(SummerProvRep!$H:$H,SummerProvRep!$A:$A,Data!$A$27,SummerProvRep!$G:$G,"Coventry",SummerProvRep!$P:$P,Data!E$16) -> 0 | F27: =SUMIFS(SummerProvRep!$H:$H,SummerProvRep!$A:$A,Data!$A$27,SummerProvRep!$G:$G,"Coventry",SummerProvRep!$P:$P,Data!F$16) -> 0 | G27: =SUMIFS(SummerProvRep!$H:$H,SummerProvRep!$A:$A,Data!$A$27,SummerProvRep!$G:$G,"Coventry",SummerProvRep!$P:$P,Data!G$16) -> 0 | H27: =SUMIFS(SummerProvRep!$H:$H,SummerProvRep!$A:$A,Data!$A$27,SummerProvRep!$G:$G,"Coventry",SummerProvRep!$P:$P,Data!H$16) -> 0 | I27: =SUMIFS(SummerProvRep!$H:$H,SummerProvRep!$A:$A,Data!$A$27,SummerProvRep!$G:$G,"Coventry",SummerProvRep!$P:$P,Data!I$16) -> 0 | J27: =SUMIFS(SummerProvRep!$H:$H,SummerProvRep!$A:$A,Data!$A$27,SummerProvRep!$G:$G,"Coventry",SummerProvRep!$P:$P,Data!J$16) -> 0 | K27: =SUMIFS(SummerProvRep!$H:$H,SummerProvRep!$A:$A,Data!$A$27,SummerProvRep!$G:$G,"Coventry",SummerProvRep!$P:$P,Data!K$16) -> 0 | L27: =SUMIFS(SummerProvRep!$H:$H,SummerProvRep!$A:$A,Data!$A$27,SummerProvRep!$G:$G,"Coventry",SummerProvRep!$P:$P,Data!L$16) -> 0 | M27: =SUMIFS(SummerProvRep!$H:$H,SummerProvRep!$A:$A,Data!$A$27,SummerProvRep!$G:$G,"Coventry",SummerProvRep!$P:$P,Data!M$16) -> 0 | N27: =SUMIFS(SummerProvRep!$H:$H,SummerProvRep!$A:$A,Data!$A$27,SummerProvRep!$G:$G,"Coventry",SummerProvRep!$P:$P,Data!N$16) -> 954 | O27: =SUMIFS(SummerProvRep!$H:$H,SummerProvRep!$A:$A,Data!$A$27,SummerProvRep!$G:$G,"Coventry",SummerProvRep!$P:$P,Data!O$16) -> 0 | P27: =SUMIFS(SummerProvRep!$H:$H,SummerProvRep!$A:$A,Data!$A$27,SummerProvRep!$G:$G,"Coventry",SummerProvRep!$P:$P,Data!P$16) -> 8087 | Q27: =SUMIFS(SummerProvRep!$H:$H,SummerProvRep!$A:$A,Data!$A$27,SummerProvRep!$G:$G,"Coventry",SummerProvRep!$P:$P,Data!Q$16) -> 0 | R27: =SUMIFS(SummerProvRep!$H:$H,SummerProvRep!$A:$A,Data!$A$27,SummerProvRep!$G:$G,"Coventry",SummerProvRep!$P:$P,Data!R$16) -> 0 | S27: =SUMIFS(SummerProvRep!$H:$H,SummerProvRep!$A:$A,Data!$A$27,SummerProvRep!$G:$G,"Coventry",SummerProvRep!$P:$P,Data!S$16) -> 0 | T27: =SUMIFS(SummerProvRep!$H:$H,SummerProvRep!$A:$A,Data!$A$27,SummerProvRep!$G:$G,"Coventry",SummerProvRep!$P:$P,Data!T$16) -> 396 | U27: =SUMIFS(SummerProvRep!$H:$H,SummerProvRep!$A:$A,Data!$A$27,SummerProvRep!$G:$G,"Coventry",SummerProvRep!$P:$P,Data!U$16) -> 0 | V27: =SUM(D27:U27)/$A$19 -> 142.9848485 | W27: 917695.2609 | X27: =SUMIFS(SummerProvRep!$H:$H,SummerProvRep!$A:$A,Data!$A$27,SummerProvRep!$G:$G,"<>Coventry",SummerProvRep!$P:$P,Data!X$16) -> 0 | Y27: =SUMIFS(SummerProvRep!$H:$H,SummerProvRep!$A:$A,Data!$A$27,SummerProvRep!$G:$G,"<>Coventry",SummerProvRep!$P:$P,Data!Y$16) -> 0 | Z27: =SUMIFS(SummerProvRep!$H:$H,SummerProvRep!$A:$A,Data!$A$27,SummerProvRep!$G:$G,"<>Coventry",SummerProvRep!$P:$P,Data!Z$16) -> 0 | AA27: =SUMIFS(SummerProvRep!$H:$H,SummerProvRep!$A:$A,Data!$A$27,SummerProvRep!$G:$G,"<>Coventry",SummerProvRep!$P:$P,Data!AA$16) -> 0 | AB27: =SUMIFS(SummerProvRep!$H:$H,SummerProvRep!$A:$A,Data!$A$27,SummerProvRep!$G:$G,"<>Coventry",SummerProvRep!$P:$P,Data!AB$16) -> 0 | AC27: =SUMIFS(SummerProvRep!$H:$H,SummerProvRep!$A:$A,Data!$A$27,SummerProvRep!$G:$G,"<>Coventry",SummerProvRep!$P:$P,Data!AC$16) -> 0 | AD27: =SUMIFS(SummerProvRep!$H:$H,SummerProvRep!$A:$A,Data!$A$27,SummerProvRep!$G:$G,"<>Coventry",SummerProvRep!$P:$P,Data!AD$16) -> 0 | AE27: =SUMIFS(SummerProvRep!$H:$H,SummerProvRep!$A:$A,Data!$A$27,SummerProvRep!$G:$G,"<>Coventry",SummerProvRep!$P:$P,Data!AE$16) -> 0 | AF27: =SUMIFS(SummerProvRep!$H:$H,SummerProvRep!$A:$A,Data!$A$27,SummerProvRep!$G:$G,"<>Coventry",SummerProvRep!$P:$P,Data!AF$16) -> 0 | AG27: =SUMIFS(SummerProvRep!$H:$H,SummerProvRep!$A:$A,Data!$A$27,SummerProvRep!$G:$G,"<>Coventry",SummerProvRep!$P:$P,Data!AG$16) -> 0 | AH27: =SUMIFS(SummerProvRep!$H:$H,SummerProvRep!$A:$A,Data!$A$27,SummerProvRep!$G:$G,"<>Coventry",SummerProvRep!$P:$P,Data!AH$16) -> 0 | AI27: =SUMIFS(SummerProvRep!$H:$H,SummerProvRep!$A:$A,Data!$A$27,SummerProvRep!$G:$G,"<>Coventry",SummerProvRep!$P:$P,Data!AI$16) -> 0 | AJ27: =SUMIFS(SummerProvRep!$H:$H,SummerProvRep!$A:$A,Data!$A$27,SummerProvRep!$G:$G,"<>Coventry",SummerProvRep!$P:$P,Data!AJ$16) -> 66 | AK27: =SUMIFS(SummerProvRep!$H:$H,SummerProvRep!$A:$A,Data!$A$27,SummerProvRep!$G:$G,"<>Coventry",SummerProvRep!$P:$P,Data!AK$16) -> 0 | AL27: =SUMIFS(SummerProvRep!$H:$H,SummerProvRep!$A:$A,Data!$A$27,SummerProvRep!$G:$G,"<>Coventry",SummerProvRep!$P:$P,Data!AL$16) -> 0 | AM27: =SUMIFS(SummerProvRep!$H:$H,SummerProvRep!$A:$A,Data!$A$27,SummerProvRep!$G:$G,"<>Coventry",SummerProvRep!$P:$P,Data!AM$16) -> 0 | AN27: =SUMIFS(SummerProvRep!$H:$H,SummerProvRep!$A:$A,Data!$A$27,SummerProvRep!$G:$G,"<>Coventry",SummerProvRep!$P:$P,Data!AN$16) -> 0 | AO27: =SUMIFS(SummerProvRep!$H:$H,SummerProvRep!$A:$A,Data!$A$27,SummerProvRep!$G:$G,"<>Coventry",SummerProvRep!$P:$P,Data!AO$16) -> 0 | AP27: 1 | AQ27: 5745.008018 | AR27: 923440.2689 | AS27: =AP27+V27 -> 143.9848485 | AT27: -11.01515152 | AU27: 155 | AV27: =[11]Data!$AS27 -> 148.8939394 | AW27: =[11]Data!$K11 -> 155
AR28: =SUM(AR20:AR27) -> 5356282.203
R29: =SUM(R22:R26)/65 -> 0
B31: Autumn Term 2023
A32: =[12]Sheet1!$O$3 -> 76 | B32: School | AY32: 70
A33: 1 | B33: Castle Wood | C33: =10000/$A$15 -> 52.08333333 | D33: =BB33+SUMIFS(AutumnProvRep!$H:$H,AutumnProvRep!$A:$A,Data!$A$20,AutumnProvRep!$G:$G,"Coventry",AutumnProvRep!$P:$P,Data!D$16)/$AY$32*$A$32 -> 0 | E33: =BC33+SUMIFS(AutumnProvRep!$H:$H,AutumnProvRep!$A:$A,Data!$A$20,AutumnProvRep!$G:$G,"Coventry",AutumnProvRep!$P:$P,Data!E$16)/$AY$32*$A$32 -> 0 | F33: =BD33+SUMIFS(AutumnProvRep!$H:$H,AutumnProvRep!$A:$A,Data!$A$20,AutumnProvRep!$G:$G,"Coventry",AutumnProvRep!$P:$P,Data!F$16)/$AY$32*$A$32 -> 76 | G33: =BE33+SUMIFS(AutumnProvRep!$H:$H,AutumnProvRep!$A:$A,Data!$A$20,AutumnProvRep!$G:$G,"Coventry",AutumnProvRep!$P:$P,Data!G$16)/$AY$32*$A$32 -> 0 | H33: =BF33+SUMIFS(AutumnProvRep!$H:$H,AutumnProvRep!$A:$A,Data!$A$20,AutumnProvRep!$G:$G,"Coventry",AutumnProvRep!$P:$P,Data!H$16)/$AY$32*$A$32 -> 0 | I33: =BG33+SUMIFS(AutumnProvRep!$H:$H,AutumnProvRep!$A:$A,Data!$A$20,AutumnProvRep!$G:$G,"Coventry",AutumnProvRep!$P:$P,Data!I$16)/$AY$32*$A$32 -> 76 | J33: =BH33+SUMIFS(AutumnProvRep!$H:$H,AutumnProvRep!$A:$A,Data!$A$20,AutumnProvRep!$G:$G,"Coventry",AutumnProvRep!$P:$P,Data!J$16)/$AY$32*$A$32 -> 6464.342857 | K33: =BI33+SUMIFS(AutumnProvRep!$H:$H,AutumnProvRep!$A:$A,Data!$A$20,AutumnProvRep!$G:$G,"Coventry",AutumnProvRep!$P:$P,Data!K$16)/$AY$32*$A$32 -> 1340.857143 | L33: =BJ33+SUMIFS(AutumnProvRep!$H:$H,AutumnProvRep!$A:$A,Data!$A$20,AutumnProvRep!$G:$G,"Coventry",AutumnProvRep!$P:$P,Data!L$16)/$AY$32*$A$32 -> 0 | M33: =BK33+SUMIFS(AutumnProvRep!$H:$H,AutumnProvRep!$A:$A,Data!$A$20,AutumnProvRep!$G:$G,"Coventry",AutumnProvRep!$P:$P,Data!M$16)/$AY$32*$A$32 -> 380 | N33: =BL33+SUMIFS(AutumnProvRep!$H:$H,AutumnProvRep!$A:$A,Data!$A$20,AutumnProvRep!$G:$G,"Coventry",AutumnProvRep!$P:$P,Data!N$16)/$AY$32*$A$32 -> 608 | O33: =BM33+SUMIFS(AutumnProvRep!$H:$H,AutumnProvRep!$A:$A,Data!$A$20,AutumnProvRep!$G:$G,"Coventry",AutumnProvRep!$P:$P,Data!O$16)/$AY$32*$A$32 -> 0 | P33: =BN33+SUMIFS(AutumnProvRep!$H:$H,AutumnProvRep!$A:$A,Data!$A$20,AutumnProvRep!$G:$G,"Coventry",AutumnProvRep!$P:$P,Data!P$16)/$AY$32*$A$32 -> 1900 | Q33: =BO33+SUMIFS(AutumnProvRep!$H:$H,AutumnProvRep!$A:$A,Data!$A$20,AutumnProvRep!$G:$G,"Coventry",AutumnProvRep!$P:$P,Data!Q$16)/$AY$32*$A$32 -> 836 | R33: =BP33+SUMIFS(AutumnProvRep!$H:$H,AutumnProvRep!$A:$A,Data!$A$20,AutumnProvRep!$G:$G,"Coventry",AutumnProvRep!$P:$P,Data!R$16)/$AY$32*$A$32 -> 0 | S33: =BQ33+SUMIFS(AutumnProvRep!$H:$H,AutumnProvRep!$A:$A,Data!$A$20,AutumnProvRep!$G:$G,"Coventry",AutumnProvRep!$P:$P,Data!S$16)/$AY$32*$A$32 -> 380 | T33: =BR33+SUMIFS(AutumnProvRep!$H:$H,AutumnProvRep!$A:$A,Data!$A$20,AutumnProvRep!$G:$G,"Coventry",AutumnProvRep!$P:$P,Data!T$16)/$AY$32*$A$32 -> 38 | U33: =BS33+SUMIFS(AutumnProvRep!$H:$H,AutumnProvRep!$A:$A,Data!$A$20,AutumnProvRep!$G:$G,"Coventry",AutumnProvRep!$P:$P,Data!U$16)/$AY$32*$A$32 -> 0 | V33: =SUM(D33:U33)/$A$32 -> 159.2 | W33: =SUMPRODUCT(D33:U33,$V$6:$AM$6)/$A$15 -> 789261.027 | X33: =BU33+SUMIFS(AutumnProvRep!$H:$H,AutumnProvRep!$A:$A,Data!$A$20,AutumnProvRep!$G:$G,"<>Coventry",AutumnProvRep!$P:$P,Data!X$16)/$AY$32*$A$32 -> 0 | Y33: =BV33+SUMIFS(AutumnProvRep!$H:$H,AutumnProvRep!$A:$A,Data!$A$20,AutumnProvRep!$G:$G,"<>Coventry",AutumnProvRep!$P:$P,Data!Y$16)/$AY$32*$A$32 -> 0 | Z33: =BW33+SUMIFS(AutumnProvRep!$H:$H,AutumnProvRep!$A:$A,Data!$A$20,AutumnProvRep!$G:$G,"<>Coventry",AutumnProvRep!$P:$P,Data!Z$16)/$AY$32*$A$32 -> 0 | AA33: =BX33+SUMIFS(AutumnProvRep!$H:$H,AutumnProvRep!$A:$A,Data!$A$20,AutumnProvRep!$G:$G,"<>Coventry",AutumnProvRep!$P:$P,Data!AA$16)/$AY$32*$A$32 -> 0 | AB33: =BY33+SUMIFS(AutumnProvRep!$H:$H,AutumnProvRep!$A:$A,Data!$A$20,AutumnProvRep!$G:$G,"<>Coventry",AutumnProvRep!$P:$P,Data!AB$16)/$AY$32*$A$32 -> 0 | AC33: =BZ33+SUMIFS(AutumnProvRep!$H:$H,AutumnProvRep!$A:$A,Data!$A$20,AutumnProvRep!$G:$G,"<>Coventry",AutumnProvRep!$P:$P,Data!AC$16)/$AY$32*$A$32 -> 0 | AD33: =CA33+SUMIFS(AutumnProvRep!$H:$H,AutumnProvRep!$A:$A,Data!$A$20,AutumnProvRep!$G:$G,"<>Coventry",AutumnProvRep!$P:$P,Data!AD$16)/$AY$32*$A$32 -> 76 | AE33: =CB33+SUMIFS(AutumnProvRep!$H:$H,AutumnProvRep!$A:$A,Data!$A$20,AutumnProvRep!$G:$G,"<>Coventry",AutumnProvRep!$P:$P,Data!AE$16)/$AY$32*$A$32 -> 0 | AF33: =CC33+SUMIFS(AutumnProvRep!$H:$H,AutumnProvRep!$A:$A,Data!$A$20,AutumnProvRep!$G:$G,"<>Coventry",AutumnProvRep!$P:$P,Data!AF$16)/$AY$32*$A$32 -> 0 | AG33: =CD33+SUMIFS(AutumnProvRep!$H:$H,AutumnProvRep!$A:$A,Data!$A$20,AutumnProvRep!$G:$G,"<>Coventry",AutumnProvRep!$P:$P,Data!AG$16)/$AY$32*$A$32 -> 0 | AH33: =CE33+SUMIFS(AutumnProvRep!$H:$H,AutumnProvRep!$A:$A,Data!$A$20,AutumnProvRep!$G:$G,"<>Coventry",AutumnProvRep!$P:$P,Data!AH$16)/$AY$32*$A$32 -> 0 | AI33: =CF33+SUMIFS(AutumnProvRep!$H:$H,AutumnProvRep!$A:$A,Data!$A$20,AutumnProvRep!$G:$G,"<>Coventry",AutumnProvRep!$P:$P,Data!AI$16)/$AY$32*$A$32 -> 0 | AJ33: =CG33+SUMIFS(AutumnProvRep!$H:$H,AutumnProvRep!$A:$A,Data!$A$20,AutumnProvRep!$G:$G,"<>Coventry",AutumnProvRep!$P:$P,Data!AJ$16)/$AY$32*$A$32 -> 0 | AK33: =CH33+SUMIFS(AutumnProvRep!$H:$H,AutumnProvRep!$A:$A,Data!$A$20,AutumnProvRep!$G:$G,"<>Coventry",AutumnProvRep!$P:$P,Data!AK$16)/$AY$32*$A$32 -> 0 | AL33: =CI33+SUMIFS(AutumnProvRep!$H:$H,AutumnProvRep!$A:$A,Data!$A$20,AutumnProvRep!$G:$G,"<>Coventry",AutumnProvRep!$P:$P,Data!AL$16)/$AY$32*$A$32 -> 0 | AM33: =CJ33+SUMIFS(AutumnProvRep!$H:$H,AutumnProvRep!$A:$A,Data!$A$20,AutumnProvRep!$G:$G,"<>Coventry",AutumnProvRep!$P:$P,Data!AM$16)/$AY$32*$A$32 -> 0 | AN33: =CK33+SUMIFS(AutumnProvRep!$H:$H,AutumnProvRep!$A:$A,Data!$A$20,AutumnProvRep!$G:$G,"<>Coventry",AutumnProvRep!$P:$P,Data!AN$16)/$AY$32*$A$32 -> 0 | AO33: =CL33+SUMIFS(AutumnProvRep!$H:$H,AutumnProvRep!$A:$A,Data!$A$20,AutumnProvRep!$G:$G,"<>Coventry",AutumnProvRep!$P:$P,Data!AO$16)/$AY$32*$A$32 -> 0 | AP33: =SUM(X33:AO33)/$A$32 -> 1 | AQ33: =SUMPRODUCT(X33:AO33,$V$4:$AM$4)/$A$15 -> 4071.053627 | AR33: =W33+AQ33 -> 793332.0806 | AS33: =AP33+V33 -> 160.2 | AT33: =AS33-AU33 -> 0.2 | AU33: =M4 -> 160 | AV33: =[11]Data!$AS33 -> 160.2 | AW33: =[11]Data!$M4 -> 160 | AZ33: =($M$4-$E$4)*$A$32 -> 0
A34: 2 | B34: Kingsbury | C34: =10000/$A$15 -> 52.08333333 | D34: =BB34+SUMIFS(AutumnProvRep!$H:$H,AutumnProvRep!$A:$A,Data!$A$21,AutumnProvRep!$G:$G,"Coventry",AutumnProvRep!$P:$P,Data!D$16)/$AY$32*$A$32 -> 0 | E34: =BC34+SUMIFS(AutumnProvRep!$H:$H,AutumnProvRep!$A:$A,Data!$A$21,AutumnProvRep!$G:$G,"Coventry",AutumnProvRep!$P:$P,Data!E$16)/$AY$32*$A$32 -> 0 | F34: =BD34+SUMIFS(AutumnProvRep!$H:$H,AutumnProvRep!$A:$A,Data!$A$21,AutumnProvRep!$G:$G,"Coventry",AutumnProvRep!$P:$P,Data!F$16)/$AY$32*$A$32 -> 0 | G34: =BE34+SUMIFS(AutumnProvRep!$H:$H,AutumnProvRep!$A:$A,Data!$A$21,AutumnProvRep!$G:$G,"Coventry",AutumnProvRep!$P:$P,Data!G$16)/$AY$32*$A$32 -> 0 | H34: =BF34+SUMIFS(AutumnProvRep!$H:$H,AutumnProvRep!$A:$A,Data!$A$21,AutumnProvRep!$G:$G,"Coventry",AutumnProvRep!$P:$P,Data!H$16)/$AY$32*$A$32 -> 0 | I34: =BG34+SUMIFS(AutumnProvRep!$H:$H,AutumnProvRep!$A:$A,Data!$A$21,AutumnProvRep!$G:$G,"Coventry",AutumnProvRep!$P:$P,Data!I$16)/$AY$32*$A$32 -> 0 | J34: =BH34+SUMIFS(AutumnProvRep!$H:$H,AutumnProvRep!$A:$A,Data!$A$21,AutumnProvRep!$G:$G,"Coventry",AutumnProvRep!$P:$P,Data!J$16)/$AY$32*$A$32 -> 4211.485714 | K34: =BI34+SUMIFS(AutumnProvRep!$H:$H,AutumnProvRep!$A:$A,Data!$A$21,AutumnProvRep!$G:$G,"Coventry",AutumnProvRep!$P:$P,Data!K$16)/$AY$32*$A$32 -> 532 | L34: =BJ34+SUMIFS(AutumnProvRep!$H:$H,AutumnProvRep!$A:$A,Data!$A$21,AutumnProvRep!$G:$G,"Coventry",AutumnProvRep!$P:$P,Data!L$16)/$AY$32*$A$32 -> 0 | M34: =BK34+SUMIFS(AutumnProvRep!$H:$H,AutumnProvRep!$A:$A,Data!$A$21,AutumnProvRep!$G:$G,"Coventry",AutumnProvRep!$P:$P,Data!M$16)/$AY$32*$A$32 -> 0 | N34: =BL34+SUMIFS(AutumnProvRep!$H:$H,AutumnProvRep!$A:$A,Data!$A$21,AutumnProvRep!$G:$G,"Coventry",AutumnProvRep!$P:$P,Data!N$16)/$AY$32*$A$32 -> 472.2857143 | O34: =BM34+SUMIFS(AutumnProvRep!$H:$H,AutumnProvRep!$A:$A,Data!$A$21,AutumnProvRep!$G:$G,"Coventry",AutumnProvRep!$P:$P,Data!O$16)/$AY$32*$A$32 -> 0 | P34: =BN34+SUMIFS(AutumnProvRep!$H:$H,AutumnProvRep!$A:$A,Data!$A$21,AutumnProvRep!$G:$G,"Coventry",AutumnProvRep!$P:$P,Data!P$16)/$AY$32*$A$32 -> 2015.085714 | Q34: =BO34+SUMIFS(AutumnProvRep!$H:$H,AutumnProvRep!$A:$A,Data!$A$21,AutumnProvRep!$G:$G,"Coventry",AutumnProvRep!$P:$P,Data!Q$16)/$AY$32*$A$32 -> 152 | R34: =BP34+SUMIFS(AutumnProvRep!$H:$H,AutumnProvRep!$A:$A,Data!$A$21,AutumnProvRep!$G:$G,"Coventry",AutumnProvRep!$P:$P,Data!R$16)/$AY$32*$A$32 -> 0 | S34: =BQ34+SUMIFS(AutumnProvRep!$H:$H,AutumnProvRep!$A:$A,Data!$A$21,AutumnProvRep!$G:$G,"Coventry",AutumnProvRep!$P:$P,Data!S$16)/$AY$32*$A$32 -> 0 | T34: =BR34+SUMIFS(AutumnProvRep!$H:$H,AutumnProvRep!$A:$A,Data!$A$21,AutumnProvRep!$G:$G,"Coventry",AutumnProvRep!$P:$P,Data!T$16)/$AY$32*$A$32 -> 0 | U34: =BS34+SUMIFS(AutumnProvRep!$H:$H,AutumnProvRep!$A:$A,Data!$A$21,AutumnProvRep!$G:$G,"Coventry",AutumnProvRep!$P:$P,Data!U$16)/$AY$32*$A$32 -> 0 | V34: =SUM(D34:U34)/$A$32 -> 97.14285714 | W34: 497392.6314 | X34: =BU34+SUMIFS(AutumnProvRep!$H:$H,AutumnProvRep!$A:$A,Data!$A$21,AutumnProvRep!$G:$G,"<>Coventry",AutumnProvRep!$P:$P,Data!X$16)/$AY$32*$A$32 -> 0 | Y34: =BV34+SUMIFS(AutumnProvRep!$H:$H,AutumnProvRep!$A:$A,Data!$A$21,AutumnProvRep!$G:$G,"<>Coventry",AutumnProvRep!$P:$P,Data!Y$16)/$AY$32*$A$32 -> 0 | Z34: =BW34+SUMIFS(AutumnProvRep!$H:$H,AutumnProvRep!$A:$A,Data!$A$21,AutumnProvRep!$G:$G,"<>Coventry",AutumnProvRep!$P:$P,Data!Z$16)/$AY$32*$A$32 -> 0 | AA34: =BX34+SUMIFS(AutumnProvRep!$H:$H,AutumnProvRep!$A:$A,Data!$A$21,AutumnProvRep!$G:$G,"<>Coventry",AutumnProvRep!$P:$P,Data!AA$16)/$AY$32*$A$32 -> 0 | AB34: =BY34+SUMIFS(AutumnProvRep!$H:$H,AutumnProvRep!$A:$A,Data!$A$21,AutumnProvRep!$G:$G,"<>Coventry",AutumnProvRep!$P:$P,Data!AB$16)/$AY$32*$A$32 -> 0 | AC34: =BZ34+SUMIFS(AutumnProvRep!$H:$H,AutumnProvRep!$A:$A,Data!$A$21,AutumnProvRep!$G:$G,"<>Coventry",AutumnProvRep!$P:$P,Data!AC$16)/$AY$32*$A$32 -> 0 | AD34: =CA34+SUMIFS(AutumnProvRep!$H:$H,AutumnProvRep!$A:$A,Data!$A$21,AutumnProvRep!$G:$G,"<>Coventry",AutumnProvRep!$P:$P,Data!AD$16)/$AY$32*$A$32 -> 76 | AE34: =CB34+SUMIFS(AutumnProvRep!$H:$H,AutumnProvRep!$A:$A,Data!$A$21,AutumnProvRep!$G:$G,"<>Coventry",AutumnProvRep!$P:$P,Data!AE$16)/$AY$32*$A$32 -> 76 | AF34: =CC34+SUMIFS(AutumnProvRep!$H:$H,AutumnProvRep!$A:$A,Data!$A$21,AutumnProvRep!$G:$G,"<>Coventry",AutumnProvRep!$P:$P,Data!AF$16)/$AY$32*$A$32 -> 0 | AG34: =CD34+SUMIFS(AutumnProvRep!$H:$H,AutumnProvRep!$A:$A,Data!$A$21,AutumnProvRep!$G:$G,"<>Coventry",AutumnProvRep!$P:$P,Data!AG$16)/$AY$32*$A$32 -> 0 | AH34: =CE34+SUMIFS(AutumnProvRep!$H:$H,AutumnProvRep!$A:$A,Data!$A$21,AutumnProvRep!$G:$G,"<>Coventry",AutumnProvRep!$P:$P,Data!AH$16)/$AY$32*$A$32 -> 0 | AI34: =CF34+SUMIFS(AutumnProvRep!$H:$H,AutumnProvRep!$A:$A,Data!$A$21,AutumnProvRep!$G:$G,"<>Coventry",AutumnProvRep!$P:$P,Data!AI$16)/$AY$32*$A$32 -> 0 | AJ34: =CG34+SUMIFS(AutumnProvRep!$H:$H,AutumnProvRep!$A:$A,Data!$A$21,AutumnProvRep!$G:$G,"<>Coventry",AutumnProvRep!$P:$P,Data!AJ$16)/$AY$32*$A$32 -> 76 | AK34: =CH34+SUMIFS(AutumnProvRep!$H:$H,AutumnProvRep!$A:$A,Data!$A$21,AutumnProvRep!$G:$G,"<>Coventry",AutumnProvRep!$P:$P,Data!AK$16)/$AY$32*$A$32 -> 0 | AL34: =CI34+SUMIFS(AutumnProvRep!$H:$H,AutumnProvRep!$A:$A,Data!$A$21,AutumnProvRep!$G:$G,"<>Coventry",AutumnProvRep!$P:$P,Data!AL$16)/$AY$32*$A$32 -> 0 | AM34: =CJ34+SUMIFS(AutumnProvRep!$H:$H,AutumnProvRep!$A:$A,Data!$A$21,AutumnProvRep!$G:$G,"<>Coventry",AutumnProvRep!$P:$P,Data!AM$16)/$AY$32*$A$32 -> 0 | AN34: =CK34+SUMIFS(AutumnProvRep!$H:$H,AutumnProvRep!$A:$A,Data!$A$21,AutumnProvRep!$G:$G,"<>Coventry",AutumnProvRep!$P:$P,Data!AN$16)/$AY$32*$A$32 -> 0 | AO34: =CL34+SUMIFS(AutumnProvRep!$H:$H,AutumnProvRep!$A:$A,Data!$A$21,AutumnProvRep!$G:$G,"<>Coventry",AutumnProvRep!$P:$P,Data!AO$16)/$AY$32*$A$32 -> 0 | AP34: =SUM(X34:AO34)/$A$32 -> 3 | AQ34: 14452.24408 | AR34: =W34+AQ34 -> 511844.8755 | AS34: =AP34+V34 -> 100.1428571 | AT34: 0.1428571429 | AU34: 100 | AV34: =[11]Data!$AS34 -> 100.1428571 | AW34: =[11]Data!$M5 -> 100 | AZ34: =($M$5-$E$5)*$A$32 -> 0
A35: 3 | B35: RiverBank | C35: 52.08333333 | D35: =BB35+SUMIFS(AutumnProvRep!$H:$H,AutumnProvRep!$A:$A,Data!$A$22,AutumnProvRep!$G:$G,"Coventry",AutumnProvRep!$P:$P,Data!D$16)/$AY$32*$A$32 -> 0 | E35: =BC35+SUMIFS(AutumnProvRep!$H:$H,AutumnProvRep!$A:$A,Data!$A$22,AutumnProvRep!$G:$G,"Coventry",AutumnProvRep!$P:$P,Data!E$16)/$AY$32*$A$32 -> 0 | F35: =BD35+SUMIFS(AutumnProvRep!$H:$H,AutumnProvRep!$A:$A,Data!$A$22,AutumnProvRep!$G:$G,"Coventry",AutumnProvRep!$P:$P,Data!F$16)/$AY$32*$A$32 -> 988 | G35: =BE35+SUMIFS(AutumnProvRep!$H:$H,AutumnProvRep!$A:$A,Data!$A$22,AutumnProvRep!$G:$G,"Coventry",AutumnProvRep!$P:$P,Data!G$16)/$AY$32*$A$32 -> 1520 | H35: =BF35+SUMIFS(AutumnProvRep!$H:$H,AutumnProvRep!$A:$A,Data!$A$22,AutumnProvRep!$G:$G,"Coventry",AutumnProvRep!$P:$P,Data!H$16)/$AY$32*$A$32 -> 76 | I35: =BG35+SUMIFS(AutumnProvRep!$H:$H,AutumnProvRep!$A:$A,Data!$A$22,AutumnProvRep!$G:$G,"Coventry",AutumnProvRep!$P:$P,Data!I$16)/$AY$32*$A$32 -> 76 | J35: =BH35+SUMIFS(AutumnProvRep!$H:$H,AutumnProvRep!$A:$A,Data!$A$22,AutumnProvRep!$G:$G,"Coventry",AutumnProvRep!$P:$P,Data!J$16)/$AY$32*$A$32 -> 4332 | K35: =BI35+SUMIFS(AutumnProvRep!$H:$H,AutumnProvRep!$A:$A,Data!$A$22,AutumnProvRep!$G:$G,"Coventry",AutumnProvRep!$P:$P,Data!K$16)/$AY$32*$A$32 -> 4408 | L35: =BJ35+SUMIFS(AutumnProvRep!$H:$H,AutumnProvRep!$A:$A,Data!$A$22,AutumnProvRep!$G:$G,"Coventry",AutumnProvRep!$P:$P,Data!L$16)/$AY$32*$A$32 -> 152 | M35: =BK35+SUMIFS(AutumnProvRep!$H:$H,AutumnProvRep!$A:$A,Data!$A$22,AutumnProvRep!$G:$G,"Coventry",AutumnProvRep!$P:$P,Data!M$16)/$AY$32*$A$32 -> 631.8857143 | N35: =BL35+SUMIFS(AutumnProvRep!$H:$H,AutumnProvRep!$A:$A,Data!$A$22,AutumnProvRep!$G:$G,"Coventry",AutumnProvRep!$P:$P,Data!N$16)/$AY$32*$A$32 -> 152 | O35: =BM35+SUMIFS(AutumnProvRep!$H:$H,AutumnProvRep!$A:$A,Data!$A$22,AutumnProvRep!$G:$G,"Coventry",AutumnProvRep!$P:$P,Data!O$16)/$AY$32*$A$32 -> 304 | P35: =BN35+SUMIFS(AutumnProvRep!$H:$H,AutumnProvRep!$A:$A,Data!$A$22,AutumnProvRep!$G:$G,"Coventry",AutumnProvRep!$P:$P,Data!P$16)/$AY$32*$A$32 -> 1976 | Q35: =BO35+SUMIFS(AutumnProvRep!$H:$H,AutumnProvRep!$A:$A,Data!$A$22,AutumnProvRep!$G:$G,"Coventry",AutumnProvRep!$P:$P,Data!Q$16)/$AY$32*$A$32 -> 304 | R35: =BP35+SUMIFS(AutumnProvRep!$H:$H,AutumnProvRep!$A:$A,Data!$A$22,AutumnProvRep!$G:$G,"Coventry",AutumnProvRep!$P:$P,Data!R$16)/$AY$32*$A$32 -> 0 | S35: =BQ35+SUMIFS(AutumnProvRep!$H:$H,AutumnProvRep!$A:$A,Data!$A$22,AutumnProvRep!$G:$G,"Coventry",AutumnProvRep!$P:$P,Data!S$16)/$AY$32*$A$32 -> 76 | T35: =BR35+SUMIFS(AutumnProvRep!$H:$H,AutumnProvRep!$A:$A,Data!$A$22,AutumnProvRep!$G:$G,"Coventry",AutumnProvRep!$P:$P,Data!T$16)/$AY$32*$A$32 -> 0 | U35: =BS35+SUMIFS(AutumnProvRep!$H:$H,AutumnProvRep!$A:$A,Data!$A$22,AutumnProvRep!$G:$G,"Coventry",AutumnProvRep!$P:$P,Data!U$16)/$AY$32*$A$32 -> 0 | V35: 197.3142857 | W35: 839169.4794 | X35: =BU35+SUMIFS(AutumnProvRep!$H:$H,AutumnProvRep!$A:$A,Data!$A$22,AutumnProvRep!$G:$G,"<>Coventry",AutumnProvRep!$P:$P,Data!X$16)/$AY$32*$A$32 -> 0 | Y35: =BV35+SUMIFS(AutumnProvRep!$H:$H,AutumnProvRep!$A:$A,Data!$A$22,AutumnProvRep!$G:$G,"<>Coventry",AutumnProvRep!$P:$P,Data!Y$16)/$AY$32*$A$32 -> 0 | Z35: =BW35+SUMIFS(AutumnProvRep!$H:$H,AutumnProvRep!$A:$A,Data!$A$22,AutumnProvRep!$G:$G,"<>Coventry",AutumnProvRep!$P:$P,Data!Z$16)/$AY$32*$A$32 -> 0 | AA35: =BX35+SUMIFS(AutumnProvRep!$H:$H,AutumnProvRep!$A:$A,Data!$A$22,AutumnProvRep!$G:$G,"<>Coventry",AutumnProvRep!$P:$P,Data!AA$16)/$AY$32*$A$32 -> 0 | AB35: =BY35+SUMIFS(AutumnProvRep!$H:$H,AutumnProvRep!$A:$A,Data!$A$22,AutumnProvRep!$G:$G,"<>Coventry",AutumnProvRep!$P:$P,Data!AB$16)/$AY$32*$A$32 -> 0 | AC35: =BZ35+SUMIFS(AutumnProvRep!$H:$H,AutumnProvRep!$A:$A,Data!$A$22,AutumnProvRep!$G:$G,"<>Coventry",AutumnProvRep!$P:$P,Data!AC$16)/$AY$32*$A$32 -> 0 | AD35: =CA35+SUMIFS(AutumnProvRep!$H:$H,AutumnProvRep!$A:$A,Data!$A$22,AutumnProvRep!$G:$G,"<>Coventry",AutumnProvRep!$P:$P,Data!AD$16)/$AY$32*$A$32 -> 76 | AE35: =CB35+SUMIFS(AutumnProvRep!$H:$H,AutumnProvRep!$A:$A,Data!$A$22,AutumnProvRep!$G:$G,"<>Coventry",AutumnProvRep!$P:$P,Data!AE$16)/$AY$32*$A$32 -> 0 | AF35: =CC35+SUMIFS(AutumnProvRep!$H:$H,AutumnProvRep!$A:$A,Data!$A$22,AutumnProvRep!$G:$G,"<>Coventry",AutumnProvRep!$P:$P,Data!AF$16)/$AY$32*$A$32 -> 0 | AG35: =CD35+SUMIFS(AutumnProvRep!$H:$H,AutumnProvRep!$A:$A,Data!$A$22,AutumnProvRep!$G:$G,"<>Coventry",AutumnProvRep!$P:$P,Data!AG$16)/$AY$32*$A$32 -> 0 | AH35: =CE35+SUMIFS(AutumnProvRep!$H:$H,AutumnProvRep!$A:$A,Data!$A$22,AutumnProvRep!$G:$G,"<>Coventry",AutumnProvRep!$P:$P,Data!AH$16)/$AY$32*$A$32 -> 0 | AI35: =CF35+SUMIFS(AutumnProvRep!$H:$H,AutumnProvRep!$A:$A,Data!$A$22,AutumnProvRep!$G:$G,"<>Coventry",AutumnProvRep!$P:$P,Data!AI$16)/$AY$32*$A$32 -> 0 | AJ35: =CG35+SUMIFS(AutumnProvRep!$H:$H,AutumnProvRep!$A:$A,Data!$A$22,AutumnProvRep!$G:$G,"<>Coventry",AutumnProvRep!$P:$P,Data!AJ$16)/$AY$32*$A$32 -> 0 | AK35: =CH35+SUMIFS(AutumnProvRep!$H:$H,AutumnProvRep!$A:$A,Data!$A$22,AutumnProvRep!$G:$G,"<>Coventry",AutumnProvRep!$P:$P,Data!AK$16)/$AY$32*$A$32 -> 0 | AL35: =CI35+SUMIFS(AutumnProvRep!$H:$H,AutumnProvRep!$A:$A,Data!$A$22,AutumnProvRep!$G:$G,"<>Coventry",AutumnProvRep!$P:$P,Data!AL$16)/$AY$32*$A$32 -> 0 | AM35: =CJ35+SUMIFS(AutumnProvRep!$H:$H,AutumnProvRep!$A:$A,Data!$A$22,AutumnProvRep!$G:$G,"<>Coventry",AutumnProvRep!$P:$P,Data!AM$16)/$AY$32*$A$32 -> 0 | AN35: =CK35+SUMIFS(AutumnProvRep!$H:$H,AutumnProvRep!$A:$A,Data!$A$22,AutumnProvRep!$G:$G,"<>Coventry",AutumnProvRep!$P:$P,Data!AN$16)/$AY$32*$A$32 -> 0 | AO35: =CL35+SUMIFS(AutumnProvRep!$H:$H,AutumnProvRep!$A:$A,Data!$A$22,AutumnProvRep!$G:$G,"<>Coventry",AutumnProvRep!$P:$P,Data!AO$16)/$AY$32*$A$32 -> 0 | AP35: 1 | AQ35: 4071.053627 | AR35: 843240.533 | AS35: 198.3142857 | AT35: -1.685714286 | AU35: 200 | AV35: =[11]Data!$AS35 -> 198.3142857 | AW35: =[11]Data!$M6 -> 200 | AZ35: =($M$6-$E$6)*$A$32 -> 0
A36: 4 | B36: Corley | C36: 52.08333333 | D36: =BB36+SUMIFS(AutumnProvRep!$H:$H,AutumnProvRep!$A:$A,Data!$A$23,AutumnProvRep!$G:$G,"Coventry",AutumnProvRep!$P:$P,Data!D$16)/$AY$32*$A$32 -> 0 | E36: =BC36+SUMIFS(AutumnProvRep!$H:$H,AutumnProvRep!$A:$A,Data!$A$23,AutumnProvRep!$G:$G,"Coventry",AutumnProvRep!$P:$P,Data!E$16)/$AY$32*$A$32 -> 0 | F36: =BD36+SUMIFS(AutumnProvRep!$H:$H,AutumnProvRep!$A:$A,Data!$A$23,AutumnProvRep!$G:$G,"Coventry",AutumnProvRep!$P:$P,Data!F$16)/$AY$32*$A$32 -> 0 | G36: =BE36+SUMIFS(AutumnProvRep!$H:$H,AutumnProvRep!$A:$A,Data!$A$23,AutumnProvRep!$G:$G,"Coventry",AutumnProvRep!$P:$P,Data!G$16)/$AY$32*$A$32 -> 0 | H36: =BF36+SUMIFS(AutumnProvRep!$H:$H,AutumnProvRep!$A:$A,Data!$A$23,AutumnProvRep!$G:$G,"Coventry",AutumnProvRep!$P:$P,Data!H$16)/$AY$32*$A$32 -> 0 | I36: =BG36+SUMIFS(AutumnProvRep!$H:$H,AutumnProvRep!$A:$A,Data!$A$23,AutumnProvRep!$G:$G,"Coventry",AutumnProvRep!$P:$P,Data!I$16)/$AY$32*$A$32 -> 0 | J36: =BH36+SUMIFS(AutumnProvRep!$H:$H,AutumnProvRep!$A:$A,Data!$A$23,AutumnProvRep!$G:$G,"Coventry",AutumnProvRep!$P:$P,Data!J$16)/$AY$32*$A$32 -> 8988.031008 | K36: =BI36+SUMIFS(AutumnProvRep!$H:$H,AutumnProvRep!$A:$A,Data!$A$23,AutumnProvRep!$G:$G,"Coventry",AutumnProvRep!$P:$P,Data!K$16)/$AY$32*$A$32 -> 0 | L36: =BJ36+SUMIFS(AutumnProvRep!$H:$H,AutumnProvRep!$A:$A,Data!$A$23,AutumnProvRep!$G:$G,"Coventry",AutumnProvRep!$P:$P,Data!L$16)/$AY$32*$A$32 -> 742.3255814 | M36: =BK36+SUMIFS(AutumnProvRep!$H:$H,AutumnProvRep!$A:$A,Data!$A$23,AutumnProvRep!$G:$G,"Coventry",AutumnProvRep!$P:$P,Data!M$16)/$AY$32*$A$32 -> 0 | N36: =BL36+SUMIFS(AutumnProvRep!$H:$H,AutumnProvRep!$A:$A,Data!$A$23,AutumnProvRep!$G:$G,"Coventry",AutumnProvRep!$P:$P,Data!N$16)/$AY$32*$A$32 -> 329.9224806 | O36: =BM36+SUMIFS(AutumnProvRep!$H:$H,AutumnProvRep!$A:$A,Data!$A$23,AutumnProvRep!$G:$G,"Coventry",AutumnProvRep!$P:$P,Data!O$16)/$AY$32*$A$32 -> 0 | P36: =BN36+SUMIFS(AutumnProvRep!$H:$H,AutumnProvRep!$A:$A,Data!$A$23,AutumnProvRep!$G:$G,"Coventry",AutumnProvRep!$P:$P,Data!P$16)/$AY$32*$A$32 -> 1154.728682 | Q36: =BO36+SUMIFS(AutumnProvRep!$H:$H,AutumnProvRep!$A:$A,Data!$A$23,AutumnProvRep!$G:$G,"Coventry",AutumnProvRep!$P:$P,Data!Q$16)/$AY$32*$A$32 -> 0 | R36: =BP36+SUMIFS(AutumnProvRep!$H:$H,AutumnProvRep!$A:$A,Data!$A$23,AutumnProvRep!$G:$G,"Coventry",AutumnProvRep!$P:$P,Data!R$16)/$AY$32*$A$32 -> 0 | S36: =BQ36+SUMIFS(AutumnProvRep!$H:$H,AutumnProvRep!$A:$A,Data!$A$23,AutumnProvRep!$G:$G,"Coventry",AutumnProvRep!$P:$P,Data!S$16)/$AY$32*$A$32 -> 2.537919392e-23 | T36: =BR36+SUMIFS(AutumnProvRep!$H:$H,AutumnProvRep!$A:$A,Data!$A$23,AutumnProvRep!$G:$G,"Coventry",AutumnProvRep!$P:$P,Data!T$16)/$AY$32*$A$32 -> 0 | U36: =BS36+SUMIFS(AutumnProvRep!$H:$H,AutumnProvRep!$A:$A,Data!$A$23,AutumnProvRep!$G:$G,"Coventry",AutumnProvRep!$P:$P,Data!U$16)/$AY$32*$A$32 -> 2.096079204e-24 | V36: 147.5658915 | W36: 672067.5031 | X36: =BU36+SUMIFS(AutumnProvRep!$H:$H,AutumnProvRep!$A:$A,Data!$A$23,AutumnProvRep!$G:$G,"<>Coventry",AutumnProvRep!$P:$P,Data!X$16)/$AY$32*$A$32 -> 0 | Y36: =BV36+SUMIFS(AutumnProvRep!$H:$H,AutumnProvRep!$A:$A,Data!$A$23,AutumnProvRep!$G:$G,"<>Coventry",AutumnProvRep!$P:$P,Data!Y$16)/$AY$32*$A$32 -> 0 | Z36: =BW36+SUMIFS(AutumnProvRep!$H:$H,AutumnProvRep!$A:$A,Data!$A$23,AutumnProvRep!$G:$G,"<>Coventry",AutumnProvRep!$P:$P,Data!Z$16)/$AY$32*$A$32 -> 0 | AA36: =BX36+SUMIFS(AutumnProvRep!$H:$H,AutumnProvRep!$A:$A,Data!$A$23,AutumnProvRep!$G:$G,"<>Coventry",AutumnProvRep!$P:$P,Data!AA$16)/$AY$32*$A$32 -> 0 | AB36: =BY36+SUMIFS(AutumnProvRep!$H:$H,AutumnProvRep!$A:$A,Data!$A$23,AutumnProvRep!$G:$G,"<>Coventry",AutumnProvRep!$P:$P,Data!AB$16)/$AY$32*$A$32 -> 0 | AC36: =BZ36+SUMIFS(AutumnProvRep!$H:$H,AutumnProvRep!$A:$A,Data!$A$23,AutumnProvRep!$G:$G,"<>Coventry",AutumnProvRep!$P:$P,Data!AC$16)/$AY$32*$A$32 -> 0 | AD36: =CA36+SUMIFS(AutumnProvRep!$H:$H,AutumnProvRep!$A:$A,Data!$A$23,AutumnProvRep!$G:$G,"<>Coventry",AutumnProvRep!$P:$P,Data!AD$16)/$AY$32*$A$32 -> 82.48062016 | AE36: =CB36+SUMIFS(AutumnProvRep!$H:$H,AutumnProvRep!$A:$A,Data!$A$23,AutumnProvRep!$G:$G,"<>Coventry",AutumnProvRep!$P:$P,Data!AE$16)/$AY$32*$A$32 -> 0 | AF36: =CC36+SUMIFS(AutumnProvRep!$H:$H,AutumnProvRep!$A:$A,Data!$A$23,AutumnProvRep!$G:$G,"<>Coventry",AutumnProvRep!$P:$P,Data!AF$16)/$AY$32*$A$32 -> 0 | AG36: =CD36+SUMIFS(AutumnProvRep!$H:$H,AutumnProvRep!$A:$A,Data!$A$23,AutumnProvRep!$G:$G,"<>Coventry",AutumnProvRep!$P:$P,Data!AG$16)/$AY$32*$A$32 -> 0 | AH36: =CE36+SUMIFS(AutumnProvRep!$H:$H,AutumnProvRep!$A:$A,Data!$A$23,AutumnProvRep!$G:$G,"<>Coventry",AutumnProvRep!$P:$P,Data!AH$16)/$AY$32*$A$32 -> 0 | AI36: =CF36+SUMIFS(AutumnProvRep!$H:$H,AutumnProvRep!$A:$A,Data!$A$23,AutumnProvRep!$G:$G,"<>Coventry",AutumnProvRep!$P:$P,Data!AI$16)/$AY$32*$A$32 -> 0 | AJ36: =CG36+SUMIFS(AutumnProvRep!$H:$H,AutumnProvRep!$A:$A,Data!$A$23,AutumnProvRep!$G:$G,"<>Coventry",AutumnProvRep!$P:$P,Data!AJ$16)/$AY$32*$A$32 -> 0 | AK36: =CH36+SUMIFS(AutumnProvRep!$H:$H,AutumnProvRep!$A:$A,Data!$A$23,AutumnProvRep!$G:$G,"<>Coventry",AutumnProvRep!$P:$P,Data!AK$16)/$AY$32*$A$32 -> 0 | AL36: =CI36+SUMIFS(AutumnProvRep!$H:$H,AutumnProvRep!$A:$A,Data!$A$23,AutumnProvRep!$G:$G,"<>Coventry",AutumnProvRep!$P:$P,Data!AL$16)/$AY$32*$A$32 -> 0 | AM36: =CJ36+SUMIFS(AutumnProvRep!$H:$H,AutumnProvRep!$A:$A,Data!$A$23,AutumnProvRep!$G:$G,"<>Coventry",AutumnProvRep!$P:$P,Data!AM$16)/$AY$32*$A$32 -> 0 | AN36: =CK36+SUMIFS(AutumnProvRep!$H:$H,AutumnProvRep!$A:$A,Data!$A$23,AutumnProvRep!$G:$G,"<>Coventry",AutumnProvRep!$P:$P,Data!AN$16)/$AY$32*$A$32 -> 0 | AO36: =CL36+SUMIFS(AutumnProvRep!$H:$H,AutumnProvRep!$A:$A,Data!$A$23,AutumnProvRep!$G:$G,"<>Coventry",AutumnProvRep!$P:$P,Data!AO$16)/$AY$32*$A$32 -> 0 | AP36: 1.085271318 | AQ36: 4418.197735 | AR36: 676485.7009 | AS36: 148.6511628 | AT36: 8.651162791 | AU36: 140 | AV36: =[11]Data!$AS36 -> 136.9714286 | AW36: =[11]Data!$M7 -> 129 | AZ36: =($M$7-$E$7)*$A$32 -> 836 | BA36: =M7*$A$32 -> 10640 | BB36: 0 | BC36: 0 | BD36: 0 | BE36: 0 | BF36: 0 | BG36: 0 | BH36: 706.2024363 | BI36: 0 | BJ36: 58.3255814 | BK36: 0 | BL36: 25.92248062 | BM36: 0 | BN36: 90.72868217 | BO36: 0 | BP36: 0 | BQ36: 2.537919392e-23 | BR36: 0 | BS36: 2.096079204e-24 | BU36: 0 | BV36: 0 | BW36: 0 | BX36: 0 | BY36: 0 | BZ36: 0 | CA36: 6.480620155 | CB36: 0 | CC36: 0 | CD36: 0 | CE36: 0 | CF36: 0 | CG36: 0 | CH36: 0 | CI36: 0 | CJ36: 0 | CK36: 0 | CL36: 0
A37: 5 | B37: Tiverton | C37: 52.08333333 | D37: =BB37+SUMIFS(AutumnProvRep!$H:$H,AutumnProvRep!$A:$A,Data!$A$24,AutumnProvRep!$G:$G,"Coventry",AutumnProvRep!$P:$P,Data!D$16)/$AY$32*$A$32 -> 0 | E37: =BC37+SUMIFS(AutumnProvRep!$H:$H,AutumnProvRep!$A:$A,Data!$A$24,AutumnProvRep!$G:$G,"Coventry",AutumnProvRep!$P:$P,Data!E$16)/$AY$32*$A$32 -> 0 | F37: =BD37+SUMIFS(AutumnProvRep!$H:$H,AutumnProvRep!$A:$A,Data!$A$24,AutumnProvRep!$G:$G,"Coventry",AutumnProvRep!$P:$P,Data!F$16)/$AY$32*$A$32 -> 0 | G37: =BE37+SUMIFS(AutumnProvRep!$H:$H,AutumnProvRep!$A:$A,Data!$A$24,AutumnProvRep!$G:$G,"Coventry",AutumnProvRep!$P:$P,Data!G$16)/$AY$32*$A$32 -> 0 | H37: =BF37+SUMIFS(AutumnProvRep!$H:$H,AutumnProvRep!$A:$A,Data!$A$24,AutumnProvRep!$G:$G,"Coventry",AutumnProvRep!$P:$P,Data!H$16)/$AY$32*$A$32 -> 0 | I37: =BG37+SUMIFS(AutumnProvRep!$H:$H,AutumnProvRep!$A:$A,Data!$A$24,AutumnProvRep!$G:$G,"Coventry",AutumnProvRep!$P:$P,Data!I$16)/$AY$32*$A$32 -> 0 | J37: =BH37+SUMIFS(AutumnProvRep!$H:$H,AutumnProvRep!$A:$A,Data!$A$24,AutumnProvRep!$G:$G,"Coventry",AutumnProvRep!$P:$P,Data!J$16)/$AY$32*$A$32 -> 4496.582653 | K37: =BI37+SUMIFS(AutumnProvRep!$H:$H,AutumnProvRep!$A:$A,Data!$A$24,AutumnProvRep!$G:$G,"Coventry",AutumnProvRep!$P:$P,Data!K$16)/$AY$32*$A$32 -> 1384.091837 | L37: =BJ37+SUMIFS(AutumnProvRep!$H:$H,AutumnProvRep!$A:$A,Data!$A$24,AutumnProvRep!$G:$G,"Coventry",AutumnProvRep!$P:$P,Data!L$16)/$AY$32*$A$32 -> 0 | M37: =BK37+SUMIFS(AutumnProvRep!$H:$H,AutumnProvRep!$A:$A,Data!$A$24,AutumnProvRep!$G:$G,"Coventry",AutumnProvRep!$P:$P,Data!M$16)/$AY$32*$A$32 -> 617.6938776 | N37: =BL37+SUMIFS(AutumnProvRep!$H:$H,AutumnProvRep!$A:$A,Data!$A$24,AutumnProvRep!$G:$G,"Coventry",AutumnProvRep!$P:$P,Data!N$16)/$AY$32*$A$32 -> 251.6530612 | O37: =BM37+SUMIFS(AutumnProvRep!$H:$H,AutumnProvRep!$A:$A,Data!$A$24,AutumnProvRep!$G:$G,"Coventry",AutumnProvRep!$P:$P,Data!O$16)/$AY$32*$A$32 -> 0 | P37: =BN37+SUMIFS(AutumnProvRep!$H:$H,AutumnProvRep!$A:$A,Data!$A$24,AutumnProvRep!$G:$G,"Coventry",AutumnProvRep!$P:$P,Data!P$16)/$AY$32*$A$32 -> 1045.504082 | Q37: =BO37+SUMIFS(AutumnProvRep!$H:$H,AutumnProvRep!$A:$A,Data!$A$24,AutumnProvRep!$G:$G,"Coventry",AutumnProvRep!$P:$P,Data!Q$16)/$AY$32*$A$32 -> 600.5357143 | R37: =BP37+SUMIFS(AutumnProvRep!$H:$H,AutumnProvRep!$A:$A,Data!$A$24,AutumnProvRep!$G:$G,"Coventry",AutumnProvRep!$P:$P,Data!R$16)/$AY$32*$A$32 -> 0 | S37: =BQ37+SUMIFS(AutumnProvRep!$H:$H,AutumnProvRep!$A:$A,Data!$A$24,AutumnProvRep!$G:$G,"Coventry",AutumnProvRep!$P:$P,Data!S$16)/$AY$32*$A$32 -> 491.8673469 | T37: =BR37+SUMIFS(AutumnProvRep!$H:$H,AutumnProvRep!$A:$A,Data!$A$24,AutumnProvRep!$G:$G,"Coventry",AutumnProvRep!$P:$P,Data!T$16)/$AY$32*$A$32 -> 0 | U37: =BS37+SUMIFS(AutumnProvRep!$H:$H,AutumnProvRep!$A:$A,Data!$A$24,AutumnProvRep!$G:$G,"Coventry",AutumnProvRep!$P:$P,Data!U$16)/$AY$32*$A$32 -> 0 | V37: 116.9464286 | W37: 560396.1279 | X37: =BU37+SUMIFS(AutumnProvRep!$H:$H,AutumnProvRep!$A:$A,Data!$A$24,AutumnProvRep!$G:$G,"<>Coventry",AutumnProvRep!$P:$P,Data!X$16)/$AY$32*$A$32 -> 0 | Y37: =BV37+SUMIFS(AutumnProvRep!$H:$H,AutumnProvRep!$A:$A,Data!$A$24,AutumnProvRep!$G:$G,"<>Coventry",AutumnProvRep!$P:$P,Data!Y$16)/$AY$32*$A$32 -> 0 | Z37: =BW37+SUMIFS(AutumnProvRep!$H:$H,AutumnProvRep!$A:$A,Data!$A$24,AutumnProvRep!$G:$G,"<>Coventry",AutumnProvRep!$P:$P,Data!Z$16)/$AY$32*$A$32 -> 0 | AA37: =BX37+SUMIFS(AutumnProvRep!$H:$H,AutumnProvRep!$A:$A,Data!$A$24,AutumnProvRep!$G:$G,"<>Coventry",AutumnProvRep!$P:$P,Data!AA$16)/$AY$32*$A$32 -> 0 | AB37: =BY37+SUMIFS(AutumnProvRep!$H:$H,AutumnProvRep!$A:$A,Data!$A$24,AutumnProvRep!$G:$G,"<>Coventry",AutumnProvRep!$P:$P,Data!AB$16)/$AY$32*$A$32 -> 0 | AC37: =BZ37+SUMIFS(AutumnProvRep!$H:$H,AutumnProvRep!$A:$A,Data!$A$24,AutumnProvRep!$G:$G,"<>Coventry",AutumnProvRep!$P:$P,Data!AC$16)/$AY$32*$A$32 -> 0 | AD37: =CA37+SUMIFS(AutumnProvRep!$H:$H,AutumnProvRep!$A:$A,Data!$A$24,AutumnProvRep!$G:$G,"<>Coventry",AutumnProvRep!$P:$P,Data!AD$16)/$AY$32*$A$32 -> 80.07142857 | AE37: =CB37+SUMIFS(AutumnProvRep!$H:$H,AutumnProvRep!$A:$A,Data!$A$24,AutumnProvRep!$G:$G,"<>Coventry",AutumnProvRep!$P:$P,Data!AE$16)/$AY$32*$A$32 -> 0 | AF37: =CC37+SUMIFS(AutumnProvRep!$H:$H,AutumnProvRep!$A:$A,Data!$A$24,AutumnProvRep!$G:$G,"<>Coventry",AutumnProvRep!$P:$P,Data!AF$16)/$AY$32*$A$32 -> 0 | AG37: =CD37+SUMIFS(AutumnProvRep!$H:$H,AutumnProvRep!$A:$A,Data!$A$24,AutumnProvRep!$G:$G,"<>Coventry",AutumnProvRep!$P:$P,Data!AG$16)/$AY$32*$A$32 -> 0 | AH37: =CE37+SUMIFS(AutumnProvRep!$H:$H,AutumnProvRep!$A:$A,Data!$A$24,AutumnProvRep!$G:$G,"<>Coventry",AutumnProvRep!$P:$P,Data!AH$16)/$AY$32*$A$32 -> 0 | AI37: =CF37+SUMIFS(AutumnProvRep!$H:$H,AutumnProvRep!$A:$A,Data!$A$24,AutumnProvRep!$G:$G,"<>Coventry",AutumnProvRep!$P:$P,Data!AI$16)/$AY$32*$A$32 -> 0 | AJ37: =CG37+SUMIFS(AutumnProvRep!$H:$H,AutumnProvRep!$A:$A,Data!$A$24,AutumnProvRep!$G:$G,"<>Coventry",AutumnProvRep!$P:$P,Data!AJ$16)/$AY$32*$A$32 -> 80.07142857 | AK37: =CH37+SUMIFS(AutumnProvRep!$H:$H,AutumnProvRep!$A:$A,Data!$A$24,AutumnProvRep!$G:$G,"<>Coventry",AutumnProvRep!$P:$P,Data!AK$16)/$AY$32*$A$32 -> 0 | AL37: =CI37+SUMIFS(AutumnProvRep!$H:$H,AutumnProvRep!$A:$A,Data!$A$24,AutumnProvRep!$G:$G,"<>Coventry",AutumnProvRep!$P:$P,Data!AL$16)/$AY$32*$A$32 -> 0 | AM37: =CJ37+SUMIFS(AutumnProvRep!$H:$H,AutumnProvRep!$A:$A,Data!$A$24,AutumnProvRep!$G:$G,"<>Coventry",AutumnProvRep!$P:$P,Data!AM$16)/$AY$32*$A$32 -> 0 | AN37: =CK37+SUMIFS(AutumnProvRep!$H:$H,AutumnProvRep!$A:$A,Data!$A$24,AutumnProvRep!$G:$G,"<>Coventry",AutumnProvRep!$P:$P,Data!AN$16)/$AY$32*$A$32 -> 0 | AO37: =CL37+SUMIFS(AutumnProvRep!$H:$H,AutumnProvRep!$A:$A,Data!$A$24,AutumnProvRep!$G:$G,"<>Coventry",AutumnProvRep!$P:$P,Data!AO$16)/$AY$32*$A$32 -> 0 | AP37: =SUM(X37:AO37)/$A$32 -> 2.107142857 | AQ37: 11259.00941 | AR37: 571655.1373 | AS37: =AP37+V37 -> 119.0535714 | AT37: 1.053571429 | AU37: 118 | AV37: =[11]Data!$AS37 -> 113 | AW37: =[11]Data!$M8 -> 112 | AZ37: =($M$8-$E$8)*$A$32 -> 456 | BA37: =M8*$A$32 -> 8968 | BB37: 0 | BC37: 0 | BD37: 0 | BE37: 0 | BF37: 0 | BG37: 0 | BH37: 228.6397959 | BI37: 70.37755102 | BJ37: 0 | BK37: 31.40816327 | BL37: 12.79591837 | BM37: 0 | BN37: 53.16122449 | BO37: 30.53571429 | BP37: 0 | BQ37: 25.01020408 | BR37: 0 | BS37: 0 | BU37: 0 | BV37: 0 | BW37: 0 | BX37: 0 | BY37: 0 | BZ37: 0 | CA37: 4.071428571 | CB37: 0 | CC37: 0 | CD37: 0 | CE37: 0 | CF37: 0 | CG37: 4.071428571 | CH37: 0 | CI37: 0 | CJ37: 0 | CK37: 0 | CL37: 0
A38: 6 | B38: Baginton Fields | C38: 52.08333333 | D38: =BB38+SUMIFS(AutumnProvRep!$H:$H,AutumnProvRep!$A:$A,Data!$A$25,AutumnProvRep!$G:$G,"Coventry",AutumnProvRep!$P:$P,Data!D$16)/$AY$32*$A$32 -> 0 | E38: =BC38+SUMIFS(AutumnProvRep!$H:$H,AutumnProvRep!$A:$A,Data!$A$25,AutumnProvRep!$G:$G,"Coventry",AutumnProvRep!$P:$P,Data!E$16)/$AY$32*$A$32 -> 0 | F38: =BD38+SUMIFS(AutumnProvRep!$H:$H,AutumnProvRep!$A:$A,Data!$A$25,AutumnProvRep!$G:$G,"Coventry",AutumnProvRep!$P:$P,Data!F$16)/$AY$32*$A$32 -> 0 | G38: =BE38+SUMIFS(AutumnProvRep!$H:$H,AutumnProvRep!$A:$A,Data!$A$25,AutumnProvRep!$G:$G,"Coventry",AutumnProvRep!$P:$P,Data!G$16)/$AY$32*$A$32 -> 41.275862 | H38: =BF38+SUMIFS(AutumnProvRep!$H:$H,AutumnProvRep!$A:$A,Data!$A$25,AutumnProvRep!$G:$G,"Coventry",AutumnProvRep!$P:$P,Data!H$16)/$AY$32*$A$32 -> 0 | I38: =BG38+SUMIFS(AutumnProvRep!$H:$H,AutumnProvRep!$A:$A,Data!$A$25,AutumnProvRep!$G:$G,"Coventry",AutumnProvRep!$P:$P,Data!I$16)/$AY$32*$A$32 -> 0 | J38: =BH38+SUMIFS(AutumnProvRep!$H:$H,AutumnProvRep!$A:$A,Data!$A$25,AutumnProvRep!$G:$G,"Coventry",AutumnProvRep!$P:$P,Data!J$16)/$AY$32*$A$32 -> 1857.41379 | K38: =BI38+SUMIFS(AutumnProvRep!$H:$H,AutumnProvRep!$A:$A,Data!$A$25,AutumnProvRep!$G:$G,"Coventry",AutumnProvRep!$P:$P,Data!K$16)/$AY$32*$A$32 -> 3095.68965 | L38: =BJ38+SUMIFS(AutumnProvRep!$H:$H,AutumnProvRep!$A:$A,Data!$A$25,AutumnProvRep!$G:$G,"Coventry",AutumnProvRep!$P:$P,Data!L$16)/$AY$32*$A$32 -> 82.55172401 | M38: =BK38+SUMIFS(AutumnProvRep!$H:$H,AutumnProvRep!$A:$A,Data!$A$25,AutumnProvRep!$G:$G,"Coventry",AutumnProvRep!$P:$P,Data!M$16)/$AY$32*$A$32 -> 123.827586 | N38: =BL38+SUMIFS(AutumnProvRep!$H:$H,AutumnProvRep!$A:$A,Data!$A$25,AutumnProvRep!$G:$G,"Coventry",AutumnProvRep!$P:$P,Data!N$16)/$AY$32*$A$32 -> 683.9999989 | O38: =BM38+SUMIFS(AutumnProvRep!$H:$H,AutumnProvRep!$A:$A,Data!$A$25,AutumnProvRep!$G:$G,"Coventry",AutumnProvRep!$P:$P,Data!O$16)/$AY$32*$A$32 -> 0 | P38: =BN38+SUMIFS(AutumnProvRep!$H:$H,AutumnProvRep!$A:$A,Data!$A$25,AutumnProvRep!$G:$G,"Coventry",AutumnProvRep!$P:$P,Data!P$16)/$AY$32*$A$32 -> 2506.034479 | Q38: =BO38+SUMIFS(AutumnProvRep!$H:$H,AutumnProvRep!$A:$A,Data!$A$25,AutumnProvRep!$G:$G,"Coventry",AutumnProvRep!$P:$P,Data!Q$16)/$AY$32*$A$32 -> 843.2068952 | R38: =BP38+SUMIFS(AutumnProvRep!$H:$H,AutumnProvRep!$A:$A,Data!$A$25,AutumnProvRep!$G:$G,"Coventry",AutumnProvRep!$P:$P,Data!R$16)/$AY$32*$A$32 -> 0 | S38: =BQ38+SUMIFS(AutumnProvRep!$H:$H,AutumnProvRep!$A:$A,Data!$A$25,AutumnProvRep!$G:$G,"Coventry",AutumnProvRep!$P:$P,Data!S$16)/$AY$32*$A$32 -> 165.103448 | T38: =BR38+SUMIFS(AutumnProvRep!$H:$H,AutumnProvRep!$A:$A,Data!$A$25,AutumnProvRep!$G:$G,"Coventry",AutumnProvRep!$P:$P,Data!T$16)/$AY$32*$A$32 -> 0 | U38: =BS38+SUMIFS(AutumnProvRep!$H:$H,AutumnProvRep!$A:$A,Data!$A$25,AutumnProvRep!$G:$G,"Coventry",AutumnProvRep!$P:$P,Data!U$16)/$AY$32*$A$32 -> 0 | V38: 123.6724136 | W38: 650704.6373 | X38: =BU38+SUMIFS(AutumnProvRep!$H:$H,AutumnProvRep!$A:$A,Data!$A$25,AutumnProvRep!$G:$G,"<>Coventry",AutumnProvRep!$P:$P,Data!X$16)/$AY$32*$A$32 -> 0 | Y38: =BV38+SUMIFS(AutumnProvRep!$H:$H,AutumnProvRep!$A:$A,Data!$A$25,AutumnProvRep!$G:$G,"<>Coventry",AutumnProvRep!$P:$P,Data!Y$16)/$AY$32*$A$32 -> 0 | Z38: =BW38+SUMIFS(AutumnProvRep!$H:$H,AutumnProvRep!$A:$A,Data!$A$25,AutumnProvRep!$G:$G,"<>Coventry",AutumnProvRep!$P:$P,Data!Z$16)/$AY$32*$A$32 -> 0 | AA38: =BX38+SUMIFS(AutumnProvRep!$H:$H,AutumnProvRep!$A:$A,Data!$A$25,AutumnProvRep!$G:$G,"<>Coventry",AutumnProvRep!$P:$P,Data!AA$16)/$AY$32*$A$32 -> 0 | AB38: =BY38+SUMIFS(AutumnProvRep!$H:$H,AutumnProvRep!$A:$A,Data!$A$25,AutumnProvRep!$G:$G,"<>Coventry",AutumnProvRep!$P:$P,Data!AB$16)/$AY$32*$A$32 -> 0 | AC38: =BZ38+SUMIFS(AutumnProvRep!$H:$H,AutumnProvRep!$A:$A,Data!$A$25,AutumnProvRep!$G:$G,"<>Coventry",AutumnProvRep!$P:$P,Data!AC$16)/$AY$32*$A$32 -> 0 | AD38: =CA38+SUMIFS(AutumnProvRep!$H:$H,AutumnProvRep!$A:$A,Data!$A$25,AutumnProvRep!$G:$G,"<>Coventry",AutumnProvRep!$P:$P,Data!AD$16)/$AY$32*$A$32 -> 0 | AE38: =CB38+SUMIFS(AutumnProvRep!$H:$H,AutumnProvRep!$A:$A,Data!$A$25,AutumnProvRep!$G:$G,"<>Coventry",AutumnProvRep!$P:$P,Data!AE$16)/$AY$32*$A$32 -> 82.03174603 | AF38: =CC38+SUMIFS(AutumnProvRep!$H:$H,AutumnProvRep!$A:$A,Data!$A$25,AutumnProvRep!$G:$G,"<>Coventry",AutumnProvRep!$P:$P,Data!AF$16)/$AY$32*$A$32 -> 0 | AG38: =CD38+SUMIFS(AutumnProvRep!$H:$H,AutumnProvRep!$A:$A,Data!$A$25,AutumnProvRep!$G:$G,"<>Coventry",AutumnProvRep!$P:$P,Data!AG$16)/$AY$32*$A$32 -> 0 | AH38: =CE38+SUMIFS(AutumnProvRep!$H:$H,AutumnProvRep!$A:$A,Data!$A$25,AutumnProvRep!$G:$G,"<>Coventry",AutumnProvRep!$P:$P,Data!AH$16)/$AY$32*$A$32 -> 0 | AI38: =CF38+SUMIFS(AutumnProvRep!$H:$H,AutumnProvRep!$A:$A,Data!$A$25,AutumnProvRep!$G:$G,"<>Coventry",AutumnProvRep!$P:$P,Data!AI$16)/$AY$32*$A$32 -> 0 | AJ38: =CG38+SUMIFS(AutumnProvRep!$H:$H,AutumnProvRep!$A:$A,Data!$A$25,AutumnProvRep!$G:$G,"<>Coventry",AutumnProvRep!$P:$P,Data!AJ$16)/$AY$32*$A$32 -> 0 | AK38: =CH38+SUMIFS(AutumnProvRep!$H:$H,AutumnProvRep!$A:$A,Data!$A$25,AutumnProvRep!$G:$G,"<>Coventry",AutumnProvRep!$P:$P,Data!AK$16)/$AY$32*$A$32 -> 0 | AL38: =CI38+SUMIFS(AutumnProvRep!$H:$H,AutumnProvRep!$A:$A,Data!$A$25,AutumnProvRep!$G:$G,"<>Coventry",AutumnProvRep!$P:$P,Data!AL$16)/$AY$32*$A$32 -> 0 | AM38: =CJ38+SUMIFS(AutumnProvRep!$H:$H,AutumnProvRep!$A:$A,Data!$A$25,AutumnProvRep!$G:$G,"<>Coventry",AutumnProvRep!$P:$P,Data!AM$16)/$AY$32*$A$32 -> 0 | AN38: =CK38+SUMIFS(AutumnProvRep!$H:$H,AutumnProvRep!$A:$A,Data!$A$25,AutumnProvRep!$G:$G,"<>Coventry",AutumnProvRep!$P:$P,Data!AN$16)/$AY$32*$A$32 -> 0 | AO38: =CL38+SUMIFS(AutumnProvRep!$H:$H,AutumnProvRep!$A:$A,Data!$A$25,AutumnProvRep!$G:$G,"<>Coventry",AutumnProvRep!$P:$P,Data!AO$16)/$AY$32*$A$32 -> 0 | AP38: 1.079365079 | AQ38: 4064.593871 | AR38: 654769.2312 | AS38: 124.7517787 | AT38: -1.248221322 | AU38: 126 | AV38: =[11]Data!$AS38 -> 114.8571429 | AW38: =[11]Data!$M9 -> 116 | AZ38: =($M$9-$E$9)*$A$32 -> 760 | BA38: 9576 | BB38: 0 | BC38: 0 | BD38: 0 | BE38: 3.275862004 | BF38: 0 | BG38: 0 | BH38: 147.4137902 | BI38: 245.6896503 | BJ38: 6.551724008 | BK38: 9.827586012 | BL38: 54.28571321 | BM38: 0 | BN38: 198.8916217 | BO38: 66.92118094 | BP38: 0 | BQ38: 13.10344802 | BR38: 0 | BS38: 0 | BU38: 0 | BV38: 0 | BW38: 0 | BX38: 0 | BY38: 0 | BZ38: 0 | CA38: 0 | CB38: 6.031746032 | CC38: 0 | CD38: 0 | CE38: 0 | CF38: 0 | CG38: 0 | CH38: 0 | CI38: 0 | CJ38: 0 | CK38: 0 | CL38: 0
A39: 7 | B39: Sherbourne Fields | C39: 52.08333333 | D39: =BB39+SUMIFS(AutumnProvRep!$H:$H,AutumnProvRep!$A:$A,Data!$A$26,AutumnProvRep!$G:$G,"Coventry",AutumnProvRep!$P:$P,Data!D$16)/$AY$32*$A$32 -> 0 | E39: =BC39+SUMIFS(AutumnProvRep!$H:$H,AutumnProvRep!$A:$A,Data!$A$26,AutumnProvRep!$G:$G,"Coventry",AutumnProvRep!$P:$P,Data!E$16)/$AY$32*$A$32 -> 0 | F39: =BD39+SUMIFS(AutumnProvRep!$H:$H,AutumnProvRep!$A:$A,Data!$A$26,AutumnProvRep!$G:$G,"Coventry",AutumnProvRep!$P:$P,Data!F$16)/$AY$32*$A$32 -> 0 | G39: =BE39+SUMIFS(AutumnProvRep!$H:$H,AutumnProvRep!$A:$A,Data!$A$26,AutumnProvRep!$G:$G,"Coventry",AutumnProvRep!$P:$P,Data!G$16)/$AY$32*$A$32 -> 158.9666655 | H39: =BF39+SUMIFS(AutumnProvRep!$H:$H,AutumnProvRep!$A:$A,Data!$A$26,AutumnProvRep!$G:$G,"Coventry",AutumnProvRep!$P:$P,Data!H$16)/$AY$32*$A$32 -> 0 | I39: =BG39+SUMIFS(AutumnProvRep!$H:$H,AutumnProvRep!$A:$A,Data!$A$26,AutumnProvRep!$G:$G,"Coventry",AutumnProvRep!$P:$P,Data!I$16)/$AY$32*$A$32 -> 79.48333277 | J39: =BH39+SUMIFS(AutumnProvRep!$H:$H,AutumnProvRep!$A:$A,Data!$A$26,AutumnProvRep!$G:$G,"Coventry",AutumnProvRep!$P:$P,Data!J$16)/$AY$32*$A$32 -> 5563.833294 | K39: =BI39+SUMIFS(AutumnProvRep!$H:$H,AutumnProvRep!$A:$A,Data!$A$26,AutumnProvRep!$G:$G,"Coventry",AutumnProvRep!$P:$P,Data!K$16)/$AY$32*$A$32 -> 5086.933297 | L39: =BJ39+SUMIFS(AutumnProvRep!$H:$H,AutumnProvRep!$A:$A,Data!$A$26,AutumnProvRep!$G:$G,"Coventry",AutumnProvRep!$P:$P,Data!L$16)/$AY$32*$A$32 -> 0 | M39: =BK39+SUMIFS(AutumnProvRep!$H:$H,AutumnProvRep!$A:$A,Data!$A$26,AutumnProvRep!$G:$G,"Coventry",AutumnProvRep!$P:$P,Data!M$16)/$AY$32*$A$32 -> 2225.533318 | N39: =BL39+SUMIFS(AutumnProvRep!$H:$H,AutumnProvRep!$A:$A,Data!$A$26,AutumnProvRep!$G:$G,"Coventry",AutumnProvRep!$P:$P,Data!N$16)/$AY$32*$A$32 -> 238.4499983 | O39: =BM39+SUMIFS(AutumnProvRep!$H:$H,AutumnProvRep!$A:$A,Data!$A$26,AutumnProvRep!$G:$G,"Coventry",AutumnProvRep!$P:$P,Data!O$16)/$AY$32*$A$32 -> 0 | P39: =BN39+SUMIFS(AutumnProvRep!$H:$H,AutumnProvRep!$A:$A,Data!$A$26,AutumnProvRep!$G:$G,"Coventry",AutumnProvRep!$P:$P,Data!P$16)/$AY$32*$A$32 -> 2066.566652 | Q39: =BO39+SUMIFS(AutumnProvRep!$H:$H,AutumnProvRep!$A:$A,Data!$A$26,AutumnProvRep!$G:$G,"Coventry",AutumnProvRep!$P:$P,Data!Q$16)/$AY$32*$A$32 -> 1772.478321 | R39: =BP39+SUMIFS(AutumnProvRep!$H:$H,AutumnProvRep!$A:$A,Data!$A$26,AutumnProvRep!$G:$G,"Coventry",AutumnProvRep!$P:$P,Data!R$16)/$AY$32*$A$32 -> 0 | S39: =BQ39+SUMIFS(AutumnProvRep!$H:$H,AutumnProvRep!$A:$A,Data!$A$26,AutumnProvRep!$G:$G,"Coventry",AutumnProvRep!$P:$P,Data!S$16)/$AY$32*$A$32 -> 1510.183323 | T39: =BR39+SUMIFS(AutumnProvRep!$H:$H,AutumnProvRep!$A:$A,Data!$A$26,AutumnProvRep!$G:$G,"Coventry",AutumnProvRep!$P:$P,Data!T$16)/$AY$32*$A$32 -> 0 | U39: =BS39+SUMIFS(AutumnProvRep!$H:$H,AutumnProvRep!$A:$A,Data!$A$26,AutumnProvRep!$G:$G,"Coventry",AutumnProvRep!$P:$P,Data!U$16)/$AY$32*$A$32 -> 0 | V39: 246.0845816 | W39: 1179395.198 | X39: =BU39+SUMIFS(AutumnProvRep!$H:$H,AutumnProvRep!$A:$A,Data!$A$26,AutumnProvRep!$G:$G,"<>Coventry",AutumnProvRep!$P:$P,Data!X$16)/$AY$32*$A$32 -> 0 | Y39: =BV39+SUMIFS(AutumnProvRep!$H:$H,AutumnProvRep!$A:$A,Data!$A$26,AutumnProvRep!$G:$G,"<>Coventry",AutumnProvRep!$P:$P,Data!Y$16)/$AY$32*$A$32 -> 0 | Z39: =BW39+SUMIFS(AutumnProvRep!$H:$H,AutumnProvRep!$A:$A,Data!$A$26,AutumnProvRep!$G:$G,"<>Coventry",AutumnProvRep!$P:$P,Data!Z$16)/$AY$32*$A$32 -> 0 | AA39: =BX39+SUMIFS(AutumnProvRep!$H:$H,AutumnProvRep!$A:$A,Data!$A$26,AutumnProvRep!$G:$G,"<>Coventry",AutumnProvRep!$P:$P,Data!AA$16)/$AY$32*$A$32 -> 0 | AB39: =BY39+SUMIFS(AutumnProvRep!$H:$H,AutumnProvRep!$A:$A,Data!$A$26,AutumnProvRep!$G:$G,"<>Coventry",AutumnProvRep!$P:$P,Data!AB$16)/$AY$32*$A$32 -> 0 | AC39: =BZ39+SUMIFS(AutumnProvRep!$H:$H,AutumnProvRep!$A:$A,Data!$A$26,AutumnProvRep!$G:$G,"<>Coventry",AutumnProvRep!$P:$P,Data!AC$16)/$AY$32*$A$32 -> 0 | AD39: =CA39+SUMIFS(AutumnProvRep!$H:$H,AutumnProvRep!$A:$A,Data!$A$26,AutumnProvRep!$G:$G,"<>Coventry",AutumnProvRep!$P:$P,Data!AD$16)/$AY$32*$A$32 -> 79.33067729 | AE39: =CB39+SUMIFS(AutumnProvRep!$H:$H,AutumnProvRep!$A:$A,Data!$A$26,AutumnProvRep!$G:$G,"<>Coventry",AutumnProvRep!$P:$P,Data!AE$16)/$AY$32*$A$32 -> 0 | AF39: =CC39+SUMIFS(AutumnProvRep!$H:$H,AutumnProvRep!$A:$A,Data!$A$26,AutumnProvRep!$G:$G,"<>Coventry",AutumnProvRep!$P:$P,Data!AF$16)/$AY$32*$A$32 -> 0 | AG39: =CD39+SUMIFS(AutumnProvRep!$H:$H,AutumnProvRep!$A:$A,Data!$A$26,AutumnProvRep!$G:$G,"<>Coventry",AutumnProvRep!$P:$P,Data!AG$16)/$AY$32*$A$32 -> 79.33067729 | AH39: =CE39+SUMIFS(AutumnProvRep!$H:$H,AutumnProvRep!$A:$A,Data!$A$26,AutumnProvRep!$G:$G,"<>Coventry",AutumnProvRep!$P:$P,Data!AH$16)/$AY$32*$A$32 -> 0 | AI39: =CF39+SUMIFS(AutumnProvRep!$H:$H,AutumnProvRep!$A:$A,Data!$A$26,AutumnProvRep!$G:$G,"<>Coventry",AutumnProvRep!$P:$P,Data!AI$16)/$AY$32*$A$32 -> 0 | AJ39: =CG39+SUMIFS(AutumnProvRep!$H:$H,AutumnProvRep!$A:$A,Data!$A$26,AutumnProvRep!$G:$G,"<>Coventry",AutumnProvRep!$P:$P,Data!AJ$16)/$AY$32*$A$32 -> 0 | AK39: =CH39+SUMIFS(AutumnProvRep!$H:$H,AutumnProvRep!$A:$A,Data!$A$26,AutumnProvRep!$G:$G,"<>Coventry",AutumnProvRep!$P:$P,Data!AK$16)/$AY$32*$A$32 -> 0 | AL39: =CI39+SUMIFS(AutumnProvRep!$H:$H,AutumnProvRep!$A:$A,Data!$A$26,AutumnProvRep!$G:$G,"<>Coventry",AutumnProvRep!$P:$P,Data!AL$16)/$AY$32*$A$32 -> 0 | AM39: =CJ39+SUMIFS(AutumnProvRep!$H:$H,AutumnProvRep!$A:$A,Data!$A$26,AutumnProvRep!$G:$G,"<>Coventry",AutumnProvRep!$P:$P,Data!AM$16)/$AY$32*$A$32 -> 79.33067729 | AN39: =CK39+SUMIFS(AutumnProvRep!$H:$H,AutumnProvRep!$A:$A,Data!$A$26,AutumnProvRep!$G:$G,"<>Coventry",AutumnProvRep!$P:$P,Data!AN$16)/$AY$32*$A$32 -> 0 | AO39: =CL39+SUMIFS(AutumnProvRep!$H:$H,AutumnProvRep!$A:$A,Data!$A$26,AutumnProvRep!$G:$G,"<>Coventry",AutumnProvRep!$P:$P,Data!AO$16)/$AY$32*$A$32 -> 0 | AP39: 3.131474104 | AQ39: 15935.49535 | AR39: 1195330.693 | AS39: 249.2160557 | AT39: -1.783944306 | AU39: 251 | AV39: =[11]Data!$AS39 -> 238.3 | AW39: =[11]Data!$M10 -> 240 | AZ39: =($M$10-$E$10)*$A$32 -> 836 | BA39: 19076 | BB39: 0 | BC39: 0 | BD39: 0 | BE39: 6.96666554 | BF39: 0 | BG39: 3.48333277 | BH39: 243.8332939 | BI39: 222.9332973 | BJ39: 0 | BK39: 97.53331757 | BL39: 10.44999831 | BM39: 0 | BN39: 90.56665203 | BO39: 77.67832078 | BP39: 0 | BQ39: 66.18332263 | BR39: 0 | BS39: 0 | BU39: 0 | BV39: 0 | BW39: 0 | BX39: 0 | BY39: 0 | BZ39: 0 | CA39: 3.330677291 | CB39: 0 | CC39: 0 | CD39: 3.330677291 | CE39: 0 | CF39: 0 | CG39: 0 | CH39: 0 | CI39: 0 | CJ39: 3.330677291 | CK39: 0 | CL39: 0
A40: 8 | B40: Woodfield | C40: =10000/$A$15 -> 52.08333333 | D40: =BB40+SUMIFS(AutumnProvRep!$H:$H,AutumnProvRep!$A:$A,Data!$A$27,AutumnProvRep!$G:$G,"Coventry",AutumnProvRep!$P:$P,Data!D$16)/$AY$32*$A$32 -> 0 | E40: =BC40+SUMIFS(AutumnProvRep!$H:$H,AutumnProvRep!$A:$A,Data!$A$27,AutumnProvRep!$G:$G,"Coventry",AutumnProvRep!$P:$P,Data!E$16)/$AY$32*$A$32 -> 0 | F40: =BD40+SUMIFS(AutumnProvRep!$H:$H,AutumnProvRep!$A:$A,Data!$A$27,AutumnProvRep!$G:$G,"Coventry",AutumnProvRep!$P:$P,Data!F$16)/$AY$32*$A$32 -> 0 | G40: =BE40+SUMIFS(AutumnProvRep!$H:$H,AutumnProvRep!$A:$A,Data!$A$27,AutumnProvRep!$G:$G,"Coventry",AutumnProvRep!$P:$P,Data!G$16)/$AY$32*$A$32 -> 0 | H40: =BF40+SUMIFS(AutumnProvRep!$H:$H,AutumnProvRep!$A:$A,Data!$A$27,AutumnProvRep!$G:$G,"Coventry",AutumnProvRep!$P:$P,Data!H$16)/$AY$32*$A$32 -> 0 | I40: =BG40+SUMIFS(AutumnProvRep!$H:$H,AutumnProvRep!$A:$A,Data!$A$27,AutumnProvRep!$G:$G,"Coventry",AutumnProvRep!$P:$P,Data!I$16)/$AY$32*$A$32 -> 0 | J40: =BH40+SUMIFS(AutumnProvRep!$H:$H,AutumnProvRep!$A:$A,Data!$A$27,AutumnProvRep!$G:$G,"Coventry",AutumnProvRep!$P:$P,Data!J$16)/$AY$32*$A$32 -> 0 | K40: =BI40+SUMIFS(AutumnProvRep!$H:$H,AutumnProvRep!$A:$A,Data!$A$27,AutumnProvRep!$G:$G,"Coventry",AutumnProvRep!$P:$P,Data!K$16)/$AY$32*$A$32 -> 0 | L40: =BJ40+SUMIFS(AutumnProvRep!$H:$H,AutumnProvRep!$A:$A,Data!$A$27,AutumnProvRep!$G:$G,"Coventry",AutumnProvRep!$P:$P,Data!L$16)/$AY$32*$A$32 -> 0 | M40: =BK40+SUMIFS(AutumnProvRep!$H:$H,AutumnProvRep!$A:$A,Data!$A$27,AutumnProvRep!$G:$G,"Coventry",AutumnProvRep!$P:$P,Data!M$16)/$AY$32*$A$32 -> 0 | N40: =BL40+SUMIFS(AutumnProvRep!$H:$H,AutumnProvRep!$A:$A,Data!$A$27,AutumnProvRep!$G:$G,"Coventry",AutumnProvRep!$P:$P,Data!N$16)/$AY$32*$A$32 -> 967.3714286 | O40: =BM40+SUMIFS(AutumnProvRep!$H:$H,AutumnProvRep!$A:$A,Data!$A$27,AutumnProvRep!$G:$G,"Coventry",AutumnProvRep!$P:$P,Data!O$16)/$AY$32*$A$32 -> 0 | P40: =BN40+SUMIFS(AutumnProvRep!$H:$H,AutumnProvRep!$A:$A,Data!$A$27,AutumnProvRep!$G:$G,"Coventry",AutumnProvRep!$P:$P,Data!P$16)/$AY$32*$A$32 -> 10054.8 | Q40: =BO40+SUMIFS(AutumnProvRep!$H:$H,AutumnProvRep!$A:$A,Data!$A$27,AutumnProvRep!$G:$G,"Coventry",AutumnProvRep!$P:$P,Data!Q$16)/$AY$32*$A$32 -> 0 | R40: =BP40+SUMIFS(AutumnProvRep!$H:$H,AutumnProvRep!$A:$A,Data!$A$27,AutumnProvRep!$G:$G,"Coventry",AutumnProvRep!$P:$P,Data!R$16)/$AY$32*$A$32 -> 0 | S40: =BQ40+SUMIFS(AutumnProvRep!$H:$H,AutumnProvRep!$A:$A,Data!$A$27,AutumnProvRep!$G:$G,"Coventry",AutumnProvRep!$P:$P,Data!S$16)/$AY$32*$A$32 -> 0 | T40: =BR40+SUMIFS(AutumnProvRep!$H:$H,AutumnProvRep!$A:$A,Data!$A$27,AutumnProvRep!$G:$G,"Coventry",AutumnProvRep!$P:$P,Data!T$16)/$AY$32*$A$32 -> 285.5428571 | U40: =BS40+SUMIFS(AutumnProvRep!$H:$H,AutumnProvRep!$A:$A,Data!$A$27,AutumnProvRep!$G:$G,"Coventry",AutumnProvRep!$P:$P,Data!U$16)/$AY$32*$A$32 -> 0 | V40: 148.7857143 | W40: 1063574.679 | X40: =BU40+SUMIFS(AutumnProvRep!$H:$H,AutumnProvRep!$A:$A,Data!$A$27,AutumnProvRep!$G:$G,"<>Coventry",AutumnProvRep!$P:$P,Data!X$16)/$AY$32*$A$32 -> 0 | Y40: =BV40+SUMIFS(AutumnProvRep!$H:$H,AutumnProvRep!$A:$A,Data!$A$27,AutumnProvRep!$G:$G,"<>Coventry",AutumnProvRep!$P:$P,Data!Y$16)/$AY$32*$A$32 -> 0 | Z40: =BW40+SUMIFS(AutumnProvRep!$H:$H,AutumnProvRep!$A:$A,Data!$A$27,AutumnProvRep!$G:$G,"<>Coventry",AutumnProvRep!$P:$P,Data!Z$16)/$AY$32*$A$32 -> 0 | AA40: =BX40+SUMIFS(AutumnProvRep!$H:$H,AutumnProvRep!$A:$A,Data!$A$27,AutumnProvRep!$G:$G,"<>Coventry",AutumnProvRep!$P:$P,Data!AA$16)/$AY$32*$A$32 -> 0 | AB40: =BY40+SUMIFS(AutumnProvRep!$H:$H,AutumnProvRep!$A:$A,Data!$A$27,AutumnProvRep!$G:$G,"<>Coventry",AutumnProvRep!$P:$P,Data!AB$16)/$AY$32*$A$32 -> 0 | AC40: =BZ40+SUMIFS(AutumnProvRep!$H:$H,AutumnProvRep!$A:$A,Data!$A$27,AutumnProvRep!$G:$G,"<>Coventry",AutumnProvRep!$P:$P,Data!AC$16)/$AY$32*$A$32 -> 0 | AD40: =CA40+SUMIFS(AutumnProvRep!$H:$H,AutumnProvRep!$A:$A,Data!$A$27,AutumnProvRep!$G:$G,"<>Coventry",AutumnProvRep!$P:$P,Data!AD$16)/$AY$32*$A$32 -> 0 | AE40: =CB40+SUMIFS(AutumnProvRep!$H:$H,AutumnProvRep!$A:$A,Data!$A$27,AutumnProvRep!$G:$G,"<>Coventry",AutumnProvRep!$P:$P,Data!AE$16)/$AY$32*$A$32 -> 0 | AF40: =CC40+SUMIFS(AutumnProvRep!$H:$H,AutumnProvRep!$A:$A,Data!$A$27,AutumnProvRep!$G:$G,"<>Coventry",AutumnProvRep!$P:$P,Data!AF$16)/$AY$32*$A$32 -> 0 | AG40: =CD40+SUMIFS(AutumnProvRep!$H:$H,AutumnProvRep!$A:$A,Data!$A$27,AutumnProvRep!$G:$G,"<>Coventry",AutumnProvRep!$P:$P,Data!AG$16)/$AY$32*$A$32 -> 0 | AH40: =CE40+SUMIFS(AutumnProvRep!$H:$H,AutumnProvRep!$A:$A,Data!$A$27,AutumnProvRep!$G:$G,"<>Coventry",AutumnProvRep!$P:$P,Data!AH$16)/$AY$32*$A$32 -> 0 | AI40: =CF40+SUMIFS(AutumnProvRep!$H:$H,AutumnProvRep!$A:$A,Data!$A$27,AutumnProvRep!$G:$G,"<>Coventry",AutumnProvRep!$P:$P,Data!AI$16)/$AY$32*$A$32 -> 0 | AJ40: =CG40+SUMIFS(AutumnProvRep!$H:$H,AutumnProvRep!$A:$A,Data!$A$27,AutumnProvRep!$G:$G,"<>Coventry",AutumnProvRep!$P:$P,Data!AJ$16)/$AY$32*$A$32 -> 228 | AK40: =CH40+SUMIFS(AutumnProvRep!$H:$H,AutumnProvRep!$A:$A,Data!$A$27,AutumnProvRep!$G:$G,"<>Coventry",AutumnProvRep!$P:$P,Data!AK$16)/$AY$32*$A$32 -> 0 | AL40: =CI40+SUMIFS(AutumnProvRep!$H:$H,AutumnProvRep!$A:$A,Data!$A$27,AutumnProvRep!$G:$G,"<>Coventry",AutumnProvRep!$P:$P,Data!AL$16)/$AY$32*$A$32 -> 0 | AM40: =CJ40+SUMIFS(AutumnProvRep!$H:$H,AutumnProvRep!$A:$A,Data!$A$27,AutumnProvRep!$G:$G,"<>Coventry",AutumnProvRep!$P:$P,Data!AM$16)/$AY$32*$A$32 -> 0 | AN40: =CK40+SUMIFS(AutumnProvRep!$H:$H,AutumnProvRep!$A:$A,Data!$A$27,AutumnProvRep!$G:$G,"<>Coventry",AutumnProvRep!$P:$P,Data!AN$16)/$AY$32*$A$32 -> 0 | AO40: =CL40+SUMIFS(AutumnProvRep!$H:$H,AutumnProvRep!$A:$A,Data!$A$27,AutumnProvRep!$G:$G,"<>Coventry",AutumnProvRep!$P:$P,Data!AO$16)/$AY$32*$A$32 -> 0 | AP40: 3 | AQ40: 19846.39134 | AR40: 1083421.07 | AS40: 151.7857143 | AT40: -3.214285714 | AU40: 155 | AV40: =[11]Data!$AS40 -> 151.7857143 | AW40: =[11]Data!$M11 -> 155 | AZ40: =($M$11-$E$11)*$A$32 -> 0
AR41: =SUM(AR33:AR40) -> 6330079.322
B44: Spring Term 2024
A45: =[12]Sheet1!$Q$3 -> 50 | B45: School | AY45: 59
A46: 1 | B46: Castle Wood | C46: =10000/$A$15 -> 52.08333333 | D46: =BB46+SUMIFS(SpringProvRep!$H:$H,SpringProvRep!$A:$A,Data!$A$20,SpringProvRep!$G:$G,"Coventry",SpringProvRep!$P:$P,Data!D$16)/$AY$45*$A$45 -> 0 | E46: =BC46+SUMIFS(SpringProvRep!$H:$H,SpringProvRep!$A:$A,Data!$A$20,SpringProvRep!$G:$G,"Coventry",SpringProvRep!$P:$P,Data!E$16)/$AY$45*$A$45 -> 0 | F46: =BD46+SUMIFS(SpringProvRep!$H:$H,SpringProvRep!$A:$A,Data!$A$20,SpringProvRep!$G:$G,"Coventry",SpringProvRep!$P:$P,Data!F$16)/$AY$45*$A$45 -> 0 | G46: =BE46+SUMIFS(SpringProvRep!$H:$H,SpringProvRep!$A:$A,Data!$A$20,SpringProvRep!$G:$G,"Coventry",SpringProvRep!$P:$P,Data!G$16)/$AY$45*$A$45 -> 0 | H46: =BF46+SUMIFS(SpringProvRep!$H:$H,SpringProvRep!$A:$A,Data!$A$20,SpringProvRep!$G:$G,"Coventry",SpringProvRep!$P:$P,Data!H$16)/$AY$45*$A$45 -> 0 | I46: =BG46+SUMIFS(SpringProvRep!$H:$H,SpringProvRep!$A:$A,Data!$A$20,SpringProvRep!$G:$G,"Coventry",SpringProvRep!$P:$P,Data!I$16)/$AY$45*$A$45 -> 50 | J46: =BH46+SUMIFS(SpringProvRep!$H:$H,SpringProvRep!$A:$A,Data!$A$20,SpringProvRep!$G:$G,"Coventry",SpringProvRep!$P:$P,Data!J$16)/$AY$45*$A$45 -> 4388.983051 | K46: =BI46+SUMIFS(SpringProvRep!$H:$H,SpringProvRep!$A:$A,Data!$A$20,SpringProvRep!$G:$G,"Coventry",SpringProvRep!$P:$P,Data!K$16)/$AY$45*$A$45 -> 850 | L46: =BJ46+SUMIFS(SpringProvRep!$H:$H,SpringProvRep!$A:$A,Data!$A$20,SpringProvRep!$G:$G,"Coventry",SpringProvRep!$P:$P,Data!L$16)/$AY$45*$A$45 -> 0 | M46: =BK46+SUMIFS(SpringProvRep!$H:$H,SpringProvRep!$A:$A,Data!$A$20,SpringProvRep!$G:$G,"Coventry",SpringProvRep!$P:$P,Data!M$16)/$AY$45*$A$45 -> 250 | N46: =BL46+SUMIFS(SpringProvRep!$H:$H,SpringProvRep!$A:$A,Data!$A$20,SpringProvRep!$G:$G,"Coventry",SpringProvRep!$P:$P,Data!N$16)/$AY$45*$A$45 -> 300 | O46: =BM46+SUMIFS(SpringProvRep!$H:$H,SpringProvRep!$A:$A,Data!$A$20,SpringProvRep!$G:$G,"Coventry",SpringProvRep!$P:$P,Data!O$16)/$AY$45*$A$45 -> 0 | P46: =BN46+SUMIFS(SpringProvRep!$H:$H,SpringProvRep!$A:$A,Data!$A$20,SpringProvRep!$G:$G,"Coventry",SpringProvRep!$P:$P,Data!P$16)/$AY$45*$A$45 -> 1300 | Q46: =BO46+SUMIFS(SpringProvRep!$H:$H,SpringProvRep!$A:$A,Data!$A$20,SpringProvRep!$G:$G,"Coventry",SpringProvRep!$P:$P,Data!Q$16)/$AY$45*$A$45 -> 550 | R46: =BP46+SUMIFS(SpringProvRep!$H:$H,SpringProvRep!$A:$A,Data!$A$20,SpringProvRep!$G:$G,"Coventry",SpringProvRep!$P:$P,Data!R$16)/$AY$45*$A$45 -> 0 | S46: =BQ46+SUMIFS(SpringProvRep!$H:$H,SpringProvRep!$A:$A,Data!$A$20,SpringProvRep!$G:$G,"Coventry",SpringProvRep!$P:$P,Data!S$16)/$AY$45*$A$45 -> 218.6440678 | T46: =BR46+SUMIFS(SpringProvRep!$H:$H,SpringProvRep!$A:$A,Data!$A$20,SpringProvRep!$G:$G,"Coventry",SpringProvRep!$P:$P,Data!T$16)/$AY$45*$A$45 -> 50 | U46: =BS46+SUMIFS(SpringProvRep!$H:$H,SpringProvRep!$A:$A,Data!$A$20,SpringProvRep!$G:$G,"Coventry",SpringProvRep!$P:$P,Data!U$16)/$AY$45*$A$45 -> 0 | V46: =SUM(D46:U46)/$A$45 -> 159.1525424 | W46: =SUMPRODUCT(D46:U46,$V$6:$AM$6)/$A$15 -> 519857.8026 | X46: =BU46+SUMIFS(SpringProvRep!$H:$H,SpringProvRep!$A:$A,Data!$A$20,SpringProvRep!$G:$G,"<>Coventry",SpringProvRep!$P:$P,Data!X$16)/$AY$45*$A$45 -> 0 | Y46: =BV46+SUMIFS(SpringProvRep!$H:$H,SpringProvRep!$A:$A,Data!$A$20,SpringProvRep!$G:$G,"<>Coventry",SpringProvRep!$P:$P,Data!Y$16)/$AY$45*$A$45 -> 0 | Z46: =BW46+SUMIFS(SpringProvRep!$H:$H,SpringProvRep!$A:$A,Data!$A$20,SpringProvRep!$G:$G,"<>Coventry",SpringProvRep!$P:$P,Data!Z$16)/$AY$45*$A$45 -> 0 | AA46: =BX46+SUMIFS(SpringProvRep!$H:$H,SpringProvRep!$A:$A,Data!$A$20,SpringProvRep!$G:$G,"<>Coventry",SpringProvRep!$P:$P,Data!AA$16)/$AY$45*$A$45 -> 0 | AB46: =BY46+SUMIFS(SpringProvRep!$H:$H,SpringProvRep!$A:$A,Data!$A$20,SpringProvRep!$G:$G,"<>Coventry",SpringProvRep!$P:$P,Data!AB$16)/$AY$45*$A$45 -> 0 | AC46: =BZ46+SUMIFS(SpringProvRep!$H:$H,SpringProvRep!$A:$A,Data!$A$20,SpringProvRep!$G:$G,"<>Coventry",SpringProvRep!$P:$P,Data!AC$16)/$AY$45*$A$45 -> 0 | AD46: =CA46+SUMIFS(SpringProvRep!$H:$H,SpringProvRep!$A:$A,Data!$A$20,SpringProvRep!$G:$G,"<>Coventry",SpringProvRep!$P:$P,Data!AD$16)/$AY$45*$A$45 -> 50 | AE46: =CB46+SUMIFS(SpringProvRep!$H:$H,SpringProvRep!$A:$A,Data!$A$20,SpringProvRep!$G:$G,"<>Coventry",SpringProvRep!$P:$P,Data!AE$16)/$AY$45*$A$45 -> 0 | AF46: =CC46+SUMIFS(SpringProvRep!$H:$H,SpringProvRep!$A:$A,Data!$A$20,SpringProvRep!$G:$G,"<>Coventry",SpringProvRep!$P:$P,Data!AF$16)/$AY$45*$A$45 -> 0 | AG46: =CD46+SUMIFS(SpringProvRep!$H:$H,SpringProvRep!$A:$A,Data!$A$20,SpringProvRep!$G:$G,"<>Coventry",SpringProvRep!$P:$P,Data!AG$16)/$AY$45*$A$45 -> 0 | AH46: =CE46+SUMIFS(SpringProvRep!$H:$H,SpringProvRep!$A:$A,Data!$A$20,SpringProvRep!$G:$G,"<>Coventry",SpringProvRep!$P:$P,Data!AH$16)/$AY$45*$A$45 -> 0 | AI46: =CF46+SUMIFS(SpringProvRep!$H:$H,SpringProvRep!$A:$A,Data!$A$20,SpringProvRep!$G:$G,"<>Coventry",SpringProvRep!$P:$P,Data!AI$16)/$AY$45*$A$45 -> 0 | AJ46: =CG46+SUMIFS(SpringProvRep!$H:$H,SpringProvRep!$A:$A,Data!$A$20,SpringProvRep!$G:$G,"<>Coventry",SpringProvRep!$P:$P,Data!AJ$16)/$AY$45*$A$45 -> 0 | AK46: =CH46+SUMIFS(SpringProvRep!$H:$H,SpringProvRep!$A:$A,Data!$A$20,SpringProvRep!$G:$G,"<>Coventry",SpringProvRep!$P:$P,Data!AK$16)/$AY$45*$A$45 -> 0 | AL46: =CI46+SUMIFS(SpringProvRep!$H:$H,SpringProvRep!$A:$A,Data!$A$20,SpringProvRep!$G:$G,"<>Coventry",SpringProvRep!$P:$P,Data!AL$16)/$AY$45*$A$45 -> 0 | AM46: =CJ46+SUMIFS(SpringProvRep!$H:$H,SpringProvRep!$A:$A,Data!$A$20,SpringProvRep!$G:$G,"<>Coventry",SpringProvRep!$P:$P,Data!AM$16)/$AY$45*$A$45 -> 0 | AN46: =CK46+SUMIFS(SpringProvRep!$H:$H,SpringProvRep!$A:$A,Data!$A$20,SpringProvRep!$G:$G,"<>Coventry",SpringProvRep!$P:$P,Data!AN$16)/$AY$45*$A$45 -> 0 | AO46: =CL46+SUMIFS(SpringProvRep!$H:$H,SpringProvRep!$A:$A,Data!$A$20,SpringProvRep!$G:$G,"<>Coventry",SpringProvRep!$P:$P,Data!AO$16)/$AY$45*$A$45 -> 0 | AP46: =SUM(X46:AO46)/$A$45 -> 1 | AQ46: =SUMPRODUCT(X46:AO46,$V$4:$AM$4)/$A$15 -> 2678.324755 | AR46: =W46+AQ46 -> 522536.1273 | AS46: =AP46+V46 -> 160.1525424 | AT46: =AS46-AU46 -> 0.1525423729 | AU46: =AU33 -> 160 | AV46: =[11]Data!$AS46 -> 160 | AW46: =[11]Data!$M4 -> 160 | AZ46: =($M$4-$E$4)*$A$45 -> 0
A47: 2 | B47: Kingsbury | C47: =10000/$A$15 -> 52.08333333 | D47: =BB47+SUMIFS(SpringProvRep!$H:$H,SpringProvRep!$A:$A,Data!$A$21,SpringProvRep!$G:$G,"Coventry",SpringProvRep!$P:$P,Data!D$16)/$AY$45*$A$45 -> 0 | E47: =BC47+SUMIFS(SpringProvRep!$H:$H,SpringProvRep!$A:$A,Data!$A$21,SpringProvRep!$G:$G,"Coventry",SpringProvRep!$P:$P,Data!E$16)/$AY$45*$A$45 -> 0 | F47: =BD47+SUMIFS(SpringProvRep!$H:$H,SpringProvRep!$A:$A,Data!$A$21,SpringProvRep!$G:$G,"Coventry",SpringProvRep!$P:$P,Data!F$16)/$AY$45*$A$45 -> 0 | G47: =BE47+SUMIFS(SpringProvRep!$H:$H,SpringProvRep!$A:$A,Data!$A$21,SpringProvRep!$G:$G,"Coventry",SpringProvRep!$P:$P,Data!G$16)/$AY$45*$A$45 -> 0 | H47: =BF47+SUMIFS(SpringProvRep!$H:$H,SpringProvRep!$A:$A,Data!$A$21,SpringProvRep!$G:$G,"Coventry",SpringProvRep!$P:$P,Data!H$16)/$AY$45*$A$45 -> 0 | I47: =BG47+SUMIFS(SpringProvRep!$H:$H,SpringProvRep!$A:$A,Data!$A$21,SpringProvRep!$G:$G,"Coventry",SpringProvRep!$P:$P,Data!I$16)/$AY$45*$A$45 -> 0 | J47: =BH47+SUMIFS(SpringProvRep!$H:$H,SpringProvRep!$A:$A,Data!$A$21,SpringProvRep!$G:$G,"Coventry",SpringProvRep!$P:$P,Data!J$16)/$AY$45*$A$45 -> 2750 | K47: =BI47+SUMIFS(SpringProvRep!$H:$H,SpringProvRep!$A:$A,Data!$A$21,SpringProvRep!$G:$G,"Coventry",SpringProvRep!$P:$P,Data!K$16)/$AY$45*$A$45 -> 350 | L47: =BJ47+SUMIFS(SpringProvRep!$H:$H,SpringProvRep!$A:$A,Data!$A$21,SpringProvRep!$G:$G,"Coventry",SpringProvRep!$P:$P,Data!L$16)/$AY$45*$A$45 -> 0 | M47: =BK47+SUMIFS(SpringProvRep!$H:$H,SpringProvRep!$A:$A,Data!$A$21,SpringProvRep!$G:$G,"Coventry",SpringProvRep!$P:$P,Data!M$16)/$AY$45*$A$45 -> 0 | N47: =BL47+SUMIFS(SpringProvRep!$H:$H,SpringProvRep!$A:$A,Data!$A$21,SpringProvRep!$G:$G,"Coventry",SpringProvRep!$P:$P,Data!N$16)/$AY$45*$A$45 -> 350 | O47: =BM47+SUMIFS(SpringProvRep!$H:$H,SpringProvRep!$A:$A,Data!$A$21,SpringProvRep!$G:$G,"Coventry",SpringProvRep!$P:$P,Data!O$16)/$AY$45*$A$45 -> 0 | P47: =BN47+SUMIFS(SpringProvRep!$H:$H,SpringProvRep!$A:$A,Data!$A$21,SpringProvRep!$G:$G,"Coventry",SpringProvRep!$P:$P,Data!P$16)/$AY$45*$A$45 -> 1350 | Q47: =BO47+SUMIFS(SpringProvRep!$H:$H,SpringProvRep!$A:$A,Data!$A$21,SpringProvRep!$G:$G,"Coventry",SpringProvRep!$P:$P,Data!Q$16)/$AY$45*$A$45 -> 100 | R47: =BP47+SUMIFS(SpringProvRep!$H:$H,SpringProvRep!$A:$A,Data!$A$21,SpringProvRep!$G:$G,"Coventry",SpringProvRep!$P:$P,Data!R$16)/$AY$45*$A$45 -> 0 | S47: =BQ47+SUMIFS(SpringProvRep!$H:$H,SpringProvRep!$A:$A,Data!$A$21,SpringProvRep!$G:$G,"Coventry",SpringProvRep!$P:$P,Data!S$16)/$AY$45*$A$45 -> 0 | T47: =BR47+SUMIFS(SpringProvRep!$H:$H,SpringProvRep!$A:$A,Data!$A$21,SpringProvRep!$G:$G,"Coventry",SpringProvRep!$P:$P,Data!T$16)/$AY$45*$A$45 -> 0 | U47: =BS47+SUMIFS(SpringProvRep!$H:$H,SpringProvRep!$A:$A,Data!$A$21,SpringProvRep!$G:$G,"Coventry",SpringProvRep!$P:$P,Data!U$16)/$AY$45*$A$45 -> 0 | V47: =SUM(D47:U47)/$A$45 -> 98 | W47: 333046.002 | X47: =BU47+SUMIFS(SpringProvRep!$H:$H,SpringProvRep!$A:$A,Data!$A$21,SpringProvRep!$G:$G,"<>Coventry",SpringProvRep!$P:$P,Data!X$16)/$AY$45*$A$45 -> 0 | Y47: =BV47+SUMIFS(SpringProvRep!$H:$H,SpringProvRep!$A:$A,Data!$A$21,SpringProvRep!$G:$G,"<>Coventry",SpringProvRep!$P:$P,Data!Y$16)/$AY$45*$A$45 -> 0 | Z47: =BW47+SUMIFS(SpringProvRep!$H:$H,SpringProvRep!$A:$A,Data!$A$21,SpringProvRep!$G:$G,"<>Coventry",SpringProvRep!$P:$P,Data!Z$16)/$AY$45*$A$45 -> 0 | AA47: =BX47+SUMIFS(SpringProvRep!$H:$H,SpringProvRep!$A:$A,Data!$A$21,SpringProvRep!$G:$G,"<>Coventry",SpringProvRep!$P:$P,Data!AA$16)/$AY$45*$A$45 -> 0 | AB47: =BY47+SUMIFS(SpringProvRep!$H:$H,SpringProvRep!$A:$A,Data!$A$21,SpringProvRep!$G:$G,"<>Coventry",SpringProvRep!$P:$P,Data!AB$16)/$AY$45*$A$45 -> 0 | AC47: =BZ47+SUMIFS(SpringProvRep!$H:$H,SpringProvRep!$A:$A,Data!$A$21,SpringProvRep!$G:$G,"<>Coventry",SpringProvRep!$P:$P,Data!AC$16)/$AY$45*$A$45 -> 0 | AD47: =CA47+SUMIFS(SpringProvRep!$H:$H,SpringProvRep!$A:$A,Data!$A$21,SpringProvRep!$G:$G,"<>Coventry",SpringProvRep!$P:$P,Data!AD$16)/$AY$45*$A$45 -> 50 | AE47: =CB47+SUMIFS(SpringProvRep!$H:$H,SpringProvRep!$A:$A,Data!$A$21,SpringProvRep!$G:$G,"<>Coventry",SpringProvRep!$P:$P,Data!AE$16)/$AY$45*$A$45 -> 50 | AF47: =CC47+SUMIFS(SpringProvRep!$H:$H,SpringProvRep!$A:$A,Data!$A$21,SpringProvRep!$G:$G,"<>Coventry",SpringProvRep!$P:$P,Data!AF$16)/$AY$45*$A$45 -> 0 | AG47: =CD47+SUMIFS(SpringProvRep!$H:$H,SpringProvRep!$A:$A,Data!$A$21,SpringProvRep!$G:$G,"<>Coventry",SpringProvRep!$P:$P,Data!AG$16)/$AY$45*$A$45 -> 0 | AH47: =CE47+SUMIFS(SpringProvRep!$H:$H,SpringProvRep!$A:$A,Data!$A$21,SpringProvRep!$G:$G,"<>Coventry",SpringProvRep!$P:$P,Data!AH$16)/$AY$45*$A$45 -> 0 | AI47: =CF47+SUMIFS(SpringProvRep!$H:$H,SpringProvRep!$A:$A,Data!$A$21,SpringProvRep!$G:$G,"<>Coventry",SpringProvRep!$P:$P,Data!AI$16)/$AY$45*$A$45 -> 0 | AJ47: =CG47+SUMIFS(SpringProvRep!$H:$H,SpringProvRep!$A:$A,Data!$A$21,SpringProvRep!$G:$G,"<>Coventry",SpringProvRep!$P:$P,Data!AJ$16)/$AY$45*$A$45 -> 50 | AK47: =CH47+SUMIFS(SpringProvRep!$H:$H,SpringProvRep!$A:$A,Data!$A$21,SpringProvRep!$G:$G,"<>Coventry",SpringProvRep!$P:$P,Data!AK$16)/$AY$45*$A$45 -> 0 | AL47: =CI47+SUMIFS(SpringProvRep!$H:$H,SpringProvRep!$A:$A,Data!$A$21,SpringProvRep!$G:$G,"<>Coventry",SpringProvRep!$P:$P,Data!AL$16)/$AY$45*$A$45 -> 0 | AM47: =CJ47+SUMIFS(SpringProvRep!$H:$H,SpringProvRep!$A:$A,Data!$A$21,SpringProvRep!$G:$G,"<>Coventry",SpringProvRep!$P:$P,Data!AM$16)/$AY$45*$A$45 -> 0 | AN47: =CK47+SUMIFS(SpringProvRep!$H:$H,SpringProvRep!$A:$A,Data!$A$21,SpringProvRep!$G:$G,"<>Coventry",SpringProvRep!$P:$P,Data!AN$16)/$AY$45*$A$45 -> 0 | AO47: =CL47+SUMIFS(SpringProvRep!$H:$H,SpringProvRep!$A:$A,Data!$A$21,SpringProvRep!$G:$G,"<>Coventry",SpringProvRep!$P:$P,Data!AO$16)/$AY$45*$A$45 -> 0 | AP47: =SUM(X47:AO47)/$A$45 -> 3 | AQ47: 9508.055316 | AR47: =W47+AQ47 -> 342554.0574 | AS47: =AP47+V47 -> 101 | AT47: 1 | AU47: =AU34 -> 100 | AV47: =[11]Data!$AS47 -> 97.05896552 | AW47: =[11]Data!$M5 -> 100 | AZ47: =($M$5-$E$5)*$A$45 -> 0
A48: 3 | B48: RiverBank | C48: 52.08333333 | D48: =BB48+SUMIFS(SpringProvRep!$H:$H,SpringProvRep!$A:$A,Data!$A$22,SpringProvRep!$G:$G,"Coventry",SpringProvRep!$P:$P,Data!D$16)/$AY$45*$A$45 -> 0 | E48: =BC48+SUMIFS(SpringProvRep!$H:$H,SpringProvRep!$A:$A,Data!$A$22,SpringProvRep!$G:$G,"Coventry",SpringProvRep!$P:$P,Data!E$16)/$AY$45*$A$45 -> 0 | F48: =BD48+SUMIFS(SpringProvRep!$H:$H,SpringProvRep!$A:$A,Data!$A$22,SpringProvRep!$G:$G,"Coventry",SpringProvRep!$P:$P,Data!F$16)/$AY$45*$A$45 -> 650 | G48: =BE48+SUMIFS(SpringProvRep!$H:$H,SpringProvRep!$A:$A,Data!$A$22,SpringProvRep!$G:$G,"Coventry",SpringProvRep!$P:$P,Data!G$16)/$AY$45*$A$45 -> 966.1016949 | H48: =BF48+SUMIFS(SpringProvRep!$H:$H,SpringProvRep!$A:$A,Data!$A$22,SpringProvRep!$G:$G,"Coventry",SpringProvRep!$P:$P,Data!H$16)/$AY$45*$A$45 -> 50 | I48: =BG48+SUMIFS(SpringProvRep!$H:$H,SpringProvRep!$A:$A,Data!$A$22,SpringProvRep!$G:$G,"Coventry",SpringProvRep!$P:$P,Data!I$16)/$AY$45*$A$45 -> 50 | J48: =BH48+SUMIFS(SpringProvRep!$H:$H,SpringProvRep!$A:$A,Data!$A$22,SpringProvRep!$G:$G,"Coventry",SpringProvRep!$P:$P,Data!J$16)/$AY$45*$A$45 -> 2888.983051 | K48: =BI48+SUMIFS(SpringProvRep!$H:$H,SpringProvRep!$A:$A,Data!$A$22,SpringProvRep!$G:$G,"Coventry",SpringProvRep!$P:$P,Data!K$16)/$AY$45*$A$45 -> 2900 | L48: =BJ48+SUMIFS(SpringProvRep!$H:$H,SpringProvRep!$A:$A,Data!$A$22,SpringProvRep!$G:$G,"Coventry",SpringProvRep!$P:$P,Data!L$16)/$AY$45*$A$45 -> 100 | M48: =BK48+SUMIFS(SpringProvRep!$H:$H,SpringProvRep!$A:$A,Data!$A$22,SpringProvRep!$G:$G,"Coventry",SpringProvRep!$P:$P,Data!M$16)/$AY$45*$A$45 -> 400 | N48: =BL48+SUMIFS(SpringProvRep!$H:$H,SpringProvRep!$A:$A,Data!$A$22,SpringProvRep!$G:$G,"Coventry",SpringProvRep!$P:$P,Data!N$16)/$AY$45*$A$45 -> 100 | O48: =BM48+SUMIFS(SpringProvRep!$H:$H,SpringProvRep!$A:$A,Data!$A$22,SpringProvRep!$G:$G,"Coventry",SpringProvRep!$P:$P,Data!O$16)/$AY$45*$A$45 -> 200 | P48: =BN48+SUMIFS(SpringProvRep!$H:$H,SpringProvRep!$A:$A,Data!$A$22,SpringProvRep!$G:$G,"Coventry",SpringProvRep!$P:$P,Data!P$16)/$AY$45*$A$45 -> 1300 | Q48: =BO48+SUMIFS(SpringProvRep!$H:$H,SpringProvRep!$A:$A,Data!$A$22,SpringProvRep!$G:$G,"Coventry",SpringProvRep!$P:$P,Data!Q$16)/$AY$45*$A$45 -> 200 | R48: =BP48+SUMIFS(SpringProvRep!$H:$H,SpringProvRep!$A:$A,Data!$A$22,SpringProvRep!$G:$G,"Coventry",SpringProvRep!$P:$P,Data!R$16)/$AY$45*$A$45 -> 0 | S48: =BQ48+SUMIFS(SpringProvRep!$H:$H,SpringProvRep!$A:$A,Data!$A$22,SpringProvRep!$G:$G,"Coventry",SpringProvRep!$P:$P,Data!S$16)/$AY$45*$A$45 -> 50 | T48: =BR48+SUMIFS(SpringProvRep!$H:$H,SpringProvRep!$A:$A,Data!$A$22,SpringProvRep!$G:$G,"Coventry",SpringProvRep!$P:$P,Data!T$16)/$AY$45*$A$45 -> 0 | U48: =BS48+SUMIFS(SpringProvRep!$H:$H,SpringProvRep!$A:$A,Data!$A$22,SpringProvRep!$G:$G,"Coventry",SpringProvRep!$P:$P,Data!U$16)/$AY$45*$A$45 -> 0 | V48: 197.1016949 | W48: 552213.2647 | X48: =BU48+SUMIFS(SpringProvRep!$H:$H,SpringProvRep!$A:$A,Data!$A$22,SpringProvRep!$G:$G,"<>Coventry",SpringProvRep!$P:$P,Data!X$16)/$AY$45*$A$45 -> 0 | Y48: =BV48+SUMIFS(SpringProvRep!$H:$H,SpringProvRep!$A:$A,Data!$A$22,SpringProvRep!$G:$G,"<>Coventry",SpringProvRep!$P:$P,Data!Y$16)/$AY$45*$A$45 -> 0 | Z48: =BW48+SUMIFS(SpringProvRep!$H:$H,SpringProvRep!$A:$A,Data!$A$22,SpringProvRep!$G:$G,"<>Coventry",SpringProvRep!$P:$P,Data!Z$16)/$AY$45*$A$45 -> 0 | AA48: =BX48+SUMIFS(SpringProvRep!$H:$H,SpringProvRep!$A:$A,Data!$A$22,SpringProvRep!$G:$G,"<>Coventry",SpringProvRep!$P:$P,Data!AA$16)/$AY$45*$A$45 -> 0 | AB48: =BY48+SUMIFS(SpringProvRep!$H:$H,SpringProvRep!$A:$A,Data!$A$22,SpringProvRep!$G:$G,"<>Coventry",SpringProvRep!$P:$P,Data!AB$16)/$AY$45*$A$45 -> 0 | AC48: =BZ48+SUMIFS(SpringProvRep!$H:$H,SpringProvRep!$A:$A,Data!$A$22,SpringProvRep!$G:$G,"<>Coventry",SpringProvRep!$P:$P,Data!AC$16)/$AY$45*$A$45 -> 0 | AD48: =CA48+SUMIFS(SpringProvRep!$H:$H,SpringProvRep!$A:$A,Data!$A$22,SpringProvRep!$G:$G,"<>Coventry",SpringProvRep!$P:$P,Data!AD$16)/$AY$45*$A$45 -> 50 | AE48: =CB48+SUMIFS(SpringProvRep!$H:$H,SpringProvRep!$A:$A,Data!$A$22,SpringProvRep!$G:$G,"<>Coventry",SpringProvRep!$P:$P,Data!AE$16)/$AY$45*$A$45 -> 0 | AF48: =CC48+SUMIFS(SpringProvRep!$H:$H,SpringProvRep!$A:$A,Data!$A$22,SpringProvRep!$G:$G,"<>Coventry",SpringProvRep!$P:$P,Data!AF$16)/$AY$45*$A$45 -> 0 | AG48: =CD48+SUMIFS(SpringProvRep!$H:$H,SpringProvRep!$A:$A,Data!$A$22,SpringProvRep!$G:$G,"<>Coventry",SpringProvRep!$P:$P,Data!AG$16)/$AY$45*$A$45 -> 0 | AH48: =CE48+SUMIFS(SpringProvRep!$H:$H,SpringProvRep!$A:$A,Data!$A$22,SpringProvRep!$G:$G,"<>Coventry",SpringProvRep!$P:$P,Data!AH$16)/$AY$45*$A$45 -> 0 | AI48: =CF48+SUMIFS(SpringProvRep!$H:$H,SpringProvRep!$A:$A,Data!$A$22,SpringProvRep!$G:$G,"<>Coventry",SpringProvRep!$P:$P,Data!AI$16)/$AY$45*$A$45 -> 0 | AJ48: =CG48+SUMIFS(SpringProvRep!$H:$H,SpringProvRep!$A:$A,Data!$A$22,SpringProvRep!$G:$G,"<>Coventry",SpringProvRep!$P:$P,Data!AJ$16)/$AY$45*$A$45 -> 0 | AK48: =CH48+SUMIFS(SpringProvRep!$H:$H,SpringProvRep!$A:$A,Data!$A$22,SpringProvRep!$G:$G,"<>Coventry",SpringProvRep!$P:$P,Data!AK$16)/$AY$45*$A$45 -> 0 | AL48: =CI48+SUMIFS(SpringProvRep!$H:$H,SpringProvRep!$A:$A,Data!$A$22,SpringProvRep!$G:$G,"<>Coventry",SpringProvRep!$P:$P,Data!AL$16)/$AY$45*$A$45 -> 0 | AM48: =CJ48+SUMIFS(SpringProvRep!$H:$H,SpringProvRep!$A:$A,Data!$A$22,SpringProvRep!$G:$G,"<>Coventry",SpringProvRep!$P:$P,Data!AM$16)/$AY$45*$A$45 -> 0 | AN48: =CK48+SUMIFS(SpringProvRep!$H:$H,SpringProvRep!$A:$A,Data!$A$22,SpringProvRep!$G:$G,"<>Coventry",SpringProvRep!$P:$P,Data!AN$16)/$AY$45*$A$45 -> 0 | AO48: =CL48+SUMIFS(SpringProvRep!$H:$H,SpringProvRep!$A:$A,Data!$A$22,SpringProvRep!$G:$G,"<>Coventry",SpringProvRep!$P:$P,Data!AO$16)/$AY$45*$A$45 -> 0 | AP48: 1 | AQ48: 2678.324755 | AR48: 554891.5894 | AS48: 198.1016949 | AT48: -1.898305085 | AU48: 200 | AV48: =[11]Data!$AS48 -> 200 | AW48: =[11]Data!$M6 -> 200 | AZ48: =($M$6-$E$6)*$A$45 -> 0
A49: 4 | B49: Corley | C49: 52.08333333 | D49: =BB49+SUMIFS(SpringProvRep!$H:$H,SpringProvRep!$A:$A,Data!$A$23,SpringProvRep!$G:$G,"Coventry",SpringProvRep!$P:$P,Data!D$16)/$AY$45*$A$45 -> 0 | E49: =BC49+SUMIFS(SpringProvRep!$H:$H,SpringProvRep!$A:$A,Data!$A$23,SpringProvRep!$G:$G,"Coventry",SpringProvRep!$P:$P,Data!E$16)/$AY$45*$A$45 -> 0 | F49: =BD49+SUMIFS(SpringProvRep!$H:$H,SpringProvRep!$A:$A,Data!$A$23,SpringProvRep!$G:$G,"Coventry",SpringProvRep!$P:$P,Data!F$16)/$AY$45*$A$45 -> 0 | G49: =BE49+SUMIFS(SpringProvRep!$H:$H,SpringProvRep!$A:$A,Data!$A$23,SpringProvRep!$G:$G,"Coventry",SpringProvRep!$P:$P,Data!G$16)/$AY$45*$A$45 -> 0 | H49: =BF49+SUMIFS(SpringProvRep!$H:$H,SpringProvRep!$A:$A,Data!$A$23,SpringProvRep!$G:$G,"Coventry",SpringProvRep!$P:$P,Data!H$16)/$AY$45*$A$45 -> 0 | I49: =BG49+SUMIFS(SpringProvRep!$H:$H,SpringProvRep!$A:$A,Data!$A$23,SpringProvRep!$G:$G,"Coventry",SpringProvRep!$P:$P,Data!I$16)/$AY$45*$A$45 -> 0 | J49: =BH49+SUMIFS(SpringProvRep!$H:$H,SpringProvRep!$A:$A,Data!$A$23,SpringProvRep!$G:$G,"Coventry",SpringProvRep!$P:$P,Data!J$16)/$AY$45*$A$45 -> 5914.728682 | K49: =BI49+SUMIFS(SpringProvRep!$H:$H,SpringProvRep!$A:$A,Data!$A$23,SpringProvRep!$G:$G,"Coventry",SpringProvRep!$P:$P,Data!K$16)/$AY$45*$A$45 -> 0 | L49: =BJ49+SUMIFS(SpringProvRep!$H:$H,SpringProvRep!$A:$A,Data!$A$23,SpringProvRep!$G:$G,"Coventry",SpringProvRep!$P:$P,Data!L$16)/$AY$45*$A$45 -> 488.372093 | M49: =BK49+SUMIFS(SpringProvRep!$H:$H,SpringProvRep!$A:$A,Data!$A$23,SpringProvRep!$G:$G,"Coventry",SpringProvRep!$P:$P,Data!M$16)/$AY$45*$A$45 -> 0 | N49: =BL49+SUMIFS(SpringProvRep!$H:$H,SpringProvRep!$A:$A,Data!$A$23,SpringProvRep!$G:$G,"Coventry",SpringProvRep!$P:$P,Data!N$16)/$AY$45*$A$45 -> 194.0612272 | O49: =BM49+SUMIFS(SpringProvRep!$H:$H,SpringProvRep!$A:$A,Data!$A$23,SpringProvRep!$G:$G,"Coventry",SpringProvRep!$P:$P,Data!O$16)/$AY$45*$A$45 -> 0 | P49: =BN49+SUMIFS(SpringProvRep!$H:$H,SpringProvRep!$A:$A,Data!$A$23,SpringProvRep!$G:$G,"Coventry",SpringProvRep!$P:$P,Data!P$16)/$AY$45*$A$45 -> 759.6899225 | Q49: =BO49+SUMIFS(SpringProvRep!$H:$H,SpringProvRep!$A:$A,Data!$A$23,SpringProvRep!$G:$G,"Coventry",SpringProvRep!$P:$P,Data!Q$16)/$AY$45*$A$45 -> 0 | R49: =BP49+SUMIFS(SpringProvRep!$H:$H,SpringProvRep!$A:$A,Data!$A$23,SpringProvRep!$G:$G,"Coventry",SpringProvRep!$P:$P,Data!R$16)/$AY$45*$A$45 -> 0 | S49: =BQ49+SUMIFS(SpringProvRep!$H:$H,SpringProvRep!$A:$A,Data!$A$23,SpringProvRep!$G:$G,"Coventry",SpringProvRep!$P:$P,Data!S$16)/$AY$45*$A$45 -> 0 | T49: =BR49+SUMIFS(SpringProvRep!$H:$H,SpringProvRep!$A:$A,Data!$A$23,SpringProvRep!$G:$G,"Coventry",SpringProvRep!$P:$P,Data!T$16)/$AY$45*$A$45 -> 0 | U49: =BS49+SUMIFS(SpringProvRep!$H:$H,SpringProvRep!$A:$A,Data!$A$23,SpringProvRep!$G:$G,"Coventry",SpringProvRep!$P:$P,Data!U$16)/$AY$45*$A$45 -> 0 | V49: 147.1370385 | W49: 439417.7516 | X49: =BU49+SUMIFS(SpringProvRep!$H:$H,SpringProvRep!$A:$A,Data!$A$23,SpringProvRep!$G:$G,"<>Coventry",SpringProvRep!$P:$P,Data!X$16)/$AY$45*$A$45 -> 0 | Y49: =BV49+SUMIFS(SpringProvRep!$H:$H,SpringProvRep!$A:$A,Data!$A$23,SpringProvRep!$G:$G,"<>Coventry",SpringProvRep!$P:$P,Data!Y$16)/$AY$45*$A$45 -> 0 | Z49: =BW49+SUMIFS(SpringProvRep!$H:$H,SpringProvRep!$A:$A,Data!$A$23,SpringProvRep!$G:$G,"<>Coventry",SpringProvRep!$P:$P,Data!Z$16)/$AY$45*$A$45 -> 0 | AA49: =BX49+SUMIFS(SpringProvRep!$H:$H,SpringProvRep!$A:$A,Data!$A$23,SpringProvRep!$G:$G,"<>Coventry",SpringProvRep!$P:$P,Data!AA$16)/$AY$45*$A$45 -> 0 | AB49: =BY49+SUMIFS(SpringProvRep!$H:$H,SpringProvRep!$A:$A,Data!$A$23,SpringProvRep!$G:$G,"<>Coventry",SpringProvRep!$P:$P,Data!AB$16)/$AY$45*$A$45 -> 0 | AC49: =BZ49+SUMIFS(SpringProvRep!$H:$H,SpringProvRep!$A:$A,Data!$A$23,SpringProvRep!$G:$G,"<>Coventry",SpringProvRep!$P:$P,Data!AC$16)/$AY$45*$A$45 -> 0 | AD49: =CA49+SUMIFS(SpringProvRep!$H:$H,SpringProvRep!$A:$A,Data!$A$23,SpringProvRep!$G:$G,"<>Coventry",SpringProvRep!$P:$P,Data!AD$16)/$AY$45*$A$45 -> 54.26356589 | AE49: =CB49+SUMIFS(SpringProvRep!$H:$H,SpringProvRep!$A:$A,Data!$A$23,SpringProvRep!$G:$G,"<>Coventry",SpringProvRep!$P:$P,Data!AE$16)/$AY$45*$A$45 -> 0 | AF49: =CC49+SUMIFS(SpringProvRep!$H:$H,SpringProvRep!$A:$A,Data!$A$23,SpringProvRep!$G:$G,"<>Coventry",SpringProvRep!$P:$P,Data!AF$16)/$AY$45*$A$45 -> 0 | AG49: =CD49+SUMIFS(SpringProvRep!$H:$H,SpringProvRep!$A:$A,Data!$A$23,SpringProvRep!$G:$G,"<>Coventry",SpringProvRep!$P:$P,Data!AG$16)/$AY$45*$A$45 -> 0 | AH49: =CE49+SUMIFS(SpringProvRep!$H:$H,SpringProvRep!$A:$A,Data!$A$23,SpringProvRep!$G:$G,"<>Coventry",SpringProvRep!$P:$P,Data!AH$16)/$AY$45*$A$45 -> 0 | AI49: =CF49+SUMIFS(SpringProvRep!$H:$H,SpringProvRep!$A:$A,Data!$A$23,SpringProvRep!$G:$G,"<>Coventry",SpringProvRep!$P:$P,Data!AI$16)/$AY$45*$A$45 -> 0 | AJ49: =CG49+SUMIFS(SpringProvRep!$H:$H,SpringProvRep!$A:$A,Data!$A$23,SpringProvRep!$G:$G,"<>Coventry",SpringProvRep!$P:$P,Data!AJ$16)/$AY$45*$A$45 -> 0 | AK49: =CH49+SUMIFS(SpringProvRep!$H:$H,SpringProvRep!$A:$A,Data!$A$23,SpringProvRep!$G:$G,"<>Coventry",SpringProvRep!$P:$P,Data!AK$16)/$AY$45*$A$45 -> 0 | AL49: =CI49+SUMIFS(SpringProvRep!$H:$H,SpringProvRep!$A:$A,Data!$A$23,SpringProvRep!$G:$G,"<>Coventry",SpringProvRep!$P:$P,Data!AL$16)/$AY$45*$A$45 -> 0 | AM49: =CJ49+SUMIFS(SpringProvRep!$H:$H,SpringProvRep!$A:$A,Data!$A$23,SpringProvRep!$G:$G,"<>Coventry",SpringProvRep!$P:$P,Data!AM$16)/$AY$45*$A$45 -> 0 | AN49: =CK49+SUMIFS(SpringProvRep!$H:$H,SpringProvRep!$A:$A,Data!$A$23,SpringProvRep!$G:$G,"<>Coventry",SpringProvRep!$P:$P,Data!AN$16)/$AY$45*$A$45 -> 0 | AO49: =CL49+SUMIFS(SpringProvRep!$H:$H,SpringProvRep!$A:$A,Data!$A$23,SpringProvRep!$G:$G,"<>Coventry",SpringProvRep!$P:$P,Data!AO$16)/$AY$45*$A$45 -> 0 | AP49: 1.085271318 | AQ49: 2906.709036 | AR49: 442324.4606 | AS49: 148.2223098 | AT49: 8.222309815 | AU49: 140 | AV49: =[11]Data!$AS49 -> 135.7586207 | AW49: =[11]Data!$M7 -> 129 | AZ49: =($M$7-$E$7)*$A$45 -> 550 | BA49: =M7*$A$45 -> 7000 | BB49: 0 | BC49: 0 | BD49: 0 | BE49: 0 | BF49: 0 | BG49: 0 | BH49: 464.7286822 | BI49: 0 | BJ49: 38.37209302 | BK49: 0 | BL49: 15.24766785 | BM49: 0 | BN49: 59.68992248 | BO49: 0 | BP49: 0 | BQ49: 0 | BR49: 0 | BS49: 0 | BU49: 0 | BV49: 0 | BW49: 0 | BX49: 0 | BY49: 0 | BZ49: 0 | CA49: 4.263565891 | CB49: 0 | CC49: 0 | CD49: 0 | CE49: 0 | CF49: 0 | CG49: 0 | CH49: 0 | CI49: 0 | CJ49: 0 | CK49: 0 | CL49: 0
A50: 5 | B50: Tiverton | C50: 52.08333333 | D50: =BB50+SUMIFS(SpringProvRep!$H:$H,SpringProvRep!$A:$A,Data!$A$24,SpringProvRep!$G:$G,"Coventry",SpringProvRep!$P:$P,Data!D$16)/$AY$45*$A$45 -> 0 | E50: =BC50+SUMIFS(SpringProvRep!$H:$H,SpringProvRep!$A:$A,Data!$A$24,SpringProvRep!$G:$G,"Coventry",SpringProvRep!$P:$P,Data!E$16)/$AY$45*$A$45 -> 0 | F50: =BD50+SUMIFS(SpringProvRep!$H:$H,SpringProvRep!$A:$A,Data!$A$24,SpringProvRep!$G:$G,"Coventry",SpringProvRep!$P:$P,Data!F$16)/$AY$45*$A$45 -> 0 | G50: =BE50+SUMIFS(SpringProvRep!$H:$H,SpringProvRep!$A:$A,Data!$A$24,SpringProvRep!$G:$G,"Coventry",SpringProvRep!$P:$P,Data!G$16)/$AY$45*$A$45 -> 0 | H50: =BF50+SUMIFS(SpringProvRep!$H:$H,SpringProvRep!$A:$A,Data!$A$24,SpringProvRep!$G:$G,"Coventry",SpringProvRep!$P:$P,Data!H$16)/$AY$45*$A$45 -> 0 | I50: =BG50+SUMIFS(SpringProvRep!$H:$H,SpringProvRep!$A:$A,Data!$A$24,SpringProvRep!$G:$G,"Coventry",SpringProvRep!$P:$P,Data!I$16)/$AY$45*$A$45 -> 0 | J50: =BH50+SUMIFS(SpringProvRep!$H:$H,SpringProvRep!$A:$A,Data!$A$24,SpringProvRep!$G:$G,"Coventry",SpringProvRep!$P:$P,Data!J$16)/$AY$45*$A$45 -> 2933.035714 | K50: =BI50+SUMIFS(SpringProvRep!$H:$H,SpringProvRep!$A:$A,Data!$A$24,SpringProvRep!$G:$G,"Coventry",SpringProvRep!$P:$P,Data!K$16)/$AY$45*$A$45 -> 767.8571429 | L50: =BJ50+SUMIFS(SpringProvRep!$H:$H,SpringProvRep!$A:$A,Data!$A$24,SpringProvRep!$G:$G,"Coventry",SpringProvRep!$P:$P,Data!L$16)/$AY$45*$A$45 -> 0 | M50: =BK50+SUMIFS(SpringProvRep!$H:$H,SpringProvRep!$A:$A,Data!$A$24,SpringProvRep!$G:$G,"Coventry",SpringProvRep!$P:$P,Data!M$16)/$AY$45*$A$45 -> 421.4285714 | N50: =BL50+SUMIFS(SpringProvRep!$H:$H,SpringProvRep!$A:$A,Data!$A$24,SpringProvRep!$G:$G,"Coventry",SpringProvRep!$P:$P,Data!N$16)/$AY$45*$A$45 -> 207.1428571 | O50: =BM50+SUMIFS(SpringProvRep!$H:$H,SpringProvRep!$A:$A,Data!$A$24,SpringProvRep!$G:$G,"Coventry",SpringProvRep!$P:$P,Data!O$16)/$AY$45*$A$45 -> 0 | P50: =BN50+SUMIFS(SpringProvRep!$H:$H,SpringProvRep!$A:$A,Data!$A$24,SpringProvRep!$G:$G,"Coventry",SpringProvRep!$P:$P,Data!P$16)/$AY$45*$A$45 -> 841.9642857 | Q50: =BO50+SUMIFS(SpringProvRep!$H:$H,SpringProvRep!$A:$A,Data!$A$24,SpringProvRep!$G:$G,"Coventry",SpringProvRep!$P:$P,Data!Q$16)/$AY$45*$A$45 -> 368.75 | R50: =BP50+SUMIFS(SpringProvRep!$H:$H,SpringProvRep!$A:$A,Data!$A$24,SpringProvRep!$G:$G,"Coventry",SpringProvRep!$P:$P,Data!R$16)/$AY$45*$A$45 -> 0 | S50: =BQ50+SUMIFS(SpringProvRep!$H:$H,SpringProvRep!$A:$A,Data!$A$24,SpringProvRep!$G:$G,"Coventry",SpringProvRep!$P:$P,Data!S$16)/$AY$45*$A$45 -> 266.9642857 | T50: =BR50+SUMIFS(SpringProvRep!$H:$H,SpringProvRep!$A:$A,Data!$A$24,SpringProvRep!$G:$G,"Coventry",SpringProvRep!$P:$P,Data!T$16)/$AY$45*$A$45 -> 0 | U50: =BS50+SUMIFS(SpringProvRep!$H:$H,SpringProvRep!$A:$A,Data!$A$24,SpringProvRep!$G:$G,"Coventry",SpringProvRep!$P:$P,Data!U$16)/$AY$45*$A$45 -> 0 | V50: 116.1428571 | W50: 373105.7053 | X50: =BU50+SUMIFS(SpringProvRep!$H:$H,SpringProvRep!$A:$A,Data!$A$24,SpringProvRep!$G:$G,"<>Coventry",SpringProvRep!$P:$P,Data!X$16)/$AY$45*$A$45 -> 0 | Y50: =BV50+SUMIFS(SpringProvRep!$H:$H,SpringProvRep!$A:$A,Data!$A$24,SpringProvRep!$G:$G,"<>Coventry",SpringProvRep!$P:$P,Data!Y$16)/$AY$45*$A$45 -> 0 | Z50: =BW50+SUMIFS(SpringProvRep!$H:$H,SpringProvRep!$A:$A,Data!$A$24,SpringProvRep!$G:$G,"<>Coventry",SpringProvRep!$P:$P,Data!Z$16)/$AY$45*$A$45 -> 0 | AA50: =BX50+SUMIFS(SpringProvRep!$H:$H,SpringProvRep!$A:$A,Data!$A$24,SpringProvRep!$G:$G,"<>Coventry",SpringProvRep!$P:$P,Data!AA$16)/$AY$45*$A$45 -> 0 | AB50: =BY50+SUMIFS(SpringProvRep!$H:$H,SpringProvRep!$A:$A,Data!$A$24,SpringProvRep!$G:$G,"<>Coventry",SpringProvRep!$P:$P,Data!AB$16)/$AY$45*$A$45 -> 0 | AC50: =BZ50+SUMIFS(SpringProvRep!$H:$H,SpringProvRep!$A:$A,Data!$A$24,SpringProvRep!$G:$G,"<>Coventry",SpringProvRep!$P:$P,Data!AC$16)/$AY$45*$A$45 -> 0 | AD50: =CA50+SUMIFS(SpringProvRep!$H:$H,SpringProvRep!$A:$A,Data!$A$24,SpringProvRep!$G:$G,"<>Coventry",SpringProvRep!$P:$P,Data!AD$16)/$AY$45*$A$45 -> 52.67857143 | AE50: =CB50+SUMIFS(SpringProvRep!$H:$H,SpringProvRep!$A:$A,Data!$A$24,SpringProvRep!$G:$G,"<>Coventry",SpringProvRep!$P:$P,Data!AE$16)/$AY$45*$A$45 -> 0 | AF50: =CC50+SUMIFS(SpringProvRep!$H:$H,SpringProvRep!$A:$A,Data!$A$24,SpringProvRep!$G:$G,"<>Coventry",SpringProvRep!$P:$P,Data!AF$16)/$AY$45*$A$45 -> 0 | AG50: =CD50+SUMIFS(SpringProvRep!$H:$H,SpringProvRep!$A:$A,Data!$A$24,SpringProvRep!$G:$G,"<>Coventry",SpringProvRep!$P:$P,Data!AG$16)/$AY$45*$A$45 -> 0 | AH50: =CE50+SUMIFS(SpringProvRep!$H:$H,SpringProvRep!$A:$A,Data!$A$24,SpringProvRep!$G:$G,"<>Coventry",SpringProvRep!$P:$P,Data!AH$16)/$AY$45*$A$45 -> 0 | AI50: =CF50+SUMIFS(SpringProvRep!$H:$H,SpringProvRep!$A:$A,Data!$A$24,SpringProvRep!$G:$G,"<>Coventry",SpringProvRep!$P:$P,Data!AI$16)/$AY$45*$A$45 -> 0 | AJ50: =CG50+SUMIFS(SpringProvRep!$H:$H,SpringProvRep!$A:$A,Data!$A$24,SpringProvRep!$G:$G,"<>Coventry",SpringProvRep!$P:$P,Data!AJ$16)/$AY$45*$A$45 -> 52.67857143 | AK50: =CH50+SUMIFS(SpringProvRep!$H:$H,SpringProvRep!$A:$A,Data!$A$24,SpringProvRep!$G:$G,"<>Coventry",SpringProvRep!$P:$P,Data!AK$16)/$AY$45*$A$45 -> 0 | AL50: =CI50+SUMIFS(SpringProvRep!$H:$H,SpringProvRep!$A:$A,Data!$A$24,SpringProvRep!$G:$G,"<>Coventry",SpringProvRep!$P:$P,Data!AL$16)/$AY$45*$A$45 -> 0 | AM50: =CJ50+SUMIFS(SpringProvRep!$H:$H,SpringProvRep!$A:$A,Data!$A$24,SpringProvRep!$G:$G,"<>Coventry",SpringProvRep!$P:$P,Data!AM$16)/$AY$45*$A$45 -> 0 | AN50: =CK50+SUMIFS(SpringProvRep!$H:$H,SpringProvRep!$A:$A,Data!$A$24,SpringProvRep!$G:$G,"<>Coventry",SpringProvRep!$P:$P,Data!AN$16)/$AY$45*$A$45 -> 0 | AO50: =CL50+SUMIFS(SpringProvRep!$H:$H,SpringProvRep!$A:$A,Data!$A$24,SpringProvRep!$G:$G,"<>Coventry",SpringProvRep!$P:$P,Data!AO$16)/$AY$45*$A$45 -> 0 | AP50: 2.107142857 | AQ50: 7407.243033 | AR50: 380512.9483 | AS50: 118.25 | AT50: 0.25 | AU50: 118 | AV50: =[11]Data!$AS50 -> 111.9931041 | AW50: =[11]Data!$M8 -> 112 | AZ50: =($M$8-$E$8)*$A$45 -> 300 | BA50: =M8*$A$45 -> 5900 | BB50: 0 | BC50: 0 | BD50: 0 | BE50: 0 | BF50: 0 | BG50: 0 | BH50: 149.1374092 | BI50: 39.04358354 | BJ50: 0 | BK50: 21.42857143 | BL50: 10.53268765 | BM50: 0 | BN50: 42.81174334 | BO50: 18.75 | BP50: 0 | BQ50: 13.57445521 | BR50: 0 | BS50: 0 | BU50: 0 | BV50: 0 | BW50: 0 | BX50: 0 | BY50: 0 | BZ50: 0 | CA50: 2.678571429 | CB50: 0 | CC50: 0 | CD50: 0 | CE50: 0 | CF50: 0 | CG50: 2.678571429 | CH50: 0 | CI50: 0 | CJ50: 0 | CK50: 0 | CL50: 0
A51: 6 | B51: Baginton Fields | C51: 52.08333333 | D51: =BB51+SUMIFS(SpringProvRep!$H:$H,SpringProvRep!$A:$A,Data!$A$25,SpringProvRep!$G:$G,"Coventry",SpringProvRep!$P:$P,Data!D$16)/$AY$45*$A$45 -> 0 | E51: =BC51+SUMIFS(SpringProvRep!$H:$H,SpringProvRep!$A:$A,Data!$A$25,SpringProvRep!$G:$G,"Coventry",SpringProvRep!$P:$P,Data!E$16)/$AY$45*$A$45 -> 0 | F51: =BD51+SUMIFS(SpringProvRep!$H:$H,SpringProvRep!$A:$A,Data!$A$25,SpringProvRep!$G:$G,"Coventry",SpringProvRep!$P:$P,Data!F$16)/$AY$45*$A$45 -> 0 | G51: =BE51+SUMIFS(SpringProvRep!$H:$H,SpringProvRep!$A:$A,Data!$A$25,SpringProvRep!$G:$G,"Coventry",SpringProvRep!$P:$P,Data!G$16)/$AY$45*$A$45 -> 0 | H51: =BF51+SUMIFS(SpringProvRep!$H:$H,SpringProvRep!$A:$A,Data!$A$25,SpringProvRep!$G:$G,"Coventry",SpringProvRep!$P:$P,Data!H$16)/$AY$45*$A$45 -> 0 | I51: =BG51+SUMIFS(SpringProvRep!$H:$H,SpringProvRep!$A:$A,Data!$A$25,SpringProvRep!$G:$G,"Coventry",SpringProvRep!$P:$P,Data!I$16)/$AY$45*$A$45 -> 0 | J51: =BH51+SUMIFS(SpringProvRep!$H:$H,SpringProvRep!$A:$A,Data!$A$25,SpringProvRep!$G:$G,"Coventry",SpringProvRep!$P:$P,Data!J$16)/$AY$45*$A$45 -> 1249.137931 | K51: =BI51+SUMIFS(SpringProvRep!$H:$H,SpringProvRep!$A:$A,Data!$A$25,SpringProvRep!$G:$G,"Coventry",SpringProvRep!$P:$P,Data!K$16)/$AY$45*$A$45 -> 2009.482759 | L51: =BJ51+SUMIFS(SpringProvRep!$H:$H,SpringProvRep!$A:$A,Data!$A$25,SpringProvRep!$G:$G,"Coventry",SpringProvRep!$P:$P,Data!L$16)/$AY$45*$A$45 -> 54.31034483 | M51: =BK51+SUMIFS(SpringProvRep!$H:$H,SpringProvRep!$A:$A,Data!$A$25,SpringProvRep!$G:$G,"Coventry",SpringProvRep!$P:$P,Data!M$16)/$AY$45*$A$45 -> 54.31034483 | N51: =BL51+SUMIFS(SpringProvRep!$H:$H,SpringProvRep!$A:$A,Data!$A$25,SpringProvRep!$G:$G,"Coventry",SpringProvRep!$P:$P,Data!N$16)/$AY$45*$A$45 -> 597.4137931 | O51: =BM51+SUMIFS(SpringProvRep!$H:$H,SpringProvRep!$A:$A,Data!$A$25,SpringProvRep!$G:$G,"Coventry",SpringProvRep!$P:$P,Data!O$16)/$AY$45*$A$45 -> 0 | P51: =BN51+SUMIFS(SpringProvRep!$H:$H,SpringProvRep!$A:$A,Data!$A$25,SpringProvRep!$G:$G,"Coventry",SpringProvRep!$P:$P,Data!P$16)/$AY$45*$A$45 -> 1575 | Q51: =BO51+SUMIFS(SpringProvRep!$H:$H,SpringProvRep!$A:$A,Data!$A$25,SpringProvRep!$G:$G,"Coventry",SpringProvRep!$P:$P,Data!Q$16)/$AY$45*$A$45 -> 543.1034483 | R51: =BP51+SUMIFS(SpringProvRep!$H:$H,SpringProvRep!$A:$A,Data!$A$25,SpringProvRep!$G:$G,"Coventry",SpringProvRep!$P:$P,Data!R$16)/$AY$45*$A$45 -> 0 | S51: =BQ51+SUMIFS(SpringProvRep!$H:$H,SpringProvRep!$A:$A,Data!$A$25,SpringProvRep!$G:$G,"Coventry",SpringProvRep!$P:$P,Data!S$16)/$AY$45*$A$45 -> 108.6206897 | T51: =BR51+SUMIFS(SpringProvRep!$H:$H,SpringProvRep!$A:$A,Data!$A$25,SpringProvRep!$G:$G,"Coventry",SpringProvRep!$P:$P,Data!T$16)/$AY$45*$A$45 -> 0 | U51: =BS51+SUMIFS(SpringProvRep!$H:$H,SpringProvRep!$A:$A,Data!$A$25,SpringProvRep!$G:$G,"Coventry",SpringProvRep!$P:$P,Data!U$16)/$AY$45*$A$45 -> 0 | V51: 123.8275862 | W51: 436355.1668 | X51: =BU51+SUMIFS(SpringProvRep!$H:$H,SpringProvRep!$A:$A,Data!$A$25,SpringProvRep!$G:$G,"<>Coventry",SpringProvRep!$P:$P,Data!X$16)/$AY$45*$A$45 -> 0 | Y51: =BV51+SUMIFS(SpringProvRep!$H:$H,SpringProvRep!$A:$A,Data!$A$25,SpringProvRep!$G:$G,"<>Coventry",SpringProvRep!$P:$P,Data!Y$16)/$AY$45*$A$45 -> 0 | Z51: =BW51+SUMIFS(SpringProvRep!$H:$H,SpringProvRep!$A:$A,Data!$A$25,SpringProvRep!$G:$G,"<>Coventry",SpringProvRep!$P:$P,Data!Z$16)/$AY$45*$A$45 -> 0 | AA51: =BX51+SUMIFS(SpringProvRep!$H:$H,SpringProvRep!$A:$A,Data!$A$25,SpringProvRep!$G:$G,"<>Coventry",SpringProvRep!$P:$P,Data!AA$16)/$AY$45*$A$45 -> 0 | AB51: =BY51+SUMIFS(SpringProvRep!$H:$H,SpringProvRep!$A:$A,Data!$A$25,SpringProvRep!$G:$G,"<>Coventry",SpringProvRep!$P:$P,Data!AB$16)/$AY$45*$A$45 -> 0 | AC51: =BZ51+SUMIFS(SpringProvRep!$H:$H,SpringProvRep!$A:$A,Data!$A$25,SpringProvRep!$G:$G,"<>Coventry",SpringProvRep!$P:$P,Data!AC$16)/$AY$45*$A$45 -> 0 | AD51: =CA51+SUMIFS(SpringProvRep!$H:$H,SpringProvRep!$A:$A,Data!$A$25,SpringProvRep!$G:$G,"<>Coventry",SpringProvRep!$P:$P,Data!AD$16)/$AY$45*$A$45 -> 0 | AE51: =CB51+SUMIFS(SpringProvRep!$H:$H,SpringProvRep!$A:$A,Data!$A$25,SpringProvRep!$G:$G,"<>Coventry",SpringProvRep!$P:$P,Data!AE$16)/$AY$45*$A$45 -> 54.31034483 | AF51: =CC51+SUMIFS(SpringProvRep!$H:$H,SpringProvRep!$A:$A,Data!$A$25,SpringProvRep!$G:$G,"<>Coventry",SpringProvRep!$P:$P,Data!AF$16)/$AY$45*$A$45 -> 0 | AG51: =CD51+SUMIFS(SpringProvRep!$H:$H,SpringProvRep!$A:$A,Data!$A$25,SpringProvRep!$G:$G,"<>Coventry",SpringProvRep!$P:$P,Data!AG$16)/$AY$45*$A$45 -> 0 | AH51: =CE51+SUMIFS(SpringProvRep!$H:$H,SpringProvRep!$A:$A,Data!$A$25,SpringProvRep!$G:$G,"<>Coventry",SpringProvRep!$P:$P,Data!AH$16)/$AY$45*$A$45 -> 0 | AI51: =CF51+SUMIFS(SpringProvRep!$H:$H,SpringProvRep!$A:$A,Data!$A$25,SpringProvRep!$G:$G,"<>Coventry",SpringProvRep!$P:$P,Data!AI$16)/$AY$45*$A$45 -> 0 | AJ51: =CG51+SUMIFS(SpringProvRep!$H:$H,SpringProvRep!$A:$A,Data!$A$25,SpringProvRep!$G:$G,"<>Coventry",SpringProvRep!$P:$P,Data!AJ$16)/$AY$45*$A$45 -> 0 | AK51: =CH51+SUMIFS(SpringProvRep!$H:$H,SpringProvRep!$A:$A,Data!$A$25,SpringProvRep!$G:$G,"<>Coventry",SpringProvRep!$P:$P,Data!AK$16)/$AY$45*$A$45 -> 0 | AL51: =CI51+SUMIFS(SpringProvRep!$H:$H,SpringProvRep!$A:$A,Data!$A$25,SpringProvRep!$G:$G,"<>Coventry",SpringProvRep!$P:$P,Data!AL$16)/$AY$45*$A$45 -> 0 | AM51: =CJ51+SUMIFS(SpringProvRep!$H:$H,SpringProvRep!$A:$A,Data!$A$25,SpringProvRep!$G:$G,"<>Coventry",SpringProvRep!$P:$P,Data!AM$16)/$AY$45*$A$45 -> 0 | AN51: =CK51+SUMIFS(SpringProvRep!$H:$H,SpringProvRep!$A:$A,Data!$A$25,SpringProvRep!$G:$G,"<>Coventry",SpringProvRep!$P:$P,Data!AN$16)/$AY$45*$A$45 -> 0 | AO51: =CL51+SUMIFS(SpringProvRep!$H:$H,SpringProvRep!$A:$A,Data!$A$25,SpringProvRep!$G:$G,"<>Coventry",SpringProvRep!$P:$P,Data!AO$16)/$AY$45*$A$45 -> 0 | AP51: 1.086206897 | AQ51: 2691.025187 | AR51: 439046.192 | AS51: 124.9137931 | AT51: -1.086206897 | AU51: 126 | AV51: =[11]Data!$AS51 -> 113.6724138 | AW51: =[11]Data!$M9 -> 116 | AZ51: =($M$9-$E$9)*$A$45 -> 500 | BA51: 6300 | BB51: 0 | BC51: 0 | BD51: 0 | BE51: 0 | BF51: 0 | BG51: 0 | BH51: 99.13793103 | BI51: 159.4827586 | BJ51: 4.310344828 | BK51: 4.310344828 | BL51: 47.4137931 | BM51: 0 | BN51: 125 | BO51: 43.10344828 | BP51: 0 | BQ51: 8.620689655 | BR51: 0 | BS51: 0 | BU51: 0 | BV51: 0 | BW51: 0 | BX51: 0 | BY51: 0 | BZ51: 0 | CA51: 0 | CB51: 4.310344827 | CC51: 0 | CD51: 0 | CE51: 0 | CF51: 0 | CG51: 0 | CH51: 0 | CI51: 0 | CJ51: 0 | CK51: 0 | CL51: 0
A52: 7 | B52: Sherbourne Fields | C52: 52.08333333 | D52: =BB52+SUMIFS(SpringProvRep!$H:$H,SpringProvRep!$A:$A,Data!$A$26,SpringProvRep!$G:$G,"Coventry",SpringProvRep!$P:$P,Data!D$16)/$AY$45*$A$45 -> 0 | E52: =BC52+SUMIFS(SpringProvRep!$H:$H,SpringProvRep!$A:$A,Data!$A$26,SpringProvRep!$G:$G,"Coventry",SpringProvRep!$P:$P,Data!E$16)/$AY$45*$A$45 -> 0 | F52: =BD52+SUMIFS(SpringProvRep!$H:$H,SpringProvRep!$A:$A,Data!$A$26,SpringProvRep!$G:$G,"Coventry",SpringProvRep!$P:$P,Data!F$16)/$AY$45*$A$45 -> 0 | G52: =BE52+SUMIFS(SpringProvRep!$H:$H,SpringProvRep!$A:$A,Data!$A$26,SpringProvRep!$G:$G,"Coventry",SpringProvRep!$P:$P,Data!G$16)/$AY$45*$A$45 -> 104.5833164 | H52: =BF52+SUMIFS(SpringProvRep!$H:$H,SpringProvRep!$A:$A,Data!$A$26,SpringProvRep!$G:$G,"Coventry",SpringProvRep!$P:$P,Data!H$16)/$AY$45*$A$45 -> 0 | I52: =BG52+SUMIFS(SpringProvRep!$H:$H,SpringProvRep!$A:$A,Data!$A$26,SpringProvRep!$G:$G,"Coventry",SpringProvRep!$P:$P,Data!I$16)/$AY$45*$A$45 -> 52.29165821 | J52: =BH52+SUMIFS(SpringProvRep!$H:$H,SpringProvRep!$A:$A,Data!$A$26,SpringProvRep!$G:$G,"Coventry",SpringProvRep!$P:$P,Data!J$16)/$AY$45*$A$45 -> 3660.416075 | K52: =BI52+SUMIFS(SpringProvRep!$H:$H,SpringProvRep!$A:$A,Data!$A$26,SpringProvRep!$G:$G,"Coventry",SpringProvRep!$P:$P,Data!K$16)/$AY$45*$A$45 -> 3398.957784 | L52: =BJ52+SUMIFS(SpringProvRep!$H:$H,SpringProvRep!$A:$A,Data!$A$26,SpringProvRep!$G:$G,"Coventry",SpringProvRep!$P:$P,Data!L$16)/$AY$45*$A$45 -> 0 | M52: =BK52+SUMIFS(SpringProvRep!$H:$H,SpringProvRep!$A:$A,Data!$A$26,SpringProvRep!$G:$G,"Coventry",SpringProvRep!$P:$P,Data!M$16)/$AY$45*$A$45 -> 1464.16643 | N52: =BL52+SUMIFS(SpringProvRep!$H:$H,SpringProvRep!$A:$A,Data!$A$26,SpringProvRep!$G:$G,"Coventry",SpringProvRep!$P:$P,Data!N$16)/$AY$45*$A$45 -> 156.8749746 | O52: =BM52+SUMIFS(SpringProvRep!$H:$H,SpringProvRep!$A:$A,Data!$A$26,SpringProvRep!$G:$G,"Coventry",SpringProvRep!$P:$P,Data!O$16)/$AY$45*$A$45 -> 0 | P52: =BN52+SUMIFS(SpringProvRep!$H:$H,SpringProvRep!$A:$A,Data!$A$26,SpringProvRep!$G:$G,"Coventry",SpringProvRep!$P:$P,Data!P$16)/$AY$45*$A$45 -> 1359.583114 | Q52: =BO52+SUMIFS(SpringProvRep!$H:$H,SpringProvRep!$A:$A,Data!$A$26,SpringProvRep!$G:$G,"Coventry",SpringProvRep!$P:$P,Data!Q$16)/$AY$45*$A$45 -> 1129.145298 | R52: =BP52+SUMIFS(SpringProvRep!$H:$H,SpringProvRep!$A:$A,Data!$A$26,SpringProvRep!$G:$G,"Coventry",SpringProvRep!$P:$P,Data!R$16)/$AY$45*$A$45 -> 0 | S52: =BQ52+SUMIFS(SpringProvRep!$H:$H,SpringProvRep!$A:$A,Data!$A$26,SpringProvRep!$G:$G,"Coventry",SpringProvRep!$P:$P,Data!S$16)/$AY$45*$A$45 -> 993.5415061 | T52: =BR52+SUMIFS(SpringProvRep!$H:$H,SpringProvRep!$A:$A,Data!$A$26,SpringProvRep!$G:$G,"Coventry",SpringProvRep!$P:$P,Data!T$16)/$AY$45*$A$45 -> 0 | U52: =BS52+SUMIFS(SpringProvRep!$H:$H,SpringProvRep!$A:$A,Data!$A$26,SpringProvRep!$G:$G,"Coventry",SpringProvRep!$P:$P,Data!U$16)/$AY$45*$A$45 -> 0 | V52: 246.3912031 | W52: 775539.1552 | X52: =BU52+SUMIFS(SpringProvRep!$H:$H,SpringProvRep!$A:$A,Data!$A$26,SpringProvRep!$G:$G,"<>Coventry",SpringProvRep!$P:$P,Data!X$16)/$AY$45*$A$45 -> 0 | Y52: =BV52+SUMIFS(SpringProvRep!$H:$H,SpringProvRep!$A:$A,Data!$A$26,SpringProvRep!$G:$G,"<>Coventry",SpringProvRep!$P:$P,Data!Y$16)/$AY$45*$A$45 -> 0 | Z52: =BW52+SUMIFS(SpringProvRep!$H:$H,SpringProvRep!$A:$A,Data!$A$26,SpringProvRep!$G:$G,"<>Coventry",SpringProvRep!$P:$P,Data!Z$16)/$AY$45*$A$45 -> 0 | AA52: =BX52+SUMIFS(SpringProvRep!$H:$H,SpringProvRep!$A:$A,Data!$A$26,SpringProvRep!$G:$G,"<>Coventry",SpringProvRep!$P:$P,Data!AA$16)/$AY$45*$A$45 -> 0 | AB52: =BY52+SUMIFS(SpringProvRep!$H:$H,SpringProvRep!$A:$A,Data!$A$26,SpringProvRep!$G:$G,"<>Coventry",SpringProvRep!$P:$P,Data!AB$16)/$AY$45*$A$45 -> 0 | AC52: =BZ52+SUMIFS(SpringProvRep!$H:$H,SpringProvRep!$A:$A,Data!$A$26,SpringProvRep!$G:$G,"<>Coventry",SpringProvRep!$P:$P,Data!AC$16)/$AY$45*$A$45 -> 0 | AD52: =CA52+SUMIFS(SpringProvRep!$H:$H,SpringProvRep!$A:$A,Data!$A$26,SpringProvRep!$G:$G,"<>Coventry",SpringProvRep!$P:$P,Data!AD$16)/$AY$45*$A$45 -> 52.19123506 | AE52: =CB52+SUMIFS(SpringProvRep!$H:$H,SpringProvRep!$A:$A,Data!$A$26,SpringProvRep!$G:$G,"<>Coventry",SpringProvRep!$P:$P,Data!AE$16)/$AY$45*$A$45 -> 0 | AF52: =CC52+SUMIFS(SpringProvRep!$H:$H,SpringProvRep!$A:$A,Data!$A$26,SpringProvRep!$G:$G,"<>Coventry",SpringProvRep!$P:$P,Data!AF$16)/$AY$45*$A$45 -> 0 | AG52: =CD52+SUMIFS(SpringProvRep!$H:$H,SpringProvRep!$A:$A,Data!$A$26,SpringProvRep!$G:$G,"<>Coventry",SpringProvRep!$P:$P,Data!AG$16)/$AY$45*$A$45 -> 52.19123506 | AH52: =CE52+SUMIFS(SpringProvRep!$H:$H,SpringProvRep!$A:$A,Data!$A$26,SpringProvRep!$G:$G,"<>Coventry",SpringProvRep!$P:$P,Data!AH$16)/$AY$45*$A$45 -> 0 | AI52: =CF52+SUMIFS(SpringProvRep!$H:$H,SpringProvRep!$A:$A,Data!$A$26,SpringProvRep!$G:$G,"<>Coventry",SpringProvRep!$P:$P,Data!AI$16)/$AY$45*$A$45 -> 0 | AJ52: =CG52+SUMIFS(SpringProvRep!$H:$H,SpringProvRep!$A:$A,Data!$A$26,SpringProvRep!$G:$G,"<>Coventry",SpringProvRep!$P:$P,Data!AJ$16)/$AY$45*$A$45 -> 0 | AK52: =CH52+SUMIFS(SpringProvRep!$H:$H,SpringProvRep!$A:$A,Data!$A$26,SpringProvRep!$G:$G,"<>Coventry",SpringProvRep!$P:$P,Data!AK$16)/$AY$45*$A$45 -> 0 | AL52: =CI52+SUMIFS(SpringProvRep!$H:$H,SpringProvRep!$A:$A,Data!$A$26,SpringProvRep!$G:$G,"<>Coventry",SpringProvRep!$P:$P,Data!AL$16)/$AY$45*$A$45 -> 0 | AM52: =CJ52+SUMIFS(SpringProvRep!$H:$H,SpringProvRep!$A:$A,Data!$A$26,SpringProvRep!$G:$G,"<>Coventry",SpringProvRep!$P:$P,Data!AM$16)/$AY$45*$A$45 -> 52.19123506 | AN52: =CK52+SUMIFS(SpringProvRep!$H:$H,SpringProvRep!$A:$A,Data!$A$26,SpringProvRep!$G:$G,"<>Coventry",SpringProvRep!$P:$P,Data!AN$16)/$AY$45*$A$45 -> 0 | AO52: =CL52+SUMIFS(SpringProvRep!$H:$H,SpringProvRep!$A:$A,Data!$A$26,SpringProvRep!$G:$G,"<>Coventry",SpringProvRep!$P:$P,Data!AO$16)/$AY$45*$A$45 -> 0 | AP52: 3.131474104 | AQ52: 10483.87852 | AR52: 786023.0337 | AS52: =AP52+V52 -> 249.5226772 | AT52: -1.477322789 | AU52: 251 | AV52: =[11]Data!$AS52 -> 239.5990445 | AW52: =[11]Data!$M10 -> 240 | AZ52: =($M$10-$E$10)*$A$45 -> 550 | BA52: 12550 | BB52: 0 | BC52: 0 | BD52: 0 | BE52: 4.583316427 | BF52: 0 | BG52: 2.291658213 | BH52: 160.4160749 | BI52: 148.9577839 | BJ52: 0 | BK52: 64.16642997 | BL52: 6.87497464 | BM52: 0 | BN52: 59.58311355 | BO52: 49.48428074 | BP52: 0 | BQ52: 43.54150605 | BR52: 0 | BS52: 0 | BU52: 0 | BV52: 0 | BW52: 0 | BX52: 0 | BY52: 0 | BZ52: 0 | CA52: 2.19123506 | CB52: 0 | CC52: 0 | CD52: 2.19123506 | CE52: 0 | CF52: 0 | CG52: 0 | CH52: 0 | CI52: 0 | CJ52: 2.19123506 | CK52: 0 | CL52: 0
A53: 8 | B53: Woodfield | C53: =10000/$A$15 -> 52.08333333 | D53: =BB53+SUMIFS(SpringProvRep!$H:$H,SpringProvRep!$A:$A,Data!$A$27,SpringProvRep!$G:$G,"Coventry",SpringProvRep!$P:$P,Data!D$16)/$AY$45*$A$45 -> 0 | E53: =BC53+SUMIFS(SpringProvRep!$H:$H,SpringProvRep!$A:$A,Data!$A$27,SpringProvRep!$G:$G,"Coventry",SpringProvRep!$P:$P,Data!E$16)/$AY$45*$A$45 -> 0 | F53: =BD53+SUMIFS(SpringProvRep!$H:$H,SpringProvRep!$A:$A,Data!$A$27,SpringProvRep!$G:$G,"Coventry",SpringProvRep!$P:$P,Data!F$16)/$AY$45*$A$45 -> 0 | G53: =BE53+SUMIFS(SpringProvRep!$H:$H,SpringProvRep!$A:$A,Data!$A$27,SpringProvRep!$G:$G,"Coventry",SpringProvRep!$P:$P,Data!G$16)/$AY$45*$A$45 -> 0 | H53: =BF53+SUMIFS(SpringProvRep!$H:$H,SpringProvRep!$A:$A,Data!$A$27,SpringProvRep!$G:$G,"Coventry",SpringProvRep!$P:$P,Data!H$16)/$AY$45*$A$45 -> 0 | I53: =BG53+SUMIFS(SpringProvRep!$H:$H,SpringProvRep!$A:$A,Data!$A$27,SpringProvRep!$G:$G,"Coventry",SpringProvRep!$P:$P,Data!I$16)/$AY$45*$A$45 -> 0 | J53: =BH53+SUMIFS(SpringProvRep!$H:$H,SpringProvRep!$A:$A,Data!$A$27,SpringProvRep!$G:$G,"Coventry",SpringProvRep!$P:$P,Data!J$16)/$AY$45*$A$45 -> 0 | K53: =BI53+SUMIFS(SpringProvRep!$H:$H,SpringProvRep!$A:$A,Data!$A$27,SpringProvRep!$G:$G,"Coventry",SpringProvRep!$P:$P,Data!K$16)/$AY$45*$A$45 -> 0 | L53: =BJ53+SUMIFS(SpringProvRep!$H:$H,SpringProvRep!$A:$A,Data!$A$27,SpringProvRep!$G:$G,"Coventry",SpringProvRep!$P:$P,Data!L$16)/$AY$45*$A$45 -> 0 | M53: =BK53+SUMIFS(SpringProvRep!$H:$H,SpringProvRep!$A:$A,Data!$A$27,SpringProvRep!$G:$G,"Coventry",SpringProvRep!$P:$P,Data!M$16)/$AY$45*$A$45 -> 0 | N53: =BL53+SUMIFS(SpringProvRep!$H:$H,SpringProvRep!$A:$A,Data!$A$27,SpringProvRep!$G:$G,"Coventry",SpringProvRep!$P:$P,Data!N$16)/$AY$45*$A$45 -> 600 | O53: =BM53+SUMIFS(SpringProvRep!$H:$H,SpringProvRep!$A:$A,Data!$A$27,SpringProvRep!$G:$G,"Coventry",SpringProvRep!$P:$P,Data!O$16)/$AY$45*$A$45 -> 0 | P53: =BN53+SUMIFS(SpringProvRep!$H:$H,SpringProvRep!$A:$A,Data!$A$27,SpringProvRep!$G:$G,"Coventry",SpringProvRep!$P:$P,Data!P$16)/$AY$45*$A$45 -> 6431.355932 | Q53: =BO53+SUMIFS(SpringProvRep!$H:$H,SpringProvRep!$A:$A,Data!$A$27,SpringProvRep!$G:$G,"Coventry",SpringProvRep!$P:$P,Data!Q$16)/$AY$45*$A$45 -> 0 | R53: =BP53+SUMIFS(SpringProvRep!$H:$H,SpringProvRep!$A:$A,Data!$A$27,SpringProvRep!$G:$G,"Coventry",SpringProvRep!$P:$P,Data!R$16)/$AY$45*$A$45 -> 0 | S53: =BQ53+SUMIFS(SpringProvRep!$H:$H,SpringProvRep!$A:$A,Data!$A$27,SpringProvRep!$G:$G,"Coventry",SpringProvRep!$P:$P,Data!S$16)/$AY$45*$A$45 -> 0 | T53: =BR53+SUMIFS(SpringProvRep!$H:$H,SpringProvRep!$A:$A,Data!$A$27,SpringProvRep!$G:$G,"Coventry",SpringProvRep!$P:$P,Data!T$16)/$AY$45*$A$45 -> 150 | U53: =BS53+SUMIFS(SpringProvRep!$H:$H,SpringProvRep!$A:$A,Data!$A$27,SpringProvRep!$G:$G,"Coventry",SpringProvRep!$P:$P,Data!U$16)/$AY$45*$A$45 -> 0 | V53: 143.6271186 | W53: 670005.4568 | X53: =BU53+SUMIFS(SpringProvRep!$H:$H,SpringProvRep!$A:$A,Data!$A$27,SpringProvRep!$G:$G,"<>Coventry",SpringProvRep!$P:$P,Data!X$16)/$AY$45*$A$45 -> 0 | Y53: =BV53+SUMIFS(SpringProvRep!$H:$H,SpringProvRep!$A:$A,Data!$A$27,SpringProvRep!$G:$G,"<>Coventry",SpringProvRep!$P:$P,Data!Y$16)/$AY$45*$A$45 -> 0 | Z53: =BW53+SUMIFS(SpringProvRep!$H:$H,SpringProvRep!$A:$A,Data!$A$27,SpringProvRep!$G:$G,"<>Coventry",SpringProvRep!$P:$P,Data!Z$16)/$AY$45*$A$45 -> 0 | AA53: =BX53+SUMIFS(SpringProvRep!$H:$H,SpringProvRep!$A:$A,Data!$A$27,SpringProvRep!$G:$G,"<>Coventry",SpringProvRep!$P:$P,Data!AA$16)/$AY$45*$A$45 -> 0 | AB53: =BY53+SUMIFS(SpringProvRep!$H:$H,SpringProvRep!$A:$A,Data!$A$27,SpringProvRep!$G:$G,"<>Coventry",SpringProvRep!$P:$P,Data!AB$16)/$AY$45*$A$45 -> 0 | AC53: =BZ53+SUMIFS(SpringProvRep!$H:$H,SpringProvRep!$A:$A,Data!$A$27,SpringProvRep!$G:$G,"<>Coventry",SpringProvRep!$P:$P,Data!AC$16)/$AY$45*$A$45 -> 0 | AD53: =CA53+SUMIFS(SpringProvRep!$H:$H,SpringProvRep!$A:$A,Data!$A$27,SpringProvRep!$G:$G,"<>Coventry",SpringProvRep!$P:$P,Data!AD$16)/$AY$45*$A$45 -> 0 | AE53: =CB53+SUMIFS(SpringProvRep!$H:$H,SpringProvRep!$A:$A,Data!$A$27,SpringProvRep!$G:$G,"<>Coventry",SpringProvRep!$P:$P,Data!AE$16)/$AY$45*$A$45 -> 0 | AF53: =CC53+SUMIFS(SpringProvRep!$H:$H,SpringProvRep!$A:$A,Data!$A$27,SpringProvRep!$G:$G,"<>Coventry",SpringProvRep!$P:$P,Data!AF$16)/$AY$45*$A$45 -> 0 | AG53: =CD53+SUMIFS(SpringProvRep!$H:$H,SpringProvRep!$A:$A,Data!$A$27,SpringProvRep!$G:$G,"<>Coventry",SpringProvRep!$P:$P,Data!AG$16)/$AY$45*$A$45 -> 0 | AH53: =CE53+SUMIFS(SpringProvRep!$H:$H,SpringProvRep!$A:$A,Data!$A$27,SpringProvRep!$G:$G,"<>Coventry",SpringProvRep!$P:$P,Data!AH$16)/$AY$45*$A$45 -> 0 | AI53: =CF53+SUMIFS(SpringProvRep!$H:$H,SpringProvRep!$A:$A,Data!$A$27,SpringProvRep!$G:$G,"<>Coventry",SpringProvRep!$P:$P,Data!AI$16)/$AY$45*$A$45 -> 0 | AJ53: =CG53+SUMIFS(SpringProvRep!$H:$H,SpringProvRep!$A:$A,Data!$A$27,SpringProvRep!$G:$G,"<>Coventry",SpringProvRep!$P:$P,Data!AJ$16)/$AY$45*$A$45 -> 79.66101695 | AK53: =CH53+SUMIFS(SpringProvRep!$H:$H,SpringProvRep!$A:$A,Data!$A$27,SpringProvRep!$G:$G,"<>Coventry",SpringProvRep!$P:$P,Data!AK$16)/$AY$45*$A$45 -> 0 | AL53: =CI53+SUMIFS(SpringProvRep!$H:$H,SpringProvRep!$A:$A,Data!$A$27,SpringProvRep!$G:$G,"<>Coventry",SpringProvRep!$P:$P,Data!AL$16)/$AY$45*$A$45 -> 0 | AM53: =CJ53+SUMIFS(SpringProvRep!$H:$H,SpringProvRep!$A:$A,Data!$A$27,SpringProvRep!$G:$G,"<>Coventry",SpringProvRep!$P:$P,Data!AM$16)/$AY$45*$A$45 -> 0 | AN53: =CK53+SUMIFS(SpringProvRep!$H:$H,SpringProvRep!$A:$A,Data!$A$27,SpringProvRep!$G:$G,"<>Coventry",SpringProvRep!$P:$P,Data!AN$16)/$AY$45*$A$45 -> 0 | AO53: =CL53+SUMIFS(SpringProvRep!$H:$H,SpringProvRep!$A:$A,Data!$A$27,SpringProvRep!$G:$G,"<>Coventry",SpringProvRep!$P:$P,Data!AO$16)/$AY$45*$A$45 -> 0 | AP53: 1.593220339 | AQ53: 6934.139108 | AR53: 676939.5959 | AS53: 145.220339 | AT53: -9.779661017 | AU53: 155 | AV53: =[11]Data!$AS53 -> 145.9310345 | AW53: =[11]Data!$M11 -> 155 | AZ53: =($M$11-$E$11)*$A$45 -> 0
AR54: =SUM(AR46:AR53) -> 4144828.005
B57: Full Year 2023/24
A59: 1 | B59: Castle Wood | C59: =10000/$A$15 -> 52.08333333 | D59: =D20+D33+D46 -> 0 | E59: 0 | F59: 76 | G59: 0 | H59: 0 | I59: 192 | J59: 16641.32591 | K59: 3312.857143 | L59: 0 | M59: 960 | N59: 1405 | O59: 0 | P59: 4834 | Q59: 2112 | R59: 0 | S59: 862.6440678 | T59: 154 | U59: 0 | V59: =SUM(D59:U59)/$A$15 -> 159.1136829 | W59: =W20+W33+W46 -> 1998288.761 | X59: =X20+X33+X46 -> 0 | Y59: 0 | Z59: 0 | AA59: 0 | AB59: 0 | AC59: 0 | AD59: 192 | AE59: 0 | AF59: 0 | AG59: 0 | AH59: 0 | AI59: 0 | AJ59: 0 | AK59: 0 | AL59: 0 | AM59: 0 | AN59: 0 | AO59: 0 | AP59: =SUM(X59:AO59)/$A$15 -> 1 | AQ59: =AQ20+AQ33+AQ46 -> 10284.76706 | AR59: =AR20+AR33+AR46 -> 2008573.528 | AS59: =AP59+V59 -> 160.1136829
A60: 2 | B60: Kingsbury | C60: =10000/$A$15 -> 52.08333333 | D60: =D21+D34+D47 -> 0 | E60: 0 | F60: 0 | G60: 0 | H60: 0 | I60: 0 | J60: 10531.48571 | K60: 1344 | L60: 0 | M60: 0 | N60: 1284.285714 | O60: 0 | P60: 5065.085714 | Q60: 384 | R60: 0 | S60: 0 | T60: 0 | U60: 0 | V60: =SUM(D60:U60)/$A$15 -> 96.92113095 | W60: =W21+W34+W47 -> 1259707.629 | X60: 0 | Y60: 0 | Z60: 0 | AA60: 0 | AB60: 0 | AC60: 0 | AD60: 192 | AE60: 192 | AF60: 0 | AG60: 0 | AH60: 0 | AI60: 0 | AJ60: 192 | AK60: 0 | AL60: 0 | AM60: 0 | AN60: 0 | AO60: 0 | AP60: =SUM(X60:AO60)/$A$15 -> 3 | AQ60: 36510.93241 | AR60: 1296218.562 | AS60: =AP60+V60 -> 99.92113095
A61: 3 | B61: RiverBank | C61: 52.08333333 | D61: =D22+D35+D48 -> 0 | E61: 0 | F61: 2430 | G61: 3740.101695 | H61: 192 | I61: 192 | J61: 11048.98305 | K61: 11116 | L61: 384 | M61: 1559.885714 | N61: 404 | O61: 768 | P61: 4955 | Q61: 768 | R61: 0 | S61: 192 | T61: 0 | U61: 0 | V61: 196.6144295 | W61: =W22+W35+W48 -> 2117690.238 | X61: 0 | Y61: 0 | Z61: 66 | AA61: 0 | AB61: 0 | AC61: 0 | AD61: 192 | AE61: 0 | AF61: 0 | AG61: 0 | AH61: 0 | AI61: 0 | AJ61: 0 | AK61: 0 | AL61: 0 | AM61: 0 | AN61: 0 | AO61: 0 | AP61: 1.34375 | AQ61: 11345.38404 | AR61: 2129035.622 | AS61: 197.9581795
A62: 4 | B62: Corley | C62: 52.08333333 | D62: =D23+D36+D49 -> 0 | E62: 0 | F62: 0 | G62: 0 | H62: 0 | I62: 0 | J62: 21994.75969 | K62: 0 | L62: 1824.697674 | M62: 0 | N62: 823.9837078 | O62: 0 | P62: 2838.418605 | Q62: 0 | R62: 0 | S62: 2.537919392e-23 | T62: 0 | U62: 2.096079204e-24 | V62: 143.1346858 | W62: =W23+W36+W49 -> 1648310.189 | X62: =X23+X36+X49 -> 0 | Y62: 0 | Z62: 0 | AA62: 0 | AB62: 0 | AC62: 0 | AD62: 202.744186 | AE62: 0 | AF62: 0 | AG62: 0 | AH62: 0 | AI62: 0 | AJ62: 0 | AK62: 0 | AL62: 0 | AM62: 0 | AN62: 0 | AO62: 0 | AP62: 1.055959302 | AQ62: 10860.29545 | AR62: 1659170.485 | AS62: 144.1906451
A63: 5 | B63: Tiverton | C63: 52.08333333 | D63: =D24+D37+D50 -> 0 | E63: 0 | F63: 0 | G63: 0 | H63: 0 | I63: 0 | J63: 11139.61837 | K63: 3075.94898 | L63: 0 | M63: 1501.122449 | N63: 756.7959184 | O63: 0 | P63: 3027.468367 | Q63: 1431.285714 | R63: 0 | S63: 1088.831633 | T63: 0 | U63: 0 | V63: 114.6930804 | W63: =W24+W37+W50 -> 1408303.684 | X63: 0 | Y63: 0 | Z63: 0 | AA63: 0 | AB63: 0 | AC63: 0 | AD63: 198.75 | AE63: 0 | AF63: 0 | AG63: 0 | AH63: 0 | AI63: 0 | AJ63: 198.75 | AK63: 0 | AL63: 0 | AM63: 0 | AN63: 0 | AO63: 0 | AP63: 2.0703125 | AQ63: 27946.64914 | AR63: 1436250.333 | AS63: 116.7633929
A64: 6 | B64: Baginton Fields | C64: 52.08333333 | D64: =D25+D38+D51 -> 0 | E64: 0 | F64: 0 | G64: 41.275862 | H64: 0 | I64: 0 | J64: 4624.551721 | K64: 7547.172409 | L64: 202.8620688 | M64: 244.1379308 | N64: 1947.413792 | O64: 0 | P64: 6055.034479 | Q64: 2046.310344 | R64: 0 | S64: 405.7241377 | T64: 0 | U64: 0 | V64: 120.387931 | W64: =W25+W38+W51 -> 1615212.336 | X64: 0 | Y64: 0 | Z64: 0 | AA64: 0 | AB64: 0 | AC64: 0 | AD64: 0 | AE64: 202.3420909 | AF64: 0 | AG64: 0 | AH64: 0 | AI64: 0 | AJ64: 0 | AK64: 0 | AL64: 0 | AM64: 0 | AN64: 0 | AO64: 0 | AP64: 1.053865057 | AQ64: 10025.85538 | AR64: 1625238.191 | AS64: 121.441796
A65: 7 | B65: Sherbourne Fields | C65: 52.08333333 | D65: =D26+D39+D52 -> 0 | E65: 0 | F65: 0 | G65: 395.549982 | H65: 0 | I65: 263.774991 | J65: 13844.24937 | K65: 12775.89108 | L65: 0 | M65: 5537.699748 | N65: 593.324973 | O65: 0 | P65: 5142.149766 | Q65: 4287.623618 | R65: 0 | S65: 3757.724829 | T65: 66 | U65: 0 | V65: 243.041606 | W65: =W26+W39+W52 -> 2949448.359 | X65: 0 | Y65: 0 | Z65: 0 | AA65: 0 | AB65: 0 | AC65: 0 | AD65: 197.5219124 | AE65: 0 | AF65: 0 | AG65: 197.5219124 | AH65: 0 | AI65: 0 | AJ65: 0 | AK65: 0 | AL65: 0 | AM65: 244.5219124 | AN65: 0 | AO65: 0 | AP65: 3.331071547 | AQ65: 43453.51513 | AR65: 2992901.874 | AS65: 246.3726776
A66: 8 | B66: Woodfield | C66: =10000/$A$15 -> 52.08333333 | D66: =D27+D40+D53 -> 0 | E66: 0 | F66: 0 | G66: 0 | H66: 0 | I66: 0 | J66: 0 | K66: 0 | L66: 0 | M66: 0 | N66: 2521.371429 | O66: 0 | P66: 24573.15593 | Q66: 0 | R66: 0 | S66: 0 | T66: 831.5428571 | U66: 0 | V66: 145.4482824 | W66: =W27+W40+W53 -> 2651275.396 | X66: 0 | Y66: 0 | Z66: 0 | AA66: 0 | AB66: 0 | AC66: 0 | AD66: 0 | AE66: 0 | AF66: 0 | AG66: 0 | AH66: 0 | AI66: 0 | AJ66: 373.6610169 | AK66: 0 | AL66: 0 | AM66: 0 | AN66: 0 | AO66: 0 | AP66: 1.94615113 | AQ66: 32525.53846 | AR66: 2683800.935 | AS66: 147.3944335
AR67: =SUM(AR59:AR66) -> 15831189.53
B69: TOTALS | C69: Place Led | D69: Coventry | E69: Other LA | F69: Total
B70: School | C70: Funding | D70: Top-up | E70: Top-up | F70: Funding
A71: 1 | B71: Castle Wood | C71: =(K4*4/12+L4*1/12+M4*7/12)*10000 -> 1600000 | D71: =W59 -> 1998288.761 | E71: =AQ59 -> 10284.76706 | F71: =SUM(C71:E71) -> 3608573.528
A72: 2 | B72: Kingsbury | C72: =(K5*4/12+L5*1/12+M5*7/12)*10000 -> 1000000 | D72: =W60 -> 1259707.629 | E72: 36510.93241 | F72: =SUM(C72:E72) -> 2296218.562
A73: 3 | B73: RiverBank | C73: 2000000 | D73: 2117690.238 | E73: 11345.38404 | F73: 4129035.622
A74: 4 | B74: Corley | C74: 1354166.667 | D74: 1648310.189 | E74: 10860.29545 | F74: 3013337.151
A75: 5 | B75: Tiverton | C75: 1155000 | D75: 1408303.684 | E75: 27946.64914 | F75: 2591250.333
A76: 6 | B76: Baginton Fields | C76: =(K9*4/12+L9*1/12+M9*7/12)*10000 -> 1218333.333 | D76: 1615212.336 | E76: 10025.85538 | F76: 2843571.524
A77: 7 | B77: Sherbourne Fields | C77: 2464166.667 | D77: 2949448.359 | E77: 43453.51513 | F77: =SUM(C77:E77) -> 5457068.541
A78: 8 | B78: Woodfield | C78: 1550000 | D78: 2651275.396 | E78: 32525.53846 | F78: 4233800.935
C79: =SUM(C71:C78) -> 12341666.67 | D79: =SUM(D71:D78) -> 15648236.59 | E79: =SUM(E71:E78) -> 182952.9371 | F79: =SUM(F71:F78) -> 28172856.2

Sheet SummerProvRep (hidden)
A1: =IF(LEFT(J1,2)="BF",6,IF(LEFT(J1,2)="CW",1,IF(LEFT(J1,2)="CO",4,IF(LEFT(J1,2)="TS",2,IF(LEFT(J1,2)="RB",3,IF(LEFT(J1,2)="SF",7,IF(LEFT(J1,2)="TV",5,IF(LEFT(J1,2)="WF",8,"")))))))) ->  | B1: Funding Report for Period 01/04/2023 to 31/07/2023 | C1: No of Days in Year 192
B2: Report for Baginton Fields School | P2: =IF(ISBLANK(A2),"",CONCATENATE($J$50," ",RIGHT(J2,2))) -> Band
B3: Count of Students in Each Band | P3: Band
C4: Cat 1 | D4: Cat 2 | E4: Cat 3 | F4: Cat 4 | G4: Cat 5 | H4: Total | P4: Band
B5: Band D | P5: Band
B6: Band E | C6: 23 | D6: 38 | E6: 1 | F6: 1 | G6: 11 | H6: 74 | P6: Band
B7: Band F | C7: 30 | D7: 10 | E7: 0 | F7: 2 | G7: 0 | H7: 42 | P7: Band
B8: Total | C8: 53 | D8: 48 | E8: 1 | F8: 3 | G8: 11 | H8: 115 | P8: Band
P9: Band
P10: Band
B11: Sum of Open Days in Each Band | P11: Band
C12: Cat 1 | D12: Cat 2 | E12: Cat 3 | F12: Cat 4 | G12: Cat 5 | H12: Total | P12: Band
B13: Band D | P13: Band
B14: Band E | C14: 1518 | D14: 2508 | E14: 66 | F14: 66 | G14: 666 | H14: 4824 | P14: Band
B15: Band F | C15: 1974 | D15: 660 | E15: 0 | F15: 132 | G15: 0 | H15: 2766 | P15: Band
B16: Total | C16: 3492 | D16: 3168 | E16: 66 | F16: 198 | G16: 666 | H16: 7590 | P16: Band
P17: Band
P18: =IF(ISBLANK(A18),"",CONCATENATE($J$50," ",RIGHT(J18,2))) -> Band
P19: =IF(ISBLANK(A19),"",CONCATENATE($J$50," ",RIGHT(J19,2))) -> Band
B20: High Needs Top-Up_Rates for each Band | P20: Band
P21: Band
C22: BF | P22: Band
B23: Report for Baginton Fields School | P23: Band
B24: Coventry High Needs Top-Up_Funding by Band | P24: Band
C25: Cat 1 | D25: Cat 2 | E25: Cat 3 | F25: Cat 4 | G25: Cat 5 | H25: Total | P25: Band
B26: Band D | P26: Band
B27: Band E | C27: 81313.96281 | D27: 120998.6834 | E27: 4419.23625 | F27: 4419.23625 | G27: 81536.4375 | H27: 292687.5563 | P27: Band
B28: Band F | C28: 171827.9609 | D28: 53030.82812 | E28: 0 | F28: 10606.16562 | G28: 0 | H28: 235464.9547 | P28: Band
B29: Total | C29: 253141.9237 | D29: 174029.5116 | E29: 4419.23625 | F29: 15025.40187 | G29: 81536.4375 | H29: 528152.5109 | P29: Band
P30: Band
P31: Band
B32: Other LA High Needs Top-Up_Funding for Each Band | P32: Band
C33: Cat 1 | D33: Cat 2 | E33: Cat 3 | F33: Cat 4 | G33: Cat 5 | H33: Total | P33: Band
B34: Band D | P34: Band
B35: Band E | C35: 0 | D35: 3270.234687 | E35: 0 | F35: 0 | G35: 0 | H35: 3270.234687 | P35: Band
B36: Band F | C36: 0 | D36: 0 | E36: 0 | F36: 0 | G36: 0 | H36: 0 | P36: Band
B37: Total | C37: 0 | D37: 3270.234687 | E37: 0 | F37: 0 | G37: 0 | H37: 3270.234687 | P37: Band
P38: Band
P39: Band
B40: Total High Needs Top-Up_Funding for Each Band | P40: Band
C41: Cat 1 | D41: Cat 2 | E41: Cat 3 | F41: Cat 4 | G41: Cat 5 | H41: Total | P41: Band
B42: Band D | P42: Band
B43: Band E | C43: 81313.96281 | D43: 124268.9181 | E43: 4419.23625 | F43: 4419.23625 | G43: 81536.4375 | H43: 295957.7909 | P43: Band
B44: Band F | C44: 171827.9609 | D44: 53030.82812 | E44: 0 | F44: 10606.16562 | G44: 0 | H44: 235464.9547 | P44: Band
B45: Total | C45: 253141.9237 | D45: 177299.7462 | E45: 4419.23625 | F45: 15025.40187 | G45: 81536.4375 | H45: 531422.7456 | P45: Band
P46: Band
P47: Band
B48: Baginton Fields School. List of Pupils who were registered for funding between 01/04/2023 and 31/07/2023 | P48: Band
B49: Start and end dates shown only if different to the above specified period limits | P49: Band
B50: Name | C50: NCY | D50: UPN | E50: start date | F50: end date | G50: Funding LA | H50: Funded Days | I50: Top Up Amount | J50: Band | K50: FTE | P50: =IF(ISBLANK(A50),"",CONCATENATE($J$50," ",RIGHT(J50,2))) -> Band nd
A51: =IF(LEFT(J51,2)="BF",6,IF(LEFT(J51,2)="CW",1,IF(LEFT(J51,2)="CO",4,IF(LEFT(J51,2)="TS",2,IF(LEFT(J51,2)="RB",3,IF(LEFT(J51,2)="SF",7,IF(LEFT(J51,2)="TV",5,IF(LEFT(J51,2)="WF",8,"")))))))) -> 6 | B51: Navsarka, Esa | C51: 7 | D51: J331205614044 | E51: 2023-04-01 | F51: 2023-07-25 | G51: Coventry | H51: 66 | I51: 3270.234687 | J51: BF2E | K51: 1 | P51: =IF(ISBLANK(A51),"",CONCATENATE($J$50," ",RIGHT(J51,2))) -> Band 2E
A52: =IF(LEFT(J52,2)="BF",6,IF(LEFT(J52,2)="CW",1,IF(LEFT(J52,2)="CO",4,IF(LEFT(J52,2)="TS",2,IF(LEFT(J52,2)="RB",3,IF(LEFT(J52,2)="SF",7,IF(LEFT(J52,2)="TV",5,IF(LEFT(J52,2)="WF",8,"")))))))) -> 6 | B52: Powers, Jesse-James | C52: 7 | D52: E331702415004 | E52: 2023-04-01 | F52: 2023-07-25 | G52: Coventry | H52: 66 | I52: 5303.082812 | J52: BF4F | K52: 1 | P52: Band 4F
A53: 6 | B53: Ntare, Christopher M. | C53: 7 | D53: Z331214915010 | E53: 2023-04-01 | F53: 2023-07-25 | G53: Coventry | H53: 66 | I53: 3270.234687 | J53: BF2E | K53: 1 | P53: Band 2E
A54: 6 | B54: Imran, Isa M. | C54: 7 | D54: V331701714001 | E54: 2023-04-01 | F54: 2023-07-25 | G54: Coventry | H54: 66 | I54: 3270.234687 | J54: BF2E | K54: 1 | P54: Band 2E
A55: 6 | B55: Wakahiu, Yvonne N. | C55: 7 | D55: D331702415013 | E55: 2023-04-01 | F55: 2023-07-25 | G55: Coventry | H55: 66 | I55: 5745.007812 | J55: BF1F | K55: 1 | P55: Band 1F
A56: 6 | B56: Shahrjerdi, Dara | C56: 7 | D56: J331701714002 | E56: 2023-04-01 | F56: 2023-07-25 | G56: Coventry | H56: 66 | I56: 8080.1875 | J56: BF5E | K56: 1 | P56: Band 5E
A57: 6 | B57: Nimpaye, Don C. | C57: 7 | D57: H331215714032 | E57: 2023-04-01 | F57: 2023-07-25 | G57: Coventry | H57: 66 | I57: 5745.007812 | J57: BF1F | K57: 1 | P57: Band 1F
A58: 6 | B58: Mburichen, Onyekachukwu Ki | C58: 7 | D58: E331701714007 | E58: 2023-04-01 | F58: 2023-07-25 | G58: Coventry | H58: 66 | I58: 5745.007812 | J58: BF1F | K58: 1 | P58: Band 1F
A59: 6 | B59: Omar, Shano | C59: 7 | D59: R331214514076 | E59: 2023-04-01 | F59: 2023-07-25 | G59: Coventry | H59: 66 | I59: 3535.389688 | J59: BF1E | K59: 1 | P59: Band 1E
A60: 6 | B60: Njunga, Trevelle C. | C60: 7 | D60: G331702415015 | E60: 2023-04-01 | F60: 2023-07-25 | G60: Coventry | H60: 66 | I60: 5745.007812 | J60: BF1F | K60: 1 | P60: Band 1F
A61: 6 | B61: Mwangi, Asher M. | C61: 7 | D61: V331215615067 | E61: 2023-04-01 | F61: 2023-07-25 | G61: Coventry | H61: 66 | I61: 5745.007812 | J61: BF1F | K61: 1 | P61: Band 1F
A62: 6 | B62: Barrowman, Lee S. | C62: 7 | D62: H331205614024 | E62: 2023-04-01 | F62: 2023-07-25 | G62: Coventry | H62: 66 | I62: 3535.389688 | J62: BF1E | K62: 1 | P62: Band 1E
A63: 6 | B63: McSheffrey, Kayden B. | C63: 7 | D63: R331212514039 | E63: 2023-04-01 | F63: 2023-07-25 | G63: Coventry | H63: 66 | I63: 3535.389688 | J63: BF1E | K63: 1 | P63: Band 1E
A64: 6 | B64: Crowley, Macey B. | C64: 7 | D64: A334205014028 | E64: 2023-04-01 | F64: 2023-07-25 | G64: Coventry | H64: 66 | I64: 3270.234687 | J64: BF2E | K64: 1 | P64: Band 2E
A65: 6 | B65: Zanfir, Leonard | C65: 7 | D65: J331205615045 | E65: 2023-04-01 | F65: 2023-07-25 | G65: Coventry | H65: 66 | I65: 3535.389688 | J65: BF1E | K65: 1 | P65: Band 1E
A66: 6 | B66: Ngemegwai, Leonardo S. | C66: 7 | D66: G331214015117 | E66: 2023-04-01 | F66: 2023-07-25 | G66: Coventry | H66: 66 | I66: 4419.23625 | J66: BF4E | K66: 1 | P66: Band 4E
A67: 6 | B67: Ahmed, Mohammed A. | C67: 7 | D67: E331214516003 | E67: 2023-04-01 | F67: 2023-07-25 | G67: Coventry | H67: 66 | I67: 3270.234687 | J67: BF2E | K67: 1 | P67: Band 2E
A68: 6 | B68: Niculae, Filimon | C68: 7 | D68: H331700018011 | E68: 2023-04-01 | F68: 2023-07-25 | G68: Coventry | H68: 66 | I68: 5745.007812 | J68: BF1F | K68: 1 | P68: Band 1F
A69: 6 | B69: Al Sabban, Bissan Y. | C69: 7 | D69: G886691918118 | E69: 2023-04-01 | F69: 2023-07-25 | G69: Coventry | H69: 66 | I69: 3270.234687 | J69: BF2E | K69: 1 | P69: Band 2E
A70: 6 | B70: Collinson, Catherine j. | C70: 8 | D70: J331214114002 | E70: 2023-04-01 | F70: 2023-07-25 | G70: Coventry | H70: 66 | I70: 3270.234687 | J70: BF2E | K70: 1 | P70: Band 2E
A71: 6 | B71: Skvortsov-Kirsteine, Jessica | C71: 8 | D71: B331340813020 | E71: 2023-04-01 | F71: 2023-07-25 | G71: Coventry | H71: 66 | I71: 3270.234687 | J71: BF2E | K71: 1 | P71: Band 2E
A72: 6 | B72: Molad, Marwan A. | C72: 8 | D72: Q331201513019 | E72: 2023-04-01 | F72: 2023-07-25 | G72: Coventry | H72: 66 | I72: 3270.234687 | J72: BF2E | K72: 1 | P72: Band 2E
A73: 6 | B73: Islam, Mohammed Sami S. | C73: 8 | D73: B331702414001 | E73: 2023-04-01 | F73: 2023-07-25 | G73: Coventry | H73: 66 | I73: 5745.007812 | J73: BF1F | K73: 1 | P73: Band 1F
A74: 6 | B74: Gul, Annum | C74: 8 | D74: M331701713003 | E74: 2023-04-01 | F74: 2023-07-25 | G74: Coventry | H74: 66 | I74: 5303.082812 | J74: BF2F | K74: 1 | P74: Band 2F
A75: 6 | B75: Gibson, Libby G. | C75: 8 | D75: K331100712259 | E75: 2023-04-01 | F75: 2023-07-25 | G75: Coventry | H75: 66 | I75: 5745.007812 | J75: BF1F | K75: 1 | P75: Band 1F
A76: 6 | B76: McGowan, Lucas C. | C76: 8 | D76: W331342314010 | E76: 2023-04-01 | F76: 2023-07-25 | G76: Coventry | H76: 66 | I76: 3270.234687 | J76: BF2E | K76: 1 | P76: Band 2E
A77: 6 | B77: Braithwaite, Lacey P. | C77: 8 | D77: V331330214003 | E77: 2023-04-01 | F77: 2023-07-25 | G77: Coventry | H77: 66 | I77: 8080.1875 | J77: BF5E | K77: 1 | P77: Band 5E
A78: 6 | B78: Woodward, Cody R. | C78: 8 | D78: M331211814023 | E78: 2023-04-01 | F78: 2023-07-25 | G78: Coventry | H78: 66 | I78: 3270.234687 | J78: BF2E | K78: 1 | P78: Band 2E
A79: 6 | B79: Urch, Sophia G. | C79: 8 | D79: B331212214038 | E79: 2023-04-01 | F79: 2023-07-25 | G79: Coventry | H79: 66 | I79: 3270.234687 | J79: BF2E | K79: 1 | P79: Band 2E
A80: 6 | B80: Gleeson, Reece R. | C80: 8 | D80: U331213113033 | E80: 2023-04-01 | F80: 2023-07-25 | G80: Coventry | H80: 66 | I80: 3535.389688 | J80: BF1E | K80: 1 | P80: Band 1E
A81: 6 | B81: Ahmed, Hana H. | C81: 8 | D81: L331702414007 | E81: 2023-04-01 | F81: 2023-07-25 | G81: Coventry | H81: 66 | I81: 3535.389688 | J81: BF1E | K81: 1 | P81: Band 1E
A82: 6 | B82: Ali, Azhar | C82: 8 | D82: B331214114005 | E82: 2023-04-01 | F82: 2023-07-25 | G82: Coventry | H82: 66 | I82: 5745.007812 | J82: BF1F | K82: 1 | P82: Band 1F
A83: 6 | B83: Hyde, Brody J. | C83: 8 | D83: M331214113061 | E83: 2023-04-01 | F83: 2023-07-25 | G83: Coventry | H83: 66 | I83: 3535.389688 | J83: BF1E | K83: 1 | P83: Band 1E
A84: 6 | B84: Madu, Great I. | C84: 8 | D84: M331701719011 | E84: 2023-04-01 | F84: 2023-07-25 | G84: Coventry | H84: 66 | I84: 5303.082812 | J84: BF4F | K84: 1 | P84: Band 4F
A85: 6 | B85: Igbokwe, Francis | C85: 8 | D85: A331701922001 | E85: 2023-04-01 | F85: 2023-07-25 | G85: Coventry | H85: 66 | I85: 5303.082812 | J85: BF2F | K85: 1 | P85: Band 2F
A86: 6 | B86: Cooney, Charlotte B. | C86: 9 | D86: A331702412006 | E86: 2023-04-01 | F86: 2023-07-25 | G86: Coventry | H86: 66 | I86: 5303.082812 | J86: BF2F | K86: 1 | P86: Band 2F
A87: 6 | B87: Chidube, Maurice I. | C87: 9 | D87: J331214913014 | E87: 2023-04-01 | F87: 2023-07-25 | G87: Coventry | H87: 66 | I87: 3270.234687 | J87: BF2E | K87: 1 | P87: Band 2E
A88: 6 | B88: Teensa, Raul S. | C88: 9 | D88: N331212412052 | E88: 2023-04-01 | F88: 2023-07-25 | G88: Coventry | H88: 66 | I88: 3270.234687 | J88: BF2E | K88: 1 | P88: Band 2E
A89: 6 | B89: Zeno, Eryk | C89: 9 | D89: J331343513046 | E89: 2023-04-01 | F89: 2023-07-25 | G89: Coventry | H89: 66 | I89: 5745.007812 | J89: BF1F | K89: 1 | P89: Band 1F
A90: 6 | B90: Carty, Loveonhe D. | C90: 9 | D90: L331343813008 | E90: 2023-04-01 | F90: 2023-07-25 | G90: Coventry | H90: 66 | I90: 3270.234687 | J90: BF2E | K90: 1 | P90: Band 2E
A91: 6 | B91: Karamat, Safiullah | C91: 9 | D91: V331201512013 | E91: 2023-04-01 | F91: 2023-07-25 | G91: Coventry | H91: 66 | I91: 8080.1875 | J91: BF5E | K91: 1 | P91: Band 5E
A92: 6 | B92: GRYSZKIENAS, Santiago A. | C92: 9 | D92: L331212112059 | E92: 2023-04-01 | F92: 2023-07-25 | G92: Coventry | H92: 66 | I92: 3535.389688 | J92: BF1E | K92: 1 | P92: Band 1E
A93: 6 | B93: Bush, Matthew P. | C93: 9 | D93: A331341813003 | E93: 2023-04-01 | F93: 2023-07-25 | G93: Coventry | H93: 66 | I93: 3270.234687 | J93: BF2E | K93: 1 | P93: Band 2E
A94: 6 | B94: Mack, Paige D. | C94: 9 | D94: L331214312064 | E94: 2023-04-01 | F94: 2023-07-25 | G94: Coventry | H94: 66 | I94: 3270.234687 | J94: BF2E | K94: 1 | P94: Band 2E
A95: 6 | B95: McKinlay, Maddox E. | C95: 9 | D95: Y331100711270 | E95: 2023-04-01 | F95: 2023-07-25 | G95: Coventry | H95: 66 | I95: 5745.007812 | J95: BF1F | K95: 1 | P95: Band 1F
A96: 6 | B96: Mula, Elliot J. | C96: 9 | D96: H331330213012 | E96: 2023-04-25 | F96: 2023-07-25 | G96: Coventry | H96: 60 | I96: 5222.734375 | J96: BF1F | K96: 1 | P96: Band 1F
A97: 6 | B97: Mula, Elliot J. | C97: 9 | D97: H331330213012 | E97: 2023-04-01 | F97: 2023-04-24 | G97: Coventry | H97: 6 | I97: 734.5625 | J97: BF5E | K97: 1 | P97: Band 5E
A98: 6 | B98: Molad, MOHAMAD | C98: 9 | D98: M331201512016 | E98: 2023-04-01 | F98: 2023-07-25 | G98: Coventry | H98: 66 | I98: 3270.234687 | J98: BF2E | K98: 1 | P98: Band 2E
A99: 6 | B99: Akhtar, Shumena | C99: 9 | D99: F331214112083 | E99: 2023-04-01 | F99: 2023-07-25 | G99: Coventry | H99: 66 | I99: 3535.389688 | J99: BF1E | K99: 1 | P99: Band 1E
A100: 6 | B100: Hudson, Elise A. | C100: 10 | D100: N331300611029 | E100: 2023-04-01 | F100: 2023-07-25 | G100: Warwickshire | H100: 66 | I100: 3270.234687 | J100: BF2E | K100: 1 | P100: Band 2E
A101: 6 | B101: Moseley, Holly | C101: 10 | D101: U331702411001 | E101: 2023-04-01 | F101: 2023-07-25 | G101: Coventry | H101: 66 | I101: 5303.082812 | J101: BF2F | K101: 1 | P101: Band 2F
A102: 6 | B102: Abu Baker, Daniel | C102: 10 | D102: P331700911004 | E102: 2023-04-01 | F102: 2023-07-25 | G102: Coventry | H102: 66 | I102: 8080.1875 | J102: BF5E | K102: 1 | P102: Band 5E
A103: 6 | B103: Padan, Rohan S. | C103: 10 | D103: W331341411043 | E103: 2023-04-01 | F103: 2023-07-25 | G103: Coventry | H103: 66 | I103: 3270.234687 | J103: BF2E | K103: 1 | P103: Band 2E
A104: 6 | B104: Jones, Ellis D. | C104: 10 | D104: L937262612011 | E104: 2023-04-01 | F104: 2023-07-25 | G104: Coventry | H104: 66 | I104: 3535.389688 | J104: BF1E | K104: 1 | P104: Band 1E
A105: 6 | B105: Ray, Jasmine | C105: 10 | D105: R331214111023 | E105: 2023-04-01 | F105: 2023-07-25 | G105: Coventry | H105: 66 | I105: 3270.234687 | J105: BF2E | K105: 1 | P105: Band 2E
A106: 6 | B106: Sahota, Joydeep | C106: 10 | D106: Y331214612092 | E106: 2023-04-01 | F106: 2023-07-25 | G106: Coventry | H106: 66 | I106: 3535.389688 | J106: BF1E | K106: 1 | P106: Band 1E
A107: 6 | B107: Mullin, Harley J. | C107: 10 | D107: B331214112061 | E107: 2023-04-01 | F107: 2023-07-25 | G107: Coventry | H107: 66 | I107: 8080.1875 | J107: BF5E | K107: 1 | P107: Band 5E
A108: 6 | B108: Beauchamp, Morgan T. | C108: 10 | D108: H331300712002 | E108: 2023-04-01 | F108: 2023-07-25 | G108: Coventry | H108: 66 | I108: 3270.234687 | J108: BF2E | K108: 1 | P108: Band 2E
A109: 6 | B109: Khapane, Yugandhar | C109: 10 | D109: N331700612005 | E109: 2023-04-01 | F109: 2023-07-25 | G109: Coventry | H109: 66 | I109: 5745.007812 | J109: BF1F | K109: 1 | P109: Band 1F
A110: 6 | B110: Norman, William K. | C110: 10 | D110: G331702418018 | E110: 2023-04-01 | F110: 2023-07-25 | G110: Coventry | H110: 66 | I110: 5745.007812 | J110: BF1F | K110: 1 | P110: Band 1F
A111: 6 | B111: Jose, Aannet | C111: 10 | D111: J331701717005 | E111: 2023-04-01 | F111: 2023-07-25 | G111: Coventry | H111: 66 | I111: 3535.389688 | J111: BF1E | K111: 1 | P111: Band 1E
A112: 6 | B112: Ali, Ifza | C112: 11 | D112: Z331700611003 | E112: 2023-04-01 | F112: 2023-07-25 | G112: Coventry | H112: 66 | I112: 3270.234687 | J112: BF2E | K112: 1 | P112: Band 2E
A113: 6 | B113: ADEMAKINWA, Kikiola O. | C113: 11 | D113: A331702411005 | E113: 2023-04-01 | F113: 2023-07-25 | G113: Coventry | H113: 66 | I113: 5745.007812 | J113: BF1F | K113: 1 | P113: Band 1F
A114: 6 | B114: KASONGO, Tony S. | C114: 11 | D114: R331215610002 | E114: 2023-04-01 | F114: 2023-07-25 | G114: Coventry | H114: 66 | I114: 5745.007812 | J114: BF1F | K114: 1 | P114: Band 1F
A115: 6 | B115: MALANGU, Sharon B. | C115: 11 | D115: C331343811047 | E115: 2023-04-01 | F115: 2023-07-25 | G115: Coventry | H115: 66 | I115: 5745.007812 | J115: BF1F | K115: 1 | P115: =IF(ISBLANK(A115),"",CONCATENATE($J$50," ",RIGHT(J115,2))) -> Band 1F
A116: =IF(LEFT(J116,2)="BF",6,IF(LEFT(J116,2)="CW",1,IF(LEFT(J116,2)="CO",4,IF(LEFT(J116,2)="TS",2,IF(LEFT(J116,2)="RB",3,IF(LEFT(J116,2)="SF",7,IF(LEFT(J116,2)="TV",5,IF(LEFT(J116,2)="WF",8,"")))))))) -> 6 | B116: Kunasingam, Harryshan | C116: 11 | D116: L331100709018 | E116: 2023-04-01 | F116: 2023-07-25 | G116: Coventry | H116: 66 | I116: 5745.007812 | J116: BF1F | K116: 1 | P116: Band 1F
A117: 6 | B117: Rama, Elbion | C117: 11 | D117: L331702411004 | E117: 2023-04-01 | F117: 2023-07-25 | G117: Coventry | H117: 66 | I117: 5745.007812 | J117: BF1F | K117: 1 | P117: Band 1F
A118: 6 | B118: EKALAKALA, Eliezer | C118: 11 | D118: E331701710003 | E118: 2023-04-01 | F118: 2023-07-25 | G118: Coventry | H118: 66 | I118: 3270.234687 | J118: BF2E | K118: 1 | P118: Band 2E
A119: 6 | B119: Walters, Casadie-Rae J. | C119: 11 | D119: Q331341811022 | E119: 2023-04-01 | F119: 2023-07-25 | G119: Coventry | H119: 66 | I119: 3535.389688 | J119: BF1E | K119: 1 | P119: Band 1E
A120: 6 | B120: Cain, Chanel | C120: 11 | D120: Y331214210011 | E120: 2023-04-01 | F120: 2023-07-25 | G120: Coventry | H120: 66 | I120: 3270.234687 | J120: BF2E | K120: 1 | P120: Band 2E
A121: 6 | B121: Suleiman, Mohammad | C121: 11 | D121: T331110715006 | E121: 2023-04-01 | F121: 2023-07-25 | G121: Coventry | H121: 66 | I121: 5745.007812 | J121: BF1F | K121: 1 | P121: Band 1F
A122: 6 | B122: Singh, Navbir | C122: 11 | D122: K331400418026 | E122: 2023-04-01 | F122: 2023-07-25 | G122: Coventry | H122: 66 | I122: 5745.007812 | J122: BF1F | K122: 1 | P122: Band 1F
A123: 6 | B123: Stokes, Bradley P. | C123: 11 | D123: R312201611091 | E123: 2023-04-01 | F123: 2023-07-25 | G123: Coventry | H123: 66 | I123: 3270.234687 | J123: BF2E | K123: 1 | P123: Band 2E
A124: 6 | B124: Hatem, Ahmed B. | C124: 11 | D124: A856721714003 | E124: 2023-04-01 | F124: 2023-07-25 | G124: Coventry | H124: 66 | I124: 8080.1875 | J124: BF5E | K124: 1 | P124: Band 5E
A125: 6 | B125: Biyasi, Hala | C125: 11 | D125: D331701920001 | E125: 2023-04-01 | F125: 2023-07-25 | G125: Coventry | H125: 66 | I125: 3270.234687 | J125: BF2E | K125: 1 | P125: Band 2E
A126: 6 | B126: Mohammed-Said, Dia-Adin A. | C126: 11 | D126: P331701921001 | E126: 2023-04-01 | F126: 2023-07-25 | G126: Coventry | H126: 66 | I126: 5303.082812 | J126: BF2F | K126: 1 | P126: Band 2F
A127: 6 | B127: Ginova-Pearson, Denisa A. | C127: 12 | D127: B331213610031 | E127: 2023-04-01 | F127: 2023-07-25 | G127: Coventry | H127: 66 | I127: 3270.234687 | J127: BF2E | K127: 1 | P127: Band 2E
A128: 6 | B128: Kazmi, Aleeza | C128: 12 | D128: W331701708004 | E128: 2023-04-01 | F128: 2023-07-25 | G128: Coventry | H128: 66 | I128: 5303.082812 | J128: BF2F | K128: 1 | P128: Band 2F
A129: 6 | B129: Munir, Aisha | C129: 12 | D129: R331702409006 | E129: 2023-04-01 | F129: 2023-07-25 | G129: Coventry | H129: 66 | I129: 5303.082812 | J129: BF2F | K129: 1 | P129: Band 2F
A130: 6 | B130: Bhatti, Aman | C130: 12 | D130: J331702409009 | E130: 2023-04-01 | F130: 2023-07-25 | G130: Coventry | H130: 66 | I130: 5303.082812 | J130: BF2F | K130: 1 | P130: Band 2F
A131: 6 | B131: Leese, Noah | C131: 12 | D131: Y331343709002 | E131: 2023-04-01 | F131: 2023-07-25 | G131: Coventry | H131: 66 | I131: 5745.007812 | J131: BF1F | K131: 1 | P131: Band 1F
A132: 6 | B132: Hughes, Dylan J. | C132: 12 | D132: F331343810048 | E132: 2023-04-01 | F132: 2023-07-25 | G132: Coventry | H132: 66 | I132: 3270.234687 | J132: BF2E | K132: 1 | P132: Band 2E
A133: 6 | B133: Younis, Mohammed E. | C133: 12 | D133: D331701709002 | E133: 2023-04-01 | F133: 2023-07-25 | G133: Coventry | H133: 66 | I133: 5745.007812 | J133: BF1F | K133: 1 | P133: Band 1F
A134: 6 | B134: Moseley, Thomas | C134: 12 | D134: E331202109018 | E134: 2023-04-01 | F134: 2023-07-25 | G134: Coventry | H134: 66 | I134: 3535.389688 | J134: BF1E | K134: 1 | P134: Band 1E
A135: 6 | B135: Abdullah, Nasif | C135: 12 | D135: D331214509052 | E135: 2023-04-01 | F135: 2023-07-25 | G135: Coventry | H135: 66 | I135: 5303.082812 | J135: BF2F | K135: 1 | P135: Band 2F
A136: 6 | B136: Christian, Riquelme N. | C136: 12 | D136: K331300810023 | E136: 2023-04-01 | F136: 2023-07-25 | G136: Coventry | H136: 66 | I136: 3535.389688 | J136: BF1E | K136: 1 | P136: Band 1E
A137: 6 | B137: Cockerill, William | C137: 12 | D137: R331341109030 | E137: 2023-04-01 | F137: 2023-07-25 | G137: Coventry | H137: 66 | I137: 3270.234687 | J137: BF2E | K137: 1 | P137: Band 2E
A138: 6 | B138: Efrem Tekle, Feelmona E. | C138: 12 | D138: M331300810034 | E138: 2023-04-01 | F138: 2023-07-25 | G138: Coventry | H138: 66 | I138: 3270.234687 | J138: BF2E | K138: 1 | P138: Band 2E
A139: 6 | B139: Smith, Katie-Jayne | C139: 12 | D139: K936296309021 | E139: 2023-04-01 | F139: 2023-07-25 | G139: Coventry | H139: 66 | I139: 5745.007812 | J139: BF1F | K139: 1 | P139: Band 1F
A140: 6 | B140: Voicu, Alexandru V. | C140: 12 | D140: N937702017001 | E140: 2023-04-01 | F140: 2023-07-25 | G140: Coventry | H140: 66 | I140: 8080.1875 | J140: BF5E | K140: 1 | P140: Band 5E
A141: 6 | B141: Didiu, Cosmin | C141: 12 | D141: F331701918001 | E141: 2023-04-01 | F141: 2023-07-25 | G141: Coventry | H141: 66 | I141: 3270.234687 | J141: BF2E | K141: 1 | P141: Band 2E
A142: 6 | B142: Jadeszko, Gabriel | C142: 12 | D142: V331701918002 | E142: 2023-04-01 | F142: 2023-07-25 | G142: Coventry | H142: 66 | I142: 3270.234687 | J142: BF2E | K142: 1 | P142: Band 2E
A143: 6 | B143: Hatem, Ibraheem B. | C143: 12 | D143: Q856700314010 | E143: 2023-04-01 | F143: 2023-07-25 | G143: Coventry | H143: 66 | I143: 8080.1875 | J143: BF5E | K143: 1 | P143: Band 5E
A144: 6 | B144: Okorie, Michael | C144: 12 | D144: F331701919002 | E144: 2023-04-01 | F144: 2023-07-25 | G144: Coventry | H144: 66 | I144: 8080.1875 | J144: BF5E | K144: 1 | P144: Band 5E
A145: 6 | B145: ESSEKU-OTOO, Nadia A. | C145: 12 | D145: R307700710005 | E145: 2023-04-01 | F145: 2023-07-25 | G145: Coventry | H145: 66 | I145: 3535.389688 | J145: BF1E | K145: 1 | P145: Band 1E
A146: 6 | B146: Russell, William J. | C146: 13 | D146: Y331700609001 | E146: 2023-04-01 | F146: 2023-07-25 | G146: Coventry | H146: 66 | I146: 5745.007812 | J146: BF1F | K146: 1 | P146: Band 1F
A147: 6 | B147: Ekalakala, Beni T. | C147: 13 | D147: D331343708043 | E147: 2023-04-01 | F147: 2023-07-25 | G147: Coventry | H147: 66 | I147: 3535.389688 | J147: BF1E | K147: 1 | P147: Band 1E
A148: 6 | B148: Clifton, Amy E. | C148: 13 | D148: C331215608046 | E148: 2023-04-01 | F148: 2023-07-25 | G148: Coventry | H148: 66 | I148: 3270.234687 | J148: BF2E | K148: 1 | P148: Band 2E
A149: 6 | B149: Mubele, Quincey | C149: 13 | D149: W331212908067 | E149: 2023-04-01 | F149: 2023-07-25 | G149: Coventry | H149: 66 | I149: 3535.389688 | J149: BF1E | K149: 1 | P149: Band 1E
A150: 6 | B150: Kirkby, Olivia | C150: 13 | D150: T331343708044 | E150: 2023-04-01 | F150: 2023-07-25 | G150: Coventry | H150: 66 | I150: 3535.389688 | J150: BF1E | K150: 1 | P150: Band 1E
A151: 6 | B151: Riley, Kirk S. | C151: 13 | D151: Q336204110010 | E151: 2023-04-01 | F151: 2023-07-25 | G151: Coventry | H151: 66 | I151: 3270.234687 | J151: BF2E | K151: 1 | P151: Band 2E
A152: 6 | B152: Newport, Brandon A. | C152: 13 | D152: K331702408001 | E152: 2023-04-01 | F152: 2023-07-25 | G152: Coventry | H152: 66 | I152: 5745.007812 | J152: BF1F | K152: 1 | P152: Band 1F
A153: 6 | B153: Hussain, Shafee | C153: 14 | D153: W331343707016 | E153: 2023-04-01 | F153: 2023-07-25 | G153: Coventry | H153: 66 | I153: 8080.1875 | J153: BF5E | K153: 1 | P153: Band 5E
A154: 6 | B154: Cooper, Dixie | C154: 14 | D154: K331701705002 | E154: 2023-04-01 | F154: 2023-07-25 | G154: Coventry | H154: 66 | I154: 5303.082812 | J154: BF2F | K154: 1 | P154: Band 2F
A155: 6 | B155: Miguel, Emmanuel | C155: 14 | D155: Z331702408002 | E155: 2023-04-01 | F155: 2023-07-25 | G155: Coventry | H155: 66 | I155: 5745.007812 | J155: BF1F | K155: 1 | P155: Band 1F
A156: 6 | B156: McLaughlin, CHARLIE S. | C156: 14 | D156: G331701707002 | E156: 2023-04-01 | F156: 2023-07-25 | G156: Coventry | H156: 66 | I156: 5745.007812 | J156: BF1F | K156: 1 | P156: Band 1F
A157: 6 | B157: Mackley, Connor K. | C157: 14 | D157: M331200808036 | E157: 2023-04-01 | F157: 2023-07-25 | G157: Coventry | H157: 66 | I157: 3270.234687 | J157: BF2E | K157: 1 | P157: Band 2E
A158: 6 | B158: Miah, Tahim M. | C158: 14 | D158: Z331215607014 | E158: 2023-04-01 | F158: 2023-07-25 | G158: Coventry | H158: 66 | I158: 5745.007812 | J158: BF1F | K158: 1 | P158: Band 1F
A159: 6 | B159: Rawlinson, Jack M. | C159: 14 | D159: B331300908036 | E159: 2023-04-01 | F159: 2023-07-25 | G159: Coventry | H159: 66 | I159: 3535.389688 | J159: BF1E | K159: 1 | P159: Band 1E
A160: 6 | B160: Raja, Mohammed Qasim Q. | C160: 14 | D160: F331214107040 | E160: 2023-04-01 | F160: 2023-07-25 | G160: Coventry | H160: 66 | I160: 3535.389688 | J160: BF1E | K160: 1 | P160: Band 1E
A161: 6 | B161: Edginton, ADAM M. | C161: 14 | D161: W331214207015 | E161: 2023-04-01 | F161: 2023-07-25 | G161: Coventry | H161: 66 | I161: 3270.234687 | J161: BF2E | K161: 1 | P161: Band 2E
A162: 6 | B162: Akhtar, Kerrum | C162: 14 | D162: D331202307051 | E162: 2023-04-01 | F162: 2023-07-25 | G162: Coventry | H162: 66 | I162: 3270.234687 | J162: BF2E | K162: 1 | P162: Band 2E
A163: 6 | B163: James, Kieran | C163: 14 | D163: M331214208057 | E163: 2023-04-01 | F163: 2023-07-25 | G163: Coventry | H163: 66 | I163: 4419.23625 | J163: BF3E | K163: 1 | P163: Band 3E
A164: 6 | B164: Daniels, Cameron J. | C164: 14 | D164: R331300708004 | E164: 2023-04-01 | F164: 2023-07-25 | G164: Coventry | H164: 66 | I164: 3535.389688 | J164: BF1E | K164: 1 | P164: Band 1E
A165: 6 | B165: Ben Othman, Shahd B. | C165: 14 | D165: T331701708002 | E165: 2023-04-01 | F165: 2023-07-25 | G165: Coventry | H165: 66 | I165: 3535.389688 | J165: BF1E | K165: 1 | P165: Band 1E
A166: 6 | B166: Madu, Promise | C166: 14 | D166: R331701919001 | E166: 2023-04-01 | F166: 2023-07-25 | G166: Coventry | H166: 66 | I166: 5745.007812 | J166: BF1F | K166: 1 | P166: Band 1F
B167: Baginton Fields School | C167: Period: | D167: 2023-04-01 | E167: to | F167: 2023-07-25 | G167: No of Pupils: 115 | H167: Cost for Period: | I167: 531422.7456 | P167: Band
B168: Report for Castle Wood School | P168: Band
B169: Count of Students in Each Band | P169: Band
C170: Cat 1 | D170: Cat 2 | E170: Cat 4 | F170: Cat 5 | G170: Total | P170: Band
B171: Band D | C171: 0 | D171: 0 | E171: 1 | F171: 0 | G171: 1 | P171: Band
B172: Band E | C172: 89 | D172: 17 | E172: 5 | F172: 9 | G172: 119 | P172: Band
B173: Band F | C173: 26 | D173: 11 | E173: 4 | F173: 1 | G173: 42 | P173: Band
B174: Total | C174: 115 | D174: 28 | E174: 10 | F174: 10 | G174: 161 | P174: Band
P175: Band
P176: Band
B177: Sum of Open Days in Each Band | P177: Band
C178: Cat 1 | D178: Cat 2 | E178: Cat 4 | F178: Cat 5 | G178: Total | P178: Band
B179: Band D | C179: 0 | D179: 0 | E179: 66 | F179: 0 | G179: 66 | P179: =IF(ISBLANK(A179),"",CONCATENATE($J$50," ",RIGHT(J179,2))) -> Band
A180: =IF(LEFT(J180,2)="BF",6,IF(LEFT(J180,2)="CW",1,IF(LEFT(J180,2)="CO",4,IF(LEFT(J180,2)="TS",2,IF(LEFT(J180,2)="RB",3,IF(LEFT(J180,2)="SF",7,IF(LEFT(J180,2)="TV",5,IF(LEFT(J180,2)="WF",8,"")))))))) ->  | B180: Band E | C180: 5854 | D180: 1122 | E180: 330 | F180: 497 | G180: 7803 | P180: Band
B181: Band F | C181: 1634 | D181: 726 | E181: 264 | F181: 66 | G181: 2690 | P181: Band
B182: Total | C182: 7488 | D182: 1848 | E182: 660 | F182: 563 | G182: 10559 | P182: Band
P183: Band
P184: Band
P185: Band
B186: High Needs Top-Up_Rates for each Band | P186: Band
P187: Band
C188: CW | P188: Band
B189: Report for Castle Wood School | P189: Band
B190: Coventry High Needs Top-Up_Funding by Band | P190: Band
C191: Cat 1 | D191: Cat 2 | E191: Cat 4 | F191: Cat 5 | G191: Total | P191: Band
B192: Band D | C192: 0 | D192: 0 | E192: 2651.543125 | F192: 0 | G192: 2651.543125 | P192: Band
B193: Band E | C193: 310042.9623 | D193: 55593.98969 | E193: 22096.18125 | F193: 60846.26042 | G193: 448579.3936 | P193: Band
B194: Band F | C194: 142232.4661 | D194: 58333.91094 | E194: 21212.33125 | F194: 16160.375 | G194: 237939.0833 | P194: Band
B195: Total | C195: 452275.4284 | D195: 113927.9006 | E195: 45960.05563 | F195: 77006.63542 | G195: 689170.0201 | P195: Band
P196: Band
P197: Band
B198: Other LA High Needs Top-Up_Funding for Each Band | P198: Band
C199: Cat 1 | D199: Cat 2 | E199: Cat 4 | F199: Cat 5 | G199: Total | P199: Band
B200: Band D | C200: 0 | D200: 0 | E200: 0 | F200: 0 | G200: 0 | P200: Band
... 1476 more rows

Sheet AutumnProvRep (hidden)
B1: Funding Report for Period 01/09/2022 to 31/12/2022 | C1: No of Days in Year 195
A2: =IF(LEFT(J2,2)="BF",6,IF(LEFT(J2,2)="CW",1,IF(LEFT(J2,2)="CO",4,IF(LEFT(J2,2)="TS",2,IF(LEFT(J2,2)="RB",3,IF(LEFT(J2,2)="SF",7,IF(LEFT(J2,2)="TV",5,IF(LEFT(J2,2)="WF",8,"")))))))) ->  | B2: Report for Baginton Fields School | P2: =IF(ISBLANK(A2),"",CONCATENATE($J$50," ",RIGHT(J2,2))) -> Band
B3: Count of Students in Each Band | P3: Band
C4: Cat 1 | D4: Cat 2 | E4: Cat 3 | F4: Cat 4 | G4: Cat 5 | H4: Total | P4: Band
B5: Band D | C5: 0 | D5: 1 | E5: 0 | F5: 0 | G5: 0 | H5: 1 | P5: Band
B6: Band E | C6: 23 | D6: 40 | E6: 1 | F6: 2 | G6: 12 | H6: 77 | P6: Band
B7: Band F | C7: 31 | D7: 13 | E7: 0 | F7: 2 | G7: 0 | H7: 46 | P7: Band
B8: Total | C8: 54 | D8: 52 | E8: 1 | F8: 4 | G8: 12 | H8: 116 | P8: Band
P9: Band
P10: Band
B11: Sum of Open Days in Each Band | P11: Band
C12: Cat 1 | D12: Cat 2 | E12: Cat 3 | F12: Cat 4 | G12: Cat 5 | H12: Total | P12: Band
B13: Band D | C13: 0 | D13: 35 | E13: 0 | F13: 0 | G13: 0 | H13: 35 | P13: Band
B14: Band E | C14: 1575 | D14: 2695 | E14: 70 | F14: 105 | G14: 580 | H14: 5025 | P14: Band
B15: Band F | C15: 2125 | D15: 715 | E15: 0 | F15: 140 | G15: 0 | H15: 2980 | P15: Band
B16: Total | C16: 3700 | D16: 3445 | E16: 70 | F16: 245 | G16: 580 | H16: 8040 | P16: Band
P17: Band
P18: =IF(ISBLANK(A18),"",CONCATENATE($J$50," ",RIGHT(J18,2))) -> Band
P19: =IF(ISBLANK(A19),"",CONCATENATE($J$50," ",RIGHT(J19,2))) -> Band
B20: High Needs Top-Up_Rates for each Band | P20: Band
P21: Band
C22: BF | P22: Band
B23: Report for Baginton Fields School | P23: Band
B24: Coventry High Needs Top-Up_Funding by Band | P24: Band
C25: Cat 1 | D25: Cat 2 | E25: Cat 3 | F25: Cat 4 | G25: Cat 5 | H25: Total | P25: Band
B26: Band D | C26: 0 | D26: 889.5025641 | E26: 0 | F26: 0 | G26: 0 | H26: 889.5025641 | P26: Band
B27: Band E | C27: 80055.39231 | D27: 123418.75 | E27: 4447.52 | F27: 6671.28 | G27: 60663.36 | H27: 275256.3023 | P27: Band
B28: Band F | C28: 175518.2436 | D28: 54513.87333 | E28: 0 | F28: 10674.04513 | G28: 0 | H28: 240706.1621 | P28: Band
B29: Total | C29: 255573.6359 | D29: 178822.1259 | E29: 4447.52 | F29: 17345.32513 | G29: 60663.36 | H29: 516851.9669 | P29: Band
P30: Band
P31: Band
B32: Other LA High Needs Top-Up_Funding for Each Band | P32: Band
C33: Cat 1 | D33: Cat 2 | E33: Cat 3 | F33: Cat 4 | G33: Cat 5 | H33: Total | P33: Band
B34: Band D | C34: 0 | D34: 0 | E34: 0 | F34: 0 | G34: 0 | H34: 0 | P34: Band
B35: Band E | C35: 0 | D35: 3291.166667 | E35: 0 | F35: 0 | G35: 0 | H35: 3291.166667 | P35: Band
B36: Band F | C36: 0 | D36: 0 | E36: 0 | F36: 0 | G36: 0 | H36: 0 | P36: Band
B37: Total | C37: 0 | D37: 3291.166667 | E37: 0 | F37: 0 | G37: 0 | H37: 3291.166667 | P37: Band
P38: Band
P39: Band
B40: Total High Needs Top-Up_Funding for Each Band | P40: Band
C41: Cat 1 | D41: Cat 2 | E41: Cat 3 | F41: Cat 4 | G41: Cat 5 | H41: Total | P41: Band
B42: Band D | C42: 0 | D42: 889.5025641 | E42: 0 | F42: 0 | G42: 0 | H42: 889.5025641 | P42: Band
B43: Band E | C43: 80055.39231 | D43: 126709.9167 | E43: 4447.52 | F43: 6671.28 | G43: 60663.36 | H43: 278547.469 | P43: Band
B44: Band F | C44: 175518.2436 | D44: 54513.87333 | E44: 0 | F44: 10674.04513 | G44: 0 | H44: 240706.1621 | P44: Band
B45: Total | C45: 255573.6359 | D45: 182113.2926 | E45: 4447.52 | F45: 17345.32513 | G45: 60663.36 | H45: 520143.1336 | P45: Band
P46: Band
P47: Band
B48: Baginton Fields School. List of Pupils who were registered for funding between 01/09/2022 and 31/12/2022 | P48: Band
B49: Start and end dates shown only if different to the above specified period limits | P49: Band
B50: Name | C50: NCY | D50: UPN | E50: start date | F50: end date | G50: Funding LA | H50: Funded Days | I50: Top Up Amount | J50: Band | K50: FTE | P50: =IF(ISBLANK(A50),"",CONCATENATE($J$50," ",RIGHT(J50,2))) -> Band nd
A51: =IF(LEFT(J51,2)="BF",6,IF(LEFT(J51,2)="CW",1,IF(LEFT(J51,2)="CO",4,IF(LEFT(J51,2)="TS",2,IF(LEFT(J51,2)="RB",3,IF(LEFT(J51,2)="SF",7,IF(LEFT(J51,2)="TV",5,IF(LEFT(J51,2)="WF",8,"")))))))) -> 6 | B51: Navsarka, Esa | C51: 7 | D51: J331205614044 | E51: 2022-09-01 | F51: 2022-12-16 | G51: Coventry | H51: 70 | I51: 3291.166667 | J51: BF2E | K51: 1 | P51: =IF(ISBLANK(A51),"",CONCATENATE($J$50," ",RIGHT(J51,2))) -> Band 2E
A52: =IF(LEFT(J52,2)="BF",6,IF(LEFT(J52,2)="CW",1,IF(LEFT(J52,2)="CO",4,IF(LEFT(J52,2)="TS",2,IF(LEFT(J52,2)="RB",3,IF(LEFT(J52,2)="SF",7,IF(LEFT(J52,2)="TV",5,IF(LEFT(J52,2)="WF",8,"")))))))) -> 6 | B52: Powers, Jesse-James | C52: 7 | D52: E331702415004 | E52: 2022-09-01 | F52: 2022-12-16 | G52: Coventry | H52: 70 | I52: 5337.022564 | J52: BF4F | K52: 1 | P52: Band 4F
A53: 6 | B53: Ntare, Christopher M. | C53: 7 | D53: Z331214915010 | E53: 2022-09-01 | F53: 2022-12-16 | G53: Coventry | H53: 70 | I53: 3291.166667 | J53: BF2E | K53: 1 | P53: Band 2E
A54: 6 | B54: Imran, Isa M. | C54: 7 | D54: V331701714001 | E54: 2022-09-01 | F54: 2022-12-16 | G54: Coventry | H54: 70 | I54: 3291.166667 | J54: BF2E | K54: 1 | P54: Band 2E
A55: 6 | B55: Wakahiu, Yvonne N. | C55: 7 | D55: D331702415013 | E55: 2022-09-01 | F55: 2022-12-16 | G55: Coventry | H55: 70 | I55: 5781.777436 | J55: BF1F | K55: 1 | P55: Band 1F
A56: 6 | B56: Shahrjerdi, Dara | C56: 7 | D56: J331701714002 | E56: 2022-09-01 | F56: 2022-12-16 | G56: Coventry | H56: 70 | I56: 7321.44 | J56: BF5E | K56: 1 | P56: Band 5E
A57: 6 | B57: Nimpaye, Don C. | C57: 7 | D57: H331215714032 | E57: 2022-09-01 | F57: 2022-12-16 | G57: Coventry | H57: 70 | I57: 5781.777436 | J57: BF1F | K57: 1 | P57: Band 1F
A58: 6 | B58: Mburichen, Onyekachukwu Ki | C58: 7 | D58: E331701714007 | E58: 2022-09-01 | F58: 2022-12-16 | G58: Coventry | H58: 70 | I58: 5781.777436 | J58: BF1F | K58: 1 | P58: Band 1F
A59: 6 | B59: Omar, Shano | C59: 7 | D59: R331214514076 | E59: 2022-09-01 | F59: 2022-12-16 | G59: Coventry | H59: 70 | I59: 3558.017436 | J59: BF1E | K59: 1 | P59: Band 1E
A60: 6 | B60: Njunga, Trevelle C. | C60: 7 | D60: G331702415015 | E60: 2022-09-01 | F60: 2022-12-16 | G60: Coventry | H60: 70 | I60: 5781.777436 | J60: BF1F | K60: 1 | P60: Band 1F
A61: 6 | B61: Mwangi, Asher M. | C61: 7 | D61: V331215615067 | E61: 2022-09-01 | F61: 2022-12-16 | G61: Coventry | H61: 70 | I61: 5781.777436 | J61: BF1F | K61: 1 | P61: Band 1F
A62: 6 | B62: Barrowman, Lee S. | C62: 7 | D62: H331205614024 | E62: 2022-09-01 | F62: 2022-12-16 | G62: Coventry | H62: 70 | I62: 3558.017436 | J62: BF1E | K62: 1 | P62: Band 1E
A63: 6 | B63: McSheffrey, Kayden B. | C63: 7 | D63: R331212514039 | E63: 2022-09-01 | F63: 2022-12-16 | G63: Coventry | H63: 70 | I63: 3558.017436 | J63: BF1E | K63: 1 | P63: Band 1E
A64: 6 | B64: Crowley, Macey B. | C64: 7 | D64: A334205014028 | E64: 2022-09-01 | F64: 2022-12-16 | G64: Coventry | H64: 70 | I64: 3291.166667 | J64: BF2E | K64: 1 | P64: Band 2E
A65: 6 | B65: Zanfir, Leonard | C65: 7 | D65: J331205615045 | E65: 2022-09-01 | F65: 2022-12-16 | G65: Coventry | H65: 70 | I65: 3558.017436 | J65: BF1E | K65: 1 | P65: Band 1E
A66: 6 | B66: Ngemegwai, Leonardo S. | C66: 7 | D66: G331214015117 | E66: 2022-09-01 | F66: 2022-12-16 | G66: Coventry | H66: 70 | I66: 4447.52 | J66: BF4E | K66: 1 | P66: Band 4E
A67: 6 | B67: Ahmed, Mohammed A. | C67: 7 | D67: E331214516003 | E67: 2022-09-01 | F67: 2022-12-16 | G67: Coventry | H67: 70 | I67: 3291.166667 | J67: BF2E | K67: 1 | P67: Band 2E
A68: 6 | B68: Niculae, Filimon | C68: 7 | D68: H331700018011 | E68: 2022-09-01 | F68: 2022-12-16 | G68: Coventry | H68: 70 | I68: 5781.777436 | J68: BF1F | K68: 1 | P68: Band 1F
A69: 6 | B69: Al Sabban, Bissan Y. | C69: 7 | D69: G886691918118 | E69: 2022-09-01 | F69: 2022-12-16 | G69: Coventry | H69: 70 | I69: 3291.166667 | J69: BF2E | K69: 1 | P69: Band 2E
A70: 6 | B70: Collinson, Catherine j. | C70: 8 | D70: J331214114002 | E70: 2022-09-01 | F70: 2022-12-16 | G70: Coventry | H70: 70 | I70: 3291.166667 | J70: BF2E | K70: 1 | P70: Band 2E
A71: 6 | B71: Skvortsov-Kirsteine, Jessica | C71: 8 | D71: B331340813020 | E71: 2022-09-01 | F71: 2022-12-16 | G71: Coventry | H71: 70 | I71: 3291.166667 | J71: BF2E | K71: 1 | P71: Band 2E
A72: 6 | B72: Molad, Marwan A. | C72: 8 | D72: Q331201513019 | E72: 2022-09-01 | F72: 2022-12-16 | G72: Coventry | H72: 70 | I72: 3291.166667 | J72: BF2E | K72: 1 | P72: Band 2E
A73: 6 | B73: Islam, Mohammed Sami S. | C73: 8 | D73: B331702414001 | E73: 2022-09-01 | F73: 2022-12-16 | G73: Coventry | H73: 70 | I73: 5781.777436 | J73: BF1F | K73: 1 | P73: Band 1F
A74: 6 | B74: Gul, Annum | C74: 8 | D74: M331701713003 | E74: 2022-09-01 | F74: 2022-12-16 | G74: Coventry | H74: 70 | I74: 5337.022564 | J74: BF2F | K74: 1 | P74: Band 2F
A75: 6 | B75: Gibson, Libby G. | C75: 8 | D75: K331100712259 | E75: 2022-09-01 | F75: 2022-12-16 | G75: Coventry | H75: 70 | I75: 5781.777436 | J75: BF1F | K75: 1 | P75: Band 1F
A76: 6 | B76: McGowan, Lucas C. | C76: 8 | D76: W331342314010 | E76: 2022-09-01 | F76: 2022-12-16 | G76: Coventry | H76: 70 | I76: 3291.166667 | J76: BF2E | K76: 1 | P76: Band 2E
A77: 6 | B77: Braithwaite, Lacey P. | C77: 8 | D77: V331330214003 | E77: 2022-09-01 | F77: 2022-12-16 | G77: Coventry | H77: 70 | I77: 7321.44 | J77: BF5E | K77: 1 | P77: Band 5E
A78: 6 | B78: Woodward, Cody R. | C78: 8 | D78: M331211814023 | E78: 2022-09-01 | F78: 2022-12-16 | G78: Coventry | H78: 70 | I78: 3291.166667 | J78: BF2E | K78: 1 | P78: Band 2E
A79: 6 | B79: Urch, Sophia G. | C79: 8 | D79: B331212214038 | E79: 2022-09-01 | F79: 2022-12-16 | G79: Coventry | H79: 70 | I79: 3291.166667 | J79: BF2E | K79: 1 | P79: Band 2E
A80: 6 | B80: Gleeson, Reece R. | C80: 8 | D80: U331213113033 | E80: 2022-09-01 | F80: 2022-12-16 | G80: Coventry | H80: 70 | I80: 3558.017436 | J80: BF1E | K80: 1 | P80: Band 1E
A81: 6 | B81: Ahmed, Hana H. | C81: 8 | D81: L331702414007 | E81: 2022-09-01 | F81: 2022-12-16 | G81: Coventry | H81: 70 | I81: 3558.017436 | J81: BF1E | K81: 1 | P81: Band 1E
A82: 6 | B82: Ali, Azhar | C82: 8 | D82: B331214114005 | E82: 2022-09-01 | F82: 2022-12-16 | G82: Coventry | H82: 70 | I82: 5781.777436 | J82: BF1F | K82: 1 | P82: Band 1F
A83: 6 | B83: Hyde, Brody J. | C83: 8 | D83: M331214113061 | E83: 2022-09-01 | F83: 2022-12-16 | G83: Coventry | H83: 70 | I83: 3558.017436 | J83: BF1E | K83: 1 | P83: Band 1E
A84: 6 | B84: Madu, Great I. | C84: 8 | D84: M331701719011 | E84: 2022-09-01 | F84: 2022-12-16 | G84: Coventry | H84: 70 | I84: 5337.022564 | J84: BF4F | K84: 1 | P84: Band 4F
A85: 6 | B85: Igbokwe, Francis | C85: 8 | D85: A331701922001 | E85: 2022-11-14 | F85: 2022-12-16 | G85: Coventry | H85: 25 | I85: 1906.079487 | J85: BF2F | K85: 1 | P85: Band 2F
A86: 6 | B86: Cooney, Charlotte B. | C86: 9 | D86: A331702412006 | E86: 2022-09-01 | F86: 2022-12-16 | G86: Coventry | H86: 70 | I86: 5337.022564 | J86: BF2F | K86: 1 | P86: Band 2F
A87: 6 | B87: Chidube, Maurice I. | C87: 9 | D87: J331214913014 | E87: 2022-09-01 | F87: 2022-12-16 | G87: Coventry | H87: 70 | I87: 3291.166667 | J87: BF2E | K87: 1 | P87: Band 2E
A88: 6 | B88: Teensa, Raul S. | C88: 9 | D88: N331212412052 | E88: 2022-09-01 | F88: 2022-12-16 | G88: Coventry | H88: 70 | I88: 3291.166667 | J88: BF2E | K88: 1 | P88: Band 2E
A89: 6 | B89: Zeno, Eryk | C89: 9 | D89: J331343513046 | E89: 2022-09-01 | F89: 2022-12-16 | G89: Coventry | H89: 70 | I89: 5781.777436 | J89: BF1F | K89: 1 | P89: Band 1F
A90: 6 | B90: Carty, Loveonhe D. | C90: 9 | D90: L331343813008 | E90: 2022-09-01 | F90: 2022-12-16 | G90: Coventry | H90: 70 | I90: 3291.166667 | J90: BF2E | K90: 1 | P90: Band 2E
A91: 6 | B91: Karamat, Safiullah | C91: 9 | D91: V331201512013 | E91: 2022-09-01 | F91: 2022-12-16 | G91: Coventry | H91: 70 | I91: 7321.44 | J91: BF5E | K91: 1 | P91: Band 5E
A92: 6 | B92: Astolfi, Franco P. | C92: 9 | D92: Y331701713002 | E92: 2022-09-01 | F92: 2022-10-21 | G92: Coventry | H92: 35 | I92: 3660.72 | J92: BF5E | K92: 1 | P92: Band 5E
A93: 6 | B93: GRYSZKIENAS, Santiago A. | C93: 9 | D93: L331212112059 | E93: 2022-09-01 | F93: 2022-12-16 | G93: Coventry | H93: 70 | I93: 3558.017436 | J93: BF1E | K93: 1 | P93: Band 1E
A94: 6 | B94: Bush, Matthew P. | C94: 9 | D94: A331341813003 | E94: 2022-09-01 | F94: 2022-10-23 | G94: Coventry | H94: 35 | I94: 889.5025641 | J94: BF2D | K94: 1 | P94: Band 2D
A95: 6 | B95: Bush, Matthew P. | C95: 9 | D95: A331341813003 | E95: 2022-10-24 | F95: 2022-12-16 | G95: Coventry | H95: 35 | I95: 1645.583333 | J95: BF2E | K95: 1 | P95: Band 2E
A96: 6 | B96: Mack, Paige D. | C96: 9 | D96: L331214312064 | E96: 2022-09-01 | F96: 2022-12-16 | G96: Coventry | H96: 70 | I96: 3291.166667 | J96: BF2E | K96: 1 | P96: Band 2E
A97: 6 | B97: McKinlay, Maddox E. | C97: 9 | D97: Y331100711270 | E97: 2022-09-01 | F97: 2022-12-16 | G97: Coventry | H97: 70 | I97: 5781.777436 | J97: BF1F | K97: 1 | P97: Band 1F
A98: 6 | B98: Mula, Elliot J. | C98: 9 | D98: H331330213012 | E98: 2022-09-01 | F98: 2022-12-16 | G98: Coventry | H98: 70 | I98: 7321.44 | J98: BF5E | K98: 1 | P98: Band 5E
A99: 6 | B99: Molad, MOHAMAD | C99: 9 | D99: M331201512016 | E99: 2022-09-01 | F99: 2022-12-16 | G99: Coventry | H99: 70 | I99: 3291.166667 | J99: BF2E | K99: 1 | P99: Band 2E
A100: 6 | B100: Akhtar, Shumena | C100: 9 | D100: F331214112083 | E100: 2022-09-01 | F100: 2022-12-16 | G100: Coventry | H100: 70 | I100: 3558.017436 | J100: BF1E | K100: 1 | P100: Band 1E
A101: 6 | B101: Hudson, Elise A. | C101: 10 | D101: N331300611029 | E101: 2022-09-01 | F101: 2022-12-16 | G101: Warwickshire | H101: 70 | I101: 3291.166667 | J101: BF2E | K101: 1 | P101: Band 2E
A102: 6 | B102: Moseley, Holly | C102: 10 | D102: U331702411001 | E102: 2022-09-01 | F102: 2022-12-16 | G102: Coventry | H102: 70 | I102: 5337.022564 | J102: BF2F | K102: 1 | P102: Band 2F
A103: 6 | B103: Abu Baker, Daniel | C103: 10 | D103: P331700911004 | E103: 2022-09-01 | F103: 2022-12-16 | G103: Coventry | H103: 70 | I103: 7321.44 | J103: BF5E | K103: 1 | P103: Band 5E
A104: 6 | B104: Padan, Rohan S. | C104: 10 | D104: W331341411043 | E104: 2022-09-01 | F104: 2022-12-16 | G104: Coventry | H104: 70 | I104: 3291.166667 | J104: BF2E | K104: 1 | P104: Band 2E
A105: 6 | B105: Jones, Ellis D. | C105: 10 | D105: L937262612011 | E105: 2022-09-01 | F105: 2022-12-16 | G105: Coventry | H105: 70 | I105: 3558.017436 | J105: BF1E | K105: 1 | P105: Band 1E
A106: 6 | B106: Ray, Jasmine | C106: 10 | D106: R331214111023 | E106: 2022-09-01 | F106: 2022-12-16 | G106: Coventry | H106: 70 | I106: 3291.166667 | J106: BF2E | K106: 1 | P106: Band 2E
A107: 6 | B107: Sahota, Joydeep | C107: 10 | D107: Y331214612092 | E107: 2022-09-01 | F107: 2022-12-16 | G107: Coventry | H107: 70 | I107: 3558.017436 | J107: BF1E | K107: 1 | P107: Band 1E
A108: 6 | B108: Mullin, Harley J. | C108: 10 | D108: B331214112061 | E108: 2022-09-01 | F108: 2022-10-30 | G108: Coventry | H108: 35 | I108: 2890.888718 | J108: BF1F | K108: 1 | P108: Band 1F
A109: 6 | B109: Mullin, Harley J. | C109: 10 | D109: B331214112061 | E109: 2022-10-31 | F109: 2022-12-16 | G109: Coventry | H109: 35 | I109: 3660.72 | J109: BF5E | K109: 1 | P109: Band 5E
A110: 6 | B110: Beauchamp, Morgan T. | C110: 10 | D110: H331300712002 | E110: 2022-09-01 | F110: 2022-12-16 | G110: Coventry | H110: 70 | I110: 3291.166667 | J110: BF2E | K110: 1 | P110: Band 2E
A111: 6 | B111: Khapane, Yugandhar | C111: 10 | D111: N331700612005 | E111: 2022-09-01 | F111: 2022-12-16 | G111: Coventry | H111: 70 | I111: 5781.777436 | J111: BF1F | K111: 1 | P111: Band 1F
A112: 6 | B112: Norman, William K. | C112: 10 | D112: G331702418018 | E112: 2022-09-01 | F112: 2022-12-16 | G112: Coventry | H112: 70 | I112: 5781.777436 | J112: BF1F | K112: 1 | P112: Band 1F
A113: 6 | B113: Jose, Aannet | C113: 10 | D113: J331701717005 | E113: 2022-09-01 | F113: 2022-12-16 | G113: Coventry | H113: 70 | I113: 3558.017436 | J113: BF1E | K113: 1 | P113: Band 1E
A114: 6 | B114: Ali, Ifza | C114: 11 | D114: Z331700611003 | E114: 2022-09-01 | F114: 2022-12-16 | G114: Coventry | H114: 70 | I114: 3291.166667 | J114: BF2E | K114: 1 | P114: Band 2E
A115: 6 | B115: ADEMAKINWA, Kikiola O. | C115: 11 | D115: A331702411005 | E115: 2022-09-01 | F115: 2022-12-16 | G115: Coventry | H115: 70 | I115: 5781.777436 | J115: BF1F | K115: 1 | P115: =IF(ISBLANK(A115),"",CONCATENATE($J$50," ",RIGHT(J115,2))) -> Band 1F
A116: =IF(LEFT(J116,2)="BF",6,IF(LEFT(J116,2)="CW",1,IF(LEFT(J116,2)="CO",4,IF(LEFT(J116,2)="TS",2,IF(LEFT(J116,2)="RB",3,IF(LEFT(J116,2)="SF",7,IF(LEFT(J116,2)="TV",5,IF(LEFT(J116,2)="WF",8,"")))))))) -> 6 | B116: KASONGO, Tony S. | C116: 11 | D116: R331215610002 | E116: 2022-09-01 | F116: 2022-12-16 | G116: Coventry | H116: 70 | I116: 5781.777436 | J116: BF1F | K116: 1 | P116: Band 1F
A117: 6 | B117: MALANGU, Sharon B. | C117: 11 | D117: C331343811047 | E117: 2022-09-01 | F117: 2022-12-16 | G117: Coventry | H117: 70 | I117: 5781.777436 | J117: BF1F | K117: 1 | P117: Band 1F
A118: 6 | B118: Kunasingam, Harryshan | C118: 11 | D118: L331100709018 | E118: 2022-09-01 | F118: 2022-12-16 | G118: Coventry | H118: 70 | I118: 5781.777436 | J118: BF1F | K118: 1 | P118: Band 1F
A119: 6 | B119: Rama, Elbion | C119: 11 | D119: L331702411004 | E119: 2022-09-01 | F119: 2022-12-16 | G119: Coventry | H119: 70 | I119: 5781.777436 | J119: BF1F | K119: 1 | P119: Band 1F
A120: 6 | B120: EKALAKALA, Eliezer | C120: 11 | D120: E331701710003 | E120: 2022-09-01 | F120: 2022-12-16 | G120: Coventry | H120: 70 | I120: 3291.166667 | J120: BF2E | K120: 1 | P120: Band 2E
A121: 6 | B121: Walters, Casadie-Rae J. | C121: 11 | D121: Q331341811022 | E121: 2022-09-01 | F121: 2022-12-16 | G121: Coventry | H121: 70 | I121: 3558.017436 | J121: BF1E | K121: 1 | P121: Band 1E
A122: 6 | B122: Cain, Chanel | C122: 11 | D122: Y331214210011 | E122: 2022-09-01 | F122: 2022-12-16 | G122: Coventry | H122: 70 | I122: 3291.166667 | J122: BF2E | K122: 1 | P122: Band 2E
A123: 6 | B123: Suleiman, Mohammad | C123: 11 | D123: T331110715006 | E123: 2022-09-01 | F123: 2022-12-16 | G123: Coventry | H123: 70 | I123: 5781.777436 | J123: BF1F | K123: 1 | P123: Band 1F
A124: 6 | B124: Singh, Navbir | C124: 11 | D124: K331400418026 | E124: 2022-09-01 | F124: 2022-12-16 | G124: Coventry | H124: 70 | I124: 5781.777436 | J124: BF1F | K124: 1 | P124: Band 1F
A125: 6 | B125: Stokes, Bradley P. | C125: 11 | D125: R312201611091 | E125: 2022-09-01 | F125: 2022-12-16 | G125: Coventry | H125: 70 | I125: 3291.166667 | J125: BF2E | K125: 1 | P125: Band 2E
A126: 6 | B126: Hatem, Ahmed B. | C126: 11 | D126: A856721714003 | E126: 2022-09-01 | F126: 2022-12-02 | G126: Coventry | H126: 60 | I126: 4955.809231 | J126: BF1F | K126: 1 | P126: Band 1F
A127: 6 | B127: Hatem, Ahmed B. | C127: 11 | D127: A856721714003 | E127: 2022-12-03 | F127: 2022-12-16 | G127: Coventry | H127: 10 | I127: 1045.92 | J127: BF5E | K127: 1 | P127: Band 5E
A128: 6 | B128: Biyasi, Hala | C128: 11 | D128: D331701920001 | E128: 2022-09-01 | F128: 2022-12-16 | G128: Coventry | H128: 70 | I128: 3291.166667 | J128: BF2E | K128: 1 | P128: Band 2E
A129: 6 | B129: Mohammed-Said, Dia-Adin A. | C129: 11 | D129: P331701921001 | E129: 2022-10-24 | F129: 2022-12-16 | G129: Coventry | H129: 35 | I129: 2668.511282 | J129: BF2F | K129: 1 | P129: Band 2F
A130: 6 | B130: Mohammed-Said, Dia-Adin A. | C130: 11 | D130: P331701921001 | E130: 2022-09-01 | F130: 2022-10-23 | G130: Coventry | H130: 35 | I130: 2223.76 | J130: BF4E | K130: 1 | P130: Band 4E
A131: 6 | B131: Ginova-Pearson, Denisa A. | C131: 12 | D131: B331213610031 | E131: 2022-09-01 | F131: 2022-12-16 | G131: Coventry | H131: 70 | I131: 3291.166667 | J131: BF2E | K131: 1 | P131: Band 2E
A132: 6 | B132: Kazmi, Aleeza | C132: 12 | D132: W331701708004 | E132: 2022-09-01 | F132: 2022-12-16 | G132: Coventry | H132: 70 | I132: 5337.022564 | J132: BF2F | K132: 1 | P132: Band 2F
A133: 6 | B133: Munir, Aisha | C133: 12 | D133: R331702409006 | E133: 2022-09-01 | F133: 2022-10-23 | G133: Coventry | H133: 35 | I133: 1645.583333 | J133: BF2E | K133: 1 | P133: Band 2E
A134: 6 | B134: Munir, Aisha | C134: 12 | D134: R331702409006 | E134: 2022-10-24 | F134: 2022-12-16 | G134: Coventry | H134: 35 | I134: 2668.511282 | J134: BF2F | K134: 1 | P134: Band 2F
A135: 6 | B135: Bhatti, Aman | C135: 12 | D135: J331702409009 | E135: 2022-09-01 | F135: 2022-12-16 | G135: Coventry | H135: 70 | I135: 5337.022564 | J135: BF2F | K135: 1 | P135: Band 2F
A136: 6 | B136: Leese, Noah | C136: 12 | D136: Y331343709002 | E136: 2022-09-01 | F136: 2022-12-16 | G136: Coventry | H136: 70 | I136: 5781.777436 | J136: BF1F | K136: 1 | P136: Band 1F
A137: 6 | B137: Hughes, Dylan J. | C137: 12 | D137: F331343810048 | E137: 2022-09-01 | F137: 2022-12-16 | G137: Coventry | H137: 70 | I137: 3291.166667 | J137: BF2E | K137: 1 | P137: Band 2E
A138: 6 | B138: Younis, Mohammed E. | C138: 12 | D138: D331701709002 | E138: 2022-09-01 | F138: 2022-12-16 | G138: Coventry | H138: 70 | I138: 5781.777436 | J138: BF1F | K138: 1 | P138: Band 1F
A139: 6 | B139: Moseley, Thomas | C139: 12 | D139: E331202109018 | E139: 2022-09-01 | F139: 2022-12-16 | G139: Coventry | H139: 70 | I139: 3558.017436 | J139: BF1E | K139: 1 | P139: Band 1E
A140: 6 | B140: Abdullah, Nasif | C140: 12 | D140: D331214509052 | E140: 2022-09-01 | F140: 2022-12-16 | G140: Coventry | H140: 70 | I140: 5337.022564 | J140: BF2F | K140: 1 | P140: Band 2F
A141: 6 | B141: Christian, Riquelme N. | C141: 12 | D141: K331300810023 | E141: 2022-09-01 | F141: 2022-12-16 | G141: Coventry | H141: 70 | I141: 3558.017436 | J141: BF1E | K141: 1 | P141: Band 1E
A142: 6 | B142: Cockerill, William | C142: 12 | D142: R331341109030 | E142: 2022-09-01 | F142: 2022-12-16 | G142: Coventry | H142: 70 | I142: 3291.166667 | J142: BF2E | K142: 1 | P142: Band 2E
A143: 6 | B143: Efrem Tekle, Feelmona E. | C143: 12 | D143: M331300810034 | E143: 2022-09-01 | F143: 2022-12-16 | G143: Coventry | H143: 70 | I143: 3291.166667 | J143: BF2E | K143: 1 | P143: Band 2E
A144: 6 | B144: Smith, Katie-Jayne | C144: 12 | D144: K936296309021 | E144: 2022-09-01 | F144: 2022-12-16 | G144: Coventry | H144: 70 | I144: 5781.777436 | J144: BF1F | K144: 1 | P144: Band 1F
A145: 6 | B145: Voicu, Alexandru V. | C145: 12 | D145: N937702017001 | E145: 2022-09-01 | F145: 2022-10-23 | G145: Coventry | H145: 35 | I145: 2668.511282 | J145: BF2F | K145: 1 | P145: Band 2F
A146: 6 | B146: Voicu, Alexandru V. | C146: 12 | D146: N937702017001 | E146: 2022-10-24 | F146: 2022-12-16 | G146: Coventry | H146: 35 | I146: 3660.72 | J146: BF5E | K146: 1 | P146: Band 5E
A147: 6 | B147: Didiu, Cosmin | C147: 12 | D147: F331701918001 | E147: 2022-09-01 | F147: 2022-12-16 | G147: Coventry | H147: 70 | I147: 3291.166667 | J147: BF2E | K147: 1 | P147: Band 2E
A148: 6 | B148: Jadeszko, Gabriel | C148: 12 | D148: V331701918002 | E148: 2022-09-01 | F148: 2022-12-16 | G148: Coventry | H148: 70 | I148: 3291.166667 | J148: BF2E | K148: 1 | P148: Band 2E
A149: 6 | B149: Hatem, Ibraheem B. | C149: 12 | D149: Q856700314010 | E149: 2022-09-01 | F149: 2022-12-02 | G149: Coventry | H149: 60 | I149: 4574.590769 | J149: BF2F | K149: 1 | P149: Band 2F
A150: 6 | B150: Hatem, Ibraheem B. | C150: 12 | D150: Q856700314010 | E150: 2022-12-03 | F150: 2022-12-16 | G150: Coventry | H150: 10 | I150: 1045.92 | J150: BF5E | K150: 1 | P150: Band 5E
A151: 6 | B151: Okorie, Michael | C151: 12 | D151: F331701919002 | E151: 2022-09-01 | F151: 2022-10-23 | G151: Coventry | H151: 35 | I151: 2668.511282 | J151: BF2F | K151: 1 | P151: Band 2F
A152: 6 | B152: Okorie, Michael | C152: 12 | D152: F331701919002 | E152: 2022-10-24 | F152: 2022-12-16 | G152: Coventry | H152: 35 | I152: 3660.72 | J152: BF5E | K152: 1 | P152: Band 5E
A153: 6 | B153: ESSEKU-OTOO, Nadia A. | C153: 12 | D153: R307700710005 | E153: 2022-09-01 | F153: 2022-12-16 | G153: Coventry | H153: 70 | I153: 3558.017436 | J153: BF1E | K153: 1 | P153: Band 1E
A154: 6 | B154: Russell, William J. | C154: 13 | D154: Y331700609001 | E154: 2022-09-01 | F154: 2022-12-16 | G154: Coventry | H154: 70 | I154: 5781.777436 | J154: BF1F | K154: 1 | P154: Band 1F
A155: 6 | B155: Ekalakala, Beni T. | C155: 13 | D155: D331343708043 | E155: 2022-09-01 | F155: 2022-12-16 | G155: Coventry | H155: 70 | I155: 3558.017436 | J155: BF1E | K155: 1 | P155: Band 1E
A156: 6 | B156: Clifton, Amy E. | C156: 13 | D156: C331215608046 | E156: 2022-09-01 | F156: 2022-12-16 | G156: Coventry | H156: 70 | I156: 3291.166667 | J156: BF2E | K156: 1 | P156: Band 2E
A157: 6 | B157: Mubele, Quincey | C157: 13 | D157: W331212908067 | E157: 2022-09-01 | F157: 2022-12-16 | G157: Coventry | H157: 70 | I157: 3558.017436 | J157: BF1E | K157: 1 | P157: Band 1E
A158: 6 | B158: Kirkby, Olivia | C158: 13 | D158: T331343708044 | E158: 2022-09-01 | F158: 2022-12-16 | G158: Coventry | H158: 70 | I158: 3558.017436 | J158: BF1E | K158: 1 | P158: Band 1E
A159: 6 | B159: Riley, Kirk S. | C159: 13 | D159: Q336204110010 | E159: 2022-09-01 | F159: 2022-12-16 | G159: Coventry | H159: 70 | I159: 3291.166667 | J159: BF2E | K159: 1 | P159: Band 2E
A160: 6 | B160: Newport, Brandon A. | C160: 13 | D160: K331702408001 | E160: 2022-09-01 | F160: 2022-12-16 | G160: Coventry | H160: 70 | I160: 5781.777436 | J160: BF1F | K160: 1 | P160: Band 1F
A161: 6 | B161: Hussain, Shafee | C161: 14 | D161: W331343707016 | E161: 2022-09-01 | F161: 2022-12-16 | G161: Coventry | H161: 70 | I161: 7321.44 | J161: BF5E | K161: 1 | P161: Band 5E
A162: 6 | B162: Cooper, Dixie | C162: 14 | D162: K331701705002 | E162: 2022-09-01 | F162: 2022-12-16 | G162: Coventry | H162: 70 | I162: 5337.022564 | J162: BF2F | K162: 1 | P162: Band 2F
A163: 6 | B163: Miguel, Emmanuel | C163: 14 | D163: Z331702408002 | E163: 2022-09-01 | F163: 2022-12-16 | G163: Coventry | H163: 70 | I163: 5781.777436 | J163: BF1F | K163: 1 | P163: Band 1F
A164: 6 | B164: McLaughlin, CHARLIE S. | C164: 14 | D164: G331701707002 | E164: 2022-09-01 | F164: 2022-12-16 | G164: Coventry | H164: 70 | I164: 5781.777436 | J164: BF1F | K164: 1 | P164: Band 1F
A165: 6 | B165: Mackley, Connor K. | C165: 14 | D165: M331200808036 | E165: 2022-09-01 | F165: 2022-12-16 | G165: Coventry | H165: 70 | I165: 3291.166667 | J165: BF2E | K165: 1 | P165: Band 2E
A166: 6 | B166: Miah, Tahim M. | C166: 14 | D166: Z331215607014 | E166: 2022-09-01 | F166: 2022-12-16 | G166: Coventry | H166: 70 | I166: 5781.777436 | J166: BF1F | K166: 1 | P166: Band 1F
A167: 6 | B167: Rawlinson, Jack M. | C167: 14 | D167: B331300908036 | E167: 2022-09-01 | F167: 2022-12-16 | G167: Coventry | H167: 70 | I167: 3558.017436 | J167: BF1E | K167: 1 | P167: Band 1E
A168: 6 | B168: Raja, Mohammed Qasim Q. | C168: 14 | D168: F331214107040 | E168: 44805 | F168: 2022-12-16 | G168: Coventry | H168: 70 | I168: 3558.017436 | J168: BF1E | K168: 1 | P168: Band 1E
A169: 6 | B169: Edginton, ADAM M. | C169: 14 | D169: W331214207015 | E169: 44805 | F169: 44911 | G169: Coventry | H169: 70 | I169: 3291.166667 | J169: BF2E | K169: 1 | P169: Band 2E
A170: 6 | B170: Akhtar, Kerrum | C170: 14 | D170: D331202307051 | E170: 44805 | F170: 44911 | G170: Coventry | H170: 70 | I170: 3291.166667 | J170: BF2E | K170: 1 | P170: Band 2E
A171: 6 | B171: James, Kieran | C171: 14 | D171: M331214208057 | E171: 44805 | F171: 44911 | G171: Coventry | H171: 70 | I171: 4447.52 | J171: BF3E | K171: 1 | P171: Band 3E
A172: 6 | B172: Daniels, Cameron J. | C172: 14 | D172: R331300708004 | E172: 44858 | F172: 44911 | G172: Coventry | H172: 35 | I172: 1779.008718 | J172: BF1E | K172: 1 | P172: Band 1E
A173: 6 | B173: Daniels, Cameron J. | C173: 14 | D173: R331300708004 | E173: 44805 | F173: 44857 | G173: Coventry | H173: 35 | I173: 1645.583333 | J173: BF2E | K173: 1 | P173: Band 2E
A174: 6 | B174: Ben Othman, Shahd B. | C174: 14 | D174: T331701708002 | E174: 44805 | F174: 44911 | G174: Coventry | H174: 70 | I174: 3558.017436 | J174: BF1E | K174: 1 | P174: Band 1E
A175: 6 | B175: Madu, Promise | C175: 14 | D175: R331701919001 | E175: 44805 | F175: 44911 | G175: Coventry | H175: 70 | I175: 5781.777436 | J175: BF1F | K175: 1 | P175: Band 1F
B176: Baginton Fields School | C176: Period: | D176: 44805 | E176: to | F176: 44911 | G176: No of Pupils: 116 | H176: Cost for Period: | I176: 520143.1336 | P176: Band
B177: Report for Castle Wood School | P177: Band
B178: Count of Students in Each Band | P178: Band
C179: Cat 1 | D179: Cat 2 | E179: Cat 4 | F179: Cat 5 | G179: Total | P179: =IF(ISBLANK(A179),"",CONCATENATE($J$50," ",RIGHT(J179,2))) -> Band
A180: =IF(LEFT(J180,2)="BF",6,IF(LEFT(J180,2)="CW",1,IF(LEFT(J180,2)="CO",4,IF(LEFT(J180,2)="TS",2,IF(LEFT(J180,2)="RB",3,IF(LEFT(J180,2)="SF",7,IF(LEFT(J180,2)="TV",5,IF(LEFT(J180,2)="WF",8,"")))))))) ->  | B180: Band D | C180: 1 | D180: 0 | E180: 1 | F180: 0 | G180: 2 | P180: Band
B181: Band E | C181: 88 | D181: 18 | E181: 5 | F181: 8 | G181: 119 | P181: Band
B182: Band F | C182: 25 | D182: 11 | E182: 5 | F182: 1 | G182: 42 | P182: Band
B183: Total | C183: 114 | D183: 29 | E183: 11 | F183: 9 | G183: 162 | P183: Band
P184: Band
P185: Band
B186: Sum of Open Days in Each Band | P186: Band
C187: Cat 1 | D187: Cat 2 | E187: Cat 4 | F187: Cat 5 | G187: Total | P187: Band
B188: Band D | C188: 70 | D188: 0 | E188: 70 | F188: 0 | G188: 140 | P188: Band
B189: Band E | C189: 6024 | D189: 1235 | E189: 350 | F189: 560 | G189: 8169 | P189: Band
B190: Band F | C190: 1750 | D190: 770 | E190: 350 | F190: 35 | G190: 2905 | P190: Band
B191: Total | C191: 7844 | D191: 2005 | E191: 770 | F191: 595 | G191: 11214 | P191: Band
P192: Band
P193: Band
P194: Band
B195: High Needs Top-Up_Rates for each Band | P195: Band
P196: Band
C197: CW | P197: Band
B198: Report for Castle Wood School | P198: Band
B199: Coventry High Needs Top-Up_Funding by Band | P199: Band
C200: Cat 1 | D200: Cat 2 | E200: Cat 4 | F200: Cat 5 | G200: Total | P200: Band
... 2300 more rows

Sheet SpringProvRep (hidden)
B1: Funding Report for Period 01/01/2023 to 31/03/2023 | C1: No of Days in Year 195
A2: =IF(LEFT(J2,2)="BF",6,IF(LEFT(J2,2)="CW",1,IF(LEFT(J2,2)="CO",4,IF(LEFT(J2,2)="TS",2,IF(LEFT(J2,2)="RB",3,IF(LEFT(J2,2)="SF",7,IF(LEFT(J2,2)="TV",5,IF(LEFT(J2,2)="WF",8,"")))))))) ->  | B2: Report for Baginton Fields School | P2: =IF(ISBLANK(A2),"",CONCATENATE($J$50," ",RIGHT(J2,2))) -> Band
B3: Count of Students in Each Band | P3: =IF(ISBLANK(A3),"",CONCATENATE($J$50," ",RIGHT(J3,2))) -> Band
C4: Cat 1 | D4: Cat 2 | E4: Cat 3 | F4: Cat 4 | G4: Cat 5 | H4: Total | P4: Band
B5: Band D | P5: =IF(ISBLANK(A5),"",CONCATENATE($J$50," ",RIGHT(J5,2))) -> 
B6: Band E | C6: 23 | D6: 38 | E6: 1 | F6: 1 | G6: 11 | H6: 74 | P6: Band
B7: Band F | C7: 29 | D7: 10 | E7: 0 | F7: 2 | G7: 0 | H7: 41 | P7: Band
B8: Total | C8: 52 | D8: 48 | E8: 1 | F8: 3 | G8: 11 | H8: 115 | P8: =IF(ISBLANK(A8),"",CONCATENATE($J$50," ",RIGHT(J8,2))) -> Band
P9: Band
P10: Band
B11: Sum of Open Days in Each Band | P11: Band
C12: Cat 1 | D12: Cat 2 | E12: Cat 3 | F12: Cat 4 | G12: Cat 5 | H12: Total | P12: Band
B13: Band D
B14: Band E | C14: 1357 | D14: 2242 | E14: 59 | F14: 59 | G14: 649 | H14: 4366 | P14: Band
B15: Band F | C15: 1711 | D15: 590 | E15: 0 | F15: 118 | G15: 0 | H15: 2419 | P15: Band
B16: Total | C16: 3068 | D16: 2832 | E16: 59 | F16: 177 | G16: 649 | H16: 6785 | P16: Band
P17: Band
P18: Band
P19: Band
B20: High Needs Top-Up_Rates for each Band | P20: Band
P21: Band
C22: BF | P22: Band
B23: Report for Baginton Fields School | P23: Band
B24: Coventry High Needs Top-Up_Funding by Band | P24: Band
C25: Cat 1 | D25: Cat 2 | E25: Cat 3 | F25: Cat 4 | G25: Cat 5 | H25: Total | P25: Band
B26: Band D
B27: Band E | C27: 68974.70944 | D27: 102637.3833 | E27: 3748.624 | F27: 3748.624 | G27: 67880.208 | H27: 246989.5488 | P27: Band
B28: Band F | C28: 141323.1599 | D28: 44983.4759 | E28: 0 | F28: 8996.695179 | G28: 0 | H28: 195303.331 | P28: Band
B29: Total | C29: 210297.8693 | D29: 147620.8592 | E29: 3748.624 | F29: 12745.31918 | G29: 67880.208 | H29: 442292.8797 | P29: Band
P30: Band
P31: Band
B32: Other LA High Needs Top-Up_Funding for Each Band | P32: Band
C33: Cat 1 | D33: Cat 2 | E33: Cat 3 | F33: Cat 4 | G33: Cat 5 | H33: Total | P33: Band
B34: Band D
B35: Band E | C35: 0 | D35: 2773.983333 | E35: 0 | F35: 0 | G35: 0 | H35: 2773.983333 | P35: Band
B36: Band F | C36: 0 | D36: 0 | E36: 0 | F36: 0 | G36: 0 | H36: 0 | P36: Band
B37: Total | C37: 0 | D37: 2773.983333 | E37: 0 | F37: 0 | G37: 0 | H37: 2773.983333 | P37: Band
P38: Band
P39: Band
B40: Total High Needs Top-Up_Funding for Each Band | P40: Band
C41: Cat 1 | D41: Cat 2 | E41: Cat 3 | F41: Cat 4 | G41: Cat 5 | H41: Total | P41: Band
B42: Band D
B43: Band E | C43: 68974.70944 | D43: 105411.3667 | E43: 3748.624 | F43: 3748.624 | G43: 67880.208 | H43: 249763.5321 | P43: Band
B44: Band F | C44: 141323.1599 | D44: 44983.4759 | E44: 0 | F44: 8996.695179 | G44: 0 | H44: 195303.331 | P44: Band
B45: Total | C45: 210297.8693 | D45: 150394.8426 | E45: 3748.624 | F45: 12745.31918 | G45: 67880.208 | H45: 445066.8631 | P45: Band
P46: Band
P47: Band
B48: Baginton Fields School. List of Pupils who were registered for funding between 01/01/2023 and 31/03/2023 | P48: Band
B49: Start and end dates shown only if different to the above specified period limits | P49: Band
B50: Name | C50: NCY | D50: UPN | E50: start date | F50: end date | G50: Funding LA | H50: Funded Days | I50: Top Up Amount | J50: Band | K50: FTE | P50: Band nd
A51: 6 | B51: Navsarka, Esa | C51: 7 | D51: J331205614044 | E51: 2023-01-01 | G51: Coventry | H51: 59 | I51: 2773.983333 | J51: BF2E | K51: 1 | P51: Band 2E
A52: 6 | B52: Powers, Jesse-James | C52: 7 | D52: E331702415004 | E52: 2023-01-01 | G52: Coventry | H52: 59 | I52: 4498.34759 | J52: BF4F | K52: 1 | P52: Band 4F
A53: 6 | B53: Ntare, Christopher M. | C53: 7 | D53: Z331214915010 | E53: 2023-01-01 | G53: Coventry | H53: 59 | I53: 2773.983333 | J53: BF2E | K53: 1 | P53: Band 2E
A54: 6 | B54: Imran, Isa M. | C54: 7 | D54: V331701714001 | E54: 2023-01-01 | G54: Coventry | H54: 59 | I54: 2773.983333 | J54: BF2E | K54: 1 | P54: Band 2E
A55: 6 | B55: Wakahiu, Yvonne N. | C55: 7 | D55: D331702415013 | E55: 2023-01-01 | G55: Coventry | H55: 59 | I55: 4873.21241 | J55: BF1F | K55: 1 | P55: Band 1F
A56: =IF(LEFT(J56,2)="BF",6,IF(LEFT(J56,2)="CW",1,IF(LEFT(J56,2)="CO",4,IF(LEFT(J56,2)="TS",2,IF(LEFT(J56,2)="RB",3,IF(LEFT(J56,2)="SF",7,IF(LEFT(J56,2)="TV",5,IF(LEFT(J56,2)="WF",8,"")))))))) -> 6 | B56: Shahrjerdi, Dara | C56: 7 | D56: J331701714002 | E56: 2023-01-01 | G56: Coventry | H56: 59 | I56: 6170.928 | J56: BF5E | K56: 1 | P56: Band 5E
A57: =IF(LEFT(J57,2)="BF",6,IF(LEFT(J57,2)="CW",1,IF(LEFT(J57,2)="CO",4,IF(LEFT(J57,2)="TS",2,IF(LEFT(J57,2)="RB",3,IF(LEFT(J57,2)="SF",7,IF(LEFT(J57,2)="TV",5,IF(LEFT(J57,2)="WF",8,"")))))))) -> 6 | B57: Nimpaye, Don C. | C57: 7 | D57: H331215714032 | E57: 2023-01-01 | G57: Coventry | H57: 59 | I57: 4873.21241 | J57: BF1F | K57: 1 | P57: Band 1F
A58: 6 | B58: Mburichen, Onyekachukwu Ki | C58: 7 | D58: E331701714007 | E58: 2023-01-01 | G58: Coventry | H58: 59 | I58: 4873.21241 | J58: BF1F | K58: 1 | P58: Band 1F
A59: 6 | B59: Omar, Shano | C59: 7 | D59: R331214514076 | E59: 2023-01-01 | G59: Coventry | H59: 59 | I59: 2998.90041 | J59: BF1E | K59: 1 | P59: Band 1E
A60: 6 | B60: Njunga, Trevelle C. | C60: 7 | D60: G331702415015 | E60: 2023-01-01 | G60: Coventry | H60: 59 | I60: 4873.21241 | J60: BF1F | K60: 1 | P60: Band 1F
A61: 6 | B61: Mwangi, Asher M. | C61: 7 | D61: V331215615067 | E61: 2023-01-01 | G61: Coventry | H61: 59 | I61: 4873.21241 | J61: BF1F | K61: 1 | P61: Band 1F
A62: 6 | B62: Barrowman, Lee S. | C62: 7 | D62: H331205614024 | E62: 2023-01-01 | G62: Coventry | H62: 59 | I62: 2998.90041 | J62: BF1E | K62: 1 | P62: Band 1E
A63: 6 | B63: McSheffrey, Kayden B. | C63: 7 | D63: R331212514039 | E63: 2023-01-01 | G63: Coventry | H63: 59 | I63: 2998.90041 | J63: BF1E | K63: 1 | P63: Band 1E
A64: 6 | B64: Crowley, Macey B. | C64: 7 | D64: A334205014028 | E64: 2023-01-01 | G64: Coventry | H64: 59 | I64: 2773.983333 | J64: BF2E | K64: 1 | P64: Band 2E
A65: 6 | B65: Zanfir, Leonard | C65: 7 | D65: J331205615045 | E65: 2023-01-01 | G65: Coventry | H65: 59 | I65: 2998.90041 | J65: BF1E | K65: 1 | P65: Band 1E
A66: 6 | B66: Ngemegwai, Leonardo S. | C66: 7 | D66: G331214015117 | E66: 2023-01-01 | G66: Coventry | H66: 59 | I66: 3748.624 | J66: BF4E | K66: 1 | P66: Band 4E
A67: 6 | B67: Ahmed, Mohammed A. | C67: 7 | D67: E331214516003 | E67: 2023-01-01 | G67: Coventry | H67: 59 | I67: 2773.983333 | J67: BF2E | K67: 1 | P67: =IF(ISBLANK(A67),"",CONCATENATE($J$50," ",RIGHT(J67,2))) -> Band 2E
A68: 6 | B68: Niculae, Filimon | C68: 7 | D68: H331700018011 | E68: 2023-01-01 | G68: Coventry | H68: 59 | I68: 4873.21241 | J68: BF1F | K68: 1 | P68: Band 1F
A69: 6 | B69: Al Sabban, Bissan Y. | C69: 7 | D69: G886691918118 | E69: 2023-01-01 | G69: Coventry | H69: 59 | I69: 2773.983333 | J69: BF2E | K69: 1 | P69: Band 2E
A70: 6 | B70: Collinson, Catherine j. | C70: 8 | D70: J331214114002 | E70: 2023-01-01 | G70: Coventry | H70: 59 | I70: 2773.983333 | J70: BF2E | K70: 1 | P70: Band 2E
A71: 6 | B71: Skvortsov-Kirsteine, Jessica | C71: 8 | D71: B331340813020 | E71: 2023-01-01 | G71: Coventry | H71: 59 | I71: 2773.983333 | J71: BF2E | K71: 1 | P71: Band 2E
A72: 6 | B72: Molad, Marwan A. | C72: 8 | D72: Q331201513019 | E72: 2023-01-01 | G72: Coventry | H72: 59 | I72: 2773.983333 | J72: BF2E | K72: 1 | P72: Band 2E
A73: 6 | B73: Islam, Mohammed Sami S. | C73: 8 | D73: B331702414001 | E73: 2023-01-01 | G73: Coventry | H73: 59 | I73: 4873.21241 | J73: BF1F | K73: 1 | P73: Band 1F
A74: 6 | B74: Gul, Annum | C74: 8 | D74: M331701713003 | E74: 2023-01-01 | G74: Coventry | H74: 59 | I74: 4498.34759 | J74: BF2F | K74: 1 | P74: Band 2F
A75: 6 | B75: Gibson, Libby G. | C75: 8 | D75: K331100712259 | E75: 2023-01-01 | G75: Coventry | H75: 59 | I75: 4873.21241 | J75: BF1F | K75: 1 | P75: Band 1F
A76: 6 | B76: McGowan, Lucas C. | C76: 8 | D76: W331342314010 | E76: 2023-01-01 | G76: Coventry | H76: 59 | I76: 2773.983333 | J76: BF2E | K76: 1 | P76: Band 2E
A77: 6 | B77: Braithwaite, Lacey P. | C77: 8 | D77: V331330214003 | E77: 2023-01-01 | G77: Coventry | H77: 59 | I77: 6170.928 | J77: BF5E | K77: 1 | P77: Band 5E
A78: 6 | B78: Woodward, Cody R. | C78: 8 | D78: M331211814023 | E78: 2023-01-01 | G78: Coventry | H78: 59 | I78: 2773.983333 | J78: BF2E | K78: 1 | P78: Band 2E
A79: 6 | B79: Urch, Sophia G. | C79: 8 | D79: B331212214038 | E79: 2023-01-01 | G79: Coventry | H79: 59 | I79: 2773.983333 | J79: BF2E | K79: 1 | P79: Band 2E
A80: 6 | B80: Gleeson, Reece R. | C80: 8 | D80: U331213113033 | E80: 2023-01-01 | G80: Coventry | H80: 59 | I80: 2998.90041 | J80: BF1E | K80: 1 | P80: Band 1E
A81: 6 | B81: Ahmed, Hana H. | C81: 8 | D81: L331702414007 | E81: 2023-01-01 | G81: Coventry | H81: 59 | I81: 2998.90041 | J81: BF1E | K81: 1 | P81: Band 1E
A82: 6 | B82: Ali, Azhar | C82: 8 | D82: B331214114005 | E82: 2023-01-01 | G82: Coventry | H82: 59 | I82: 4873.21241 | J82: BF1F | K82: 1 | P82: Band 1F
A83: 6 | B83: Hyde, Brody J. | C83: 8 | D83: M331214113061 | E83: 2023-01-01 | G83: Coventry | H83: 59 | I83: 2998.90041 | J83: BF1E | K83: 1 | P83: Band 1E
A84: 6 | B84: Madu, Great I. | C84: 8 | D84: M331701719011 | E84: 2023-01-01 | G84: Coventry | H84: 59 | I84: 4498.34759 | J84: BF4F | K84: 1 | P84: Band 4F
A85: 6 | B85: Igbokwe, Francis | C85: 8 | D85: A331701922001 | E85: 2023-01-01 | G85: Coventry | H85: 59 | I85: 4498.34759 | J85: BF2F | K85: 1 | P85: Band 2F
A86: 6 | B86: Cooney, Charlotte B. | C86: 9 | D86: A331702412006 | E86: 2023-01-01 | G86: Coventry | H86: 59 | I86: 4498.34759 | J86: BF2F | K86: 1 | P86: Band 2F
A87: 6 | B87: Chidube, Maurice I. | C87: 9 | D87: J331214913014 | E87: 2023-01-01 | G87: Coventry | H87: 59 | I87: 2773.983333 | J87: BF2E | K87: 1 | P87: Band 2E
A88: 6 | B88: Teensa, Raul S. | C88: 9 | D88: N331212412052 | E88: 2023-01-01 | G88: Coventry | H88: 59 | I88: 2773.983333 | J88: BF2E | K88: 1 | P88: Band 2E
A89: 6 | B89: Zeno, Eryk | C89: 9 | D89: J331343513046 | E89: 2023-01-01 | G89: Coventry | H89: 59 | I89: 4873.21241 | J89: BF1F | K89: 1 | P89: Band 1F
A90: 6 | B90: Carty, Loveonhe D. | C90: 9 | D90: L331343813008 | E90: 2023-01-01 | G90: Coventry | H90: 59 | I90: 2773.983333 | J90: BF2E | K90: 1 | P90: Band 2E
A91: 6 | B91: Karamat, Safiullah | C91: 9 | D91: V331201512013 | E91: 2023-01-01 | G91: Coventry | H91: 59 | I91: 6170.928 | J91: BF5E | K91: 1 | P91: Band 5E
A92: 6 | B92: GRYSZKIENAS, Santiago A. | C92: 9 | D92: L331212112059 | E92: 2023-01-01 | G92: Coventry | H92: 59 | I92: 2998.90041 | J92: BF1E | K92: 1 | P92: Band 1E
A93: 6 | B93: Bush, Matthew P. | C93: 9 | D93: A331341813003 | E93: 2023-01-01 | G93: Coventry | H93: 59 | I93: 2773.983333 | J93: BF2E | K93: 1 | P93: Band 2E
A94: 6 | B94: Mack, Paige D. | C94: 9 | D94: L331214312064 | E94: 2023-01-01 | G94: Coventry | H94: 59 | I94: 2773.983333 | J94: BF2E | K94: 1 | P94: Band 2E
A95: 6 | B95: McKinlay, Maddox E. | C95: 9 | D95: Y331100711270 | E95: 2023-01-01 | G95: Coventry | H95: 59 | I95: 4873.21241 | J95: BF1F | K95: 1 | P95: Band 1F
A96: 6 | B96: Mula, Elliot J. | C96: 9 | D96: H331330213012 | E96: 2023-01-01 | G96: Coventry | H96: 59 | I96: 6170.928 | J96: BF5E | K96: 1 | P96: Band 5E
A97: 6 | B97: Molad, MOHAMAD | C97: 9 | D97: M331201512016 | E97: 2023-01-01 | G97: Coventry | H97: 59 | I97: 2773.983333 | J97: BF2E | K97: 1 | P97: Band 2E
A98: 6 | B98: Akhtar, Shumena | C98: 9 | D98: F331214112083 | E98: 2023-01-01 | G98: Coventry | H98: 59 | I98: 2998.90041 | J98: BF1E | K98: 1 | P98: Band 1E
A99: 6 | B99: Hudson, Elise A. | C99: 10 | D99: N331300611029 | E99: 2023-01-01 | G99: Warwickshire | H99: 59 | I99: 2773.983333 | J99: BF2E | K99: 1 | P99: Band 2E
A100: 6 | B100: Moseley, Holly | C100: 10 | D100: U331702411001 | E100: 2023-01-01 | G100: Coventry | H100: 59 | I100: 4498.34759 | J100: BF2F | K100: 1 | P100: Band 2F
A101: 6 | B101: Abu Baker, Daniel | C101: 10 | D101: P331700911004 | E101: 2023-01-01 | G101: Coventry | H101: 59 | I101: 6170.928 | J101: BF5E | K101: 1 | P101: Band 5E
A102: 6 | B102: Padan, Rohan S. | C102: 10 | D102: W331341411043 | E102: 2023-01-01 | G102: Coventry | H102: 59 | I102: 2773.983333 | J102: BF2E | K102: 1 | P102: Band 2E
A103: 6 | B103: Jones, Ellis D. | C103: 10 | D103: L937262612011 | E103: 2023-01-01 | G103: Coventry | H103: 59 | I103: 2998.90041 | J103: BF1E | K103: 1 | P103: Band 1E
A104: 6 | B104: Ray, Jasmine | C104: 10 | D104: R331214111023 | E104: 2023-01-01 | G104: Coventry | H104: 59 | I104: 2773.983333 | J104: BF2E | K104: 1 | P104: Band 2E
A105: 6 | B105: Sahota, Joydeep | C105: 10 | D105: Y331214612092 | E105: 2023-01-01 | G105: Coventry | H105: 59 | I105: 2998.90041 | J105: BF1E | K105: 1 | P105: Band 1E
A106: 6 | B106: Mullin, Harley J. | C106: 10 | D106: B331214112061 | E106: 2023-01-01 | G106: Coventry | H106: 59 | I106: 6170.928 | J106: BF5E | K106: 1 | P106: Band 5E
A107: 6 | B107: Beauchamp, Morgan T. | C107: 10 | D107: H331300712002 | E107: 2023-01-01 | G107: Coventry | H107: 59 | I107: 2773.983333 | J107: BF2E | K107: 1 | P107: Band 2E
A108: 6 | B108: Khapane, Yugandhar | C108: 10 | D108: N331700612005 | E108: 2023-01-01 | G108: Coventry | H108: 59 | I108: 4873.21241 | J108: BF1F | K108: 1 | P108: Band 1F
A109: 6 | B109: Norman, William K. | C109: 10 | D109: G331702418018 | E109: 2023-01-01 | G109: Coventry | H109: 59 | I109: 4873.21241 | J109: BF1F | K109: 1 | P109: Band 1F
A110: 6 | B110: Jose, Aannet | C110: 10 | D110: J331701717005 | E110: 2023-01-01 | G110: Coventry | H110: 59 | I110: 2998.90041 | J110: BF1E | K110: 1 | P110: Band 1E
A111: 6 | B111: Ali, Ifza | C111: 11 | D111: Z331700611003 | E111: 2023-01-01 | G111: Coventry | H111: 59 | I111: 2773.983333 | J111: BF2E | K111: 1 | P111: Band 2E
A112: 6 | B112: ADEMAKINWA, Kikiola O. | C112: 11 | D112: A331702411005 | E112: 2023-01-01 | G112: Coventry | H112: 59 | I112: 4873.21241 | J112: BF1F | K112: 1 | P112: Band 1F
A113: 6 | B113: KASONGO, Tony S. | C113: 11 | D113: R331215610002 | E113: 2023-01-01 | G113: Coventry | H113: 59 | I113: 4873.21241 | J113: BF1F | K113: 1 | P113: Band 1F
A114: 6 | B114: MALANGU, Sharon B. | C114: 11 | D114: C331343811047 | E114: 2023-01-01 | G114: Coventry | H114: 59 | I114: 4873.21241 | J114: BF1F | K114: 1 | P114: Band 1F
A115: 6 | B115: Kunasingam, Harryshan | C115: 11 | D115: L331100709018 | E115: 2023-01-01 | G115: Coventry | H115: 59 | I115: 4873.21241 | J115: BF1F | K115: 1 | P115: Band 1F
A116: 6 | B116: Rama, Elbion | C116: 11 | D116: L331702411004 | E116: 2023-01-01 | G116: Coventry | H116: 59 | I116: 4873.21241 | J116: BF1F | K116: 1 | P116: Band 1F
A117: 6 | B117: EKALAKALA, Eliezer | C117: 11 | D117: E331701710003 | E117: 2023-01-01 | G117: Coventry | H117: 59 | I117: 2773.983333 | J117: BF2E | K117: 1 | P117: Band 2E
A118: 6 | B118: Walters, Casadie-Rae J. | C118: 11 | D118: Q331341811022 | E118: 2023-01-01 | G118: Coventry | H118: 59 | I118: 2998.90041 | J118: BF1E | K118: 1 | P118: Band 1E
A119: 6 | B119: Cain, Chanel | C119: 11 | D119: Y331214210011 | E119: 2023-01-01 | G119: Coventry | H119: 59 | I119: 2773.983333 | J119: BF2E | K119: 1 | P119: Band 2E
A120: 6 | B120: Suleiman, Mohammad | C120: 11 | D120: T331110715006 | E120: 2023-01-01 | G120: Coventry | H120: 59 | I120: 4873.21241 | J120: BF1F | K120: 1 | P120: Band 1F
A121: =IF(LEFT(J121,2)="BF",6,IF(LEFT(J121,2)="CW",1,IF(LEFT(J121,2)="CO",4,IF(LEFT(J121,2)="TS",2,IF(LEFT(J121,2)="RB",3,IF(LEFT(J121,2)="SF",7,IF(LEFT(J121,2)="TV",5,IF(LEFT(J121,2)="WF",8,"")))))))) -> 6 | B121: Singh, Navbir | C121: 11 | D121: K331400418026 | E121: 2023-01-01 | G121: Coventry | H121: 59 | I121: 4873.21241 | J121: BF1F | K121: 1 | P121: Band 1F
A122: 6 | B122: Stokes, Bradley P. | C122: 11 | D122: R312201611091 | E122: 2023-01-01 | G122: Coventry | H122: 59 | I122: 2773.983333 | J122: BF2E | K122: 1 | P122: Band 2E
A123: 6 | B123: Hatem, Ahmed B. | C123: 11 | D123: A856721714003 | E123: 2023-01-01 | G123: Coventry | H123: 59 | I123: 6170.928 | J123: BF5E | K123: 1 | P123: Band 5E
A124: 6 | B124: Biyasi, Hala | C124: 11 | D124: D331701920001 | E124: 2023-01-01 | G124: Coventry | H124: 59 | I124: 2773.983333 | J124: BF2E | K124: 1 | P124: Band 2E
A125: 6 | B125: Mohammed-Said, Dia-Adin A. | C125: 11 | D125: P331701921001 | E125: 2023-01-01 | G125: Coventry | H125: 59 | I125: 4498.34759 | J125: BF2F | K125: 1 | P125: Band 2F
A126: 6 | B126: Ginova-Pearson, Denisa A. | C126: 12 | D126: B331213610031 | E126: 2023-01-01 | G126: Coventry | H126: 59 | I126: 2773.983333 | J126: BF2E | K126: 1 | P126: Band 2E
A127: 6 | B127: Kazmi, Aleeza | C127: 12 | D127: W331701708004 | E127: 2023-01-01 | G127: Coventry | H127: 59 | I127: 4498.34759 | J127: BF2F | K127: 1 | P127: Band 2F
A128: 6 | B128: Munir, Aisha | C128: 12 | D128: R331702409006 | E128: 2023-01-01 | G128: Coventry | H128: 59 | I128: 4498.34759 | J128: BF2F | K128: 1 | P128: Band 2F
A129: 6 | B129: Bhatti, Aman | C129: 12 | D129: J331702409009 | E129: 2023-01-01 | G129: Coventry | H129: 59 | I129: 4498.34759 | J129: BF2F | K129: 1 | P129: Band 2F
A130: 6 | B130: Leese, Noah | C130: 12 | D130: Y331343709002 | E130: 2023-01-01 | G130: Coventry | H130: 59 | I130: 4873.21241 | J130: BF1F | K130: 1 | P130: Band 1F
A131: 6 | B131: Hughes, Dylan J. | C131: 12 | D131: F331343810048 | E131: 2023-01-01 | G131: Coventry | H131: 59 | I131: 2773.983333 | J131: BF2E | K131: 1 | P131: =IF(ISBLANK(A131),"",CONCATENATE($J$50," ",RIGHT(J131,2))) -> Band 2E
A132: 6 | B132: Younis, Mohammed E. | C132: 12 | D132: D331701709002 | E132: 2023-01-01 | G132: Coventry | H132: 59 | I132: 4873.21241 | J132: BF1F | K132: 1 | P132: Band 1F
A133: 6 | B133: Moseley, Thomas | C133: 12 | D133: E331202109018 | E133: 2023-01-01 | G133: Coventry | H133: 59 | I133: 2998.90041 | J133: BF1E | K133: 1 | P133: Band 1E
A134: 6 | B134: Abdullah, Nasif | C134: 12 | D134: D331214509052 | E134: 2023-01-01 | G134: Coventry | H134: 59 | I134: 4498.34759 | J134: BF2F | K134: 1 | P134: Band 2F
A135: 6 | B135: Christian, Riquelme N. | C135: 12 | D135: K331300810023 | E135: 2023-01-01 | G135: Coventry | H135: 59 | I135: 2998.90041 | J135: BF1E | K135: 1 | P135: Band 1E
A136: 6 | B136: Cockerill, William | C136: 12 | D136: R331341109030 | E136: 2023-01-01 | G136: Coventry | H136: 59 | I136: 2773.983333 | J136: BF2E | K136: 1 | P136: Band 2E
A137: 6 | B137: Efrem Tekle, Feelmona E. | C137: 12 | D137: M331300810034 | E137: 2023-01-01 | G137: Coventry | H137: 59 | I137: 2773.983333 | J137: BF2E | K137: 1 | P137: Band 2E
A138: 6 | B138: Smith, Katie-Jayne | C138: 12 | D138: K936296309021 | E138: 2023-01-01 | G138: Coventry | H138: 59 | I138: 4873.21241 | J138: BF1F | K138: 1 | P138: Band 1F
A139: 6 | B139: Voicu, Alexandru V. | C139: 12 | D139: N937702017001 | E139: 2023-01-01 | G139: Coventry | H139: 59 | I139: 6170.928 | J139: BF5E | K139: 1 | P139: Band 5E
A140: 6 | B140: Didiu, Cosmin | C140: 12 | D140: F331701918001 | E140: 2023-01-01 | G140: Coventry | H140: 59 | I140: 2773.983333 | J140: BF2E | K140: 1 | P140: Band 2E
A141: 6 | B141: Jadeszko, Gabriel | C141: 12 | D141: V331701918002 | E141: 2023-01-01 | G141: Coventry | H141: 59 | I141: 2773.983333 | J141: BF2E | K141: 1 | P141: Band 2E
A142: 6 | B142: Hatem, Ibraheem B. | C142: 12 | D142: Q856700314010 | E142: 2023-01-01 | G142: Coventry | H142: 59 | I142: 6170.928 | J142: BF5E | K142: 1 | P142: Band 5E
A143: 6 | B143: Okorie, Michael | C143: 12 | D143: F331701919002 | E143: 2023-01-01 | G143: Coventry | H143: 59 | I143: 6170.928 | J143: BF5E | K143: 1 | P143: Band 5E
A144: 6 | B144: ESSEKU-OTOO, Nadia A. | C144: 12 | D144: R307700710005 | E144: 2023-01-01 | G144: Coventry | H144: 59 | I144: 2998.90041 | J144: BF1E | K144: 1 | P144: Band 1E
A145: 6 | B145: Russell, William J. | C145: 13 | D145: Y331700609001 | E145: 2023-01-01 | G145: Coventry | H145: 59 | I145: 4873.21241 | J145: BF1F | K145: 1 | P145: Band 1F
A146: 6 | B146: Ekalakala, Beni T. | C146: 13 | D146: D331343708043 | E146: 2023-01-01 | G146: Coventry | H146: 59 | I146: 2998.90041 | J146: BF1E | K146: 1 | P146: Band 1E
A147: 6 | B147: Clifton, Amy E. | C147: 13 | D147: C331215608046 | E147: 2023-01-01 | G147: Coventry | H147: 59 | I147: 2773.983333 | J147: BF2E | K147: 1 | P147: Band 2E
A148: 6 | B148: Mubele, Quincey | C148: 13 | D148: W331212908067 | E148: 2023-01-01 | G148: Coventry | H148: 59 | I148: 2998.90041 | J148: BF1E | K148: 1 | P148: Band 1E
A149: 6 | B149: Kirkby, Olivia | C149: 13 | D149: T331343708044 | E149: 2023-01-01 | G149: Coventry | H149: 59 | I149: 2998.90041 | J149: BF1E | K149: 1 | P149: Band 1E
A150: 6 | B150: Riley, Kirk S. | C150: 13 | D150: Q336204110010 | E150: 2023-01-01 | G150: Coventry | H150: 59 | I150: 2773.983333 | J150: BF2E | K150: 1 | P150: Band 2E
A151: 6 | B151: Newport, Brandon A. | C151: 13 | D151: K331702408001 | E151: 2023-01-01 | G151: Coventry | H151: 59 | I151: 4873.21241 | J151: BF1F | K151: 1 | P151: Band 1F
A152: 6 | B152: Hussain, Shafee | C152: 14 | D152: W331343707016 | E152: 2023-01-01 | G152: Coventry | H152: 59 | I152: 6170.928 | J152: BF5E | K152: 1 | P152: Band 5E
A153: 6 | B153: Cooper, Dixie | C153: 14 | D153: K331701705002 | E153: 2023-01-01 | G153: Coventry | H153: 59 | I153: 4498.34759 | J153: BF2F | K153: 1 | P153: Band 2F
A154: 6 | B154: Miguel, Emmanuel | C154: 14 | D154: Z331702408002 | E154: 2023-01-01 | G154: Coventry | H154: 59 | I154: 4873.21241 | J154: BF1F | K154: 1 | P154: Band 1F
A155: 6 | B155: McLaughlin, CHARLIE S. | C155: 14 | D155: G331701707002 | E155: 2023-01-01 | G155: Coventry | H155: 59 | I155: 4873.21241 | J155: BF1F | K155: 1 | P155: Band 1F
A156: 6 | B156: Mackley, Connor K. | C156: 14 | D156: M331200808036 | E156: 2023-01-01 | G156: Coventry | H156: 59 | I156: 2773.983333 | J156: BF2E | K156: 1 | P156: Band 2E
A157: 6 | B157: Miah, Tahim M. | C157: 14 | D157: Z331215607014 | E157: 2023-01-01 | G157: Coventry | H157: 59 | I157: 4873.21241 | J157: BF1F | K157: 1 | P157: Band 1F
A158: 6 | B158: Rawlinson, Jack M. | C158: 14 | D158: B331300908036 | E158: 2023-01-01 | G158: Coventry | H158: 59 | I158: 2998.90041 | J158: BF1E | K158: 1 | P158: Band 1E
A159: 6 | B159: Raja, Mohammed Qasim Q. | C159: 14 | D159: F331214107040 | E159: 2023-01-01 | G159: Coventry | H159: 59 | I159: 2998.90041 | J159: BF1E | K159: 1 | P159: Band 1E
A160: 6 | B160: Edginton, ADAM M. | C160: 14 | D160: W331214207015 | E160: 2023-01-01 | G160: Coventry | H160: 59 | I160: 2773.983333 | J160: BF2E | K160: 1 | P160: Band 2E
A161: 6 | B161: Akhtar, Kerrum | C161: 14 | D161: D331202307051 | E161: 2023-01-01 | G161: Coventry | H161: 59 | I161: 2773.983333 | J161: BF2E | K161: 1 | P161: Band 2E
A162: 6 | B162: James, Kieran | C162: 14 | D162: M331214208057 | E162: 2023-01-01 | G162: Coventry | H162: 59 | I162: 3748.624 | J162: BF3E | K162: 1 | P162: Band 3E
A163: 6 | B163: Daniels, Cameron J. | C163: 14 | D163: R331300708004 | E163: 2023-01-01 | G163: Coventry | H163: 59 | I163: 2998.90041 | J163: BF1E | K163: 1 | P163: Band 1E
A164: 6 | B164: Ben Othman, Shahd B. | C164: 14 | D164: T331701708002 | E164: 2023-01-01 | G164: Coventry | H164: 59 | I164: 2998.90041 | J164: BF1E | K164: 1 | P164: Band 1E
A165: 6 | B165: Madu, Promise | C165: 14 | D165: R331701919001 | E165: 2023-01-01 | G165: Coventry | H165: 59 | I165: 4873.21241 | J165: BF1F | K165: 1 | P165: Band 1F
B166: Baginton Fields School | C166: Period: | D166: 2023-01-01 | E166: to | F166: 2023-03-31 | G166: No of Pupils: 115 | H166: Cost for Period: | I166: 445066.8631 | P166: Band
B167: Report for Castle Wood School | P167: Band
B168: Count of Students in Each Band | P168: Band
C169: Cat 1 | D169: Cat 2 | E169: Cat 4 | F169: Cat 5 | G169: Total | P169: Band
B170: Band D | C170: 0 | D170: 0 | E170: 1 | F170: 0 | G170: 1 | P170: Band
B171: Band E | C171: 90 | D171: 17 | E171: 5 | F171: 6 | G171: 118 | P171: Band
B172: Band F | C172: 26 | D172: 11 | E172: 5 | F172: 1 | G172: 43 | P172: Band
B173: Total | C173: 116 | D173: 28 | E173: 11 | F173: 7 | G173: 162 | P173: Band
P174: Band
P175: Band
B176: Sum of Open Days in Each Band | P176: Band
C177: Cat 1 | D177: Cat 2 | E177: Cat 4 | F177: Cat 5 | G177: Total | P177: Band
B178: Band D | C178: 0 | D178: 0 | E178: 59 | F178: 0 | G178: 59 | P178: Band
B179: Band E | C179: 5238 | D179: 1003 | E179: 295 | F179: 354 | G179: 6890 | P179: Band
B180: Band F | C180: 1534 | D180: 649 | E180: 258 | F180: 59 | G180: 2500 | P180: Band
B181: Total | C181: 6772 | D181: 1652 | E181: 612 | F181: 413 | G181: 9449 | P181: Band
P182: Band
P183: Band
P184: Band
A185: =IF(LEFT(J185,2)="BF",6,IF(LEFT(J185,2)="CW",1,IF(LEFT(J185,2)="CO",4,IF(LEFT(J185,2)="TS",2,IF(LEFT(J185,2)="RB",3,IF(LEFT(J185,2)="SF",7,IF(LEFT(J185,2)="TV",5,IF(LEFT(J185,2)="WF",8,"")))))))) ->  | B185: High Needs Top-Up_Rates for each Band | P185: Band
P186: Band
C187: CW | P187: Band
B188: Report for Castle Wood School | P188: Band
B189: Coventry High Needs Top-Up_Funding by Band | P189: Band
C190: Cat 1 | D190: Cat 2 | E190: Cat 4 | F190: Cat 5 | G190: Total | P190: Band
B191: Band D | C191: 0 | D191: 0 | E191: 2249.176821 | F191: 0 | G191: 2249.176821 | P191: Band
B192: Band E | C192: 263242.4614 | D192: 47157.71667 | E192: 18743.12 | F192: 37025.568 | G192: 366168.8661 | P192: Band
B193: Band F | C193: 126703.5227 | D193: 49481.82349 | E193: 19670.74031 | F193: 12341.856 | G193: 208197.9425 | P193: Band
B194: Total | C194: 389945.9841 | D194: 96639.54015 | E194: 40663.03713 | F194: 49367.424 | G194: 576615.9854 | P194: Band
P195: =IF(ISBLANK(A195),"",CONCATENATE($J$50," ",RIGHT(J195,2))) -> Band
P196: Band
B197: Other LA High Needs Top-Up_Funding for Each Band | P197: Band
C198: Cat 1 | D198: Cat 2 | E198: Cat 4 | F198: Cat 5 | G198: Total | P198: Band
B199: Band D | C199: 0 | D199: 0 | E199: 0 | F199: 0 | G199: 0 | P199: Band
B200: Band E | C200: 2998.90041 | D200: 0 | E200: 0 | F200: 0 | G200: 2998.90041 | P200: Band
... 1496 more rows

Sheet LogIn (hidden)
A1: User Name | B1: Password | C1: ID
A2: Riverbank Academy | B2: Mbu55Z. | C2: 3
A3: Baginton Fields | B3: YH3b9R | C3: 6
A4: Castlewood | B4: 3nAc2M | C4: 1
A5: Corley (Coventry) | B5: 6vYYEE. | C5: 4
A6: Sherbourne Fields | B6: C48bc7 | C6: 7
A7: Kingsbury Academy | B7: pceQ65. | C7: 2
A8: Tiverton | B8: cz3VN2 | C8: 5
A9: Woodfield | B9: 2c9Rk8 | C9: 8

Sheet LoginPage
